Workbook

Sheet Лист6 (hidden)
L2: Տ Ե Ղ Ե Կ Ա Ն Ք
N4: հազ.դրամ
A5: Հ/Հ | B5: Համայնքի անվանում | C5: Ընդամենը եկամուտ 2017թ պլան | D5: Ընդամենը ծախս 2017թ | E5: Ընդամենը ծախս 2017թ կլիենտ | F5: առ 13.11,2018 ըստ ծրագրի կլիենտ | G5: 13.11,18-29.12.18 | H5: Ընդամենը եկամուտ 2018թ | I5: Ընդամենը ծախս 2018թ | J5: Սեփական եկամուտ 2017թ. | K5: Սեփական եկամուտ 2018թ. | L5: Աշխատավարձի ֆոնդ (1 ամիս) 2018թ | M5: Աշխատավարձի ֆոնդ (1 ամիս) 2017թ | N5: Համայնքապետարանի աշխատողների թվաքանակ 2018թ. | O5: Համայնքապետարանի աշխատողների թվաքանակ 2017թ. | P5: ՀՈԱԿ-ի աշխատողների թվաքանակ 2018թ. | Q5: ՀՈԱԿ-ի աշխատողների թվաքանակ 2017թ. | R5: ֆինանսական համահարթեցման սկզբւնքով տրվող դոտացիա (2018)թ | S5: ֆինանսական համահարթեցման սկզբւնքով տրվող դոտացիա (2017)թ | T5: ճան. կապիտալ վերան 2018թ. | U5: Գիշերային լուսավորության 2018թ. | V5: Բազմաբնակարան շենքների շքամուրքերի նորոգում 2018 | W5: վարչ. սարքավ ձեռք բերում 2018թ. | X5: Ջեռուցման համակարգի անցկացում 2018 | Y5: խմելու ջրի անցկացում 2018 | Z5: նախագծա հետազոտական ծախս 2018թ. | AA5: աճեցվող ակտիվների ձեռք բերում 2018 | AB5: Կապիտալ ծրագրեր 2018 | AC5: Շենք շինությունների նորոգում 2017թ. | AD5: վարչ. սարքավ ձեռք բերում 2017թ. | AE5: նախագծա հետազոտական ծախս 2017թ. | AF5: Կապիտալ ծախս 2018թ. | AG5: Կապիտալ ծախս 2017թ.
A6: 1 | B6: Տաշիր | C6: 259675.5 | D6: 281477.3 | E6: =G6+F6 -> 0 | H6: 346324.4 | I6: 308453.4 | J6: =C6-S6 -> 111101.7 | K6: 138564 | L6: =5126600/1000 -> 5126.6 | M6: 3416.6 | N6: 41 | O6: 26 | P6: 57 | Q6: 57 | R6: 207660.4 | S6: 148573.8 | T6: 2550 | U6: 2800 | V6: 4300 | W6: 1000 | Z6: 500 | AA6: 3000 | AC6: 18574.7 | AD6: 1516 | AE6: 470 | AF6: =T6+U6+V6+W6+X6+Y6+Z6+AA6+AB6 -> 14150 | AG6: 20560.7
A7: 2 | B7: Բլագոդարնոե | C7: =Лист1!$C$6 -> 7160.349 | D7: 6754 | E7: =G7+F7 -> 6923.2 | F7: 6114 | G7: 809.2 | I7: 4950 | J7: 3660.349 | L7: 230 | M7: 359.9 | N7: 2 | O7: 4 | S7: 3500 | T7: 250 | U7: 420 | Y7: 3000 | AC7: 3670 | AF7: 3670 | AG7: =AC7+AD7+AE7 -> 3670
A8: 3 | B8: Կատնառար | C8: =Лист1!$C$7 -> 28561.4 | D8: 25206.5 | E8: 27295.4 | F8: 25825.5 | G8: 1469.9 | I8: 12140 | J8: 6788 | L8: 372.5 | M8: 1136.008 | N8: 4 | O8: 10 | S8: 21773.4 | U8: 700 | AC8: 1681 | AF8: 700 | AG8: 1681
A9: 4 | B9: Մեդովկա | C9: =Лист1!$C$8 -> 10345.8 | D9: 8196.1 | E9: 10687.8 | F9: 10456 | G9: 231.8 | I9: 5600 | J9: 6015.2 | L9: 220 | M9: 435 | N9: 2 | O9: 5 | S9: 4330.6 | U9: 420 | AC9: 1881 | AF9: 420 | AG9: 1881
A10: 5 | B10: Սարատովկա | C10: 12742 | D10: 11096.7 | E10: 12259.8 | F10: 11606.6 | G10: 653.2 | I10: 7250 | J10: 9241.1 | L10: 250 | M10: 667.7 | N10: 2 | O10: 6 | S10: 3500.9 | U10: 1400 | AF10: 1400 | AG10: =AC10+AD10+AE10 -> 0
A11: 6 | B11: Դաշտադեմ | C11: =Лист1!$C$10 -> 7581.912 | D11: 6821 | E11: 5552.4 | F11: 5397.4 | G11: 155 | I11: 3770 | J11: 4081.912 | L11: 220 | M11: 383.5 | N11: 2 | O11: 4 | S11: 3500 | AC11: 360.7 | AF11: 0 | AG11: 360.7
A12: 7 | B12: Մեղվահովիտ | C12: 8503.9 | D12: 7322 | E12: 7824.9 | F12: 7182.2 | G12: 642.7 | I12: 5630 | J12: 5003.9 | L12: 220 | M12: 478.6 | N12: 2 | O12: 5 | S12: 3500 | U12: 210 | AC12: 250 | AF12: 210 | AG12: 250
A13: 8 | B13: Նովոսելցեվո | C13: =Лист1!$C$12 -> 7103.1 | D13: 6727 | E13: 6635.2 | F13: 6279.5 | G13: 355.7 | I13: 4410 | J13: 3603.1 | L13: 230 | M13: 308.44 | N13: 2 | O13: 4 | S13: 3500 | U13: 350 | AC13: 930 | AF13: 350 | AG13: 930
A14: 9 | B14: Լեռնահովիտ | C14: 24896.6 | D14: 41600 | E14: 42280.8 | F14: 21729.6 | G14: 20551.2 | I14: 14760 | J14: 12526.8 | L14: 372.5 | M14: 746.8 | N14: 4 | O14: 6 | S14: 12369.8 | T14: 200 | U14: 700 | AC14: 6075 | AD14: 19900 | AF14: 900 | AG14: 25975
B15: Ընդամենը | C15: =SUM(C6:C14) -> 366570.561 | D15: =SUM(D6:D14) -> 395200.6 | F15: =SUM(F6:F14) -> 94590.8 | H15: =SUM(H6:H14) -> 346324.4 | I15: =SUM(I6:I14) -> 366963.4 | J15: =SUM(J6:J14) -> 162022.061 | K15: 138564 | L15: 7241.6 | M15: 7932.548 | N15: 61 | O15: 70 | P15: 57 | Q15: 57 | R15: 207660.4 | S15: =SUM(S6:S14) -> 204548.5 | T15: 3000 | U15: 7000 | V15: 4300 | W15: 1000 | X15: 0 | Y15: 3000 | Z15: 500 | AA15: 3000 | AB15: 0 | AC15: 33422.4 | AD15: 21416 | AE15: 470 | AF15: 21800 | AG15: =SUM(AG6:AG14) -> 55308.4
AD16: 19900 տրակտոր

Sheet Лист5 (hidden)
A2: Հ Ա Շ Վ Ա Ր Կ Ի Ձ Ե Վ Ա Չ Ա Փ
D7: ամսեկան | G7: տարեկ
A8: Åµ) Â³ÝÏ³ñÅ»ù Ù»ï³ÕÝ»ñÇó å³ïñ³ëïí³Í Çñ»ñÇ Ù³Ýñ³Í³Ë ³éáõí³×³éùÇ ÃáõÛÉïíáõÃÛ³Ý Ñ³Ù³ñ | B8: 2 | C8: 50000 | F8: 12 | G8: 100000
A9: ½) Ð³Ù³ÛÝùÇ ï³ñ³ÍùáõÙ Ñ»ÕáõÏ í³é»ÉÇùÇ, ï»ËÝÇÏ³Ï³Ý Ñ»ÕáõÏÝ»ñÇ, Ñ»ÕáõÏ³óí³Í ·³½»ñÇ Ù³Ýñ³Í³Ë ³é¨ïñÇ Ï»ï»ñáõÙ Ñ»ÕáõÏ í³é»ÉÇùÇ, ï»ËÝÇÏ³Ï³Ý Ñ»ÕáõÏÝ»ñÇ, Ñ»ÕáõÏ³óí³Í ·³½»ñÇ í³×³éùÇ ÃáõÛÉïíáõÃÛ³Ý Ñ³Ù³ñ | B9: 5 | C9: 200000 | F9: 12 | G9: 1000000
A10: Ã) Ð³Ù³ÛÝùÇ ï³ñ³ÍùáõÙ ³ñï³ùÇÝ ·áí³½¹ ï»Õ³¹ñ»Éáõ ÃáõÛÉïíáõÃÛ³Ý Ñ³Ù³ñ | G10: 232780
A11: - Բիթիէլ սերվիս
A12: --Վեոն Արմենիա | D12: 5212 | F12: 12 | G12: 62500
A13: --Ֆինկա ՍՊԸ | F13: 12
A14: --չիմեգ ՍՊԸ | D14: 14190 | F14: 12 | G14: 170280
A15: ³) Ð³Ù³ÛÝùÇ ï³ñ³ÍùáõÙ Ýáñ ß»Ýù»ñÇ, ßÇÝáõÃÛáõÝÝ»ñÇ (Ý»ñ³éÛ³É áã ÑÇÙÝ³Ï³Ý) ßÇÝ³ñ³ñáõÃÛáõÝ (ï»Õ³¹ñÙ³Ý) ÃáõÛÉïíáõÃÛ³Ý Ñ³Ù³ñ (ïáÕ 1133 + ïáÕ 1334), | G15: 300000
A16: ·) Ð³Ù³ÛÝùÇ í³ñã³Ï³Ý ï³ñ³ÍùáõÙ ß»Ýù»ñÇ, ßÇÝáõÃÛáõÝÝ»ñÇ, ù³Õ³ù³ßÇÝ³Ï³Ý ³ÛÉ ûµÛ»ÏïÝ»ñÇ ù³Ý¹Ù³Ý ÃáõÛÉïíáõÃÛ³Ý Ñ³Ù³ñ | B16: 10 | C16: 5000 | G16: 100000
A17: ¹) Ð³Ù³ÛÝùÇ ï³ñ³ÍùáõÙ á·»ÉÇó ËÙÇãùÝ»ñÇ ¨ (Ï³Ù) ÍË³ËáïÇ ³ñï³¹ñ³ÝùÇ í³×³éùÇ, ÇëÏ Ñ³Ýñ³ÛÇÝ ëÝÝ¹Ç ûµÛ»ÏïÝ»ñáõÙ` á·»ÉÇó ËÙÇãùÝ»ñÇ ¨ (Ï³Ù) ÍË³ËáïÇ ³ñï³¹ñ³ÝùÇ Çñ³óÙ³Ý ÃáõÛÉïíáõÃÛ³Ý Ñ³Ù³ñ | G17: 2500000
E19: =SUM(E8:E18) -> 0
A21: - -Տաշիր | B21: 35 | G21: 2144000
A22: Լեռնովիտ | B22: 4 | G22: 176000
A23: Կատնառատ | B23: 2 | G23: 80000
A24: Բլագոդարնոե | B24: 1 | G24: 40000
A25: Սարատովկա | B25: 1 | G25: 40000
A26: Մեդովկա | B26: 1 | G26: 20000
A28: հրավարություն | B28: 50000*6 | G28: 300000
A29: աղբահանություն
A30: բնակիչներ | B30: 4200 անձ | C30: 150 | D30: 630000 | E30: 12 | F30: 7560000 | H30: 13000000
A31: հանրային սննունդ | B31: 1250ք.մ | C31: 50 | D31: 62500 | E31: 12 | F31: 750000 | H31: 5000000
A32: մթերային խանութ | B32: 1316 քմ | C32: 50 | D32: 65800 | E32: 12 | F32: 789600
A33: մյուս խանութ | B33: 1700 քմ | C33: 50 | D33: 85000 | E33: 12 | F33: 1020000
A34: կրտության հիմն | B34: 1200քմ | C34: 10 | D34: 12000 | E34: 12 | F34: 144000
A35: մշակույթային | B35: 1570 քմ | C35: 10 | D35: 157000 | E35: 12 | F35: 188400
A36: հիվանդանո | B36: 4500 քմ | C36: 10 | D36: 45000 | E36: 12 | F36: 540000
F37: =SUM(F30:F36) -> 10992000 | H37: 18000000
B38: ծնողական վճարներ
A40: համար4 | B40: 150 | C40: 6500 | D40: =B40*C40 -> 975000 | E40: 12 | F40: =D40*E40 -> 11700000
A41: համար3 | B41: 60 | C41: 5000 | D41: =B41*C41 -> 300000 | E41: 12 | F41: =D41*E41 -> 3600000
A42: համար1 | B42: 25 | C42: 5000 | D42: 125000 | E42: 12 | F42: 1500000
A43: ynd hoak | F43: =SUM(F40:F42) -> 16800000
A44: արվեստի դպրոց | B44: 155 | C44: 4000 | D44: 428000 | E44: 9 | F44: =D44*E44 -> 3852000
B45: 41 | C45: 2000 | D45: 82000 | E45: 9 | F45: =D45*E45 -> 738000
A46: ynd arv | F46: =SUM(F44:F45) -> 4590000
A47: մշակույթի կենտրոն | F47: 2000000
A48: ընդամեն ծնողական | F48: =F43+F46+F47 -> 23390000
A51: 2020թ իրավաբանական անձանց աղբահանության վճարը ըստ պայմանագրերի ամսեկան կազմում է 470,0հազ.դրամ *12 = 5640,0 հազ դր տարեկան

Sheet texekanq (hidden)
A1: îºÔºÎ²Üø
A2: Ñ³Ù³ÛÝùÇ µÛáõç»áí Ý³Ë³ï»ëí³Í
A3: Ñ³ñÏ³ï»ë³ÏÝ»ñÇ ³å³éùÇ ¨ Ñ³ßí³ñÏÝ»ñÇ í»ñ³µ»ñÛ³É
A5: Ð/Ð | B5: Ð³ñÏ³ï»ë³ÏÇ ³Ýí³ÝáõÙÁ | D5: ÀÝ¹³Ù»ÝÁ | E5: µÛáõç»áí Ý³Ë³ï»ëí³Í ³å³éù | F5: Ñ³ßí³ñÏ 2019Ã. | G5: ³å³éù ³é 01.01.2019Ã
A6: 1 | B6: ÐáÕÇ Ñ³ñÏ | C6: Æ.² | D6: 194 | F6: 194
C7: ü.² | D7: 24989.2 | E7: 800 | F7: 28989.2 | G7: 154700
C8: ÀÝ¹³Ù»ÝÁ | D8: 25183.2 | F8: =SUM(F6:F7) -> 29183.2
A9: 2 | B9: ¶áõÛù³Ñ³ñÏ | C9: Ñ³Ù³ÛÝùÇ í³ñã³Ï³Ý ï³ñ³ÍùÝ»ñáõÙ ·ïÝíáÕ ß»Ýù»ñÇ ¨ ßÇÝáõÃÛáõÝÝ»ñÇ Ñ³Ù³ñ | D9: 883.2 | E9: 200 | F9: 683.2 | G9: 1342
C10: ÷áË³¹ñ³ÙÇçáóÝ»ñÇ Ñ³Ù³ñ | D10: 41555.2 | E10: 0 | F10: 46555.2 | G10: 15000
A11: 3 | B11: ä³Ñáõëï.ÑáÕ»ñÇ | C11: Æ.²
B12: í³ñÓ³í×³ñÝ»ñ | C12: ü.² | D12: 37686.8 | E12: 1000 | F12: 36686.8 | G12: 2350
C13: ÀÝ¹³Ù»ÝÁ | D13: =SUM(D11:D12) -> 37686.8 | F13: 36686.8
A20: Ð²Ø²ÚÜøÆ ÔºÎ²ì²ðª
A22: ¶ÈÊ.üÆÜ²ÜêÆêî(Ð²Þì²ä²Ð)

Sheet Лист1 (hidden)
D4: ¶áõÛù³Ñ³ñÏ Ñ³Ù³ÛÝùÝ»ñÇ í³ñã³Ï³Ý ï³ñ³ÍùÝ»ñáõÙ ·ïÝíáÕ ß»Ýù»ñÇ ¨ ßÇÝáõÃÛáõÝÝ»ñÇ Ñ³Ù³ñ | E4: ÐáÕÇ Ñ³ñÏ Ñ³Ù³ÛÝùÝ»ñÇ í³ñã³Ï³Ý ï³ñ³ÍùÝ»ñáõÙ ·ïÝíáÕ ÑáÕÇ Ñ³Ù³ñ | F4: ¶áõÛù³Ñ³ñÏ ÷áË³¹ñ³ÙÇçáóÝ»ñÇ Ñ³Ù³ñ | G4: î»Õ³Ï³Ý ïáõñù»ñ | H4: ÐÇÙÝ³Ï³Ý ßÇÝáõÃÛáõÝÝ»ñÇ Ñ³Ù³ñ | I4: ù³Ý¹Ù³Ý ÃáõÛÉïíáõÃÛ³Ý Ñ³Ù³ñ | J4: ¹) Ð³Ù³ÛÝùÇ ï³ñ³ÍùáõÙ á·»ÉÇó ËÙÇãùÝ»ñÇ ¨ (Ï³Ù) ÍË³ËáïÇ ³ñï³¹ñ³ÝùÇ í³×³éùÇ, ÇëÏ Ñ³Ýñ³ÛÇÝ ëÝÝ¹Ç ûµÛ»ÏïÝ»ñáõÙ` á·»ÉÇó ËÙÇãùÝ»ñÇ ¨ (Ï³Ù) ÍË³ËáïÇ ³ñï³¹ñ³ÝùÇ Çñ³óÙ³Ý ÃáõÛÉïíáõÃÛ³Ý Ñ³Ù³ñ | K4: ») Ð³Ù³ÛÝùÇ ï³ñ³ÍùáõÙ µ³óûÃÛ³ í³×³éù Ï³½Ù³Ï»ñå»Éáõ ÃáõÛÉïíáõÃÛ³Ý Ñ³Ù³ñ | L4: ½) Ð³Ù³ÛÝùÇ ï³ñ³ÍùáõÙ Ñ»ÕáõÏ í³é»ÉÇùÇ, ï»ËÝÇÏ³Ï³Ý Ñ»ÕáõÏÝ»ñÇ, Ñ»ÕáõÏ³óí³Í ·³½»ñÇ Ù³Ýñ³Í³Ë ³é¨ïñÇ Ï»ï»ñáõÙ Ñ»ÕáõÏ í³é»ÉÇùÇ, ï»ËÝÇÏ³Ï³Ý Ñ»ÕáõÏÝ»ñÇ, Ñ»ÕáõÏ³óí³Í ·³½»ñÇ í³×³éùÇ ÃáõÛÉïíáõÃÛ³Ý Ñ³Ù³ñ | M4: Ã) Ð³Ù³ÛÝùÇ ï³ñ³ÍùáõÙ ³ñï³ùÇÝ ·áí³½¹ ï»Õ³¹ñ»Éáõ ÃáõÛÉïíáõÃÛ³Ý Ñ³Ù³ñ | N4: Åµ) Â³ÝÏ³ñÅ»ù Ù»ï³ÕÝ»ñÇó å³ïñ³ëïí³Í Çñ»ñÇ Ù³Ýñ³Í³Ë ³éáõí³×³éùÇ ÃáõÛÉïíáõÃÛ³Ý Ñ³Ù³ñ | O4: Ð³Ù³ÛÝùÇ µÛáõç» í×³ñíáÕ å»ï³Ï³Ý ïáõñù»ñ | P4: ³) ø³Õ³ù³óÇ³Ï³Ý Ï³óáõÃÛ³Ý ³Ïï»ñ ·ñ³Ýó»Éáõ, ¹ñ³Ýó Ù³ëÇÝ ù³Õ³ù³óÇÝ»ñÇÝ ÏñÏÝ³ÏÇ íÏ³Û³Ï³ÝÝ»ñ, ù³Õ³ù³óÇ³Ï³Ý Ï³óáõÃÛ³Ý ³Ïï»ñáõÙ Ï³ï³ñí³Í ·ñ³éáõÙÝ»ñáõÙ ÷á÷áËáõÃÛáõÝÝ»ñ, Éñ³óáõÙÝ»ñ, áõÕÕáõÙÝ»ñ Ï³ï³ñ»Éáõ ¨ í»ñ³Ï³Ý·ÝÙ³Ý Ï³å³ÏóáõÃÛ³Ùµ íÏ³Û³Ï³ÝÝ»ñ ï³Éáõ Ñ³Ù³ñ | Q4: µ) Üáï³ñ³Ï³Ý ·ñ³ë»ÝÛ³ÏÝ»ñÇ ÏáÕÙÇó Ýáï³ñ³Ï³Ý Í³é³ÛáõÃÛáõÝÝ»ñ Ï³ï³ñ»Éáõ, Ýáï³ñ³Ï³Ý Ï³ñ·áí í³í»ñ³óí³Í ÷³ëï³ÃÕÃ»ñÇ ÏñÏÝûñÇÝ³ÏÝ»ñ ï³Éáõ, Ýßí³Í Ù³ñÙÇÝÝ»ñÇ ÏáÕÙÇó ·áñÍ³ñùÝ»ñÇ Ý³Ë³·Í»ñ ¨ ¹ÇÙáõÙÝ»ñ Ï³½Ù»Éáõ, ÷³ëï³ÃÕÃ»ñÇ å³ï×»Ý»ñ Ñ³Ý»Éáõ ¨ ¹ñ³ÝóÇó ù³Õí³ÍùÝ»ñ ï³Éáõ Ñ³Ù³ñ | R4: ¶áõÛùÇ í³ñÓ³Ï³ÉáõÃÛáõÝÇó »Ï³ÙáõïÝ»ñ | S4: Համայնքի սեփականություն համարվող հողերի վարձավճարներ | T4: ²ÛÉ ·áõÛùÇ í³ñÓ³Ï³ÉáõÃÛáõÝÇó Ùáõïù»ñ | U4: î»Õ³Ï³Ý í×³ñÝ»ñ | V4: աղբահ | W4: գ/հ ծառ | X4: ծնող վճ | Y4: tuganq | Z4: ՔԿԱԳä»ïáõÃÛ³Ý ÏáÕÙÇó ï»Õ³Ï³Ý ÇÝùÝ³Ï³é³í³ñÙ³Ý Ù³ñÙÇÝÝ»ñÇÝ å³ïíÇñ³Ïí³Í ÉÇ³½áñáõÃÛáõÝÝ»ñÇ Çñ³Ï³Ý³óÙ³Ý Í³Ëë»ñÇ ýÇÝ³Ýë³íáñÙ³Ý Ñ³Ù³ñ å»ï³Ï³Ý µÛáõç»Çó ëï³óíáÕ ÙÇçáóÝ»ñ | AA4: ³) ä»ï³Ï³Ý µÛáõç»Çó ýÇÝ³Ýë³Ï³Ý Ñ³Ù³Ñ³ñÃ»óÙ³Ý ëÏ½µáõÝùáí ïñ³Ù³¹ñíáÕ ¹áï³óÇ³Ý»ñ | AB4: գ) Պետական բյուջեից ցումներ (սուբվենցիաներ) | AC4: ì³ñã³Ï³Ý µÛáõç»Ç å³Ñáõëï³ÛÇÝ ýáÝ¹Çó ýáÝ¹³ÛÇÝ µÛáõç» Ï³ï³ñíáÕ Ñ³ïÏ³óáõÙÝ»ñÇó Ùáõïù»ñ
B5: Տաշիր | C5: =D5+E5+F5+G5+O5+U5+AA5+R5+Z5+AB5+Y5 -> 253675.5 | D5: 1580 | E5: 4673 | F5: 18671.6 | G5: =H5+I5+J5+K5+L5+M5+N5 -> 3785 | H5: 200 | I5: 20 | J5: 1800 | K5: 265 | L5: 1000 | M5: 400 | N5: 100 | O5: =P5+Q5 -> 5000 | P5: 2500 | Q5: 2500 | R5: =S5+T5 -> 17357.8 | S5: 17011.8 | T5: 346 | U5: =V5+W5+X5 -> 22100 | V5: 6344 | W5: 756 | X5: 15000 | Y5: 50 | Z5: 3416.7 | AA5: 148573.8 | AB5: 28467.6
B6: Բլագոդարնոե | C6: =D6+E6+F6+G6+O6+U6+AA6+R6 -> 7160.349 | E6: 1766.1 | F6: 482.249 | G6: 12 | J6: 12 | O6: =P6+Q6 -> 0 | R6: =S6+T6 -> 1400 | S6: 1400 | U6: 0 | AA6: 3500
B7: Կատնառար | C7: 28561.4 | E7: 255.3 | F7: 1567.7 | G7: 50 | J7: 50 | O7: 0 | R7: 4915 | S7: 4915 | U7: 0 | AA7: 21773.4 | AC7: 2400
B8: Մեդովկա | C8: 10345.8 | D8: 20.3 | E8: 3177.5 | F8: 1377.4 | G8: 40 | J8: 40 | O8: 0 | R8: 1400 | S8: 1400 | U8: 0 | AA8: 4330.6 | AC8: 350
B9: Սարատովկա | C9: 11742.5 | D9: 15.6 | E9: 4649.8 | F9: 793.9 | G9: 12 | J9: 12 | O9: 0 | R9: 2750.3 | S9: 2750.3 | U9: 20 | AA9: 3500.9 | AC9: 1390
B10: Dաշտադեմ | C10: 7581.912 | D10: 11.612 | E10: 2359.7 | F10: 710.6 | G10: 0 | O10: 0 | R10: 1000 | S10: 1000 | U10: 0 | AA10: 3500 | AC10: 400
B11: Մեղվաօվիտ | C11: 8055.888 | D11: 9.988 | E11: 1860.9 | F11: 585 | G11: 0 | O11: 0 | R11: 2100 | S11: 2100 | U11: 0 | AA11: 3500 | AC11: 700
B12: Նովոսելցեվօ | C12: 7103.1 | E12: 1790 | F12: 307.5 | G12: 15 | J12: 15 | O12: 0 | R12: 1490.6 | S12: 1490.6 | T12: 0 | U12: 0 | AA12: 3500
B13: Լեռնահովիտ | C13: 23896.1 | D13: 27.9 | E13: 5654.8 | F13: 5293.6 | G13: =H13+I13+J13+K13+L13+M13+N13 -> 200 | J13: 200 | O13: 0 | R13: 350 | S13: 350 | T13: 0 | U13: 0 | AA13: 12369.8
B14: ընդամ | C14: =SUM(C5:C13) -> 358122.549 | D14: 1665.4 | E14: 26187.1 | F14: 29789.549 | G14: 4114 | H14: 200 | I14: 20 | J14: 2129 | K14: 265 | L14: 1000 | M14: 400 | N14: 100 | O14: 5000 | R14: =SUM(R5:R13) -> 32763.7 | S14: 32417.7 | T14: 346 | U14: 22120 | V14: 6344 | W14: 756 | X14: 15000 | Y14: 50 | Z14: 3416.7 | AA14: 204548.5 | AB14: 28467.6 | AC14: 5240
C16: =D16+E16+H16+I16+J16+K16+L16+M16+N16+P16+Q16+S16+T16+Y16+Z16+AA16+AB16+F16+U16 -> 359801.814 | D16: 1665.414 | E16: 27996.9 | F16: 29925.3 | G16: 4114 | H16: 200 | I16: 20 | J16: 2129 | K16: 765 | L16: 600 | M16: 400 | N16: 0 | O16: 5000 | P16: 2500 | Q16: 2500 | R16: =S16+T16 -> 32498.1 | S16: 31802.1 | T16: 696 | U16: 22120 | Y16: 50 | Z16: 3416 | AA16: 204548.5 | AB16: 28467.6 | AC16: 4016.314

Sheet Лист9 (hidden)
A3: Ոգելից խմիչք և ծխախոտ 2022 թ
B4: տնտեսվարող սուբյեկտի անվանումը | C4: հասցե | E4: Դրույքաչափ/տարի | F4: քմ․ | G4: Նկարագիր | H4: Ընդհանուր գումար
A5: 1 | B5: ԱՁ Սինամ Բարսեղյան | C5: ՀՀ Լոռու մարզ, Տաշիր համայնք, գ․ Լեռնահովիտ, հրապարակ թիվ 5 | E5: 40000 | F5: մինչև 26 | H5: Լեռնահովիտ - 240000
A6: 2 | B6: ԱՁ Արփինե Դալալոյան | C6: ՀՀ Լոռու մարզ, Տաշիր համայնք, գ. Լեռնահովիտ, փողոց 5, թիվ 6/1 | E6: 80000 | F6: 26-50
A7: 3 | B7: ԱՁ Անժելա Հայրապետյան | C7: ՀՀ Լոռու մարզ, Տաշիր համայնք, գ․ Լեռնահովիտ, հրապարակ 6 | E7: 40000 | F7: մինչև 26
A8: 4 | B8: ԱՁ Ֆենյա Սուքիասյան | C8: ՀՀ Լոռու մարզ, Տաշիր համայնք, գ․ Լեռնահովիտ, 9-րդ փողոց, թիվ 11 | E8: 40000 | F8: մինչև 26
A9: 5 | B9: ԱՁ Նարա Բաղդասարյան | C9: ՀՀ , Լոռու մարզ, Տաշիր համայնք, գ. Լեռնահովիտ, 9-րդ փ․, թիվ 19 | E9: 40000 | F9: մինչև 26
A10: 6 | B10: ԱՁ Կարեն Քոսյան | C10: ՀՀ Լոռու մարզ, Տաշիր համայնք, գ․ Մեդովկա, 3-րդ փողոց , թիվ 207 | E10: 20000 | F10: մինչև 26 | G10: միայն ոգելից խմիչք | H10: Մեդովկա - 20000
A11: 7 | B11: ԱՁ Իրինա Բժոյան | C11: ՀՀ Լոռու մարզ, Տաշիր համայնք, գ. Կաթնառատ, 1-ին նրբ,. 6 | E11: 40000 | F11: մինչև 26 | H11: Կաթնառատ-120000
A12: 8 | B12: ԱՁ Նորայր Մարդոյան | C12: ՀՀ, Լոռու մարզ, Տաշիր համայնք, գ. Կաթնառատ, 4-րդ փողոց, 1-ին նրբանցք, թիվ 10 | E12: 40000 | F12: մինչև 26
A13: 9 | B13: ԱՁ Սայաթ Կիրակոսյան | C13: ՀՀ Լոռու մարզ, Տաշիր համայնք, գ.Կաթնառատ, փողոց 4, թիվ 4 | E13: 40000 | F13: մինչև 26
A14: 10 | B14: ԱՁ Սրբուհի Դավոյան | C14: ՀՀ Լոռու մարզ, Տաշիր համայնք, գ. Բլագոդարնոյե, 1-ին փ, թիվ 54 | E14: 40000 | F14: մինչև 26 | H14: Բլագոդարնոյե-40000
A15: 11 | B15: ԱՁ Արթուր Անտոնյան | C15: ՀՀ Լոռու մարզ, Տաշիր համայնք, գ.Նովոսելցովո, 2-րդ փողոց, թիվ 53 | E15: 40000 | F15: մինչև 26 | H15: Նովոսելցովո - 40000
A16: 12 | B16: ԱՁ Գայանե Բարսեղյան | C16: ՀՀ Լոռու մարզ,Տաշիր համայնք, գ. Սարատովկա, 2-րդ փողոց, 15 | E16: 20000 | F16: մինչև 26 | G16: միայն ոգելից խմիչք | H16: Սարատովկա - 20000
A17: 13 | B17: Աձ Գարիկ Դալալոյան | C17: ՀՀ Լոռու մարզ, Տաշիր համայնք, ք. Տաշիր, Երևանյան 132 | E17: 40000 | F17: մինչև 26 | H17: Տաշիր - 2232000
A18: 14 | B18: ԱՁ Հակոբյան Նաիրա | C18: ՀՀ Լոռու մարզ, Տաշիր համայնք, ք. Տաշիր, Կ․ Դեմիրճյան 2/1 | E18: 40000 | F18: մինչև 26
A19: 15 | B19: ԱՁ Մերուժան Մուրադյան | C19: ՀՀ Լոռու մարզ, Տաշիր համայնք, ք. Տաշիր, Երևանյան թիվ 171 | E19: 40000 | F19: մինչև 26 | H19: 2712000 ընդ տարեկան
A20: 16 | B20: ԱՁ Հասմիկ Պետրոսյան | C20: ՀՀ Լոռու մարզ, Տաշիր համայնք, ք․ Տաշիր, Երևանյան 94/2 | E20: 40000 | F20: մինչև 26
A21: 17 | B21: ԱՁ Նորայր Մովսիսյան | C21: ՀՀ Լոռու մարզ, Տաշիր համայնք, ք․ Տաշիր, Երևանյան 264 | E21: 40000 | F21: մինչև 26
A22: 18 | B22: ԱՁ Վալիկո Մովսիսյան | C22: ՀՀ Լոռու մարզ, Տաշիր համայնք, ք․ Տաշիր, Երևանյան 326 | E22: 80000 | F22: 26-50
A23: 19 | B23: ԱՁ Պողոսյան Դիաննա | C23: ՀՀ, Լոռու մարզ, Տաշիր համայնք, ք․ Տաշիր , Արցախի փ. 21 | E23: 40000 | F23: մինչև 26
A24: 20 | B24: ԱՁ Տիրուն Եսայան | C24: ՀՀ Լոռու մարզ, Տաշիր համայնք, ք, Տաշիր, Շահումյան փ․ , թիվ 17 | E24: 40000 | F24: մինչև 26
A25: 21 | B25: ԱՁ Սուսաննա Պառավյան | C25: ՀՀ, Լոռու մարզ, Տաշիր համայնք. Ք․ Տաշիր, Երևանյան փողոց, թաղամաս 1 | E25: 40000 | F25: մինչև 26
A26: 22 | B26: ԱՁ Արմենուհի Ռաֆաելյան | C26: ՀՀ, Լոռու մարզ, Տաշիր համայնք, ք. Տաշիր Երևանյան 200 | E26: 360000 | F26: 200-500
A27: 23 | B27: ԱՁ Ազատ Ռաֆաելյան | C27: ՀՀ, Լոռու մարզ, Տաշիր համայնք, ք․ Տաշիր, Երևանյան 204 | E27: 104000 | F27: 50-100
A28: 24 | B28: ԱՁ Խանում Գրիգորյան | C28: ՀՀ, Լոռու մարզ, Տաշիր համայնք.ք․ Տաշիր Երևանյան փողոց, 190 | E28: 360000 | F28: 200-500
A29: 25 | B29: ԱՁ Զավեն Բեգլարյան | C29: ՀՀ Լոռու մարզ, Տաշիր համայնք, ք․ Տաշիր, Երևանյան 14 | E29: 104000 | F29: 50-100
A30: 26 | B30: ԱՁ Ժորա Պողոսյան | C30: ՀՀ Լոռու մարզ, Տաշիր համայնք, ք. Տաշիր, ԱՆԻ Բ/Զ | E30: 40000 | F30: մինչև 26
A31: 27 | B31: ԱՁ Արմեն Մնեյան | C31: ՀՀ, Լոռու մարզ, Տաշիր համայնք, ք. Տաշիր, Խանջյան փողոց , թաղամաս 5, թիվ 3 | E31: 40000 | F31: մինչև 26
A32: 28 | B32: ԱՁ Զինա Հայրապետյան | C32: ՀՀ, Լոռու մարզ, Տաշիր համայնք, ք. Տաշիր, Դպրոցականների փողոց, թաղամաս 9 , բ/շ 10 , 14 | E32: 40000 | F32: մինչև 26
A33: 29 | B33: ԱՁ Նարինե Վարդանյան | C33: ՀՀ Լոռու մարզ, Տաշիր համայնք, ք. Տաշիր, Երևանյան փողոց, թիվ 173 | E33: 104000 | F33: 50-100
A34: 30 | B34: ԱՁ Իրինա Թովմասյան | C34: ՀՀ Լոռու մարզ, Տաշիր համայնք, ք. Տաշիր, Երևանյան Փողոց 218 | E34: 80000 | F34: 26-50
A35: 31 | B35: ԱՁ Վահե Բաղդասարյան | C35: ՀՀ Լոռու մարզ, Տաշիր համայնք, ք. Տաշիր, Երևանյան 5 | E35: 40000 | F35: մինչև 26
A36: 32 | B36: ԱՁ Տոնոյան Մառլենա | C36: ՀՀ Լոռու մարզ, Տաշիր համայնք, ք․ Տաշիր, Էրեբունի փ․, թիվ 6 | E36: 80000 | F36: 26-50
A37: 33 | B37: ԱՁ Նարգիզյան Կարեն | C37: ՀՀ Լոռու մարզ,Տաշիր համայնք, ք․ Տաշիր, Երևանյան 1 | E37: 80000 | F37: 26-50
A38: 34 | B38: ԱՁ Գայանե Գասպարյան | C38: ՀՀ Լոռու մարզ, Տաշիր համայնք, ք․ Տաշիր, Բաղրամյան փ․, թիվ 19Ա | E38: 40000 | F38: մինչև 26
A39: 35 | B39: ԱՁ Գյոզալ Բաղդասարյան | C39: ՀՀ Լոռու մարզ, Տաշիր համայնք, ք․ Տաշիր, Էրեբունի փ․, թիվ 6 | E39: 40000 | F39: մինչև 26
A40: 36 | B40: ԱՁ Ռիմա Բաղդասարյան Շմավոնի | C40: ՀՀ Լոռու մարզ, Տաշիր համայնք, ք.Տաշիր, Կ.Դեմիրճյան փողոց, թաղամաս 5, թիվ 79 | E40: 40000 | F40: մինչև 26
A41: 37 | B41: ԱՁ Մանվել Առաքելյան | C41: ՀՀ, Լոռու մարզ, Տաշիր համայնք, ք․ Տաշիր, Երևանյան փ․, թիվ 33 | E41: 80000 | F41: 26-50
A42: 38 | B42: ԱՁ Զոյա Մալխասյան | C42: ՀՀ Լոռու մարզ, Տաշիր համայնք, քաղաք Տաշիր, Երևանյան փողոց, թիվ 151 | E42: 40000 | F42: մինչև 26
A43: 39 | B43: ԱՁ Աբրահամյան Ամալիկ | C43: ՀՀ, Լոռու մարզ, Տաշիր համայնք, քաղաք Տաշիր, Լենինի 166 | E43: 40000 | F43: մինչև 26
A44: 40 | B44: ԱՁ Մխոյան Վահան | C44: ՀՀ, Լոռու մարզ, Տաշիր համայնք, ք․ Տաշիր, Երևանյան փ․ թղմ․ 1 | E44: 40000 | F44: մինչև 26
A45: 41 | B45: ԱՁ Դումիկյան Քերոբ | C45: ՀՀ, Լոռու մարզ, Տաշիր համայնք, ք․ Տաշիր, Երևանյան փողոց, տուն 239 | E45: 80000 | F45: 26-50

Sheet tex (hidden)
B5: Տողի | C5: Եկամտատեսակները | D5: ապառքը տարեսկզբի դրությամբ | E5: ապառքը տարեվերջի դրությամբ | F5: տվյալ տարվա հաշվարկային գումարը
B6: NN | D6: 1 | E6: 2 | F6: 3
B7: 1 | C7: Գույքահարկ համայնքների վարչական տարածքներում գտնվող շենքերի և շինությունների համար | D7: 6500 | E7: 4320 | F7: x
B8: 2 | C8: Հողի հարկ համայնքների վարչական տարածքներում գտնվող հողերի համար | D8: 134200 | E8: 126000 | F8: x
B9: 3 | C9: Անշարժ գույքի հարկ | D9: x | E9: 16850 | F9: 24917
B10: 4 | C10: Գույքահարկ փոխադրամիջոցների համար | D10: 79130 | E10: 105000 | F10: 81340
B11: 5 | C11: Հողերի վարձակալության վարձավճարներ
B12: 6 | C12: Այլ գույքի վարձակալության վարձավճարներ

Sheet ekamut
E2: Հավելված 1
E3: ՀՀ Լոռու մարզի Տաշիր համայնքի ավագանու
E4: 2023 թվականի « » N -Ն որոշման
B6: ԲՅՈՒՋԵԻ ԵԿԱՄՈՒՏՆԵՐՆ ԸՍՏ ԱՌԱՆՁԻՆ ԵԿԱՄՏԱՏԵՍԱԿՆԵՐԻ
G8: (հազար դրամով)
B9: Տողի NN | C9: Եկամտատեսակները | D9: Հոդվածի | E9: Ընդամենը (ս.5+ս.6) | F9: այդ թվում`
D10: NN | F10: վարչական մաս | G10: ֆոնդային մաս
B11: 1 | C11: 2 | D11: 3 | E11: 4 | F11: 5 | G11: 6
B12: 0 | C12: ԸՆԴԱՄԵՆԸ ԵԿԱՄՈՒՏՆԵՐ | E12: =E15+E65+E103 -> 2100376 | F12: =F15+F65+F103 -> 1158566 | G12: =G65+G103 -> 941810
C13: (տող 1100 + տող 1200 + տող 1300)
C14: այդ թվում՝
B15: 1100 | C15: 1. ՀԱՐԿԵՐ ԵՎ ՏՈՒՐՔԵՐ | D15: 7100 | E15: =F15 -> 178880 | F15: =F18+F24+F27+F52+F56 -> 178880 | G15: X
C16: (տող 1110 + տող 1120 + տող 1130 + տող 1140 + տող 1150)
C17: այդ թվում
B18: 1110 | C18: 1.1 Գույքային հարկեր անշարժ գույքից | D18: 131 | E18: =F18 -> 70300 | F18: =F21+F22+F23 -> 70300 | G18: X
C19: (տող 1111 + տող 1112 + տող 1113)
C20: այդ թվում`
B21: 1111 | C21: Գույքահարկ համայնքների վարչական տարածքներում գտնվող շենքերի և շինությունների համար900275081173 | E21: =F21 -> 1300 | F21: 1300 | G21: X
B22: 1112 | C22: Հողի հարկ համայնքների վարչական տարածքներում գտնվող հողի համար900275081033 | E22: =F22 -> 26000 | F22: 26000 | G22: X
B23: 1113 | C23: Համայնքի բյուջե մուտքագրվող անշարժ գույքի հարկ 900275001999 | E23: =F23 -> 43000 | F23: 43000 | G23: X
B24: 1120 | C24: 1.2 Գույքային հարկեր այլ գույքից | D24: 7136 | E24: =F24 -> 96500 | F24: =F26 -> 96500 | G24: X
C25: այդ թվում`
B26: 1121 | C26: Գույքահարկ փոխադրամիջոցների համար | E26: =F26 -> 96500 | F26: 96500 | G26: X
B27: 1130 | C27: 1.3 Տեղական տուրքեր (տող 11301 + տող 11302 + տող 11303 + տող 11304 + տող 11305 + տող 11306+ տող 11307 + տող 11308 + տող 11309 + տող 11310+ տող 11311 + տող 11312 + տող 11313 + տող 11314 + տող 11315 + տող 11316 + տող 11317 + տող 11318 + տող 11319) | D27: 7145 | E27: =F27 -> 7080 | F27: =F29+F30+F33+F34+F36+F37+F38+F40+F41+F42+F43+F44+F45+F46+F47+F49+F50+F51 -> 7080 | G27: X
C28: այդ թվում`
B29: 11301 | C29: Համայնքի վարչական տարածքում նոր շենքերի, շինությունների և ոչ հիմնական շինությունների շինարարության (տեղադրման) թույլտվության համար | E29: =F29 -> 350 | F29: 350 | G29: X
B30: 11302 | C30: Համայնքի վարչական տարածքում գոյություն ունեցող շենքերի և շինությունների վերակառուցման, ուժեղացման, վերականգնման, արդիականացման և բարեկարգման աշխա | G30: X
C31: անքներ կատարելու
C32: թույլտվության համար
B33: 11303 | C33: Համայնքի վարչական տարածքում շենքերի, շինությունների և քաղաքաշինական այլ օբյեկտների քանդման թույլտվության համար | E33: =F33 -> 80 | F33: 80 | G33: X
B34: 11304 | C34: Համայնքի վարչական տարածքում, սահմանամերձ և բարձրլեռնային համայնքների վարչական տարածքում, բացառությամբ միջպետական և հանրապետական նշանակության ավտոմոբիլային ճանապարհների կողեզրում, խանութներում և կրպակներում հեղուկ վառելիքի, սեղմված բնական կամ հեղուկացված նավթային գազերի վաճառքի թույլտվության համար900275001213 | E34: =F34 -> 1400 | F34: 1400 | G34: X
B36: 11305 | C36: Համայնքի վարչական տարածքում, սահմանամերձ և բարձրլեռնային համայնքների վարչական տարածքում գտնվող մանրածախ առևտրի կետերում կամ ավտոմեքենաների տեխնիկական սպասարկման և նորոգման ծառայության օբյեկտներում տեխնիկական հեղուկների վաճառքի թույլտվության համար | G36: X
B37: 11306 | C37: Համայնքի վարչական տարածքում թանկարժեք մետաղներից պատրաստված իրերի որոշակի վայրում մանրածախ առք ու վաճառք իրականացնելու թույլտվության համար | E37: =F37 -> 100 | F37: 100 | G37: X
B38: 11307 | C38: Համայնքի վարչական տարածքում ոգելից և ալկոհոլային խմիչքների և (կամ) ծխախոտի արտադր | E38: =F38 -> 4300 | F38: 4300 | G38: X
C39: նքի վաճառքի թույլտվության համար
B40: 11308 | C40: Իրավաբանական անձանց և անհատ ձեռնարկատերերին համայնքի վարչական տարածքում «Առևտրի և ծառայությունների մասին» Հայաստանի Հանրապետության օրենքով սահմանված՝ բացօթյա առևտուր կազմակերպելու թույլտվության համար | G40: X
B41: 11309 | C41: Համայնքի վարչական տարածքում առևտրի, հանրային սննդի, զվարճանքի, շահումով խաղերի և վիճակախաղերի կազմակերպման օբյեկտներին, խաղատներին և բաղնիքներին (սաունաներին), ժամը 24.00-ից հետո աշխատելու թույլտվության համար | E41: =F41 -> 100 | F41: 100 | G41: X
B42: 11310 | C42: Համայնքի վարչական տարածքում համայնքային կանոններին համապատասխան հանրային սննդի կազմակերպման և իրացման թույլտվության համար | G42: X
B43: 11311 | C43: Քաղաքային բնակավայրերում ավագանու որոշմամբ, սահմանված կարգին համապատասխան, տնային կենդանիներ պահելու թույլտվության համար | G43: X
B44: 11312 | C44: Ավագանու սահմանած կարգին ու պայմաններին համապատասխան՝ համայնքի վարչական տարածքում արտաքին գովազդ տեղադրելու թույլտվության համար, բացառությամբ միջպետական ու հանրապետական նշանակության ավտոմոբիլային ճանապարհների օտարման շերտերում և պաշտպանական գոտիներում տեղադրվող գովազդների թույլտվությունների (բացառությամբ Երևան քաղաքի) | E44: =F44 -> 250 | F44: 250 | G44: X
B45: 11313 | C45: Հայաստանի Հանրապետության վարչատարածքային միավորների խորհրդանիշերը (զինանշան, անվանում և այլն), որպես օրենքով գրանցված ապրանքային նշան, ապրանքների արտադրության, աշխատանքների կատարման, ծառայությունների մատուցման գործընթացներում օգտագործելու թույլտվության համար 900275001312 | E45: =F45 -> 500 | F45: 500 | G45: X
B46: 11314 | C46: Համայնքի վարչական տարածքում մարդատար տաքսու (բացառությամբ երթուղային տաքսիների` միկրոավտոբուսների) ծառայություն իրականացնելու թույլտվության համար | G46: X
B47: 11315 | C47: Համայնքի վարչական տարածքում քաղաքացիական հոգեհանգստի (հրաժեշտի) ծիսակատարության ծառայությունների իրականացման և (կամ) մատուցման թույլտվության համար | G47: X
B48: 11316 | C48: Համայնքի վարչական տարածքում մասնավոր գերեզմանատան կազմակերպման և շահագործման թույլտվության համար | G48: X
B49: 11317 | C49: Համայնքի վարչական տարածքում տեխնիկական և հատուկ նշանակության հրավառություն իրականացնելու թույլտվության համար | G49: X
B50: 11318 | C50: Համայնքի տարածքում սահմանափակման ենթակա ծառայության օբյեկտի գործունեության թույլտվության համար | E50: =F50 -> 0 | F50: 0 | G50: X
B51: 11319 | C51: Այլ տեղական տուրքեր | G51: X
B52: 1140 | C52: 1.4 Համայնքի բյուջե վճարվող պետական տուրքեր (տող 1141 + տող 1142) | D52: 7146 | E52: =F52 -> 5000 | F52: =F54+F55 -> 5000 | G52: X
C53: այդ թվում`
B54: 1141 | C54: Քաղաքացիական կացության ակտեր գրանցելու, դրանց մասին քաղաքացիներին կրկնակի վկայականներ, քաղաքացիական կացության ակտերում կատարված գրառումներում փոփոխություններ, լրացումներ, ուղղումներ կատարելու և վերականգնման կապակցությամբ վկայականներ տալու համար | E54: =F54 -> 2500 | F54: 2500 | G54: X
B55: 1142 | C55: Նոտարական գրասենյակների կողմից նոտարական ծառայություններ կատարելու, նոտարական կարգով վավերացված փաստաթղթերի կրկնօրինակներ տալու, նշված մարմինների կողմից գործարքների նախագծեր և դիմումներ կազմելու, փաստաթղթերի պատճեններ հանելու և դրանցից քաղվածքներ տալու համար | E55: =F55 -> 2500 | F55: 2500 | G55: X
B56: 1150 | C56: 1.5 Այլ հարկային եկամուտներ | D56: 7161 | G56: X
C57: (տող 1151 + տող 1155)
C58: այդ թվում`
B59: 151 | C59: Օրենքով պետական բյուջե ամրագրվող հարկերից և այլ պարտադիր վճարներից մասհանումներ համայնքների բյուջեներ (տող 1152 + տող 1153 + տող 1154) | G59: X
C60: որից`
B61: 1152 | C61: Եկամտային հարկ | G61: X
B62: 1153 | C62: Շահութահարկ | G62: X
B63: 1154 | C63: Այլ հարկերից և պարտադիր վճարներից կատարվող մասհանումներ | G63: X
B64: 1155 | C64: Հողի հարկի, գույքահարկի և անշարժ գույքի հարկի գծով համայնքի բյուջե վճարումների բնագավառում բացահայտված հարկային օրենսդրության խախտումների համար հարկատուներից գանձվող տույժեր տուգանքներ, որոնք չեն հաշվարկվում այդ հարկերի գումարների նկատմամբ | G64: X
B65: 1200 | C65: 2. ՊԱՇՏՈՆԱԿԱՆ ԴՐԱՄԱՇՆՈՐՀՆԵՐ | D65: 7300 | E65: =F65+G65 -> 1677351.7 | F65: =F68+F72+F82 -> 793541.7 | G65: =G70+G77+G98 -> 883810
C66: (տող 1210 + տող 1220 + տող 1230 + տող 1240 + տող 1250 + տող 1260)
C67: այդ թվում՝
B68: 1210 | C68: 2.1 Ընթացիկ արտաքին պաշտոնական դրամաշնորհներ` ստացված այլ պետություններից, այդ թվում` | D68: 7311 | G68: X
B69: 1211 | C69: Համայնքի բյուջե մուտքագրվող արտաքին պաշտոնական դրամաշնորհներ` ստացված այլ պետությունների տեղական ինքնակառավարման մարմիններից ընթացիկ ծախսերի ֆինանսավորման նպատակով | G69: X
B70: 1220 | C70: 2.2 Կապիտալ արտաքին պաշտոնական դրամաշնորհներ` ստացված այլ պետություններից, այդ թվում` | D70: 7312 | F70: X
B71: 1221 | C71: Համայնքի բյուջե մուտքագրվող արտաքին պաշտոնական դրամաշնորհներ` ստացված այլ պետությունների տեղական ինքնակառավարման մարմիններից կապիտալ ծախսերի ֆինանսավորման նպատակով | F71: X
B72: 1230 | C72: 2.3 Ընթացիկ արտաքին պաշտոնական դրամաշնորհներ` ստացված միջազգային կազմակերպություններից, | D72: 7321 | G72: X
C73: այդ թ
C74: ում`
B75: 1231 | C75: Համայնքի բյուջե մուտքագրվող արտաքին պաշտոնական դրամաշնորհներ` ստացված միջազգային կազմակերպություններից ընթացիկ ծախսերի ֆինա | G75: X
C76: սավորման նպատակով
B77: 1240 | C77: 2.4 Կապիտալ արտաքին պաշտոնական դրամաշնորհներ` ստացված միջազգա | D77: 7322 | E77: =G77 -> 73891 | F77: X | G77: =G80 -> 73891
C78: ին կազմակերպություններից
C79: այդ թվում`
B80: 1241 | C80: Համայնքի բյուջե մուտքագրվող արտաքին պաշտոնական դրամաշնորհներ` ստացված միջազգային կազմակերպութ | E80: =G80 -> 73891 | F80: X | G80: 73891
C81: ուններից կապիտալ ծախսերի ֆինանսավորման նպատակով
B82: 1250 | C82: 2.5 Ընթացիկ ներքին պաշտոնական դ | D82: 7331 | E82: =F82 -> 793541.7 | F82: =F86+F88+F94+F96 -> 793541.7 | G82: X
C83: ամաշնորհներ` ստացված կառավարման այլ մակարդակներից
C84: (տող 1251 + տող 1252 + տող 1255 + տող 1256)
C85: որից`
B86: 1251 | C86: Պետական բյուջեից ֆինանսական համահարթեցման սկզբունքով տրամադրվող դոտացիաներ | E86: =F86 -> 793541.7 | F86: 793541.7 | G86: X
B88: 1252 | C88: Պետական բյուջեից տրամադրվող այլ դոտացիաներ (տող 1253 + տող 1254) | F88: =F91+F93 -> 0 | G88: X
C89: այ
C90: թվում`
B91: 1253 | C91: Համայնքի բյուջեի եկամուտները նվազեցնող` ՀՀ օրենքների կիրարկման արդյունքում համայնքի բյուջեի եկամուտների կորուստների պետության կողմից փոխհատուցվող գու | G91: X
C92: արներ
B93: 1254 | C93: Այլ դոտացիաներ | G93: X
B94: 1255 | C94: Պ | E94: =F94 -> 0 | F94: 0 | G94: X
C95: տական բյուջեից տրամադրվող նպատակային հատկացումներ (սուբվենցիաներ)
B96: 1256 | C96: ՀՀ այլ համայնքների բյուջեներից ընթացիկ ծախսերի ֆինանսավորման նպատակով ստացվող պաշտոնական դրամաշնորհ | G96: X
C97: եր
B98: 1260 | C98: 2.6 Կապիտալ ներքին պաշտոնական դրամաշնորհներ` ստացված կառավարման այլ մակարդակներից | D98: 7332 | E98: =G98 -> 809919 | F98: X | G98: =G101+G102 -> 809919
C99: (տող 1261 + տող 1262)
C100: այդ թվում`
B101: 1261 | C101: Պետական բյուջեից կապիտալ ծախսերի ֆինանսավորման նպատակային հատկացումներ (սուբվենցիաներ)900275001056 | E101: =G101 -> 809919 | F101: X | G101: 809919
B102: 1262 | C102: ՀՀ այլ համայնքներից կապիտալ ծախսերի ֆինանսավորման նպատակով ստացվող պաշտոնական դրամաշնորհներ | F102: X
B103: 1300 | C103: 3. ԱՅԼ ԵԿԱՄՈՒՏՆԵՐ | D103: 7400 | E103: =E106+E110+E113+E122+E129+E159+E164+E169+E175 -> 244144.3 | F103: =F110+F113+F122+F129+F159+F164+F175 -> 186144.3 | G103: =G106+G169+G175 -> 58000
C104: (տող 1310 + տող 1320 + տող 1330 + տող 1340 + տող 1350 + տող 1360 + տող 1370 + տող 1380 + տող 1390)
C105: այդ թվում`
B106: 1310 | C106: 3.1 Տոկոսներ | D106: 7411 | F106: X
C107: այդ թվում`
B108: 1311 | C108: Օրենքով նախատեսված դեպքերում բանկերում համայնքի բյուջեի ժամանակավոր ազատ միջոցների տեղաբա | F108: X
C109: խումից և դեպոզիտներից ստացված տոկոսավճարներ
B110: 1320 | C110: 3.2 Շահաբաժիններ | D110: 7412 | G110: X
C111: այդ թվում`
B112: 1321 | C112: Բաժնետիրական ընկերություններում համայնքի մասնակցության դիմաց համայնքի բյուջե կատարվող մասհանումներ (շահաբաժիններ) | G112: X
B113: 1330 | C113: 3.3 Գույքի վարձակալությունից եկամուտներ | D113: 7415 | E113: =F113 -> 125000 | F113: =F116+F117+F119+F121 -> 125000 | G113: X
C114: (տող 1331 + տող 1332 + տող 1333 + տող 1334)
C115: այդ թվում`
B116: 1331 | C116: Համայնքի սեփականություն համարվող հողերի վարձակալության վարձավճարներ | E116: =F116 -> 97000 | F116: 97000 | G116: X
B117: 1332 | C117: Համայնքի վարչական տարածքում գտնվող պետական սեփականություն համարվող հողերի վարձակալո | E117: =F117 -> 0 | F117: 0 | G117: X
C118: թյան վարձավճարներ
B119: 1333 | C119: Համայնքի վարչական տարածքում գտնվող պետության և համայնքի սեփականությանը պատկանող հողամասերի կառուցապատման իրավունք | G119: X
C120: դիմաց գանձվող վարձավճարներ
B121: 1334 | C121: Այլ գույքի վարձակալությունից մուտքեր | E121: =F121 -> 28000 | F121: 28000 | G121: X
B122: 1340 | C122: 3.4 Համայնքի բյուջեի եկամուտներ ապրանքների մատակարարումից և ծառայությունների մատուցումից | D122: 7421 | E122: =F122 -> 1999 | F122: =F125+F126+F128 -> 1999 | G122: X
C123: (տող 1341 + տող 1342 + տող 1343)
C124: այդ թվում`
B125: 1341 | C125: Համայնքի սեփականություն հանդիսացող, այդ թվում` տիրազուրկ, համայնքին որպես սեփականություն անցած ապրանքների (բացառությամբ հիմնական միջոց, ոչ նյութական կամ բարձրարժեք ակտիվ հանդիսացող, ինչպես նաև համայնքի պահուստներում պահվող ապրանքանյութական արժեքների) վաճառքից մուտքեր | G125: X
B126: 1342 | C126: Պետության կողմից տեղական ինքնակառավարման մարմիններին պատվիրակված լիազորությունների իրականացման ծախսերի ֆինանս | E126: =F126 -> 1999 | F126: 1999 | G126: X
C127: վորման համար պետական բյուջեից ստացվող միջոցներ
B128: 1343 | C128: Օրենքով սահմանված դեպքերում համայնքային հիմնարկների կողմից առանց տեղական տուրքի գանձման մատուցվող ծառայությունների կամ կատարվող գործողությունների դիմաց ստացվող (գանձվող) վճարներ | F128: 0 | G128: X
B129: 1350 | C129: 3.5 Վարչական գանձումներ (տող 1351 + տող 1352 + տող 1353) | D129: 7422 | E129: =F129 -> 50645.3 | F129: =F131+F156+F158 -> 50645.3 | G129: X
C130: այդ թվում՝
B131: 1351 | C131: Տեղական վճարներ | E131: =F131 -> 50645.3 | F131: =F134+F135+F136+F137+F138+F139+F141+F142+F143+F144+F145+F146+F147+F148+F149+F150+F152+F153+F154+F155 -> 50645.3 | G131: X
C132: (տող 13501 + տող 13502 + տող 13503 + տող 13504 + տող 13505 + տող 13506 + տող 13507 + տող 13508 + տող 13509 + տող 13510 + տող 13511 + տող 13512 + տող 13513 + տող 13514 + տող 13515 + տող 13516 + տող 13517 + տող 13518 + տող 13519+ տող 13520)
C133: այդ թվում`
B134: 13501 | C134: Համայնքի տարածքում շենքի կամ շինության արտաքին տեսքը փոփոխող վերակառուցման աշխատանքներ կատարելու հետ կապված տեխնիկատնտեսական պայմաններ մշակելու և հաստատելու համար | G134: X
B135: 13502 | C135: Ճարտարապետաշինարարական նախագծային փաստաթղթերով նախատեսված՝ շինարարության թույլտվություն պահանջող, բոլոր շինարարական աշխատանքներն իրականացնելուց հետո շենքերի և շինությունների (այդ թվում` դրանց վերակառուցումը, վերականգնումը, ուժեղացումը, արդիականացումը, ընդլայնումն ու բարեկարգումը) կառուցման ավարտը ավարտական ակտով փաստագրման ձևակերպման համար | G135: X
B136: 13503 | C136: Ճարտարապետաշինարարական նախագծային փաստաթղթերով նախատեսված աշխատանքներն ավարտելուց հետո շահագործման թույլտվության ձևակերպման համար | G136: X
B137: 13504 | C137: Համայնքի տնօրինության և օգտագործման տակ գտնվող հողերը հատկացնելու, հետ վերցնելու և վարձակալության տրամադրելու դեպքերում անհրաժեշտ փաստաթղթերի (փաթեթի) նախապատրաստման համար | G137: X
B138: 13505 | C138: Համայնքի կողմից կազմակերպվող մրցույթների և աճուրդների մասնակցության համար | E138: =F138 -> 700 | F138: 700 | G138: X
B139: 13506 | C139: Համայնքի վարչական տարածքում տոնավաճառներին (վերնիսաժներին) մասնակցելու հա | G139: X
C140: ար
B141: 13507 | C141: Համայնքի կողմից աղբահանության վճար վճարողների համար աղբահանության աշխատանքները կազմակերպելու համար | E141: =F141 -> 24000 | F141: 24000 | G141: X
B142: 13508 | C142: Համայնքի կողմից իրավաբանական անձանց կամ անհատ ձեռնարկատերերին շինարարական և խոշոր եզրաչափի աղբի հավաքման և փոխադրման, ինչպես նաև աղբահանության վճար վճարողներին շինարարական և խոշոր եզրաչափի աղբի ինքնուրույն հավաքման և փոխադրման թույլտվության համար | G142: X
B143: 13509 | C143: Կենտրոնացված ջեռուցման համար | G143: X
B144: 13510 | C144: Ջրմուղ-կոյուղու համար այն համայնքներում, որոնք ներառված չեն ջրմուղ-կոյուղու ծառայություններ մատուցող կազմակերպությունների սպասարկման տարածքներում | E144: =F144 -> 1650 | F144: 1650 | G144: X
B145: 13511 | C145: Ոռոգման ջրի մատակարարման համար այն համայնքներում, որոնք ներառված չեն «Ջրօգտագործողների ընկերությունների և ջրօգտագործողների ընկերությունների միությունների մասին» Հայաստանի Հանրապետության օրենքի համաձայն ստեղծված ջրօգտագործողների ընկերությունների սպասարկման տարածքներում | G145: X
B146: 13512 | C146: Համայնքի կողմից կառավարվող բազմաբնակարան շենքերի ընդհանուր բաժնային սեփականության պահպանման պարտադիր նորմերի կատարման համար | G146: X
B147: 13513 | C147: Համայնքային ենթակայության մանկապարտեզի ծառայությունից օգտվողների համար | E147: =F147 -> 17220 | F147: 17220 | G147: X
B148: 13514 | C148: Համայնքային ենթակայության արտադպրոցական դաստիարակության հաստատությունների (երաժշտական, նկարչական և արվեստի դպրոցներ և այլն) ծառայություններից օգտվողների համար | E148: =F148 -> 7000 | F148: 7000 | G148: X
B149: 13515 | C149: Համայնքի վարչական տարածքում, սակայն համայնքի բնակավայրերից դուրս գտնվող՝ ավագանու որոշմամբ հանրային հանգստի վայր սահմանված և համայնքի կողմից կամ համայնքի պատվերով որպես հանրային հանգստի վայր կահավորված տարածքում ընտանեկան կամ գործնական միջոցառումներ անցկացնելու համար | G149: X
B150: 13516 | C150: Համայնքային սեփականություն հանդիսացող պատմության և մշակույթի անշարժ հուշարձանների և համայնքային ենթակայության թանգարա | G150: X
C151: ների մուտքի համար
B152: 13517 | C152: Համայնքային սեփականություն հանդիսացող ընդհանուր օգտագործման փողոցներում և հրապարակներում (բացառությամբ բակային տարածքների, ուսումնական, կրթական, մշակութային և առողջապահական հաստատությունների, պետական կառավարման և տեղական ինքնակառավարման մարմինների վարչական շենքերի հարակից տարածքների) ավտոտրանսպորտային միջոցն ավտոկայանատեղում կայանելու համար | G152: X
B153: 13518 | C153: Համայնքի արխիվից փաստաթղթերի պատճեններ տրամադրելու համար | G153: X
B154: 13519 | C154: Համայնքն սպասարկող անասնաբույժի ծառայությունների դիմաց | E154: =F154 -> 75.3 | F154: 75.3 | G154: X
B155: 13520 | C155: Այլ տեղական վճարներ | G155: X
B156: 1352 | C156: Համայնքի վարչական տարածքում ինքնա | G156: X
C157: ամ կառուցված շենքերի, շինությունների օրինականացման համար վճարներ
B158: 1353 | C158: Համայնքի բյուջե մուտքագրվող այլ վարչական գանձումներ | G158: X
B159: 1360 | C159: 3.6 Մուտքեր տույժերից, տուգանքներից | D159: 7431 | E159: =F159 -> 3500 | F159: =F162 -> 3500 | G159: X
C160: (տող 1361 + տող 1362)
C161: այդ թվում`
B162: 1361 | C162: Վարչական իրավախախտումների համար տեղական ինքնակառավարման մարմինների կողմից պատասխանատվության միջոցների կիրառումից եկամուտներ | E162: =F162 -> 3500 | F162: 3500 | G162: X
B163: 1362 | C163: Մուտքեր համայնքի բյուջեի նկատմամբ ստանձնած պայմանագրային պարտավորությունների չկատարման դիմաց գանձվող տույժերից | G163: X
B164: 1370 | C164: 3.7 Համայնքի բյուջե մուտքագրվող այլ կատեգորիաներում չդասակարգված ընթացիկ տրանսֆերտներ | D164: 7441 | E164: =F164 -> 0 | F164: =F168 -> 0 | G164: X
C165: (տող 1371 + տող 1372)
C166: այդ թվում`
B167: 1371 | C167: Ֆիզիկական անձանց և կազմակերպությունների նվիրաբերությունից համայնքին, վերջինիս ենթակա բյուջետային հիմնարկների տնօրինմանն անցած գույքի (հիմնական միջոց կամ ոչ նյութական ակտիվ չհանդիսացող) իրացումից և դրամական միջոցներից ընթացիկ ծախսերի ֆինանսավորման համար համայնքի բյուջե ստացված մուտքեր` տրամադրված արտաքին աղբյուրներից | G167: X
B168: 1372 | C168: Ֆիզիկական անձանց և կազմակերպությունների նվիրաբերությունից համայնքին, վերջինիս ենթակա բյուջետային հիմնարկների տնօրինմանն անցած գույքի (հիմնական միջոց կամ ոչ նյութական ակտիվ չհանդիսացող) իրացումից և դրամական միջոցներից ընթացիկ ծախսերի ֆինանսավորման համար համայնքի բյուջե ստացված մուտքեր` տրամադրված ներքին աղբյուրներից | E168: =F168 -> 0 | F168: 0 | G168: X
B169: 1380 | C169: 3.8 Համայնքի բյուջե մուտքագրվող այլ կատեգորիաներում չդասակարգված կապիտալ տրանսֆերտներ | D169: 7442 | E169: =G169 -> 58000 | F169: X | G169: =G172 -> 58000
C170: (տող 1381 + տող 1382)
C171: այդ թվում`
B172: 1381 | C172: Նվիրատվության, ժառանգության իրավունքով ֆիզիկական անձանցից և կազմակերպություններից համայնքին, վերջինիս ենթակա բյուջետային հիմնարկների տնօրինմանն անցած գույքի (հիմնական միջոց կամ ոչ նյութական ակտիվ չհանդիսացող) իրացումից և դրամական միջոցներից կապիտալ ծախսերի ֆինանսավորման համար համայնքի բյուջե ստացված մուտքեր` տրամադրված արտաքին աղբյուրներ | E172: =G172 -> 58000 | F172: X | G172: 58000
C173: ց
B174: 1382 | C174: Նվիրատվության, ժառանգության իրավունքով ֆիզիկական անձանցից և կազմակերպություններից համայնքին, վերջինիս ենթակա բյուջետային հիմնարկների տնօրինմանն անցած գույքի (հիմնական միջոց կամ ոչ նյութական ակտիվ չհանդիսացող) իրացումից և դրամական միջոցներից կապիտալ ծախսերի իրականացման համար համայնքի բյուջե ստացված մուտքեր` տրամադրված ներքին աղբյուրներից | F174: X
B175: 1390 | C175: 3.9 Այլ եկամուտներ | D175: 7452 | E175: =F175 -> 5000 | F175: =F182 -> 5000 | G175: =G180 -> 0
C176: (տող 1391 + տող
C177: 392 + տող 1393)
C178: այդ թվում`
B179: 1391 | C179: Համայնքի գույքին պատճառած վնասների փոխհատուցումից մուտքեր | F179: X
B180: 1392 | C180: Վարչական բյուջեի պահուստային ֆոնդից ֆոնդային բյուջե կատարվող հատկացումներից մուտքեր | E180: 0 | F180: X | G180: 0
B182: 1393 | C182: Օրենքով և իրավական այլ ակտերով սահմանված` համայ | E182: =F182 -> 5000 | F182: 5000
C183: քի բյուջե մուտքագրման ենթակա այլ եկամուտներ

Sheet gortcarn
G1: Հավելված 2
G2: ՀՀ Լոռու մարզի Տաշիր համայնքի ավագանու
G3: 2023 թվականի « » N -Ն որոշման
A5: ԲՅՈՒՋԵԻ ԾԱԽՍԵՐՆ ԸՍՏ ԳՈՐԾԱՌՆԱԿԱՆ ԴԱՍԱԿԱՐԳՄԱՆ
A7: (Ñ³½³ñ ¹ñ³ÙÝ»ñáí)
H9: (Ñ³½³ñ ¹ñ³ÙÝ»ñáí)
A10: îáÕÇ NN | B10: ´³-ÅÇÝ | C10: ÊáõÙµ | D10: ¸³ë | E10: ´Ûáõç»ï³ÛÇÝ Í³Ëë»ñÇ ·áñÍ³é³Ï³Ý ¹³ë³Ï³ñ·Ù³Ý µ³ÅÇÝÝ»ñÇ, ËÙµ»ñÇ ¨ ¹³ë»ñÇ ³Ýí³ÝáõÙÝ»ñÁ | F10: Description | G10: ÀÝ¹³Ù»ÝÁ (ë.7 +ë.8) | H10: ³Û¹ ÃíáõÙ`
H11: í³ñã³Ï³Ý µÛáõç» | I11: ýáÝ¹³ÛÇÝ µÛáõç»
A12: 1 | B12: 2 | C12: 3 | D12: 4 | E12: 5 | G12: 6 | H12: 7 | I12: 8
A13: 2000 | B13: X | C13: X | D13: X | E13: ÀÜ¸²ØºÜÀ Ì²Êêºð (ïáÕ2100+ïáÕ2200+ïáÕ2300+ïáÕ2400+ïáÕ2500+ïáÕ2600+ ïáÕ2700+ïáÕ2800+ïáÕ2900+ïáÕ3000+ïáÕ3100) | G13: =G14+G50+G94+G147+G167+G187+G216+G246+G277+G309 -> 2245376 | H13: =H14+H50+H68+H94+H147+H167+H187+H216+H246+H277+H309 -> 1158566 | I13: =I14+I50+I68+I94+I147+I167+I187+I216+I246+I277+I309 -> 1086810
A14: 2100 | B14: 01 | C14: 0 | D14: 0 | E14: ÀÜ¸Ð²Üàôð ´ÜàôÚÂÆ Ð²Üð²ÚÆÜ Ì²è²ÚàôÂÚàôÜÜºð (ïáÕ2110+ïáÕ2120+ïáÕ2130+ïáÕ2140+ïáÕ2150+ïáÕ2160+ïáÕ2170+ïáÕ2180) | F14: GENERAL PUBLIC SERVICES | G14: =G16+G25+G33+G36 -> 520572 | H14: =H16+H25+H36+H33 -> 398490 | I14: =I16+I33+I29+I36 -> 122082
E15: ³Û¹ ÃíáõÙ`
A16: 2110 | B16: 01 | C16: 1 | D16: 0 | E16: úñ»Ýë¹Çñ ¨ ·áñÍ³¹Çñ Ù³ñÙÇÝÝ»ñ, å»ï³Ï³Ý Ï³é³í³ñáõÙ, ‎ýÇÝ³Ýë³Ï³Ý ¨ Ñ³ñÏ³µÛáõç»ï³ÛÇÝ Ñ³ñ³µ»ñáõÃÛáõÝÝ»ñ, ³ñï³ùÇÝ Ñ³ñ³µ»ñáõÃÛáõÝÝ»ñ | F16: Executive and Legislative Organs, Financial and Fiscal Affairs, External Affairs | G16: =H16+I16 -> 382432 | H16: =H18 -> 372350 | I16: =I18 -> 10082
E17: áñÇó`
A18: 2111 | B18: 01 | C18: 1 | D18: 1 | E18: úñ»Ýë¹Çñ ¨ ·áñÍ³¹Çñ Ù³ñÙÇÝÝ»ñ,å»ï³Ï³Ý Ï³é³í³ñáõÙ | F18: Executive and legislative organs | G18: =H18+I18 -> 382432 | H18: =F37+aparat!F32 -> 372350 | I18: =aparat!F151+'subv aparat'!F135 -> 10082
A19: 2112 | B19: 01 | C19: 1 | D19: 2 | E19: üÇÝ³Ýë³Ï³Ý ¨ Ñ³ñÏ³µÛáõç»ï³ÛÇÝ Ñ³ñ³µ»ñáõÃÛáõÝÝ»ñ | F19: Financial and fiscal affairs | G19: 0
A20: 2113 | B20: 01 | C20: 1 | D20: 3 | E20: ²ñï³ùÇÝ Ñ³ñ³µ»ñáõÃÛáõÝÝ»ñ | F20: External affairs | G20: 0
A21: 2120 | B21: 01 | C21: 2 | D21: 0 | E21: ²ñï³ùÇÝ ïÝï»ë³Ï³Ý û·ÝáõÃÛáõÝ | F21: Foreign Economic Aid | G21: 0 | H21: 0 | I21: 0
E22: áñÇó`
A23: 2121 | B23: 01 | C23: 2 | D23: 1 | E23: ²ñï³ùÇÝ ïÝï»ë³Ï³Ý ³ç³ÏóáõÃÛáõÝ | F23: Economic aid to developing countries and countries in transition | G23: 0
A24: 2122 | B24: 01 | C24: 2 | D24: 2 | E24: ØÇç³½·³ÛÇÝ Ï³½Ù³Ï»ñåáõÃÛáõÝÝ»ñÇ ÙÇçáóáí ïñ³Ù³¹ñíáÕ ïÝï»ë³Ï³Ý û·ÝáõÃÛáõÝ | F24: Economic aid routed through international organizations | G24: 0
A25: 2130 | B25: 01 | C25: 3 | D25: 0 | E25: ÀÝ¹Ñ³Ýáõñ µÝáõÛÃÇ Í³é³ÛáõÃÛáõÝÝ»ñ | F25: General Services | G25: =H25+I25 -> 2640 | H25: =H29 -> 2640 | I25: =I29 -> 0
E26: áñÇó`
A27: 2131 | B27: 01 | C27: 3 | D27: 1 | E27: ²ßË³ï³Ï³½ÙÇ /Ï³¹ñ»ñÇ/ ·Íáí ÁÝ¹Ñ³Ýáõñ µÝáõÛÃÇ Í³é³ÛáõÃÛáõÝÝ»ñ | F27: General personnel services | G27: 0
A28: 2132 | B28: 01 | C28: 3 | D28: 2 | E28: Ìñ³·ñÙ³Ý ¨ íÇ×³Ï³·ñ³Ï³Ý ÁÝ¹Ñ³Ýáõñ Í³é³ÛáõÃÛáõÝÝ»ñ | F28: Overall planning and statistical services | G28: 0
A29: 2133 | B29: 01 | C29: 3 | D29: 3 | E29: ÀÝ¹Ñ³Ýáõñ µÝáõÛÃÇ ³ÛÉ Í³é³ÛáõÃÛáõÝÝ»ñ | F29: Other general services | G29: =H29+I29 -> 2640 | H29: =zags!F32 -> 2640 | I29: =zags!F151 -> 0
A30: 2140 | B30: 01 | C30: 4 | D30: 0 | E30: ÀÝ¹Ñ³Ýáõñ µÝáõÛÃÇ Ñ»ï³½áï³Ï³Ý ³ßË³ï³Ýù | F30: Basic Research | G30: 0 | H30: 0 | I30: 0
E31: áñÇó`
A32: 2141 | B32: 01 | C32: 4 | D32: 1 | E32: ÀÝ¹Ñ³Ýáõñ µÝáõÛÃÇ Ñ»ï³½áï³Ï³Ý ³ßË³ï³Ýù | F32: Basic research | G32: 0
A33: 2150 | B33: 01 | C33: 5 | D33: 0 | E33: ÀÝ¹Ñ³Ýáõñ µÝáõÛÃÇ Ñ³Ýñ³ÛÇÝ Í³é³ÛáõÃÛáõÝÝ»ñÇ ·Íáí Ñ»ï³½áï³Ï³Ý ¨ Ý³Ë³·Í³ÛÇÝ ³ßË³ï³ÝùÝ»ñ | F33: R&D General Public Services | G33: =I33+H33 -> 34500 | H33: =H35 -> 22500 | I33: =I35 -> 12000
E34: áñÇó`
A35: 2151 | B35: 01 | C35: 5 | D35: 1 | E35: ÀÝ¹Ñ³Ýáõñ µÝáõÛÃÇ Ñ³Ýñ³ÛÇÝ Í³é³ÛáõÃÛáõÝÝ»ñ ·Íáí Ñ»ï³½áï³Ï³Ý ¨ Ý³Ë³·Í³ÛÇÝ ³ßË³ï³ÝùÝ»ñ | F35: R&D General public services | G35: =I35+H35 -> 34500 | H35: ='1.5.1'!F32 -> 22500 | I35: ='1.5.1'!F152 -> 12000
A36: 2160 | B36: 01 | C36: 6 | D36: 0 | E36: ÀÝ¹Ñ³Ýáõñ µÝáõÛÃÇ Ñ³Ýñ³ÛÇÝ Í³é³ÛáõÃÛáõÝÝ»ñ (³ÛÉ ¹³ë»ñÇÝ ãå³ïÏ³ÝáÕ) | F36: General Services Not Elsewhere Classified | G36: =G38 -> 101000 | H36: =H38 -> 1000 | I36: =I38 -> 100000
E37: áñÇó`
A38: 2161 | B38: 01 | C38: 6 | D38: 1 | E38: ÀÝ¹Ñ³Ýáõñ µÝáõÛÃÇ Ñ³Ýñ³ÛÇÝ Í³é³ÛáõÃÛáõÝÝ»ñ (³ÛÉ ¹³ë»ñÇÝ ãå³ïÏ³ÝáÕ) | F38: General services not elsewhere classified | G38: =H38+I38 -> 101000 | H38: ='1.6.1'!F33 -> 1000 | I38: ='1.6.1'!F152+'sybv 1,6,1'!F152 -> 100000
A39: 2170 | B39: 01 | C39: 7 | D39: 0 | E39: ä»ï³Ï³Ý å³ñïùÇ ·Íáí ·áñÍ³éÝáõÃÛáõÝÝ»ñ | G39: 0 | H39: 0 | I39: 0
E40: áñÇó`
A41: 2171 | B41: 01 | C41: 7 | D41: 1 | E41: ä»ï³Ï³Ý å³ñïùÇ ·Íáí ·áñÍ³éÝáõÃÛáõÝÝ»ñ | G41: 0
A42: 2180 | B42: 01 | C42: 8 | D42: 0 | E42: Î³é³í³ñáõÃÛ³Ý ï³ñµ»ñ Ù³Ï³ñ¹³ÏÝ»ñÇ ÙÇç¨ Çñ³Ï³Ý³óíáÕ ÁÝ¹Ñ³Ýáõñ µÝáõÛÃÇ ïñ³Ýëý»ñïÝ»ñ | F42: Transfers of a General Character Between Different Levels of Government | G42: 0 | H42: 0 | I42: 0
E43: áñÇó`
A44: 2181 | B44: 01 | C44: 8 | D44: 1 | E44: Î³é³í³ñáõÃÛ³Ý ï³ñµ»ñ Ù³Ï³ñ¹³ÏÝ»ñÇ ÙÇç¨ Çñ³Ï³Ý³óíáÕ ÁÝ¹Ñ³Ýáõñ µÝáõÛÃÇ ïñ³Ýëý»ñïÝ»ñ | F44: Transfers of a general character between different levels of government | G44: 0 | H44: 0 | I44: 0
E45: áñÇó`
A46: 2182 | B46: 01 | C46: 8 | D46: 1 | E46: - ¹ñ³Ù³ßÝáñÑÝ»ñ ÐÐ å»ï³Ï³Ý µÛáõç»ÇÝ | G46: 0
A47: 2183 | B47: 01 | C47: 8 | D47: 1 | E47: - ¹ñ³Ù³ßÝáñÑÝ»ñ ÐÐ ³ÛÉ Ñ³Ù³ÛÝù»ñÇ µÛáõç»Ý»ñÇÝ | G47: 0
A48: 2184 | B48: 01 | C48: 8 | D48: 1 | E48: ³Û¹ ÃíáõÙ` ºñ¨³ÝÇ Ñ³Ù³ù³Õ³ù³ÛÇÝ Í³Ëë»ñÇ ýÇÝ³Ýë³íáñÙ³Ý Ñ³Ù³ñ | G48: 0
A49: 2185 | B49: 01 | C49: 8 | D49: 1 | G49: 0
A50: 2200 | B50: 02 | C50: 0 | D50: 0 | E50: ä²Þîä²ÜàôÂÚàôÜ (ïáÕ2210+2220+ïáÕ2230+ïáÕ2240+ïáÕ2250) | F50: DEFENSE | G50: =G55 -> 3000 | H50: =H55 -> 3000 | I50: 0
E51: ³Û¹ ÃíáõÙ`
A52: 2210 | B52: 02 | C52: 1 | D52: 0 | E52: è³½Ù³Ï³Ý å³ßïå³ÝáõÃÛáõÝ | F52: Military Defense | G52: 0 | H52: 0 | I52: 0
E53: áñÇó`
A54: 2211 | B54: 02 | C54: 1 | D54: 1 | E54: è³½Ù³Ï³Ý å³ßïå³ÝáõÃÛáõÝ | F54: Military defense | G54: 0
A55: 2220 | B55: 02 | C55: 2 | D55: 0 | E55: ø³Õ³ù³óÇ³Ï³Ý å³ßïå³ÝáõÃÛáõÝ | F55: Civil Defense | G55: =H55 -> 3000 | H55: =H57 -> 3000 | I55: 0
E56: áñÇó`
A57: 2221 | B57: 02 | C57: 2 | D57: 1 | E57: ø³Õ³ù³óÇ³Ï³Ý å³ßïå³ÝáõÃÛáõÝ | F57: Civil defense | G57: =H57 -> 3000 | H57: ='arandzin aih'!F32 -> 3000
A58: 2230 | B58: 02 | C58: 3 | D58: 0 | E58: ²ñï³ùÇÝ é³½Ù³Ï³Ý û·ÝáõÃÛáõÝ | F58: Foreign Military Aid | G58: 0 | H58: 0 | I58: 0
E59: áñÇó`
A60: 2231 | B60: 02 | C60: 3 | D60: 1 | E60: ²ñï³ùÇÝ é³½Ù³Ï³Ý û·ÝáõÃÛáõÝ | F60: Foreign military aid | G60: 0
A61: 2240 | B61: 02 | C61: 4 | D61: 0 | E61: Ð»ï³½áï³Ï³Ý ¨ Ý³Ë³·Í³ÛÇÝ ³ßË³ï³ÝùÝ»ñ å³ßïå³ÝáõÃÛ³Ý áÉáñïáõÙ | F61: R&D Defense | G61: 0 | H61: 0 | I61: 0
E62: áñÇó`
A63: 2241 | B63: 02 | C63: 4 | D63: 1 | E63: Ð»ï³½áï³Ï³Ý ¨ Ý³Ë³·Í³ÛÇÝ ³ßË³ï³ÝùÝ»ñ å³ßïå³ÝáõÃÛ³Ý áÉáñïáõÙ | F63: R&D Defense | G63: 0
E64: áñÇó`
A65: 2250 | B65: 02 | C65: 5 | D65: 0 | E65: ä³ßïå³ÝáõÃÛáõÝ (³ÛÉ ¹³ë»ñÇÝ ãå³ïÏ³ÝáÕ) | F65: Defense Not Elsewhere Classified | G65: 0 | H65: 0 | I65: 0
E66: áñÇó`
A67: 2251 | B67: 02 | C67: 5 | D67: 1 | E67: ä³ßïå³ÝáõÃÛáõÝ (³ÛÉ ¹³ë»ñÇÝ ãå³ïÏ³ÝáÕ) | F67: Defense not elsewhere classified | G67: 0
A68: 2300 | B68: 03 | C68: 0 | D68: 0 | E68: Ð²ê²ð²Î²Î²Ü Î²ð¶, ²Üìî²Ü¶àôÂÚàôÜ ¨ ¸²î²Î²Ü ¶àðÌàôÜºàôÂÚàôÜ (ïáÕ2310+ïáÕ2320+ïáÕ2330+ïáÕ2340+ïáÕ2350+ïáÕ2360+ïáÕ2370) | F68: PUBLIC ORDER AND SAFETY | G68: =G75 -> 0 | H68: =H75 -> 0 | I68: 0
E69: ³Û¹ ÃíáõÙ`
A70: 2310 | B70: 03 | C70: 1 | D70: 0 | E70: Ð³ë³ñ³Ï³Ï³Ý Ï³ñ· ¨ ³Ýíï³Ý·áõÃÛáõÝ | F70: Police Services | G70: 0 | H70: 0 | I70: 0
E71: áñÇó`
A72: 2311 | B72: 03 | C72: 1 | D72: 1 | E72: àëïÇÏ³ÝáõÃÛáõÝ | F72: Police services | G72: 0
A73: 2312 | B73: 03 | C73: 1 | D73: 2 | E73: ²½·³ÛÇÝ ³Ýíï³Ý·áõÃÛáõÝ | G73: 0
A74: 2313 | B74: 03 | C74: 1 | D74: 3 | E74: ä»ï³Ï³Ý å³Ñå³ÝáõÃÛáõÝ | G74: 0
A75: 2320 | B75: 03 | C75: 2 | D75: 0 | E75: öñÏ³ñ³ñ Í³é³ÛáõÃÛáõÝ | F75: Fire Protection Services | G75: =G77 -> 0 | H75: =H77 -> 0 | I75: 0
E76: áñÇó`
A77: 2321 | B77: 03 | C77: 2 | D77: 1 | E77: öñÏ³ñ³ñ Í³é³ÛáõÃÛáõÝ | F77: Fire protection services | G77: =H77 -> 0 | H77: 0
A78: 2330 | B78: 03 | C78: 3 | D78: 0 | E78: ¸³ï³Ï³Ý ·áñÍáõÝ»áõÃÛáõÝ ¨ Çñ³í³Ï³Ý å³ßïå³ÝáõÃÛáõÝ | F78: Law Courts | G78: 0 | H78: 0 | I78: 0
E79: áñÇó`
A80: 2331 | B80: 03 | C80: 3 | D80: 1 | E80: ¸³ï³ñ³ÝÝ»ñ | F80: Law courts | G80: 0
A81: 2332 | B81: 03 | C81: 3 | D81: 2 | E81: Æñ³í³Ï³Ý å³ßïå³ÝáõÃÛáõÝ | G81: 0
A82: 2340 | B82: 03 | C82: 4 | D82: 0 | E82: ¸³ï³Ë³½áõÃÛáõÝ | G82: 0 | H82: 0 | I82: 0
E83: áñÇó`
A84: 2341 | B84: 03 | C84: 4 | D84: 1 | E84: ¸³ï³Ë³½áõÃÛáõÝ | G84: 0
A85: 2350 | B85: 03 | C85: 5 | D85: 0 | E85: Î³É³Ý³í³Ûñ»ñ | F85: Prisons | G85: 0 | H85: 0 | I85: 0
E86: áñÇó`
A87: 2351 | B87: 03 | C87: 5 | D87: 1 | E87: Î³É³Ý³í³Ûñ»ñ | F87: Prisons | G87: 0
A88: 2360 | B88: 03 | C88: 6 | D88: 0 | E88: Ð»ï³½áï³Ï³Ý áõ Ý³Ë³·Í³ÛÇÝ ³ßË³ï³ÝùÝ»ñ Ñ³ë³ñ³Ï³Ï³Ý Ï³ñ·Ç ¨ ³Ýíï³Ý·áõÃÛ³Ý áÉáñïáõÙ | F88: R&D Public Order and Safety | G88: 0 | H88: 0 | I88: 0
E89: áñÇó`
A90: 2361 | B90: 03 | C90: 6 | D90: 1 | E90: Ð»ï³½áï³Ï³Ý áõ Ý³Ë³·Í³ÛÇÝ ³ßË³ï³ÝùÝ»ñ Ñ³ë³ñ³Ï³Ï³Ý Ï³ñ·Ç ¨ ³Ýíï³Ý·áõÃÛ³Ý áÉáñïáõÙ | F90: R&D Public order and safety | G90: 0
A91: 2370 | B91: 03 | C91: 7 | D91: 0 | E91: Ð³ë³ñ³Ï³Ï³Ý Ï³ñ· ¨ ³Ýíï³Ý·áõÃÛáõÝ (³ÛÉ ¹³ë»ñÇÝ ãå³ïÏ³ÝáÕ) | F91: Public Order and Safety Not Elsewhere Classified | G91: 0 | H91: 0 | I91: 0
E92: áñÇó`
A93: 2371 | B93: 03 | C93: 7 | D93: 1 | E93: Ð³ë³ñ³Ï³Ï³Ý Ï³ñ· ¨ ³Ýíï³Ý·áõÃÛáõÝ (³ÛÉ ¹³ë»ñÇÝ ãå³ïÏ³ÝáÕ) | F93: Public order and safety not elsewhere classified | G93: 0
A94: 2400 | B94: 04 | C94: 0 | D94: 0 | E94: îÜîºê²Î²Ü Ð²ð²´ºðàôÂÚàôÜÜºð (ïáÕ2410+ïáÕ2420+ïáÕ2430+ïáÕ2440+ïáÕ2450+ïáÕ2460+ïáÕ2470+ïáÕ2480+ïáÕ2490) | F94: ECONOMIC AFFAIRS | G94: =H94+I94 -> 237123 | H94: =H100+H119+H144 -> 5000 | I94: =I119+I144+I100 -> 232123
E95: ³Û¹ ÃíáõÙ`
A96: 2410 | B96: 04 | C96: 1 | D96: 0 | E96: ÀÝ¹Ñ³Ýáõñ µÝáõÛÃÇ ïÝï»ë³Ï³Ý, ³é¨ïñ³ÛÇÝ ¨ ³ßË³ï³ÝùÇ ·Íáí Ñ³ñ³µ»ñáõÃÛáõÝÝ»ñ | F96: General Economic, Commercial and Labor Affairs | G96: 0 | H96: 0 | I96: 0
E97: áñÇó`
A98: 2411 | B98: 04 | C98: 1 | D98: 1 | E98: ÀÝ¹Ñ³Ýáõñ µÝáõÛÃÇ ïÝï»ë³Ï³Ý ¨ ³é¨ïñ³ÛÇÝ Ñ³ñ³µ»ñáõÃÛáõÝÝ»ñ | F98: General economic and commercial affairs | G98: 0
A99: 2412 | B99: 04 | C99: 1 | D99: 2 | E99: ²ßË³ï³ÝùÇ Ñ»ï Ï³åí³Í ÁÝ¹Ñ³Ýáõñ µÝáõÛÃÇ Ñ³ñ³µ»ñáõÃÛáõÝÝ»ñ | F99: General labor affairs | G99: 0
A100: 2420 | B100: 04 | C100: 2 | D100: 0 | E100: ¶ÛáõÕ³ïÝï»ëáõÃÛáõÝ, ³Ýï³é³ÛÇÝ ïÝï»ëáõÃÛáõÝ, ÓÏÝáñëáõÃÛáõÝ ¨ áñëáñ¹áõÃÛáõÝ | F100: Agriculture, Forestry, Fishing and Hunting | G100: =I100 -> 0 | H100: =H102 -> 0 | I100: =I102 -> 0
E101: áñÇó`
A102: 2421 | B102: 04 | C102: 2 | D102: 1 | E102: ¶ÛáõÕ³ïÝï»ëáõÃÛáõÝ | F102: Agriculture | G102: =I102 -> 0 | H102: =anasnabyz!F32 -> 0 | I102: =' gux'!F135+'subv gux'!F142 -> 0
A103: 2422 | B103: 04 | C103: 2 | D103: 2 | E103: ²Ýï³é³ÛÇÝ ïÝï»ëáõÃÛáõÝ | F103: Forestry | G103: 0
A104: 2423 | B104: 04 | C104: 2 | D104: 3 | E104: ÒÏÝáñëáõÃÛáõÝ ¨ áñëáñ¹áõÃÛáõÝ | F104: Fishing and hunting | G104: 0
A105: 2424 | B105: 04 | C105: 2 | D105: 4 | E105: àéá·áõÙ | G105: 0
A106: 2430 | B106: 04 | C106: 3 | D106: 0 | E106: ì³é»ÉÇù ¨ ¿Ý»ñ·»ïÇÏ³ | F106: Fuel and Energy | G106: 0 | H106: 0 | I106: 0
E107: áñÇó`
A108: 2431 | B108: 04 | C108: 3 | D108: 1 | E108: ø³ñ³ÍáõË ¨ ³ÛÉ Ï³ñÍñ µÝ³Ï³Ý í³é»ÉÇù | F108: Coal and other solid mineral fuels | G108: 0
A109: 2432 | B109: 04 | C109: 3 | D109: 2 | E109: Ü³íÃ³ÙÃ»ñù ¨ µÝ³Ï³Ý ·³½ | F109: Petroleum and natural gas | G109: 0 | H109: 0 | I109: 0
A110: 2433 | B110: 04 | C110: 3 | D110: 3 | E110: ØÇçáõÏ³ÛÇÝ í³é»ÉÇù | F110: Nuclear fuel | G110: 0
A111: 2434 | B111: 04 | C111: 3 | D111: 4 | E111: ì³é»ÉÇùÇ ³ÛÉ ï»ë³ÏÝ»ñ | F111: Other fuels | G111: 0
A112: 2435 | B112: 04 | C112: 3 | D112: 5 | E112: ¾É»Ïïñ³¿Ý»ñ·Ç³ | F112: Electricity | G112: 0
A113: 2436 | B113: 04 | C113: 3 | D113: 6 | E113: àã ¿É»Ïïñ³Ï³Ý ¿Ý»ñ·Ç³ | F113: Non-electric energy | G113: 0
A114: 2440 | B114: 04 | C114: 4 | D114: 0 | E114: È»éÝ³³ñ¹ÛáõÝ³Ñ³ÝáõÙ, ³ñ¹ÛáõÝ³µ»ñáõÃÛáõÝ ¨ ßÇÝ³ñ³ñáõÃÛáõÝ | F114: Mining, Manufacturing and Construction | G114: 0 | H114: 0 | I114: 0
E115: áñÇó`
A116: 2441 | B116: 04 | C116: 4 | D116: 1 | E116: Ð³Ýù³ÛÇÝ é»ëáõñëÝ»ñÇ ³ñ¹ÛáõÝ³Ñ³ÝáõÙ, µ³ó³éáõÃÛ³Ùµ µÝ³Ï³Ý í³é»ÉÇùÇ | F116: Mining of mineral resources other than mineral fuels | G116: 0
A117: 2442 | B117: 04 | C117: 4 | D117: 2 | E117: ²ñ¹ÛáõÝ³µ»ñáõÃÛáõÝ | F117: Manufacturing | G117: 0
A118: 2443 | B118: 04 | C118: 4 | D118: 3 | E118: ÞÇÝ³ñ³ñáõÃÛáõÝ | F118: Construction | G118: 0
A119: 2450 | B119: 04 | C119: 5 | D119: 0 | E119: îñ³Ýëåáñï | F119: Transport | G119: =G121 -> 257123 | H119: =H121 -> 5000 | I119: =I121 -> 252123
E120: áñÇó`
A121: 2451 | B121: 04 | C121: 5 | D121: 1 | E121: ×³Ý³å³ñÑ³ÛÇÝ ïñ³Ýëåáñï | F121: Road transport | G121: =H121+I121 -> 257123 | H121: ='arandzin chanaparh'!F33 -> 5000 | I121: ='arandzin chanaparh'!F135+'subv chanap'!F135 -> 252123
A122: 2452 | B122: 04 | C122: 5 | D122: 2 | E122: æñ³ÛÇÝ ïñ³Ýëåáñï | F122: Water transport | G122: 0
A123: 2453 | B123: 04 | C123: 5 | D123: 3 | E123: ºñÏ³ÃáõÕ³ÛÇÝ ïñ³Ýëåáñï | F123: Railway transport | G123: 0
A124: 2454 | B124: 04 | C124: 5 | D124: 4 | E124: ú¹³ÛÇÝ ïñ³Ýëåáñï | F124: Air transport | G124: 0
A125: 2455 | B125: 04 | C125: 5 | D125: 5 | E125: ÊáÕáí³Ï³ß³ñ³ÛÇÝ ¨ ³ÛÉ ïñ³Ýëåáñï | F125: Pipeline and other transport | G125: 0
A126: 2460 | B126: 04 | C126: 6 | D126: 0 | E126: Î³å | F126: Communication | G126: 0 | H126: 0 | I126: 0
E127: áñÇó`
A128: 2461 | B128: 04 | C128: 6 | D128: 1 | E128: Î³å | F128: Communication | G128: 0
A129: 2470 | B129: 04 | C129: 7 | D129: 0 | E129: ²ÛÉ µÝ³·³í³éÝ»ñ | F129: Other Industries | G129: 0 | H129: 0 | I129: 0
E130: áñÇó`
A131: 2471 | B131: 04 | C131: 7 | D131: 1 | E131: Ø»Í³Í³Ë ¨ Ù³Ýñ³Í³Ë ³é¨ïáõñ, ³åñ³ÝùÝ»ñÇ å³Ñå³ÝáõÙ ¨ å³Ñ»ëï³íáñáõÙ | F131: Distributive trades, storage and warehousing | G131: 0
A132: 2472 | B132: 04 | C132: 7 | D132: 2 | E132: ÐÛáõñ³ÝáóÝ»ñ ¨ Ñ³ë³ñ³Ï³Ï³Ý ëÝÝ¹Ç ûµÛ»ÏïÝ»ñ | F132: Hotels and restaurants | G132: 0
A133: 2473 | B133: 04 | C133: 7 | D133: 3 | E133: ¼µáë³ßñçáõÃÛáõÝ | F133: Tourism | G133: 0
A134: 2474 | B134: 04 | C134: 7 | D134: 4 | E134: ¼³ñ·³óÙ³Ý µ³½Ù³Ýå³ï³Ï Íñ³·ñ»ñ | F134: Multipurpose development projects | G134: 0
A135: 2480 | B135: 04 | C135: 8 | D135: 0 | E135: îÝï»ë³Ï³Ý Ñ³ñ³µ»ñáõÃÛáõÝÝ»ñÇ ·Íáí Ñ»ï³½áï³Ï³Ý ¨ Ý³Ë³·Í³ÛÇÝ ³ßË³ï³ÝùÝ»ñ | F135: R&D Economic Affairs | G135: 0 | H135: 0 | I135: 0
E136: áñÇó`
A137: 2481 | B137: 04 | C137: 8 | D137: 1 | E137: ÀÝ¹Ñ³Ýáõñ µÝáõÛÃÇ ïÝï»ë³Ï³Ý, ³é¨ïñ³ÛÇÝ ¨ ³ßË³ï³ÝùÇ Ñ³ñó»ñÇ ·Íáí Ñ»ï³½áï³Ï³Ý ¨ Ý³Ë³·Í³ÛÇÝ ³ßË³ï³ÝùÝ»ñ | F137: R&D General economic, commercial and labor affairs | G137: 0
A138: 2482 | B138: 04 | C138: 8 | D138: 2 | E138: ¶ÛáõÕ³ïÝï»ëáõÃÛ³Ý, ³Ýï³é³ÛÇÝ ïÝï»ëáõÃÛ³Ý, ÓÏÝáñëáõÃÛ³Ý ¨ áñëáñ¹áõÃÛ³Ý ·Íáí Ñ»ï³½áï³Ï³Ý ¨ Ý³Ë³·Í³ÛÇÝ ³ßË³ï³ÝùÝ»ñ | F138: R&D Agriculture, forestry, fishing and hunting | G138: 0
A139: 2483 | B139: 04 | C139: 8 | D139: 3 | E139: ì³é»ÉÇùÇ ¨ ¿Ý»ñ·»ïÇÏ³ÛÇ ·Íáí Ñ»ï³½áï³Ï³Ý ¨ Ý³Ë³·Í³ÛÇÝ ³ßË³ï³ÝùÝ»ñ | F139: R&D Fuel and energy | G139: 0
A140: 2484 | B140: 04 | C140: 8 | D140: 4 | E140: È»éÝ³³ñ¹ÛáõÝ³Ñ³ÝÙ³Ý, ³ñ¹ÛáõÝ³µ»ñáõÃÛ³Ý ¨ ßÇÝ³ñ³ñáõÃÛ³Ý ·Íáí Ñ»ï³½áï³Ï³Ý ¨ Ý³Ë³·Í³ÛÇÝ ³ßË³ï³ÝùÝ»ñ | F140: R&D Mining, manufacturing and construction | G140: 0
A141: 2485 | B141: 04 | C141: 8 | D141: 5 | E141: îñ³ÝëåáñïÇ ·Íáí Ñ»ï³½áï³Ï³Ý ¨ Ý³Ë³·Í³ÛÇÝ ³ßË³ï³ÝùÝ»ñ | F141: R&D Transport | G141: 0
A142: 2486 | B142: 04 | C142: 8 | D142: 6 | E142: Î³åÇ ·Íáí Ñ»ï³½áï³Ï³Ý ¨ Ý³Ë³·Í³ÛÇÝ ³ßË³ï³ÝùÝ»ñ | F142: R&D Communications | G142: 0
A143: 2487 | B143: 04 | C143: 8 | D143: 7 | E143: ²ÛÉ µÝ³·³í³éÝ»ñÇ ·Íáí Ñ»ï³½áï³Ï³Ý ¨ Ý³Ë³·Í³ÛÇÝ ³ßË³ï³ÝùÝ»ñ | F143: R&D Other industries | G143: 0
A144: 2490 | B144: 04 | C144: 9 | D144: 0 | E144: îÝï»ë³Ï³Ý Ñ³ñ³µ»ñáõÃÛáõÝÝ»ñ (³ÛÉ ¹³ë»ñÇÝ ãå³ïÏ³ÝáÕ) | F144: Economic Affairs Not Elsewhere Classified | G144: =G146 -> -20000 | H144: 0 | I144: =I146 -> -20000
E145: áñÇó`
A146: 2491 | B146: 04 | C146: 9 | D146: 1 | E146: îÝï»ë³Ï³Ý Ñ³ñ³µ»ñáõÃÛáõÝÝ»ñ (³ÛÉ ¹³ë»ñÇÝ ãå³ïÏ³ÝáÕ) | F146: Economic affairs not elsewhere classified | G146: =H146+I146 -> -20000 | I146: =tnt.harab.!F32 -> -20000
A147: 2500 | B147: 05 | C147: 0 | D147: 0 | E147: Þðæ²Î² ØÆæ²ì²ÚðÆ ä²Þîä²ÜàôÂÚàôÜ (ïáÕ2510+ïáÕ2520+ïáÕ2530+ïáÕ2540+ïáÕ2550+ïáÕ2560) | F147: ENVIRONMENTAL PROTECTION | G147: =H147+I147 -> 127000 | H147: =H149+H164+H152 -> 117000 | I147: =I149+I152+I155+I158+I161+I164 -> 10000
E148: ³Û¹ ÃíáõÙ`
A149: 2510 | B149: 05 | C149: 1 | D149: 0 | E149: ²Õµ³Ñ³ÝáõÙ | F149: Waste Management | G149: =H149 -> 100000 | H149: =H151 -> 100000 | I149: 0
E150: áñÇó`
A151: 2511 | B151: 05 | C151: 1 | D151: 1 | E151: ²Õµ³Ñ³ÝáõÙ | F151: Waste management | G151: =H151 -> 100000 | H151: ='arandzin axbahan.'!F46 -> 100000
A152: 2520 | B152: 05 | C152: 2 | D152: 0 | E152: Î»Õï³çñ»ñÇ Ñ»é³óáõÙ | F152: Waste Water Management | G152: =H152 -> 5000 | H152: =H154 -> 5000 | I152: =I154 -> 0
E153: áñÇó`
A154: 2521 | B154: 05 | C154: 2 | D154: 1 | E154: Î»Õï³çñ»ñÇ Ñ»é³óáõÙ | F154: Waste water management | G154: =H154+I154 -> 5000 | H154: =kext.grer!F32 -> 5000 | I154: =kext.grer!F134 -> 0
A155: 2530 | B155: 05 | C155: 3 | D155: 0 | E155: Þñç³Ï³ ÙÇç³í³ÛñÇ ³ÕïáïÙ³Ý ¹»Ù å³Ûù³ñ | F155: Pollution Abatement | G155: 0 | H155: 0 | I155: 0
E156: áñÇó`
A157: 2531 | B157: 05 | C157: 3 | D157: 1 | E157: Þñç³Ï³ ÙÇç³í³ÛñÇ ³ÕïáïÙ³Ý ¹»Ù å³Ûù³ñ | F157: Pollution abatement | G157: 0
A158: 2540 | B158: 05 | C158: 4 | D158: 0 | E158: Î»Ýë³µ³½Ù³½³ÝáõÃÛ³Ý ¨ µÝáõÃÛ³Ý å³ßïå³ÝáõÃÛáõÝ | F158: Protection of Biodiversity and Landscape | G158: 0 | H158: 0 | I158: 0
E159: áñÇó`
A160: 2541 | B160: 05 | C160: 4 | D160: 1 | E160: Î»Ýë³µ³½Ù³½³ÝáõÃÛ³Ý ¨ µÝáõÃÛ³Ý å³ßïå³ÝáõÃÛáõÝ | F160: Protection of biodiversity and landscape | G160: 0
A161: 2550 | B161: 05 | C161: 5 | D161: 0 | E161: Þñç³Ï³ ÙÇç³í³ÛñÇ å³ßïå³ÝáõÃÛ³Ý ·Íáí Ñ»ï³½áï³Ï³Ý ¨ Ý³Ë³·Í³ÛÇÝ ³ßË³ï³ÝùÝ»ñ | F161: R&D Environmental Protection | G161: 0 | H161: 0 | I161: 0
E162: áñÇó`
A163: 2551 | B163: 05 | C163: 5 | D163: 1 | E163: Þñç³Ï³ ÙÇç³í³ÛñÇ å³ßïå³ÝáõÃÛ³Ý ·Íáí Ñ»ï³½áï³Ï³Ý ¨ Ý³Ë³·Í³ÛÇÝ ³ßË³ï³ÝùÝ»ñ | F163: R&D Environmental protection | G163: 0
A164: 2560 | B164: 05 | C164: 6 | D164: 0 | E164: Þñç³Ï³ ÙÇç³í³ÛñÇ å³ßïå³ÝáõÃÛáõÝ (³ÛÉ ¹³ë»ñÇÝ ãå³ïÏ³ÝáÕ) | F164: Environmental Protection Not Elsewhere Classified | G164: =G166 -> 22000 | H164: =H166 -> 12000 | I164: =I166 -> 10000
E165: áñÇó`
A166: 2561 | B166: 05 | C166: 6 | D166: 1 | E166: Þñç³Ï³ ÙÇç³í³ÛñÇ å³ßïå³ÝáõÃÛáõÝ (³ÛÉ ¹³ë»ñÇÝ ãå³ïÏ³ÝáÕ) | F166: Environmental protection not elsewhere classified | G166: =H166+I166 -> 22000 | H166: =Shner!F34 -> 12000 | I166: =Shner!F136+'subven sher'!F136 -> 10000
A167: 2600 | B167: 06 | C167: 0 | D167: 0 | E167: ´Ü²Î²ð²Ü²ÚÆÜ ÞÆÜ²ð²ðàôÂÚàôÜ ºì ÎàØàôÜ²È Ì²è²ÚàôÂÚàôÜ (ïáÕ3610+ïáÕ3620+ïáÕ3630+ïáÕ3640+ïáÕ3650+ïáÕ3660) | F167: HOUSING AND COMMUNITY AMENITIES | G167: =H167+I167 -> 567105 | H167: =H184+H175+H169+H178 -> 169500 | I167: =I178+I186+I169+I175 -> 397605
E168: ³Û¹ ÃíáõÙ`
A169: 2610 | B169: 06 | C169: 1 | D169: 0 | E169: ´Ý³Ï³ñ³Ý³ÛÇÝ ßÇÝ³ñ³ñáõÃÛáõÝ | F169: Housing Development | G169: =H169+I169 -> 165455 | H169: =H171 -> 11000 | I169: =I171 -> 154455
E170: áñÇó`
A171: 2611 | B171: 06 | C171: 1 | D171: 1 | E171: ´Ý³Ï³ñ³Ý³ÛÇÝ ßÇÝ³ñ³ñáõÃÛáõÝ | F171: Housing development | G171: =H171+I171 -> 165455 | H171: =bnak.chin!F32 -> 11000 | I171: =bnak.chin!F151+'subv bnak'!F155 -> 154455
A172: 2620 | B172: 06 | C172: 2 | D172: 0 | E172: Ð³Ù³ÛÝù³ÛÇÝ ½³ñ·³óáõÙ | F172: Community Development | G172: 0 | H172: 0 | I172: 0
E173: áñÇó`
A174: 2621 | B174: 06 | C174: 2 | D174: 1 | E174: Ð³Ù³ÛÝù³ÛÇÝ ½³ñ·³óáõÙ | F174: Community development | G174: 0
A175: 2630 | B175: 06 | C175: 3 | D175: 0 | E175: æñ³Ù³ï³Ï³ñ³ñáõÙ | F175: Water Supply | G175: =H175+I175 -> 100000 | H175: =rhamat!F32 -> 10000 | I175: =I177 -> 90000
E176: áñÇó`
A177: 2631 | B177: 06 | C177: 3 | D177: 1 | E177: æñ³Ù³ï³Ï³ñ³ñáõÙ | F177: Water supply | G177: =H177+I177 -> 100000 | H177: =rhamat!F32 -> 10000 | I177: ='subv rhamat'!F142+rhamat!F140 -> 90000
A178: 2640 | B178: 06 | C178: 4 | D178: 0 | E178: öáÕáóÝ»ñÇ Éáõë³íáñáõÙ | F178: Street Lighting | G178: =G180 -> 161650 | H178: =H180 -> 8500 | I178: =I180 -> 153150
E179: áñÇó`
A180: 2641 | B180: 06 | C180: 4 | D180: 1 | E180: öáÕáóÝ»ñÇ Éáõë³íáñáõÙ | F180: Street lighting | G180: =H180+I180 -> 161650 | H180: =poxoc.lusav.!F32+'subv pox iusav'!F32 -> 8500 | I180: ='subv pox iusav'!F139+poxoc.lusav.!F137 -> 153150
A181: 2650 | B181: 06 | C181: 5 | D181: 0 | E181: ´Ý³Ï³ñ³Ý³ÛÇÝ ßÇÝ³ñ³ñáõÃÛ³Ý ¨ ÏáÙáõÝ³É Í³é³ÛáõÃÛáõÝÝ»ñÇ ·Íáí Ñ»ï³½áï³Ï³Ý ¨ Ý³Ë³·Í³ÛÇÝ ³ßË³ï³ÝùÝ»ñ | F181: R&D Housing and Community Amenities | G181: 0 | H181: 0 | I181: 0
E182: áñÇó`
A183: 2651 | B183: 06 | C183: 5 | D183: 1 | E183: ´Ý³Ï³ñ³Ý³ÛÇÝ ßÇÝ³ñ³ñáõÃÛ³Ý ¨ ÏáÙáõÝ³É Í³é³ÛáõÃÛáõÝÝ»ñÇ ·Íáí Ñ»ï³½áï³Ï³Ý ¨ Ý³Ë³·Í³ÛÇÝ ³ßË³ï³ÝùÝ»ñ | F183: R&D Housing and community amenities | G183: 0
A184: 2660 | B184: 06 | C184: 6 | D184: 0 | E184: ´Ý³Ï³ñ³Ý³ÛÇÝ ßÇÝ³ñ³ñáõÃÛ³Ý ¨ ÏáÙáõÝ³É Í³é³ÛáõÃÛáõÝÝ»ñ (³ÛÉ ¹³ë»ñÇÝ ãå³ïÏ³ÝáÕ) | F184: Housing and Community Amenities Not Elsewhere Classified | G184: =G186 -> 140000 | H184: =H186 -> 140000 | I184: =I186 -> 0
E185: áñÇó`
A186: 2661 | B186: 06 | C186: 6 | D186: 1 | E186: ´Ý³Ï³ñ³Ý³ÛÇÝ ßÇÝ³ñ³ñáõÃÛ³Ý ¨ ÏáÙáõÝ³É Í³é³ÛáõÃÛáõÝÝ»ñ (³ÛÉ ¹³ë»ñÇÝ ãå³ïÏ³ÝáÕ) | F186: Housing and community amenities not elsewhere classified | G186: =H186+I186 -> 140000 | H186: =qts!F32+'qts partq'!F32+Sheet3!F32 -> 140000 | I186: =Sheet3!F151+'qts partq'!F151+qts!F151 -> 0
A187: 2700 | B187: 07 | C187: 0 | D187: 0 | E187: ²èàÔæ²ä²ÐàôÂÚàôÜ (ïáÕ2710+ïáÕ2720+ïáÕ2730+ïáÕ2740+ïáÕ2750+ïáÕ2760) | F187: HEALTH | G187: =H187+I187 -> 0 | H187: =H206 -> 0 | I187: =I206 -> 0
E188: ³Û¹ ÃíáõÙ`
A189: 2710 | B189: 07 | C189: 1 | D189: 0 | E189: ´ÅßÏ³Ï³Ý ³åñ³ÝùÝ»ñ, ë³ñù»ñ ¨ ë³ñù³íáñáõÙÝ»ñ | F189: Medical products, Appliances and Equipment | G189: 0 | H189: 0 | I189: 0
E190: áñÇó`
A191: 2711 | B191: 07 | C191: 1 | D191: 1 | E191: ¸»Õ³·áñÍ³Ï³Ý ³åñ³ÝùÝ»ñ | F191: Pharmaceutical products | G191: 0
A192: 2712 | B192: 07 | C192: 1 | D192: 2 | E192: ²ÛÉ µÅßÏ³Ï³Ý ³åñ³ÝùÝ»ñ | F192: Other medical products | G192: 0
A193: 2713 | B193: 07 | C193: 1 | D193: 3 | E193: ´ÅßÏ³Ï³Ý ë³ñù»ñ ¨ ë³ñù³íáñáõÙÝ»ñ | F193: Therapeutic appliances and equipment | G193: 0
A194: 2720 | B194: 07 | C194: 2 | D194: 0 | E194: ²ñï³ÑÇí³Ý¹³Ýáó³ÛÇÝ Í³é³ÛáõÃÛáõÝÝ»ñ | F194: Outpatient Services | G194: 0 | H194: 0 | I194: 0
E195: áñÇó`
A196: 2721 | B196: 07 | C196: 2 | D196: 1 | E196: ÀÝ¹Ñ³Ýáõñ µÝáõÛÃÇ µÅßÏ³Ï³Ý Í³é³ÛáõÃÛáõÝÝ»ñ | F196: General medical services | G196: 0
A197: 2722 | B197: 07 | C197: 2 | D197: 2 | E197: Ø³ëÝ³·Çï³óí³Í µÅßÏ³Ï³Ý Í³é³ÛáõÃÛáõÝÝ»ñ | F197: Specialized medical services | G197: 0
A198: 2723 | B198: 07 | C198: 2 | D198: 3 | E198: êïáÙ³ïáÉá·Ç³Ï³Ý Í³é³ÛáõÃÛáõÝÝ»ñ | F198: Dental services | G198: 0
A199: 2724 | B199: 07 | C199: 2 | D199: 4 | E199: ä³ñ³µÅßÏ³Ï³Ý Í³é³ÛáõÃÛáõÝÝ»ñ | F199: Paramedical services | G199: 0
A200: 2730 | B200: 07 | C200: 3 | D200: 0 | E200: ÐÇí³Ý¹³Ýáó³ÛÇÝ Í³é³ÛáõÃÛáõÝÝ»ñ | F200: Hospital Services | G200: 0 | H200: 0 | I200: 0
E201: áñÇó`
A202: 2731 | B202: 07 | C202: 3 | D202: 1 | E202: ÀÝ¹Ñ³Ýáõñ µÝáõÛÃÇ ÑÇí³Ý¹³Ýáó³ÛÇÝ Í³é³ÛáõÃÛáõÝÝ»ñ | F202: General hospital services | G202: =H202 -> 0 | H202: 0
A203: 2732 | B203: 07 | C203: 3 | D203: 2 | E203: Ø³ëÝ³·Çï³óí³Í ÑÇí³Ý¹³Ýáó³ÛÇÝ Í³é³ÛáõÃÛáõÝÝ»ñ | F203: Specialized hospital services | G203: 0
... 110 more rows

Sheet tnt
A1: Ð²îì²Ì 3
C2: Հավելված 3
C3: ՀՀ Լոռու մարզի Տաշիր համայնքի ավագանու
C4: 2023 թվականի « » N -Ն որոշման
A6: ԲՅՈՒՋԵԻ ԾԱԽՍԵՐՆ ԸՍՏ ՏՆՏԵՍԱԳԻՏԱԿԱՆ ԴԱՍԱԿԱՐԳՄԱՆ
E8: (Ñ³½³ñ ¹ñ³ÙÝ»ñáí)
A9: îáÕÇ NN | B9: ´Ûáõç»ï³ÛÇÝ Í³Ëë»ñÇ ïÝï»ë³·Çï³Ï³Ý ¹³ë³Ï³ñ·Ù³Ý Ñá¹í³ÍÝ»ñÇ | D9: ÀÝ¹³Ù»ÝÁ (ë.5+ë.6) | E9: ³Û¹ ÃíáõÙ`
B10: ³Ýí³ÝáõÙÝ»ñÁ | C10: NN | E10: í³ñã³Ï³Ý Ù³ë | F10: ýáÝ¹³ÛÇÝ Ù³ë
A11: 1 | B11: 2 | C11: 3 | D11: 4 | E11: 5 | F11: 6
A12: 4000 | B12: ÀÜ¸²ØºÜÀ Ì²Êêºð (ïáÕ4050+ïáÕ5000+ïáÕ 6000) | D12: =D18+D29+D72+D97+D131+D146+D175+D210 -> 2245376 | E12: =E14 -> 1158566 | F12: =F175+F210 -> 1086810
B13: ³Û¹ ÃíáõÙ`
A14: 4050 | B14: ². ÀÜÂ²òÆÎ Ì²Êêºðª (ïáÕ4100+ïáÕ4200+ïáÕ4300+ïáÕ4400+ïáÕ4500+ ïáÕ4600+ïáÕ4700) | C14: x | D14: =E14 -> 1158566 | E14: =E16+E29+E72+E87+E97+E131+E146+E161 -> 1158566 | F14: 0
B15: ³Û¹ ÃíáõÙ`
A16: 4100 | B16: 1.1 ²ÞÊ²î²ÜøÆ ì²ðÒ²îðàôÂÚàôÜ (ïáÕ4110+ïáÕ4120+ïáÕ4130) | C16: x | D16: =E16+F16 -> 286240 | E16: =E18+E26 -> 286240 | F16: 0
B17: ³Û¹ ÃíáõÙ`
A18: 4110 | B18: ¸ð²Øàì ìÖ²ðìàÔ ²ÞÊ²î²ì²ðÒºð ºì Ð²ìºÈ²ìÖ²ðÜºð (ïáÕ4111+ïáÕ4112+ ïáÕ4114) | C18: x | D18: =E18 -> 286240 | E18: =E20+E21 -> 286240 | F18: X
B19: áñÇó`
A20: 4111 | B20: -²ßË³ïáÕÝ»ñÇ ³ßË³ï³í³ñÓ»ñ ¨ Ñ³í»É³í×³ñÝ»ñ | C20: 4111 | D20: =E20 -> 263240 | E20: =aparat!F35+qts!F35+'mshakujti tun'!F34+mankap!F35+gradaran!F35+artadproc!F35+'sporti dproc'!F35+'arvesti dproc'!F35+zags!F35+anasnabyz!F35+'10.5.1'!F35+'10-4-1'!F35 -> 263240 | F20: X
A21: 4112 | B21: - ä³ñ·¨³ïñáõÙÝ»ñ, ¹ñ³Ù³Ï³Ý Ëñ³ËáõëáõÙÝ»ñ ¨ Ñ³ïáõÏ í×³ñÝ»ñ | C21: 4112 | D21: =E21 -> 23000 | E21: =aparat!F36+qts!F36 -> 23000 | F21: X
A22: 4114 | B22: -²ÛÉ í³ñÓ³ïñáõÃÛáõÝÝ»ñ | C22: 4115 | D22: 0 | E22: 0 | F22: X
A23: 4120 | B23: ´ÜºÔºÜ ²ÞÊ²î²ì²ðÒºð ºì Ð²ìºÈ²ìÖ²ðÜºð (ïáÕ4121) | C23: x | D23: 0 | E23: 0 | F23: X
B24: áñÇó` | E24: 0
A25: 4121 | B25: -´Ý»Õ»Ý ³ßË³ï³í³ñÓ»ñ ¨ Ñ³í»É³í×³ñÝ»ñ | D25: 0 | E25: 0 | F25: X
A26: 4130 | B26: ö²êî²òÆ êàòÆ²È²Î²Ü ²ä²ÐàìàôÂÚ²Ü ìÖ²ðÜºð (ïáÕ4131) | C26: x | D26: =E26 -> 0 | E26: =E28 -> 0 | F26: 0
B27: áñÇó`
A28: 4131 | B28: -êáóÇ³É³Ï³Ý ³å³ÑáíáõÃÛ³Ý í×³ñÝ»ñ | C28: 4131 | D28: =E28 -> 0 | E28: =aparat!F41+zags!F41+anasnabyz!F41+gradaran!F41+mankap!F41+artadproc!F41+'sporti dproc'!F41+'arvesti dproc'!F41+qts!F41+'mshakujti tun'!F40+'10.5.1'!F41 -> 0
A29: 4200 | B29: 1.2 Ì²è²ÚàôÂÚàôÜÜºðÆ ºì ²äð²ÜøÜºðÆ Òºèø ´ºðàôØ (ïáÕ4210+ïáÕ4220+ïáÕ4230+ïáÕ4240+ïáÕ4250+ïáÕ4260) | C29: x | D29: =E29 -> 286185 | E29: =E31+E40+E45+E55+E58+E62 -> 286185 | F29: X
B30: ³Û¹ ÃíáõÙ` | D30: 0
A31: 4210 | B31: Þ²ðàôÜ²Î²Î²Ü Ì²Êêºð (ïáÕ4211+ïáÕ4212+ïáÕ4213+ïáÕ4214+ïáÕ4215+ïáÕ4216+ïáÕ4217) | C31: x | D31: =E31 -> 160485 | E31: =SUM(E34:E39) -> 160485 | F31: X
B32: áñÇó`
A33: 4211 | B33: -¶áñÍ³éÝ³Ï³Ý ¨ µ³ÝÏ³ÛÇÝ Í³é³ÛáõÃÛáõÝÝ»ñÇ Í³Ëë»ñ | C33: 4211 | D33: 0 | E33: 0 | F33: X
A34: 4212 | B34: -¾Ý»ñ·»ïÇÏ Í³é³ÛáõÃÛáõÝÝ»ñ | C34: 4212 | D34: =E34 -> 55130 | E34: =aparat!F45+zags!F45+qts!F45+'qts partq'!F45+gradaran!F45+'mshakujti tun'!F44+mankap!F45+'sporti dproc'!F45+'arvesti dproc'!F45+artadproc!F45 -> 55130 | F34: X
A35: 4213 | B35: -ÎáÙáõÝ³É Í³é³ÛáõÃÛáõÝÝ»ñ | C35: 4213 | D35: =E35 -> 100845 | E35: =aparat!F46+'arandzin axbahan.'!F46+'qts partq'!F46+'mshakujti tun'!F45+mankap!F46+'sporti dproc'!F46+'arvesti dproc'!F46+Sheet3!F46+gradaran!F46+qts!F46 +artadproc!F46 -> 100845 | F35: X
A36: 4214 | B36: -Î³åÇ Í³é³ÛáõÃÛáõÝÝ»ñ | C36: 4214 | D36: =E36 -> 4060 | E36: =aparat!F47+zags!F47+'arvesti dproc'!F47+gradaran!F47 -> 4060 | F36: X
A37: 4215 | B37: -²å³Ñáí³·ñ³Ï³Ý Í³Ëë»ñ | C37: 4215 | D37: =E37 -> 450 | E37: =aparat!F48+qts!F48 -> 450 | F37: X
A38: 4216 | B38: -¶áõÛùÇ ¨ ë³ñù³íáñáõÙÝ»ñÇ í³ñÓ³Ï³ÉáõÃÛáõÝ | C38: 4216 | D38: =E38 -> 0 | E38: ='mshakujti tun'!F48+qts!F49+'ajl mchak'!F49 -> 0 | F38: X
A39: 4217 | B39: -²ñï³·»ñ³ï»ëã³Ï³Ý Í³Ëë»ñ | C39: 4217 | D39: 0 | E39: 0 | F39: X
A40: 4220 | B40: ¶àðÌàôÔàôØÜºðÆ ºì Þðæ²¶²ÚàôÂÚàôÜÜºðÆ Ì²Êêºð (ïáÕ4221+ïáÕ4222+ïáÕ4223) | C40: x | D40: =E40 -> 5000 | E40: =E42+E43 -> 5000 | F40: X
B41: áñÇó` | J41: =SUM(H41:I41) -> 0
A42: 4221 | B42: -Ü»ñùÇÝ ·áñÍáõÕáõÙÝ»ñ | C42: 4221 | D42: =E42 -> 5000 | E42: =aparat!F52+zags!F52+gradaran!F52+'arandzin sport'!F52+'ajl mchak'!F52+mankap!F52+'arandzin dproc'!F52+qts!F52+'sporti dproc'!F52 -> 5000 | F42: X
A43: 4222 | B43: -²ñï³ë³ÑÙ³ÝÛ³Ý ·áñÍáõÕáõÙÝ»ñÇ ·Íáí Í³Ëë»ñ | C43: 4222 | D43: =E43 -> 0 | E43: =aparat!F53 -> 0 | F43: X
A44: 4223 | B44: -²ÛÉ ïñ³Ýëåáñï³ÛÇÝ Í³Ëë»ñ | C44: 4229 | F44: X
A45: 4230 | B45: ä²ÚØ²Ü²¶ð²ÚÆÜ ²ÚÈ Ì²è²ÚàôÂÚàôÜÜºðÆ Òºèø ´ºðàôØ (ïáÕ4231+ïáÕ4232+ïáÕ4233+ïáÕ4234+ïáÕ4235+ïáÕ4236+ïáÕ4237+ïáÕ4238) | C45: x | D45: =E45 -> 19200 | E45: =E47+E48+E49+E50+E51+E52+E53+E54 -> 19200 | F45: X
B46: áñÇó`
A47: 4231 | B47: -ì³ñã³Ï³Ý Í³é³ÛáõÃÛáõÝÝ»ñ | C47: 4231 | D47: 0 | E47: 0 | F47: X
A48: 4232 | B48: -Ð³Ù³Ï³ñ·ã³ÛÇÝ Í³é³ÛáõÃÛáõÝÝ»ñ | C48: 4232 | D48: =E48 -> 2500 | E48: =aparat!F57 -> 2500 | F48: X
A49: 4233 | B49: -²ßË³ï³Ï³½ÙÇ Ù³ëÝ³·Çï³Ï³Ý ½³ñ·³óÙ³Ý Í³é³ÛáõÃÛáõÝÝ»ñ | C49: 4233 | D49: =E49 -> 200 | E49: =aparat!F58 -> 200 | F49: X
A50: 4234 | B50: -î»Õ³Ï³ïí³Ï³Ý Í³é³ÛáõÃÛáõÝÝ»ñ | C50: 4234 | D50: =E50 -> 1500 | E50: =aparat!F59 -> 1500 | F50: X
A51: 4235 | B51: -Î³é³í³ñã³Ï³Ý Í³é³ÛáõÃÛáõÝÝ»ñ | C51: 4235 | D51: =E51 -> 0 | E51: ='1.6.1'!F61 -> 0 | F51: X
A52: 4236 | B52: - Î»Ýó³Õ³ÛÇÝ ¨ Ñ³Ýñ³ÛÇÝ ëÝÝ¹Ç Í³é³ÛáõÃÛáõÝÝ»ñ | C52: 4236 | D52: 0 | E52: 0 | F52: X
A53: 4237 | B53: -Ü»ñÏ³Û³óáõóã³Ï³Ý Í³Ëë»ñ | C53: 4237 | D53: =E53 -> 1000 | E53: =aparat!F62 -> 1000 | F53: X
A54: 4238 | B54: -ÀÝ¹Ñ³Ýáõñ µÝáõÛÃÇ ³ÛÉ Í³é³ÛáõÃÛáõÝÝ»ñ | C54: 4239 | D54: =E54 -> 14000 | E54: =aparat!F63+qts!F63+'ajl mchak'!F63+mankap!F63+'sporti dproc'!F63+rhamat!F63+kino!F63+Shner!F65 +zags!F63+Sheet3!F63+gradaran!F63+'mshakujti tun'!F62+artadproc!F63+'arvesti dproc'!F63+'10.5.1'!F63+'1.6.1'!F64+'arandzin dproc'!F63 -> 14000 | F54: X
A55: 4240 | B55: ²ÚÈ Ø²êÜ²¶Æî²Î²Ü Ì²è²ÚàôÂÚàôÜÜºðÆ Òºèø ´ºðàôØ (ïáÕ 4241) | C55: x | D55: =D57 -> 20500 | E55: =E57 -> 20500 | F55: X
B56: áñÇó`
A57: 4241 | B57: -Ø³ëÝ³·Çï³Ï³Ý Í³é³ÛáõÃÛáõÝÝ»ñ | C57: 4241 | D57: =E57 -> 20500 | E57: ='arandzin aroxg'!F65+'mshakujti tun'!F64+mankap!F65+'arvesti dproc'!F65+'1.5.1'!F65+'sporti dproc'!F65+aparat!F65+'arandzin sport'!F65 -> 20500 | F57: X
A58: 4250 | B58: ÀÜÂ²òÆÎ Üàðà¶àôØ ºì ä²Ðä²ÜàôØ (Í³é³ÛáõÃÛáõÝÝ»ñ ¨ ÝÛáõÃ»ñ) (ïáÕ4251+ïáÕ4252) | C58: x | D58: =E58 -> 36000 | E58: =E60+E61 -> 36000 | F58: X
B59: áñÇó`
A60: 4251 | B60: -Þ»Ýù»ñÇ ¨ Ï³éáõÛóÝ»ñÇ ÁÝÃ³óÇÏ Ýáñá·áõÙ ¨ å³Ñå³ÝáõÙ | C60: 4251 | D60: =E60 -> 30500 | E60: =+gradaran!F67+'arandzin chanaparh'!F68+Shner!F69+qts!F67+rhamat!F67+kext.grer!F67+'mshakujti tun'!F66+bnak.chin!F67+poxoc.lusav.!F67+'arandzin aih'!F67 -> 30500 | F60: X
A61: 4252 | B61: -Ø»ù»Ý³Ý»ñÇ ¨ ë³ñù³íáñáõÙÝ»ñÇ ÁÝÃ³óÇÏ Ýáñá·áõÙ ¨ å³Ñå³ÝáõÙ | C61: 4252 | D61: =E61 -> 5500 | E61: =aparat!F68+qts!F68+mankap!F68+zags!F68+'sporti dproc'!F68+'mshakujti tun'!F67 -> 5500 | F61: X
A62: 4260 | B62: ÜÚàôÂºð (ïáÕ4261+ïáÕ4262+ïáÕ4263+ïáÕ4264+ïáÕ4265+ïáÕ4266+ïáÕ4267+ïáÕ4268) | C62: x | D62: =E62 -> 45000 | E62: =E64+E67+E69+E70+E71 -> 45000 | F62: X
B63: áñÇó`
A64: 4261 | B64: -¶ñ³ë»ÝÛ³Ï³ÛÇÝ ÝÛáõÃ»ñ ¨ Ñ³·áõëï | C64: 4261 | D64: =E64 -> 2350 | E64: =aparat!F70+zags!F70+'qts partq'!F70+qts!F70+'mshakujti tun'!F69+mankap!F70+'mankap partq'!F70+'sporti dproc'!F70+'arvesti dproc'!F70+'ajl mchak'!F70+ gradaran!F70+'arandzin sport'!F70+artadproc!F70 -> 2350 | F64: X
A65: 4262 | B65: -¶ÛáõÕ³ïÝï»ë³Ï³Ý ³åñ³ÝùÝ»ñ | C65: 4262 | D65: 0 | E65: 0 | F65: X
A66: 4263 | B66: -ì»ñ³å³ïñ³ëïÙ³Ý ¨ áõëáõóÙ³Ý ÝÛáõÃ»ñ (³ßË³ïáÕÝ»ñÇ í»ñ³å³ïñ³ëïáõÙ) | C66: 4263 | D66: 0 | E66: 0 | F66: X
A67: 4264 | B67: -îñ³Ýëåáñï³ÛÇÝ ÝÛáõÃ»ñ | C67: 4264 | D67: =E67 -> 8000 | E67: =aparat!F73+qts!F73+'qts partq'!F73+'arandzin dproc'!F98+'ajl mchak'!F73+barz.krt!F98+'10.5.1'!F73 -> 8000 | F67: X
A68: 4265 | B68: -Þñç³Ï³ ÙÇç³í³ÛñÇ å³ßïå³ÝáõÃÛ³Ý ¨ ·Çï³Ï³Ý ÝÛáõÃ»ñ | C68: 4265 | D68: 0 | E68: 0 | F68: X
A69: 4266 | B69: -²éáÕç³å³Ñ³Ï³Ý ¨ É³µáñ³ïáñ ÝÛáõÃ»ñ | C69: 4266 | D69: =E69 -> 0 | E69: =mankap!F75+'sporti dproc'!F75 -> 0 | F69: X
A70: 4267 | B70: -Î»Ýó³Õ³ÛÇÝ ¨ Ñ³Ýñ³ÛÇÝ ëÝÝ¹Ç ÝÛáõÃ»ñ | C70: 4267 | D70: =E70 -> 6450 | E70: =aparat!F76+qts!F76+'qts partq'!F76+'mshakujti tun'!F75+mankap!F76+'mankap partq'!F76+'sporti dproc'!F76+'arvesti dproc'!F76+gradaran!F76+artadproc!F76+'ajl mchak'!F76+zags!F76+'10.5.1'!F76+'1.6.1'!F77+'arandzin soc'!F76 -> 6450 | F70: X
A71: 4268 | B71: -Ð³ïáõÏ Ýå³ï³Ï³ÛÇÝ ³ÛÉ ÝÛáõÃ»ñ | C71: 4269 | D71: =E71 -> 28200 | E71: =aparat!F77+rhamat!F77+qts!F77+'qts partq'!F77+gradaran!F77+'mshakujti tun'!F76+'ajl mchak'!F77+mankap!F77+'mankap partq'!F77+artadproc!F77+'sporti dproc'!F77+'arvesti dproc'!F77+zags!F77+'10.5.1'!F77+Sheet3!F77+Shner!F79+poxoc.lusav.!F77+'arandzin aih'!F77+'arandzin soc'!F77+bnak.chin!F77 -> 28200 | F71: X
A72: 4300 | B72: 1.3 îàÎàê²ìÖ²ðÜºð (ïáÕ4310+ïáÕ 4320+ïáÕ4330) | C72: x | D72: 0 | E72: 0 | F72: X
B73: ³Û¹ ÃíáõÙ`
A74: 4310 | B74: ÜºðøÆÜ îàÎàê²ìÖ²ðÜºð (ïáÕ4311+ïáÕ4312) | C74: x | D74: 0 | E74: 0
B75: áñÇó`
A76: 4311 | B76: -Ü»ñùÇÝ ³ñÅ»ÃÕÃ»ñÇ ïáÏáë³í×³ñÝ»ñ | C76: 4411 | D76: 0 | E76: 0 | F76: X
A77: 4312 | B77: -Ü»ñùÇÝ í³ñÏ»ñÇ ïáÏáë³í×³ñÝ»ñ | C77: 4412 | D77: 0 | E77: 0 | F77: X
A78: 4320 | B78: ²ðî²øÆÜ îàÎàê²ìÖ²ðÜºð (ïáÕ4321+ïáÕ4322) | C78: x | D78: 0 | E78: 0
B79: áñÇó`
A80: 4321 | B80: -²ñï³ùÇÝ ³ñÅ»ÃÕÃ»ñÇ ·Íáí ïáÏáë³í×³ñÝ»ñ | C80: 4421 | D80: 0 | E80: 0 | F80: X
A81: 4322 | B81: -²ñï³ùÇÝ í³ñÏ»ñÇ ·Íáí ïáÏáë³í×³ñÝ»ñ | C81: 4422 | D81: 0 | E81: 0 | F81: X
A82: 4330 | B82: öàÊ²èàôÂÚàôÜÜºðÆ Ðºî Î²äì²Ì ìÖ²ðÜºð (ïáÕ4331+ïáÕ4332+ïáÕ4333) | C82: x | D82: 0 | E82: 0 | F82: X
B83: áñÇó`
A84: 4331 | B84: -öáË³Ý³ÏÙ³Ý Ïáõñë»ñÇ µ³ó³ë³Ï³Ý ï³ñµ»ñáõÃÛáõÝ | C84: 4431 | D84: 0 | E84: 0 | F84: X
A85: 4332 | B85: -îáõÛÅ»ñ | C85: 4432 | D85: 0 | E85: 0 | F85: X
A86: 4333 | B86: -öáË³éáõÃÛáõÝÝ»ñÇ ·Íáí ïáõñù»ñ | C86: 4433 | D86: 0 | E86: 0 | F86: X
A87: 4400 | B87: 1.4 êàô´êÆ¸Æ²Üºð (ïáÕ4410+ïáÕ4420) | C87: x | D87: 0 | E87: 0 | F87: X
B88: ³Û¹ ÃíáõÙ`
A89: 4410 | B89: êàô´êÆ¸Æ²Üºð äºî²Î²Ü (Ð²Ø²ÚÜø²ÚÆÜ) Î²¼Ø²ÎºðäàôÂÚàôÜÜºðÆÜ (ïáÕ4411+ïáÕ4412) | C89: x | D89: 0 | E89: 0
B90: áñÇó`
A91: 4411 | B91: -êáõµëÇ¹Ç³Ý»ñ áã-ýÇÝ³Ýë³Ï³Ý å»ï³Ï³Ý (h³Ù³ÛÝù³ÛÇÝ) Ï³½Ù³Ï»ñåáõÃÛáõÝÝ»ñÇÝ | C91: 4511 | D91: 0 | E91: 0 | F91: X
A92: 4412 | B92: -êáõµëÇ¹Ç³Ý»ñ ýÇÝ³Ýë³Ï³Ý å»ï³Ï³Ý (h³Ù³ÛÝù³ÛÇÝ) Ï³½Ù³Ï»ñåáõÃÛáõÝÝ»ñÇÝ | C92: 4512 | D92: 0 | E92: 0 | F92: X
A93: 4420 | B93: êàô´êÆ¸Æ²Üºð àâ äºî²Î²Ü (àâ Ð²Ø²ÚÜø²ÚÆÜ) Î²¼Ø²ÎºðäàôÂÚàôÜÜºðÆÜ (ïáÕ4421+ïáÕ4422) | C93: x | D93: 0 | E93: 0
B94: áñÇó`
A95: 4421 | B95: -êáõµëÇ¹Ç³Ý»ñ áã å»ï³Ï³Ý (áã h³Ù³ÛÝù³ÛÇÝ) áã ýÇÝ³Ýë³Ï³Ý Ï³½Ù³Ï»ñåáõÃÛáõÝÝ»ñÇÝ | C95: 4521 | D95: 0 | E95: 0 | F95: X
A96: 4422 | B96: -êáõµëÇ¹Ç³Ý»ñ áã å»ï³Ï³Ý (áã h³Ù³ÛÝù³ÛÇÝ) ýÇÝ³Ýë³Ï³Ý Ï³½Ù³Ï»ñåáõÃÛáõÝÝ»ñÇÝ | C96: 4522 | D96: 0 | E96: 0 | F96: X
A97: 4500 | B97: 1.5 ¸ð²Ø²ÞÜàðÐÜºð (ïáÕ4510+ïáÕ4520+ïáÕ4530+ïáÕ4540) | C97: x | D97: =E97 -> 363000 | E97: =E107+E119+E106 -> 363000 | F97: X
B98: ³Û¹ ÃíáõÙ`
A99: 4510 | B99: ¸ð²Ø²ÞÜàðÐÜºð úî²ðºðÎðÚ² Î²è²ì²ðàôÂÚàôÜÜºðÆÜ (ïáÕ4511+ïáÕ4512) | C99: x | D99: =E99 -> 0 | E99: =E106 -> 0
B100: áñÇó`
A101: 4511 | B101: -ÀÝÃ³óÇÏ ¹ñ³Ù³ßÝáñÑÝ»ñ ûï³ñ»ñÏñÛ³ Ï³é³í³ñáõÃÛáõÝÝ»ñÇÝ | C101: 4611 | D101: 0 | E101: 0 | F101: X
A102: 4512 | B102: -Î³åÇï³É ¹ñ³Ù³ßÝáñÑÝ»ñ ûï³ñ»ñÏñÛ³ Ï³é³í³ñáõÃÛáõÝÝ»ñÇÝ | C102: 4612 | D102: 0 | E102: 0 | F102: X
A103: 4520 | B103: ¸ð²Ø²ÞÜàðÐÜºð ØÆæ²¼¶²ÚÆÜ Î²¼Ø²ÎºðäàôÂÚàôÜÜºðÆÜ (ïáÕ4521+ïáÕ4522) | C103: x | D103: 0 | E103: 0
B104: áñÇó`
A105: 4521 | B105: -ÀÝÃ³óÇÏ ¹ñ³Ù³ßÝáñÑÝ»ñ ÙÇç³½·³ÛÇÝ Ï³½Ù³Ï»ñåáõÃÛáõÝÝ»ñÇÝ | C105: 4621 | D105: 0 | E105: 0 | F105: X
A106: 4522 | B106: -Î³åÇï³É ¹ñ³Ù³ßÝáñÑÝ»ñ ÙÇç³½·³ÛÇÝ Ï³½Ù³Ï»ñåáõÃÛáõÝÝ»ñÇÝ | C106: 4622 | D106: =E106 -> 0 | E106: ='1.6.1'!F99 -> 0 | F106: X
A107: 4530 | B107: ÀÜÂ²òÆÎ ¸ð²Ø²ÞÜàðÐÜºð äºî²Î²Ü Ð²îì²ÌÆ ²ÚÈ Ø²Î²ð¸²ÎÜºðÆÜ (ïáÕ4531+ïáÕ4532+ïáÕ4533) | C107: x | D107: =E107 -> 363000 | E107: =E109+E110+E111 -> 363000 | F107: X
B108: áñÇó`
A109: 4531 | B109: - ÀÝÃ³óÇÏ ¹ñ³Ù³ßÝáñÑÝ»ñ å»ï³Ï³Ý ¨ Ñ³Ù³ÛÝùÝ»ñÇ áã ³é¨ïñ³ÛÇÝ Ï³½Ù³Ï»ñåáõÃÛáõÝÝ»ñÇÝ | C109: 4637 | D109: =E109 -> 362500 | E109: ='arvesti dproc'!F105+mankap!F105+'mch kentron'!F105+rhamat!F102+qts!F105+'sporti dproc'!F105 -> 362500 | F109: X
A110: 4532 | B110: - ÀÝÃ³óÇÏ ¹ñ³Ù³ßÝáñÑÝ»ñ å»ï³Ï³Ý ¨ Ñ³Ù³ÛÝùÝ»ñÇ ³é¨ïñ³ÛÇÝ Ï³½Ù³Ï»ñåáõÃÛáõÝÝ»ñÇÝ | C110: 4638 | D110: 0 | E110: 0 | F110: X
A111: 4533 | B111: - ²ÛÉ ÁÝÃ³óÇÏ ¹ñ³Ù³ßÝáñÑÝ»ñ (ïáÕ 4534+ïáÕ 4537 +ïáÕ 4538) | C111: 4639 | D111: =E111 -> 500 | E111: ='1.6.1'!F108+Sheet3!F107+qts!F107+gradaran!F107 -> 500 | F111: X
B112: ³Û¹ ÃíáõÙ`
A113: 4534 | B113: - ï»Õ³Ï³Ý ÇÝùÝ³Ï³é³íñÙ³Ý Ù³ñÙÇÝÝ»ñÇÝ (ïáÕ 4535+ïáÕ 4536) | D113: 0 | E113: 0 | F113: X
B114: áñÇó` | F114: X
A115: 4535 | B115: ºñ¨³ÝÇ Ñ³Ù³ù³Õ³ù³ÛÇÝ Í³Ëë»ñÇ ýÇÝ³Ýë³íáñÙ³Ý Ñ³Ù³ñ | D115: 0 | F115: X
A116: 4536 | B116: ³ÛÉ Ñ³Ù³ÛÝùÝ»ñÇÝ | D116: 0 | E116: 0 | F116: X
A117: 4537 | B117: - ÐÐ å»ï³Ï³Ý µÛáõç»ÇÝ | D117: 0 | E117: 0 | F117: X
A118: 4538 | B118: - ³ÛÉ | D118: 0 | E118: 0 | F118: X
A119: 4540 | B119: Î²äÆî²È ¸ð²Ø²ÞÜàðÐÜºð äºî²Î²Ü Ð²îì²ÌÆ ²ÚÈ Ø²Î²ð¸²ÎÜºðÆÜ (ïáÕ4541+ïáÕ4542+ïáÕ4543) | C119: x | D119: =E119 -> 0 | E119: =E121+E123+E122 -> 0 | F119: =F123 -> X
B120: áñÇó` | F120: X
A121: 4541 | B121: Î³åÇï³É ëáõµí»ÝóÇ³Ý»ñ Ñ³Ù³ÛÝùÝ»ñÇÝ | C121: 4652 | D121: =E121 -> 0 | E121: =rhamat!F107 -> 0 | F121: X
A122: 4542 | B122: Î³åÇï³É ¹ñ³Ù³ßÝáñÑÝ»ñ å»ï³Ï³Ý ¨ Ñ³Ù³ÛÝùÝ»ñÇ áã ³é¨ïñ³ÛÇÝ Ï³½Ù³Ï»ñåáõÃÛáõÝÝ»ñÇÝ | C122: 4655 | D122: =E122 -> 0 | E122: =poxoc.lusav.!F98 -> 0 | F122: X
A123: 4543 | B123: -²ÛÉ Ï³åÇï³É ¹ñ³Ù³ßÝáñÑÝ»ñ (ïáÕ 4544+ïáÕ 4547 +ïáÕ 4548) | C123: 4657 | D123: =E123 -> 0 | E123: =bnak.chin!F114+'1.5.1'!F114+'1.6.1'!F115+'arandzin sport'!F99+aparat!F114 -> 0 | F123: X
B124: ³Û¹ ÃíáõÙ`
A125: 4544 | B125: - ï»Õ³Ï³Ý ÇÝùÝ³Ï³é³íñÙ³Ý Ù³ñÙÇÝÝ»ñÇÝ (ïáÕ 4545+ïáÕ 4546) | D125: 0 | F125: X
B126: áñÇó` | D126: 0 | F126: X
A127: 4545 | B127: ºñ¨³ÝÇ Ñ³Ù³ù³Õ³ù³ÛÇÝ Í³Ëë»ñÇ ýÇÝ³Ýë³íáñÙ³Ý Ñ³Ù³ñ | D127: 0 | F127: X
A128: 4546 | B128: ÐÐ ³ÛÉ Ñ³Ù³ÛÝùÝ»ñÇÝ | D128: 0 | F128: X
A129: 4547 | B129: - ÐÐ å»ï³Ï³Ý µÛáõç»ÇÝ | D129: 0 | F129: X
A130: 4548 | B130: - ³ÛÉ | D130: 0 | F130: X
A131: 4600 | B131: 1.6 êàòÆ²È²Î²Ü Üä²êîÜºð ºì ÎºÜê²ÂàÞ²ÎÜºð (ïáÕ4610+ïáÕ4630+ïáÕ4640) | C131: x | D131: =E131 -> 6700 | E131: =E137 -> 6700 | F131: X
B132: ³Û¹ ÃíáõÙ`
A133: 4610 | B133: êàòÆ²È²Î²Ü ²ä²ÐàìàôÂÚ²Ü Üä²êîÜºð | D133: 0 | E133: 0 | F133: X
B134: ³Û¹ ÃíáõÙ`
A135: 4610 | B135: - îÝ³ÛÇÝ ïÝï»ëáõÃÛáõÝÝ»ñÇÝ ¹ñ³Ùáí í×³ñíáÕ ëáóÇ³É³Ï³Ý ³å³ÑáíáõÃÛ³Ý í×³ñÝ»ñ | C135: 4711 | D135: 0 | E135: 0 | F135: X
A136: 4620 | B136: - êáóÇ³É³Ï³Ý ³å³ÑáíáõÃÛ³Ý µÝ»Õ»Ý Ýå³ëïÝ»ñ Í³é³ÛáõÃÛáõÝÝ»ñ Ù³ïáõóáÕÝ»ñÇÝ | C136: 4712 | D136: 0 | E136: 0 | F136: X
A137: 4630 | B137: êàòÆ²È²Î²Ü ú¶ÜàôÂÚ²Ü ¸ð²Ø²Î²Ü ²ðî²Ð²ÚîàôÂÚ²Ø´ Üä²êîÜºð (´ÚàôæºÆò) (ïáÕ4631+ïáÕ4632+ïáÕ4633+ïáÕ4634) | C137: x | D137: =E137 -> 6700 | E137: =E139+E142+E140 -> 6700 | F137: X
B138: áñÇó`
A139: 4631 | B139: -ÐáõÕ³ñÏ³íáñáõÃÛ³Ý Ýå³ëïÝ»ñ µÛáõç»Çó | C139: 4726 | D139: =E139 -> 500 | E139: ='soc haraz.korcrac'!F32 -> 500 | F139: X
A140: 4632 | B140: -ÎñÃ³Ï³Ý, Ùß³ÏáõÃ³ÛÇÝ ¨ ëåáñï³ÛÇÝ Ýå³ëïÝ»ñ µÛáõç»Çó | C140: 4727 | D140: =E140 -> 200 | E140: ='arandzin sport'!F111 -> 200 | F140: X
A141: 4633 | B141: -´Ý³Ï³ñ³Ý³ÛÇÝ Ýå³ëïÝ»ñ µÛáõç»Çó | C141: 4728 | D141: 0 | E141: 0 | F141: X
A142: 4634 | B142: -²ÛÉ Ýå³ëïÝ»ñ µÛáõç»Çó | C142: 4729 | D142: =E142 -> 6000 | E142: ='arandzin dproc'!F99+'arandzin aroxg'!F112+barz.krt!F99+'arandzin soc'!F112 -> 6000 | F142: X
A143: 4640 | B143: ÎºÜê²ÂàÞ²ÎÜºð (ïáÕ4641) | C143: x | D143: 0 | E143: 0 | F143: X
B144: áñÇó`
A145: 4641 | B145: -Î»Ýë³Ãáß³ÏÝ»ñ | C145: 4741 | D145: 0 | F145: X
A146: 4700 | B146: 1.7 ²ÚÈ Ì²Êêºð (ïáÕ4710+ïáÕ4720+ïáÕ4730+ïáÕ4740+ïáÕ4750+ïáÕ4760+ïáÕ4770) | C146: x | D146: =D151+D152+D171+D158 -> 216441 | E146: =E148+E152+E171+E158 -> 216441 | F146: 0
B147: ³Û¹ ÃíáõÙ`
A148: 4710 | B148: ÜìÆð²îìàôÂÚàôÜÜºð àâ Î²è²ì²ð²Î²Ü (Ð²ê²ð²Î²Î²Ü) Î²¼Ø²ÎºðäàôÂÚàôÜÜºðÆÜ (ïáÕ4711+ïáÕ4712) | C148: x | D148: =E148 -> 800 | E148: =E151 -> 800 | F148: X
B149: áñÇó`
A150: 4711 | B150: - îÝ³ÛÇÝ ïÝï»ëáõÃÛáõÝÝ»ñÇÝ Í³é³ÛáõÃÛáõÝÝ»ñ Ù³ïáõóáÕ` ß³ÑáõÛÃ ãÑ»ï³åÝ¹áÕ Ï³½Ù³Ï»ñåáõÃÛáõÝÝ»ñÇÝ ÝíÇñ³ïíáõÃÛáõÝÝ»ñ | C150: 4811 | D150: 0 | E150: 0 | F150: X
A151: 4712 | B151: -ÜíÇñ³ïíáõÃÛáõÝÝ»ñ ³ÛÉ ß³ÑáõÛÃ ãÑ»ï³åÝ¹áÕ Ï³½Ù³Ï»ñåáõÃÛáõÝÝ»ñÇÝ | C151: 4819 | D151: =E151 -> 800 | E151: ='arandzin aih'!F116+'ajl mchak'!F134+'1.6.1'!F135+aparat!F134+'arandzin dproc'!F117 -> 800 | F151: X
A152: 4720 | B152: Ð²ðÎºð, ä²ðî²¸Æð ìÖ²ðÜºð ºì îàôÚÄºð, àðàÜø Î²è²ì²ðØ²Ü î²ð´ºð Ø²Î²ð¸²ÎÜºðÆ ÎàÔØÆò ÎÆð²èìàôØ ºÜ ØÆØÚ²Üò ÜÎ²îØ²Ø´ (ïáÕ4721+ïáÕ4722+ïáÕ4723+ïáÕ4724) | C152: x+C88 | D152: =E152 -> 8000 | E152: =E156+E155 -> 8000 | F152: X
B153: áñÇó`
A154: 4721 | B154: -²ßË³ï³í³ñÓÇ ýáÝ¹ | C154: 4821 | D154: 0 | E154: 0 | F154: X
A155: 4722 | B155: -²ÛÉ Ñ³ñÏ»ñ | C155: 4822 | D155: =E155 -> 0 | E155: =aparat!F137+qts!F137 -> 0 | F155: X
A156: 4723 | B156: -ä³ñï³¹Çñ í×³ñÝ»ñ | C156: 4823 | D156: =E156 -> 8000 | E156: =aparat!F138+qts!F138+mankap!F138+'1.5.1'!F138+'arandzin sport'!F121+Shner!F122+'mshakujti tun'!F137 -> 8000 | F156: X
A157: 4724 | B157: -ä»ï³Ï³Ý Ñ³ïí³ÍÇ ï³ñµ»ñ Ù³Ï³ñ¹³ÏÝ»ñÇ ÏáÕÙÇó ÙÇÙÛ³Ýó ÝÏ³ïÙ³Ùµ ÏÇñ³éíáÕ ïáõÛÅ»ñ | C157: 4824 | D157: 0 | E157: 0 | F157: X
A158: 4730 | B158: ¸²î²ð²ÜÜºðÆ ÎàÔØÆò ÜÞ²Ü²Îì²Ì îàôÚÄºð ºì îàô¶²ÜøÜºð (ïáÕ4731) | C158: x | D158: =E158 -> 0 | E158: =E160 -> 0 | F158: X
B159: áñÇó`
A160: 4731 | B160: -¸³ï³ñ³ÝÝ»ñÇ ÏáÕÙÇó Ýß³Ý³Ïí³Í ïáõÛÅ»ñ ¨ ïáõ·³ÝùÝ»ñ | C160: 4831 | D160: =E160 -> 0 | E160: ='subv pox iusav'!F123+poxoc.lusav.!F123+aparat!F141 -> 0 | F160: X
A161: 4740 | B161: ´Ü²Î²Ü ²ÔºîÜºðÆò Î²Ø ²ÚÈ ´Ü²Î²Ü ä²îÖ²èÜºðàì ²è²æ²ò²Ì ìÜ²êÜºðÆ Î²Ø ìÜ²êì²ÌøÜºðÆ ìºð²Î²Ü¶ÜàôØ (ïáÕ4741+ïáÕ4742) | C161: x | D161: =E161 -> 0 | E161: =E163 -> 0 | F161: X
B162: áñÇó`
A163: 4741 | B163: -´Ý³Ï³Ý ³Õ»ïÝ»ñÇó ³é³ç³ó³Í íÝ³ëí³ÍùÝ»ñÇ Ï³Ù íÝ³ëÝ»ñÇ í»ñ³Ï³Ý·ÝáõÙ | C163: 4841 | D163: =E163 -> 0 | E163: ='arandzin aih'!F125 -> 0 | F163: X
A164: 4742 | B164: -²ÛÉ µÝ³Ï³Ý å³ï×³éÝ»ñáí ëï³ó³Í íÝ³ëí³ÍùÝ»ñÇ í»ñ³Ï³Ý·ÝáõÙ | C164: 4842 | D164: 0 | F164: X
A165: 4750 | B165: Î²è²ì²ðØ²Ü Ø²ðØÆÜÜºðÆ ¶àðÌàôÜºàôÂÚ²Ü Ðºîºì²Üøàì ²è²æ²ò²Ì ìÜ²êÜºðÆ Î²Ø ìÜ²êì²ÌøÜºðÆ ìºð²Î²Ü¶ÜàôØ (ïáÕ4751) | C165: x | D165: 0 | E165: 0 | F165: X
B166: áñÇó`
A167: 4751 | B167: -Î³é³í³ñÙ³Ý Ù³ñÙÇÝÝ»ñÇ ·áñÍáõÝ»áõÃÛ³Ý Ñ»ï¨³Ýùáí ³é³ç³ó³Í íÝ³ëí³ÍùÝ»ñÇ Ï³Ù íÝ³ëÝ»ñÇ í»ñ³Ï³Ý·ÝáõÙ | C167: 4851 | D167: 0 | F167: X
A168: 4760 | B168: ²ÚÈ Ì²Êêºð (ïáÕ4761) | C168: x | D168: 0 | E168: 0 | F168: X
B169: áñÇó`
A170: 4761 | B170: -²ÛÉ Í³Ëë»ñ | C170: 4861 | D170: 0 | F170: X
A171: 4770 | B171: ä²Ðàôêî²ÚÆÜ ØÆæàòÜºð (ïáÕ4771) | C171: x | D171: =D173 -> 207641 | E171: =E173 -> 207641 | F171: 0
B172: áñÇó`
A173: 4771 | B173: -ä³Ñáõëï³ÛÇÝ ÙÇçáóÝ»ñ | C173: 4891 | D173: 207641 | E173: ='bjudj. chnax.caxs'!F150 -> 207641
A174: 4772 | B174: ³Û¹ ÃíáõÙ` Ñ³Ù³ÛÝùÇ µÛáõç»Ç í³ñã³Ï³Ý Ù³ëÇ å³Ñáõëï³ÛÇÝ ýáÝ¹Çó ýáÝ¹³ÛÇÝ Ù³ë Ï³ï³ñíáÕ Ñ³ïÏ³óáõÙÝ»ñ | C174: x | D174: 0 | E174: 0
A175: 5000 | B175: ´. àâ üÆÜ²Üê²Î²Ü ²ÎîÆìÜºðÆ ¶Ìàì Ì²Êêºð (ïáÕ5100+ïáÕ5200+ïáÕ5300+ïáÕ5400) | C175: x | D175: =F175 -> 1106810 | E175: X | F175: =F177+F195 -> 1106810
B176: ³Û¹ ÃíáõÙ`
A177: 5100 | B177: 1.1. ÐÆØÜ²Î²Ü ØÆæàòÜºð (ïáÕ5110+ïáÕ5120+ïáÕ5130) | C177: x | D177: =F177 -> 1106810 | E177: X | F177: =F179+F184+F189 -> 1106810
B178: ³Û¹ ÃíáõÙ`
A179: 5110 | B179: ÞºÜøºð ºì ÞÆÜàôÂÚàôÜÜºð (ïáÕ5111+ïáÕ5112+ïáÕ5113) | C179: x | D179: =F179 -> 1074728 | F179: =F181+F182+F183 -> 1074728
B180: áñÇó`
A181: 5111 | B181: - Þ»Ýù»ñÇ ¨ ßÇÝáõÃÛáõÝÝ»ñÇ Ó»éù µ»ñáõÙ | C181: 5111 | D181: =F181 -> 0 | E181: X | F181: 0
A182: 5112 | B182: - Þ»Ýù»ñÇ ¨ ßÇÝáõÃÛáõÝÝ»ñÇ Ï³éáõóáõÙ | C182: 5112 | D182: =F182 -> 655650 | E182: X | F182: =poxoc.lusav.!F139+qts!F154+'qts partq'!F154+mankap!F154+'arvesti dproc'!F154+'arandzin sport'!F140+Shner!F141+'arandzin chanaparh'!F140+'1.6.1'!F155+rhamat!F142+'subv rhamat'!F142+'subv pox iusav'!F139+'subven sher'!F141+'sybv 1,6,1'!F155+'sybven 8,1,1'!F140+'subv mank'!F155 -> 655650
A183: 5113 | B183: - Þ»Ýù»ñÇ ¨ ßÇÝáõÃÛáõÝÝ»ñÇ Ï³åÇï³É í»ñ³Ýáñá·áõÙ | C183: 5113 | D183: =F183 -> 419078 | E183: X | F183: ='arandzin chanaparh'!F141+'arandzin sport'!F141+Shner!F142+qts!F155+bnak.chin!F155+mankap!F155+aparat!F155+poxoc.lusav.!F140+rhamat!F143+'arvesti dproc'!F155+'subv bnak'!F155+'subv chanap'!F141+'subv aparat'!F141+'subven sher'!F142 -> 419078
A184: 5120 | B184: ØºøºÜ²Üºð ºì ê²ðø²ìàðàôØÜºð (ïáÕ5121+ ïáÕ5122+ïáÕ5123) | C184: x | D184: =F184 -> 9382 | F184: =F186+F187+F188 -> 9382
B185: áñÇó`
A186: 5121 | B186: - îñ³Ýëåáñï³ÛÇÝ ë³ñù³íáñáõÙÝ»ñ | C186: 5121 | D186: =F186 -> 2500 | E186: X | F186: =Sheet3!F156+aparat!F156+qts!F156+' gux'!F142+'subv gux'!F142 -> 2500
A187: 5122 | B187: - ì³ñã³Ï³Ý ë³ñù³íáñáõÙÝ»ñ | C187: 5122 | D187: =F187 -> 4682 | E187: X | F187: ='mshakujti tun'!F156+mankap!F157+aparat!F157+zags!F157+poxoc.lusav.!F142+gradaran!F157+Shner!F144+qts!F157 -> 4682
A188: 5123 | B188: - ²ÛÉ Ù»ù»Ý³Ý»ñ ¨ ë³ñù³íáñáõÙÝ»ñ | C188: 5129 | D188: =F188 -> 2200 | E188: X | F188: =Sheet3!F158+'ajl mchak'!F158+aparat!F158+mankap!F158+'arandzin aroxg'!F143+qts!F158+'mshakujti tun'!F157+Shner!F145+'arandzin sport'!F144+rhamat!F146 -> 2200
A189: 5130 | B189: ²ÚÈ ÐÆØÜ²Î²Ü ØÆæàòÜºð (ïáÕ 5131+ïáÕ 5132+ïáÕ 5133+ ïáÕ5134) | C189: x | D189: =F189 -> 22700 | F189: =F194+F191+F192 -> 22700
B190: áñÇó`
A191: 5131 | B191: -²×»óíáÕ ³ÏïÇíÝ»ñ | C191: 5131 | D191: =F191 -> 10000 | E191: X | F191: =qts!F159+Shner!F146 -> 10000
A192: 5132 | B192: - àã ÝÛáõÃ³Ï³Ý ÑÇÙÝ³Ï³Ý ÙÇçáóÝ»ñ | C192: 5132 | D192: =F192 -> 700 | E192: X | F192: =aparat!F160 -> 700
A193: 5133 | B193: - ¶»á¹»½Ç³Ï³Ý ù³ñï»½³·ñ³Ï³Ý Í³Ëë»ñ | C193: 5133 | D193: 0 | F193: 0
A194: 5134 | B194: - Ü³Ë³·Í³Ñ»ï³½áï³Ï³Ý Í³Ëë»ñ | C194: 5134 | D194: =F194 -> 12000 | F194: ='1.5.1'!F162 -> 12000
A195: 5200 | B195: 1.2 ä²Þ²ðÜºð (ïáÕ5211+ïáÕ5221+ïáÕ5231+ïáÕ5241) | C195: x | D195: =F195 -> 0 | E195: X | F195: =F198 -> 0
B196: ³Û¹ ÃíáõÙ`
A197: 5211 | B197: - Ð³Ù³ÛÝù³ÛÇÝ Ýß³Ý³ÏáõÃÛ³Ý é³½Ù³í³ñ³Ï³Ý å³ß³ñÝ»ñ | C197: 5211 | D197: 0 | E197: X
A198: 5221 | B198: - ÜÛáõÃ»ñ ¨ å³ñ³·³Ý»ñ | C198: 5221 | D198: =F198 -> 0 | E198: X | F198: ='10.5.1'!F148 -> 0
A199: 5231 | B199: - ì»ñ³í³×³éùÇ Ñ³Ù³ñ Ý³Ë³ï»ëí³Í ³åñ³ÝùÝ»ñ | C199: 5231 | D199: 0 | E199: X
A200: 5241 | B200: -êå³éÙ³Ý Ýå³ï³Ïáí å³ÑíáÕ å³ß³ñÝ»ñ | C200: 5241 | D200: 0 | E200: X
A201: 5300 | B201: 1.3 ´²ðÒð²ðÄºø ²ÎîÆìÜºð (ïáÕ 5311) | C201: x | D201: 0 | E201: X | F201: 0
B202: ³Û¹ ÃíáõÙ`
... 31 more rows

Sheet tnt-gortcar
G1: Հավելված 6
E2: ՀՀ Լոռու մարզի Տաշիր համայնքի ավագանու
E3: 2023 թվականի « » N -Ն որոշման
A7: ԲՅՈՒՋԵԻ ԾԱԽՍԵՐՆ ԸՍՏ ԳՈՐԾԱՌՆԱԿԱՆ ԵՎ ՏՆՏԵՍԱԳԻՏԱԿԱՆ ԴԱՍԱԿԱՐԳՄԱՆ
I9: (Ñ³½³ñ ¹ñ³ÙÝ»ñáí)
A10: îáÕÇ NN | B10: ´³-ÅÇÝ | C10: ÊáõÙµ | D10: ¸³ë | E10: ´Ûáõç»ï³ÛÇÝ Í³Ëë»ñÇ ·áñÍ³é³Ï³Ý ¹³ë³Ï³ñ·Ù³Ý µ³ÅÇÝÝ»ñÇ, ËÙµ»ñÇ ¨ ¹³ë»ñÇ, ÇÝãå»ë Ý³¨ µÛáõç»ï³ÛÇÝ Í³Ëë»ñÇ ïÝï»ë³·Çï³Ï³Ý ¹³ë³Ï³ñ·Ù³Ý Ñá¹í³ÍÝ»ñÇ ³Ýí³ÝáõÙÝ»ñÁ | F10: Description | H10: ÀÝ¹³Ù»ÝÁ (ë.7 +ë.8) | I10: ³Û¹ ÃíáõÙ`
G11: NN | I11: í³ñã³Ï³Ý µÛáõç» | J11: ýáÝ¹³ÛÇÝ µÛáõç»
A12: 1 | B12: 2 | C12: 3 | D12: 4 | E12: 5 | H12: 6 | I12: 7 | J12: 8
A13: 2000 | B13: X | C13: X | D13: X | E13: ÀÜ¸²ØºÜÀ Ì²Êêºð (ïáÕ2100+ïáÕ2200+ïáÕ2300+ïáÕ2400+ïáÕ2500+ïáÕ2600+ ïáÕ2700+ïáÕ2800+ïáÕ2900+ïáÕ3000+ïáÕ3100) | H13: =H14+H263+H353+H489+H534+H622+H702+H826+H933+H1002 -> 2245376 | I13: =I14+I263+I297+I353+I489+I534+I622+I826+I933+I1002+I702 -> 1158566 | J13: =J14+J263+J297+J353+J489+J534+J622+J702+J826+J933+J1002 -> 1086810
A14: 2100 | B14: 01 | C14: 0 | D14: 0 | E14: ÀÜ¸Ð²Üàôð ´ÜàôÚÂÆ Ð²Üð²ÚÆÜ Ì²è²ÚàôÂÚàôÜÜºð (ïáÕ2110+ïáÕ2120+ïáÕ2130+ïáÕ2140+ïáÕ2150+ïáÕ2160+ïáÕ2170+ïáÕ2180) | F14: GENERAL PUBLIC SERVICES | H14: =I14+J14 -> 520572 | I14: =I16+I183+I193+I217+I223+I232 -> 398490 | J14: =J223+J16+J193+J232 -> 122082
E15: ³Û¹ ÃíáõÙ`
A16: 2110 | B16: 01 | C16: 1 | D16: 0 | E16: úñ»Ýë¹Çñ ¨ ·áñÍ³¹Çñ Ù³ñÙÇÝÝ»ñ, å»ï³Ï³Ý Ï³é³í³ñáõÙ, ‎ýÇÝ³Ýë³Ï³Ý ¨ Ñ³ñÏ³µÛáõç»ï³ÛÇÝ Ñ³ñ³µ»ñáõÃÛáõÝÝ»ñ, ³ñï³ùÇÝ Ñ³ñ³µ»ñáõÃÛáõÝÝ»ñ | F16: Executive and Legislative Organs, Financial and Fiscal Affairs, External Affairs | H16: =I16+J16 -> 382432 | I16: =I18 -> 372350 | J16: =J18 -> 10082
E17: áñÇó`
A18: 2111 | B18: 01 | C18: 1 | D18: 1 | E18: úñ»Ýë¹Çñ ¨ ·áñÍ³¹Çñ Ù³ñÙÇÝÝ»ñ,å»ï³Ï³Ý Ï³é³í³ñáõÙ | F18: Executive and legislative organs | H18: =I18+J18 -> 382432 | I18: =I22+I23+I28+I33+I34+I35+I40+I52+I54+I55+I56+I62+I64+I67+I70+I71+I131+I132+I133+I41+I51+I61+I53+I130+I32+I177 -> 372350 | J18: =J180+J181+J178+J179+J182 -> 10082
E19: ³Û¹ ÃíáõÙ Í³Ëë»ñÇ í»ñÍ³ÝáõÙÁ` Áëï µÛáõç»ï³ÛÇÝ Í³Ëë»ñÇ ïÝï»ë³·Çï³Ï³Ý ¹³ë³Ï³ñ·Ù³Ý Ñá¹í³ÍÝ»ñÇ
E20: 1.äºî²Î²Ü, îºÔ²Î²Ü ÆÜøÜ²Î²è²ì²ðØ²Ü Ø²ðØÆÜÜºðÆ, ¸ð²Üò ºÜÂ²Î² ´Úàôæºî²ÚÆÜ ÐÆØÜ²ðÎÜºðÆ ²ÞÊ²îàÔÜºðÆ ²ÞÊ²î²ì²ðÒÀª ÀÜ¸²ØºÜÀ, ³Û¹ ÃíáõÙª | F20: x | G20: x | H20: 25215 | I20: 25215
E21: 1,1 ²ßË³ï³ÝùÇ í³ñÓ³ïñáõÃÛáõÝ | F21: x | G21: x | H21: 25215 | I21: 25215
E22: -²ßË³ïáÕÝ»ñÇ ³ßË³ï³í³ñÓ»ñ ¨ Ñ³í»É³í×³ñÝ»ñ | F22: 411100 | G22: 411100 | H22: =I22 -> 255000 | I22: =aparat!F35 -> 255000
E23: - ä³ñ·¨³ïñáõÙÝ»ñ, ¹ñ³Ù³Ï³Ý Ëñ³ËáõëáõÙÝ»ñ ¨ Ñ³ïáõÏ í×³ñÝ»ñ | F23: 411200 | G23: 411200 | H23: =I23 -> 23000 | I23: =aparat!F36 -> 23000
E24: -ø³Õ³ù³óÇ³Ï³Ý, ¹³ï³Ï³Ý ¨ å»ï³Ï³Ý Í³é³ÛáÕÝ»ñÇ å³ñ·¨³ïñáõÙ | F24: 411300 | G24: 411300 | H24: 0 | I24: 0
E25: -ÐÐ ýÇÝ³ÝëÝ»ñÇ ¨ ¿ÏáÝáÙÇÏ³ÛÇ Ý³Ë³ñ³ñáõÃÛ³Ý, Ñ³ñÏ³ÛÇÝ ¨ Ù³ùë³ÛÇÝ Ù³ñÙÇÝÝ»ñÇ ³ßË³ïáÕÝ»ñÇ å³ñ·¨³ïñáõÙ | F25: 411400 | G25: 411400 | H25: 0 | I25: 0
E26: -²ÛÉ í³ñÓ³ïñáõÃÛáõÝÝ»ñ | F26: 411500 | G26: 411500 | H26: 0 | I26: 0
E27: -´Ý»Õ»Ý ³ßË³ï³í³ñÓ»ñ ¨ Ñ³í»É³í×³ñÝ»ñ | F27: 412100 | G27: 412100 | H27: 0 | I27: 0
E28: - êáóÇ³É³Ï³Ý ³å³ÑáíáõÃÛ³Ý í×³ñÝ»ñ | F28: 413100 | G28: 413100 | H28: =I28 -> 0 | I28: =aparat!F41 -> 0
E29: 2 Ì³é³ÛáõÃÛáõÝÝ»ñÇ ¨ ³åñ³ÝùÝ»ñÇ Ó»éù µ»ñáõÙ | F29: x | G29: x | H29: 14850 | I29: 14850
E30: 2.1 Þ³ñáõÝ³Ï³Ï³Ý Í³Ëë»ñ | H30: 5100 | I30: 5100
E31: -·áñÍ³éÝ³Ï³Ý ¨ µ³ÝÏ³ÛÇÝ Í³é³ÛáõÃÛáõÝÝ»ñÇ Í³Ëë»ñ | F31: 421100 | G31: 421100 | H31: 0 | I31: 0
E32: ä³ñ·¨³ïñáõÙÝ»ñ, ¹ñ³Ù³Ï³Ý Ëñ³ËáõëáõÙÝ»ñ ¨ Ñ³ïáõÏ í×³ñÝ»ñ | G32: 411200 | H32: =I32 -> 0 | I32: 0
E33: -¿Ý»ñ·»ïÇÏ Í³é³ÛáõÃÛáõÝÝ»ñ | F33: 421200 | G33: 421200 | H33: =I33 -> 55000 | I33: =aparat!F45 -> 55000
E34: -ÎáÙáõÝ³É Í³é³ÛáõÃÛáõÝÝ»ñ | F34: 421300 | G34: 421300 | H34: =I34 -> 800 | I34: =aparat!F46 -> 800
E35: -Î³åÇ Í³é³ÛáõÃÛáõÝÝ»ñ | F35: 421400 | G35: 421400 | H35: =I35 -> 4000 | I35: =aparat!F47 -> 4000
E36: -²å³Ñáí³·ñ³Ï³Ý Í³Ëë»ñ | F36: 421500 | G36: 421500 | H36: 0 | I36: 0
E37: -¶áõÛùÇ ¨ ë³ñù³íáñáõÙÝ»ñÇ í³ñÓ³Ï³ÉáõÃÛáõÝ | F37: 421600 | G37: 421600 | H37: 0 | I37: 0
E38: -²ñï³·»ñ³ï»ëã³Ï³Ý Í³Ëë»ñ | F38: 421700 | G38: 421700 | H38: 0 | I38: 0
E39: 2.2 ¶áñÍáõÕáõÙÝ»ñÇ ¨ ßñç³·³ÛáõÃÛ³Ý Í³Ëë»ñ | F39: x | G39: x | H39: 1300 | I39: 1300
E40: -ապահովագրական ծախսեր | G40: 421500 | H40: =I40 -> 450 | I40: =aparat!F48 -> 450
E41: -Ü»ñùÇÝ ·áñÍáõÕáõÙÝ»ñ | F41: 422100 | G41: 422100 | H41: =I41 -> 1500 | I41: =aparat!F52 -> 1500
E42: -²ñï³ë³ÑÙ³ÝÛ³Ý ·áñÍáõÕáõÙÝ»ñÇ ·Íáí Í³Ëë»ñ | F42: 422200 | G42: 422200 | H42: 1000 | I42: 1000
E43: -²ÛÉ ïñ³Ýëåáñï³ÛÇÝ Í³Ëë»ñ | F43: 422900 | G43: 422900 | H43: 0 | I43: 0
E44: 2.3 ä³ÛÙ³Ý³·ñ³ÛÇÝ ³ÛÉ Í³é³ÛáõÃÛáõÝÝ»ñÇ Ó»éù µ»ñáõÙ | F44: x | G44: x | H44: 2900 | I44: 2900
E45: -ì³ñã³Ï³Ý Í³é³ÛáõÃÛáõÝÝ»ñ | F45: 423100 | G45: 423100 | H45: 0 | I45: 0
E46: -Ð³Ù³Ï³ñ·ã³ÛÇÝ Í³é³ÛáõÃÛáõÝÝ»ñ | F46: 423200 | G46: 423200 | H46: 450 | I46: 450
E47: -²ßË³ï³Ï³½ÙÇ Ù³ëÝ³·Çï³Ï³Ý ½³ñ·³óÙ³Ý Í³é³ÛáõÃÛáõÝÝ»ñ | F47: 423300 | G47: 423300 | H47: 0 | I47: 0
E48: -î»Õ³Ï³ïí³Ï³Ý Í³é³ÛáõÃÛáõÝÝ»ñ | F48: 423400 | G48: 423400 | H48: 500 | I48: 500
E49: -Î³é³í³ñã³Ï³Ý Í³é³ÛáõÃÛáõÝÝ»ñ | F49: 423500 | G49: 423500 | H49: 0 | I49: 0
E50: - Î»Ýó³Õ³ÛÇÝ ¨ Ñ³Ýñ³ÛÇÝ ëÝÝ¹Ç Í³é³ÛáõÃÛáõÝÝ»ñ | F50: 423600 | G50: 423600 | H50: 0 | I50: 0
E51: արտասահմանյան գործուղումներ | G51: 422200 | H51: =I51 -> 0 | I51: =aparat!F53 -> 0
E52: -Համակարգչային ծառայություններ | G52: 423200 | H52: 2500 | I52: =aparat!F57 -> 2500
E53: -²ßË³ï³Ï³½ÙÇ Ù³ëÝ³·Çï³Ï³Ý ½³ñ·³óÙ³Ý Í³é³ÛáõÃÛáõÝÝ»ñ | G53: 423300 | H53: 200 | I53: =aparat!F58 -> 200
E54: -Տեղակատվական ծառայություններ | G54: 423400 | H54: 1500 | I54: =aparat!F59 -> 1500
E55: -Ü»ñÏ³Û³óáõóã³Ï³Ý Í³Ëë»ñ | F55: 423700 | G55: 423700 | H55: 1000 | I55: =aparat!F62 -> 1000
E56: -ÀÝ¹Ñ³Ýáõñ µÝáõÛÃÇ ³ÛÉ Í³é³ÛáõÃÛáõÝÝ»ñ | F56: 423900 | G56: 423900 | H56: 4500 | I56: =aparat!F63 -> 4500
E57: 2.4 ²ÛÉ Ù³ëÝ³·Çï³Ï³Ý Í³é³ÛáõÃÛáõÝÝ»ñÇ Ó»éù µ»ñáõÙ | F57: x | G57: x | H57: 0 | I57: 0
E58: 2.5 ÀÝÃ³óÇÏ Ýáñá·áõÙ ¨ å³Ñå³ÝáõÙ (Í³é³ÛáõÃÛáõÝÝ»ñ ¨ ÝÛáõÃ»ñ) | F58: x | G58: x | H58: 950 | I58: 950
E59: -Þ»Ýù»ñÇ ¨ Ï³éáõÛóÝ»ñÇ ÁÝÃ³óÇÏ Ýáñá·áõÙ ¨ å³Ñå³ÝáõÙ | F59: 425100 | G59: 425100 | H59: 600 | I59: 600
E60: -Þ»Ýù»ñÇ ¨ Ï³éáõÛóÝ»ñÇ ÁÝÃ³óÇÏ Ýáñá·áõÙ ¨ å³Ñå³ÝáõÙ | F60: 425100 | G60: 425100 | H60: =I60 -> 0 | I60: 0
E61: -Ø³ëÝ³·Çï³Ï³Ý Í³é³ÛáõÃÛáõÝÝ»ñ | G61: 424100 | H61: =I61 -> 4000 | I61: =aparat!F65 -> 4000
E62: -Ø»ù»Ý³Ý»ñÇ ¨ ë³ñù³íáñáõÙÝ»ñÇ ÁÝÃ³óÇÏ Ýáñá·áõÙ ¨ å³Ñå³ÝáõÙ | F62: 425200 | G62: 425200 | H62: =I62 -> 5500 | I62: =aparat!F68 -> 5500
E63: 2.6 ÜÛáõÃ»ñ | F63: x | G63: x | H63: 4600 | I63: 4600
E64: -¶ñ³ë»ÝÛ³Ï³ÛÇÝ ÝÛáõÃ»ñ ¨ Ñ³·áõëï | F64: 426100 | G64: 426100 | H64: =I64 -> 2000 | I64: =aparat!F70 -> 2000
E65: -¶ÛáõÕ³ïÝï»ë³Ï³Ý ³åñ³ÝùÝ»ñ | F65: 426200 | G65: 426200 | H65: 0 | I65: 0
E66: -ì»ñ³å³ïñ³ëïÙ³Ý ¨ áõëáõóÙ³Ý ÝÛáõÃ»ñ | F66: 426300 | G66: 426300 | H66: 0 | I66: 0
E67: -îñ³Ýëåáñï³ÛÇÝ ÝÛáõÃ»ñ | F67: 426400 | G67: 426400 | H67: =I67 -> 8000 | I67: =aparat!F73 -> 8000
E68: -Þñç³Ï³ ÙÇç³í³ÛñÇ å³ßïå³ÝáõÃÛ³Ý ¨ ·Çï³Ï³Ý ÝÛáõÃ»ñ | F68: 426500 | G68: 426500 | H68: 0 | I68: 0
E69: -²éáÕç³å³Ñ³Ï³Ý ¨ É³µáñ³ïáñ ÝÛáõÃ»ñ | F69: 426600 | G69: 426600 | H69: 0 | I69: 0
E70: -Î»Ýó³Õ³ÛÇÝ ¨ Ñ³Ýñ³ÛÇÝ ëÝÝ¹Ç ÝÛáõÃ»ñ | F70: 426700 | G70: 426700 | H70: =I70 -> 900 | I70: =aparat!F76 -> 900
E71: -Ð³ïáõÏ Ýå³ï³Ï³ÛÇÝ ³ÛÉ ÝÛáõÃ»ñ | F71: 426900 | G71: 426900 | H71: =I71 -> 2000 | I71: =aparat!F77 -> 2000
E72: 3 îáÏáë³í×³ñÝ»ñ | F72: x | G72: x | H72: 0 | I72: 0
E73: -Ü»ñùÇÝ ³ñÅ»ÃÕÃ»ñÇ ïáÏáë³í×³ñÝ»ñ | F73: 441100 | G73: 441100
E74: -Ü»ñùÇÝ í³ñÏ»ñÇ ïáÏáë³í×³ñÝ»ñ | F74: 441200 | G74: 441200
E75: -²ñï³ùÇÝ ³ñÅ»ÃÕÃ»ñÇ ·Íáí ïáÏáë³í×³ñÝ»ñ | F75: 442100 | G75: 442100
E76: -²ñï³ùÇÝ í³ñÏ»ñÇ ·Íáí ïáÏáë³í×³ñÝ»ñ | F76: 442200 | G76: 442200
E77: öáË³éáõÃÛáõÝÝ»ñÇ Ñ»ï Ï³åí³Í í×³ñÝ»ñ | F77: x | G77: x
E78: -öáË³Ý³ÏÙ³Ý Ïáõñë»ñÇ µ³ó³ë³Ï³Ý ï³ñµ»ñáõÃÛáõÝ | F78: 443100 | G78: 443100
E79: -îáõÛÅ»ñ | F79: 443200 | G79: 443200
E80: -öáË³éáõÃÛáõÝÝ»ñÇ ·Íáí ïáõñù»ñ | F80: 443300 | G80: 443300
E81: 4. êáõµëÇ¹Ç³Ý»ñ | F81: x | G81: x | H81: 0 | I81: 0
E82: -êáõµëÇ¹Ç³Ý»ñ áã-ýÇÝ³Ýë³Ï³Ý å»ï³Ï³Ý Ï³½Ù³Ï»ñåáõÃÛáõÝÝ»ñÇÝ | F82: 451100 | G82: 451100
E83: -êáõµëÇ¹Ç³Ý»ñ ýÇÝ³Ýë³Ï³Ý å»ï³Ï³Ý Ï³½Ù³Ï»ñåáõÃÛáõÝÝ»ñÇÝ | F83: 451200 | G83: 451200
E84: -êáõµëÇ¹Ç³Ý»ñ áã å»ï³Ï³Ý áã ýÇÝ³Ýë³Ï³Ý Ï³½Ù³Ï»ñåáõÃÛáõÝÝ»ñÇÝ | F84: 452100 | G84: 452100
E85: -êáõµëÇ¹Ç³Ý»ñ áã å»ï³Ï³Ý ýÇÝ³Ýë³Ï³Ý Ï³½Ù³Ï»ñåáõÃÛáõÝÝ»ñÇÝ | F85: 452200 | G85: 452200
E86: 5.¸ñ³Ù³ßÝáñÑÝ»ñ | F86: x | G86: x | H86: 0 | I86: 0
E87: ¸ñ³Ù³ßÝáñÑÝ»ñ ûï³ñ»ñÏñÛ³ Ï³é³í³ñáõÃÛáõÝÝ»ñÇÝ | F87: x | G87: x | H87: 0 | I87: 0
E88: ÀÝÃ³óÇÏ ¹ñ³Ù³ßÝáñÑÝ»ñ ûï³ñ»ñÏñÛ³ Ï³é³í³ñáõÃÛáõÝÝ»ñÇÝ | F88: 461100 | G88: 461100
E89: Î³åÇï³É ¹ñ³Ù³ßÝáñÑÝ»ñ ûï³ñ»ñÏñÛ³ Ï³é³í³ñáõÃÛáõÝÝ»ñÇÝ | F89: 461200 | G89: 461200
E90: ¸ñ³Ù³ßÝáñÑÝ»ñ ÙÇç³½·³ÛÇÝ Ï³½Ù³Ï»ñåáõÃÛáõÝÝ»ñÇÝ | F90: x | G90: x | H90: 0 | I90: 0
E91: ÀÝÃ³óÇÏ ¹ñ³Ù³ßÝáñÑÝ»ñ ÙÇç³½·³ÛÇÝ Ï³½Ù³Ï»ñåáõÃÛáõÝÝ»ñÇÝ | F91: 462100 | G91: 462100
E92: Î³åÇï³É ¹ñ³Ù³ßÝáñÑ»ñ ÙÇç³½·³ÛÇÝ Ï³½Ù³Ï»ñåáõÃÛáõÝÝ»ñÇÝ | F92: 462200 | G92: 462200
E93: ÀÝÃ³óÇÏ ¹ñ³Ù³ßÝáñÑÝ»ñ å»ï³Ï³Ý Ñ³ïí³ÍÇ ³ÛÉ Ù³Ï³ñ¹³ÏÝ»ñÇÝ | F93: x | G93: x | H93: 0 | I93: 0
E94: ÀÝÃ³óÇÏ ¹ñ³Ù³ßÝáñÑÝ»ñ å»ï³Ï³Ý Ï³é³í³ñÙ³Ý Ñ³ïí³ÍÇÝ | F94: 463100 | G94: 463100
E95: ÀÝÃ³óÇÏ ëáõµí»ÝóÇ³Ý»ñ Ñ³Ù³ÛÝùÝ»ñÇÝ | F95: 463200 | G95: 463200
E96: ä»ï³Ï³Ý µÛáõç»Çó Ñ³Ù³ÛÝùÝ»ñÇ µÛáõç»Ý»ñÇÝ ýÇÝ³Ýë³Ï³Ý Ñ³Ù³Ñ³ñÃ»óÙ³Ý ëÏ½µáõÝùáí ïñíáÕ ¹áï³óÇ³Ý»ñ | F96: 463300 | G96: 463300
E97: úñ»ÝùÝ»ñÇ ÏÇñ³ñÏÙ³Ý ³ñ¹ÛáõÝùáõÙ Ñ³Ù³ÛÝùÝ»ñÇ µÛáõç»Ý»ñÇ ÏáñáõëïÝ»ñÇ ÷áËÑ³ïáõóáõÙ | F97: 463400 | G97: 463400
E98: ²ÛÉ ÁÝÃ³óÇÏ ¹ñ³Ù³ßÝáñÑÝ»ñ Ñ³Ù³ÛÝùÝ»ñÇÝ | F98: 463500 | G98: 463500
E99: ÀÝÃ³óÇÏ ¹ñ³Ù³ßÝáñÑÝ»ñ å»ï³Ï³Ý ¨ Ñ³Ù³ÛÝùÝ»ñÇ áã ³é¨ïñ³ÛÇÝ Ï³½Ù³Ï»ñåáõÃÛáõÝÝ»ñÇÝ | F99: 463700 | G99: 463700
E100: ÀÝÃ³óÇÏ ¹ñ³Ù³ßÝáñÑÝ»ñ å»ï³Ï³Ý ¨ Ñ³Ù³ÛÝùÝ»ñÇ ³é¨ïñ³ÛÇÝ Ï³½Ù³Ï»ñåáõÃÛáõÝÝ»ñÇÝ | F100: 463800 | G100: 463800
E101: ²ÛÉ ÁÝÃ³óÇÏ ¹ñ³Ù³ßÝáñÑÝ»ñ | F101: 463900 | G101: 463900
E102: Î³åÇï³É ¹ñ³Ù³ßÝáñÑÝ»ñ å»ï³Ï³Ý Ñ³ïí³ÍÇ ³ÛÉ Ù³Ï³ñ¹³ÏÝ»ñÇÝ | F102: x | G102: x | H102: 0 | I102: 0
E103: Î³åÇï³É ¹ñ³Ù³ßÝáñÑÝ»ñ å»ï³Ï³Ý Ï³é³í³ñÙ³Ý Ñ³ïí³ÍÇÝ | F103: 465100 | G103: 465100
E104: Î³åÇï³É ëáõµí»ÝóÇ³Ý»ñ Ñ³Ù³ÛÝùÝ»ñÇÝ | F104: 465200 | G104: 465200
E105: ²ÛÉ Ï³åÇï³É ¹ñ³Ù³ßÝáñÑÝ»ñ Ñ³Ù³ÛÝùÝ»ñÇÝ | F105: 465300 | G105: 465300
E106: Î³åÇï³É ¹ñ³Ù³ßÝáñÑÝ»ñ å»ï³Ï³Ý ¨ Ñ³Ù³ÛÝùÝ»ñÇ áã ³é¨ïñ³ÛÇÝ Ï³½Ù³Ï»ñåáõÃÛáõÝÝ»ñÇÝ | F106: 465500 | G106: 465500
E107: Î³åÇï³É ¹ñ³Ù³ßÝáñÑÝ»ñ å»ï³Ï³Ý ¨ Ñ³Ù³ÛÝù³ÛÇÝ ³é¨ïñ³ÛÇÝ Ï³½Ù³Ï»ñåáõÃÛáõÝÝ»ñÇÝ | F107: 465600 | G107: 465600
E108: ²ÛÉ Ï³åÇï³É ¹ñ³Ù³ßÝáñÑÝ»ñ | F108: 465700 | G108: 465700
E109: 6. êàòÆ²È²Î²Ü Üä²êîÜºð ºì ÎºÜê²ÂàÞ²ÎÜºð | F109: x | G109: x | H109: 0 | I109: 0
E110: 6.1 êàòÆ²È²Î²Ü ²ä²ÐàìàôÂÚ²Ü Üä²êîÜºð | F110: x | G110: x | H110: 0 | I110: 0
E111: -îÝ³ÛÇÝ ïÝï»ëáõÃÛáõÝÝ»ñÇÝ ¹ñ³Ùáí í×³ñíáÕ ëáóÇ³É³Ï³Ý ³å³ÑáíáõÃÛ³Ý í×³ñÝ»ñ | F111: 471100 | G111: 471100
E112: -êáóÇ³É³Ï³Ý ³å³ÑáíáõÃÛ³Ý µÝ»Õ»Ý Ýå³ëïÝ»ñ Í³é³ÛáõÃÛáõÝÝ»ñ Ù³ïáõóáÕÝ»ñÇÝ | F112: 471200 | G112: 471200
E113: 6.2 êàòÆ²È²Î²Ü ú¶ÜàôÂÚ²Ü ¸ð²Ø²Î²Ü ²ðî²Ð²ÚîàôÂÚ²Ø´ Üä²êîÜºð (´ÚàôæºÆò) | F113: x | G113: x | H113: 0 | I113: 0
E114: -ÐÇí³Ý¹áõÃÛ³Ý ¨ Ñ³ßÙ³Ý¹³ÙáõÃÛ³Ý Ýå³ëïÝ»ñ µÛáõç»Çó | F114: 472100 | G114: 472100
E115: -Ø³ÛñáõÃÛ³Ý Ýå³ëïÝ»ñ µÛáõç»Çó | F115: 472200 | G115: 472200
E116: -ºñ»Ë³Ý»ñÇ Ï³Ù ÁÝï³Ý»Ï³Ý Ýå³ëïÝ»ñ µÛáõç»Çó | F116: 472300 | G116: 472300
E117: -¶áñÍ³½ñÏáõÃÛ³Ý Ýå³ëïÝ»ñ µÛáõç»Çó | F117: 472400 | G117: 472400
E118: -Î»Ýë³Ãáß³ÏÇ ³ÝóÝ»Éáõ Ñ»ï Ï³åí³Í ¨ ï³ñÇù³ÛÇÝ Ýå³ëïÝ»ñ µÛáõç»Çó | F118: 472500 | G118: 472500
E119: -ÐáõÕ³ñÏ³íáñáõÃÛ³Ý Ýå³ëïÝ»ñ µÛáõç»Çó | F119: 472600 | G119: 472600
E120: -ÎñÃ³Ï³Ý, Ùß³ÏáõÃ³ÛÇÝ ¨ ëåáñï³ÛÇÝ Ýå³ëïÝ»ñ µÛáõç»Çó | F120: 472700 | G120: 472700
E121: -´Ý³Ï³ñ³Ý³ÛÇÝ Ýå³ëïÝ»ñ µÛáõç»Çó | F121: 472800 | G121: 472800
E122: -²ÛÉ Ýå³ëïÝ»ñ µÛáõç»Çó | F122: 472900 | G122: 472900
E123: 6.3 ÎºÜê²ÂàÞ²ÎÜºð | F123: x | G123: x | H123: 0 | I123: 0
E124: -Ï»Ýë³Ãáß³ÏÝ»ñ | F124: 474100 | G124: 474100
E125: 7. ²ÚÈ Ì²Êêºð | F125: x | G125: x | H125: 55 | I125: 55
E126: 7.1 ÜìÆð²îìàôÂÚàôÜÜºð àâ-Î²è²ì²ðâ²Î²Ü (Ð²ê²ð²Î²Î²Ü) Î²¼Ø²ÎºðäàôÂÚàôÜÜºðÆÜ | F126: x | G126: x | H126: 0 | I126: 0
E127: -îÝ³ÛÇÝ ïÝï»ëáõÃÛáõÝÝ»ñÇÝ Í³é³ÛáõÃÛáõÝÝ»ñ Ù³ïáõóáÕ` ß³ÑáõÛÃ ãÑ»ï³åÝ¹áÕ Ï³½Ù³Ï»ñåáõÃÛáõÝÝ»ñÇÝ ÝíÇñ³ïíáõÃÛáõÝÝ»ñ | F127: 481100 | G127: 481100 | H127: 0 | I127: 0
E128: -ÜíÇñ³ïíáõÃÛáõÝÝ»ñ ³ÛÉ ß³ÑáõÛÃ ãÑ»ï³åÝ¹áÕ Ï³½Ù³Ï»ñåáõÃÛáõÝÝ»ñÇÝ | F128: 481900 | G128: 481900 | H128: 0 | I128: 0
E129: -²ßË³ï³í³ñÓÇ ýáÝ¹ | F129: 482100 | G129: 482100 | H129: 0 | I129: 0
E130: -ÜíÇñ³ïíáõÃÛáõÝÝ»ñ ³ÛÉ ß³ÑáõÛÃ ãÑ»ï³åÝ¹áÕ Ï³½Ù³Ï»ñåáõÃÛáõÝÝ»ñÇÝ | G130: 481900 | H130: =I130 -> 0 | I130: =aparat!F134 -> 0
E131: -²ÛÉ Ñ³ñÏ»ñ | F131: 482200 | G131: 482200 | H131: =I131 -> 0 | I131: =aparat!F137 -> 0
E132: այլ կապիտալ դրաաշնորհ | G132: 465700 | H132: =I132 -> 0 | I132: =aparat!F114 -> 0
E133: -ä³ñï³¹Çñ í×³ñÝ»ñ | F133: 482300 | G133: 482300 | H133: =I133 -> 500 | I133: =aparat!F138 -> 500
E134: -ä»ï³Ï³Ý Ñ³ïí³ÍÇ ï³ñµ»ñ Ù³Ï³ñ¹³ÏÝ»ñÇ ÏáÕÙÇó ÙÇÙÛ³Ýó ÝÏ³ïÙ³Ùµ ÏÇñ³éíáÕ ïáõÛÅ»ñ | F134: 482400 | G134: 482400 | H134: 0 | I134: 0
E135: 7.3 ¸²î²ð²ÜÜºðÆ ÎàÔØÆò ÜÞ²Ü²Îì²Ì îàôÚÄºð ºì îàô¶²ÜøÜºð | F135: x | G135: x | H135: 0 | I135: 0
E136: -¸³ï³ñ³ÝÝ»ñÇ ÏáÕÙÇó Ýß³Ý³Ïí³Í ïáõÛÅ»ñ ¨ ïáõ·³ÝùÝ»ñ | F136: 483100 | G136: 483100 | H136: 0 | I136: 0
E137: 7.4 ´Ü²Î²Ü ²ÔºîÜºðÆò Î²Ø ²ÚÈ ´Ü²Î²Ü ä²îÖ²èÜºðàì ²è²æ²ò²Ì ìÜ²êÜºðÆ Î²Ø ìÜ²êì²ÌøÜºðÆ ìºð²Î²Ü¶ÜàôØ | F137: x | G137: x | H137: 0 | I137: 0
E138: -´Ý³Ï³Ý ³Õ»ïÝ»ñÇó ³é³ç³ó³Í íÝ³ëí³ÍùÝ»ñÇ Ï³Ù íÝ³ëÝ»ñÇ í»ñ³Ï³Ý·ÝáõÙ | F138: 484100 | G138: 484100 | H138: 0 | I138: 0
E139: -²ÛÉ µÝ³Ï³Ý å³ï×³éÝ»ñáí ëï³ó³Í íÝ³ëí³ÍùÝ»ñÇ í»ñ³Ï³Ý·ÝáõÙ | F139: 484200 | G139: 484200 | H139: 0 | I139: 0
E140: 7.5 Î²è²ì²ðØ²Ü Ø²ðØÆÜÜºðÆ ¶àðÌàôÜºàôÂÚ²Ü Ðºîºì²Üøàì ²è²æ²ò²Ì ìÜ²êÜºðÆ Î²Ø ìÜ²êì²ÌøÜºðÆ ìºð²Î²Ü¶ÜàôØ | F140: x | G140: x | H140: 0 | I140: 0
E141: -Î³é³í³ñÙ³Ý Ù³ñÙÇÝÝ»ñÇ ·áñÍáõÝ»áõÃÛ³Ý Ñ»ï¨³Ýùáí ³é³ç³ó³Í íÝ³ëí³ÍùÝ»ñÇ Ï³Ù íÝ³ëÝ»ñÇ í»ñ³Ï³Ý·ÝáõÙ | F141: 485100 | G141: 485100 | H141: 0 | I141: 0
E142: 7.6 ²ÚÈ Ì²Êêºð | F142: x | G142: x | H142: 0 | I142: 0
E143: -²ÛÉ Í³Ëë»ñ | F143: 486100 | G143: 486100 | H143: 0 | I143: 0
E144: 7.7 ä²Ðàôêî²ÚÆÜ ØÆæàòÜºð | F144: x | G144: x | H144: 0 | I144: 0
E145: -ä³Ñáõëï³ÛÇÝ ÙÇçáóÝ»ñ | F145: 489100 | G145: 489100 | H145: 0 | I145: 0
E146: 1.ÐÆØÜ²Î²Ü ØÆæàòÜºð | F146: x | G146: x | H146: 0 | J146: 0
E147: -Þ»Ýù»ñÇ ¨ ßÇÝáõÃÛáõÝÝ»ñÇ Ó»éù µ»ñáõÙ | F147: 511100 | G147: 511100 | H147: 0 | J147: 0
E148: -Þ»Ýù»ñÇ ¨ ßÇÝáõÃÛáõÝÝ»ñÇ Ï³éáõóáõÙ | F148: 511200 | G148: 511200 | H148: 0 | J148: 0
E149: -Þ»Ýù»ñÇ ¨ ßÇÝáõÃÛáõÝÝ»ñÇ Ï³åÇï³É í»ñ³Ýáñá·áõÙ | F149: 511300 | G149: 511300 | H149: 0 | J149: 0
E150: -îñ³Ýëåáñï³ÛÇÝ ë³ñù³íáñáõÙÝ»ñ | F150: 512100 | G150: 512100 | H150: 0 | J150: 0
E151: -ì³ñã³Ï³Ý ë³ñù³íáñáõÙÝ»ñ | F151: 512200 | G151: 512200 | H151: 0 | J151: 0
E152: -²ÛÉ Ù»ù»Ý³Ý»ñ ¨ ë³ñù³íáñáõÙÝ»ñ | F152: 512900 | G152: 512900 | H152: 0 | J152: 0
E153: -²×»óíáÕ ³ÏïÇíÝ»ñ | F153: 513100 | G153: 513100 | H153: 0 | J153: 0
E154: -àã-ÝÛáõÃ³Ï³Ý ÑÇÙÝ³Ï³Ý ÙÇçáóÝ»ñ | F154: 513200 | G154: 513200 | H154: 0 | J154: 0
E155: -¶»á¹»½Ç³Ï³Ý ù³ñï»½³·ñ³Ï³Ý Í³Ëë»ñ | F155: 513300 | G155: 513300 | H155: 0 | J155: 0
E156: -Ü³Ë³·Í³Ñ»ï³½áï³Ï³Ý Í³Ëë»ñ | F156: 513400 | G156: 513400 | H156: 0 | J156: 0
E157: 2.ä²Þ²ðÜºð | F157: x | G157: x | H157: 0 | J157: 0
E158: -è³½Ù³í³ñ³Ï³Ý å³ß³ñÝ»ñ | F158: 521100 | G158: 521100 | H158: 0 | J158: 0
E159: -ÜÛáõÃ»ñ ¨ å³ñ³·³Ý»ñ | F159: 522100 | G159: 522100 | H159: 0 | J159: 0
E160: -ì»ñ³í³×³éùÇ Ñ³Ù³ñ Ý³Ë³ï»ëí³Í ³åñ³ÝùÝ»ñ | F160: 523100 | G160: 523100 | H160: 0 | J160: 0
E161: -êå³éÙ³Ý Ýå³ï³Ïáí å³ÑíáÕ å³ß³ñÝ»ñ | F161: 524100 | G161: 524100 | H161: 0 | J161: 0
E162: 3.´²ðÒð²ðÄºø ²ÎîÆìÜºð | F162: x | G162: x | H162: 0 | J162: 0
E163: -´³ñÓñ³ñÅ»ù ³ÏïÇíÝ»ñ | F163: 531100 | G163: 531100 | H163: 0 | J163: 0
E164: 4.â²ðî²¸ðì²Ì ԱԿՏԻՎՆԵՐ | F164: x | G164: x | H164: 0 | J164: 0
E165: -ÐáÕ | F165: 541100 | G165: 541100 | H165: 0 | J165: 0
E166: -ÀÝ¹»ñù³ÛÇÝ ³ÏïÇíÝ»ñ | F166: 542100 | G166: 542100 | H166: 0 | J166: 0
E167: -²ÛÉ µÝ³Ï³Ý Í³·áõÙ áõÝ»óáÕ ³ÏïÇíÝ»ñ | F167: 543100 | G167: 543100 | H167: 0 | J167: 0
E168: -àã ÝÛáõÃ³Ï³Ý ã³ñï³¹ñí³Í ³ÏïÇíÝ»ñ | F168: 544100 | G168: 544100 | H168: 0 | J168: 0
A169: 2112 | B169: 01 | C169: 1 | D169: 2 | E169: üÇÝ³Ýë³Ï³Ý ¨ Ñ³ñÏ³µÛáõç»ï³ÛÇÝ Ñ³ñ³µ»ñáõÃÛáõÝÝ»ñ | F169: Financial and fiscal affairs | H169: 0
E170: ³Û¹ ÃíáõÙ Í³Ëë»ñÇ í»ñÍ³ÝáõÙÁ` Áëï µÛáõç»ï³ÛÇÝ Í³Ëë»ñÇ ïÝï»ë³·Çï³Ï³Ý ¹³ë³Ï³ñ·Ù³Ý Ñá¹í³ÍÝ»ñÇ | H170: 0
E171: ...................................................... | H171: 0
E172: ...................................................... | H172: 0
A173: 2113 | B173: 01 | C173: 1 | D173: 3 | E173: ²ñï³ùÇÝ Ñ³ñ³µ»ñáõÃÛáõÝÝ»ñ | F173: External affairs | H173: 0
E174: ³Û¹ ÃíáõÙ Í³Ëë»ñÇ í»ñÍ³ÝáõÙÁ` Áëï µÛáõç»ï³ÛÇÝ Í³Ëë»ñÇ ïÝï»ë³·Çï³Ï³Ý ¹³ë³Ï³ñ·Ù³Ý Ñá¹í³ÍÝ»ñÇ | H174: 0
E175: ...................................................... | H175: 0
E176: ...................................................... | H176: 0
E177: -¸³ï³ñ³ÝÝ»ñÇ ÏáÕÙÇó Ýß³Ý³Ïí³Í ïáõÛÅ»ñ ¨ ïáõ·³ÝùÝ»ñ | F177: 483100 | G177: 483100 | H177: =I177 -> 0 | I177: =aparat!F141 -> 0
E178: -Þ»Ýù»ñÇ ¨ ßÇÝáõÃÛáõÝ. Ï³åÇï³É í»ñ³Ýáñá·áõÙ | G178: 511300 | H178: =J178 -> 0 | J178: =aparat!F155+'subv aparat'!F141 -> 0
E179: -îñ³Ýëåáñï³ÛÇÝ ë³ñù³íáñáõÙÝ»ñ | G179: 512100 | H179: =J179 -> 2500 | J179: =aparat!F156 -> 2500
E180: վարրչական սարքավորումներ | G180: 512200 | H180: =J180 -> 4682 | I180: 0 | J180: =aparat!F157 -> 4682
E181: -²ÛÉ Ù»ù»Ý³Ý»ñ ¨ ë³ñù³íáñáõÙÝ»ñ | G181: 512900 | H181: =J181 -> 2200 | I181: 0 | J181: =aparat!F158 -> 2200
E182: -àã-ÝÛáõÃ³Ï³Ý ÑÇÙÝ³Ï³Ý ÙÇçáóÝ»ñ | G182: 513200 | H182: =J182 -> 700 | J182: =aparat!F160 -> 700
A183: 2120 | B183: 01 | C183: 2 | D183: 0 | E183: ²ñï³ùÇÝ ïÝï»ë³Ï³Ý û·ÝáõÃÛáõÝ | F183: Foreign Economic Aid | H183: 0
E184: áñÇó` | H184: 0
A185: 2121 | B185: 01 | C185: 2 | D185: 1 | E185: ²ñï³ùÇÝ ïÝï»ë³Ï³Ý ³ç³ÏóáõÃÛáõÝ | F185: Economic aid to developing countries and countries in transition | H185: 0
E186: ³Û¹ ÃíáõÙ Í³Ëë»ñÇ í»ñÍ³ÝáõÙÁ` Áëï µÛáõç»ï³ÛÇÝ Í³Ëë»ñÇ ïÝï»ë³·Çï³Ï³Ý ¹³ë³Ï³ñ·Ù³Ý Ñá¹í³ÍÝ»ñÇ | H186: 0
E187: ...................................................... | H187: 0
E188: ...................................................... | H188: 0
A189: 2122 | B189: 01 | C189: 2 | D189: 2 | E189: ØÇç³½·³ÛÇÝ Ï³½Ù³Ï»ñåáõÃÛáõÝÝ»ñÇ ÙÇçáóáí ïñ³Ù³¹ñíáÕ ïÝï»ë³Ï³Ý û·ÝáõÃÛáõÝ | F189: Economic aid routed through international organizations | H189: 0
E190: ³Û¹ ÃíáõÙ Í³Ëë»ñÇ í»ñÍ³ÝáõÙÁ` Áëï µÛáõç»ï³ÛÇÝ Í³Ëë»ñÇ ïÝï»ë³·Çï³Ï³Ý ¹³ë³Ï³ñ·Ù³Ý Ñá¹í³ÍÝ»ñÇ | H190: 0
E191: ...................................................... | H191: 0
E192: ...................................................... | H192: 0
A193: 2130 | B193: 01 | C193: 3 | D193: 0 | E193: ÀÝ¹Ñ³Ýáõñ µÝáõÛÃÇ Í³é³ÛáõÃÛáõÝÝ»ñ | F193: General Services | H193: =H203 -> 2640 | I193: =I203 -> 2640 | J193: =J203 -> 0
A194: 2131 | B194: 01 | C194: 3 | D194: 1 | E194: ²ßË³ï³Ï³½ÙÇ /Ï³¹ñ»ñÇ/ ·Íáí ÁÝ¹Ñ³Ýáõñ µÝáõÛÃÇ Í³é³ÛáõÃÛáõÝÝ»ñ | F194: General personnel services | H194: 0
E195: ³Û¹ ÃíáõÙ Í³Ëë»ñÇ í»ñÍ³ÝáõÙÁ` Áëï µÛáõç»ï³ÛÇÝ Í³Ëë»ñÇ ïÝï»ë³·Çï³Ï³Ý ¹³ë³Ï³ñ·Ù³Ý Ñá¹í³ÍÝ»ñÇ | H195: 0
E196: ...................................................... | H196: 0
E197: ...................................................... | H197: 0
A198: 2132 | B198: 01 | C198: 3 | D198: 2 | E198: Ìñ³·ñÙ³Ý ¨ íÇ×³Ï³·ñ³Ï³Ý ÁÝ¹Ñ³Ýáõñ Í³é³ÛáõÃÛáõÝÝ»ñ | F198: Overall planning and statistical services | H198: 0
E199: ³Û¹ ÃíáõÙ Í³Ëë»ñÇ í»ñÍ³ÝáõÙÁ` Áëï µÛáõç»ï³ÛÇÝ Í³Ëë»ñÇ ïÝï»ë³·Çï³Ï³Ý ¹³ë³Ï³ñ·Ù³Ý Ñá¹í³ÍÝ»ñÇ | H199: 0
E200: ...................................................... | H200: 0
E201: ...................................................... | H201: 0
E202: áñÇó`
A203: 2133 | B203: 01 | C203: 3 | D203: 3 | E203: ÀÝ¹Ñ³Ýáõñ µÝáõÛÃÇ ³ÛÉ Í³é³ÛáõÃÛáõÝÝ»ñ | F203: Other general services | H203: =J203+I203 -> 2640 | I203: =I205+I206+I207+I208+I209+I213+I214+I215+I210+I212+I211 -> 2640 | J203: =J216 -> 0
E204: ³Û¹ ÃíáõÙ Í³Ëë»ñÇ í»ñÍ³ÝáõÙÁ` Áëï µÛáõç»ï³ÛÇÝ Í³Ëë»ñÇ ïÝï»ë³·Çï³Ï³Ý ¹³ë³Ï³ñ·Ù³Ý Ñá¹í³ÍÝ»ñÇ | H204: 0
... 800 more rows

Sheet mnac
C1: Հավելված 4
C2: ՀՀ Լոռու մարզի Տաշիր համայնքի ավագանու
C3: 2023 թվականի « » N -Ն որոշման
A8: ԲՅՈՒՋԵԻ ՄՆԱՑՈՐԴԻ ՏԱՐԵՎԵՐՋԻ ՀԱՎԵԼՈՒՐԴԸ ԿԱՄ ԴԵՖԻՑԻՏԸ (ՊԱԿԱՍՈՒՐԴԸ)
E10: (Ñ³½³ñ ¹ñ³Ùáí)
A11: îáÕÇ NN | C11: ÀÝ¹³Ù»ÝÁ (ë.4+ë.5) | D11: ³Û¹ ÃíáõÙ`
D12: í³ñã³Ï³Ý Ù³ë | E12: ýáÝ¹³ÛÇÝ Ù³ë
A13: 1 | B13: 2 | C13: 3 | D13: 4 | E13: 5
A14: 8000 | B14: ÀÜ¸²ØºÜÀ Ð²ìºÈàôð¸À Î²Ø ¸ºüÆòÆîÀ (ä²Î²êàôð¸À) | C14: =E14 -> -145000 | D14: 0 | E14: =-F32 -> -145000
C16: Հավելված 5
C17: ՀՀ Լոռու մարզի Տաշիր համայնքի ավագանու
C18: 2023 թվականի « » N -Ն որոշման
B26: ԲՅՈՒՋԵԻ ՄՆԱՑՈՐԴԻ ԴԵՖԻՑԻՏԻ (ՊԱԿԱՍՈՒՐԴԻ) ՖԻՆԱՆՍԱՎՈՐՄԱՆ ԱՂԲՅՈՒՐՆԵՐԸ ԿԱՄ ՀԱՎԵԼՈՒՐԴԻ ՕԳՏԱԳՈՐԾՄԱՆ ՈՒՂՂՈՒԹՅՈՒՆՆԵՐԸ
E28: (Ñ³½³ñ ¹ñ³ÙÝ»ñáí)
A29: îáÕÇ NN | B29: ´Ûáõç»ï³ÛÇÝ Í³Ëë»ñÇ ïÝï»ë³·Çï³Ï³Ý ¹³ë³Ï³ñ·Ù³Ý Ñá¹í³ÍÝ»ñÇ | D29: ÀÝ¹³Ù»ÝÁ (ë.5+ë.6) | E29: ³Û¹ ÃíáõÙ`
B30: ³Ýí³ÝáõÙÝ»ñÁ | C30: NN | E30: í³ñã³Ï³Ý Ù³ë | F30: ýáÝ¹³ÛÇÝ Ù³ë
A31: 1 | B31: 2 | C31: 3 | D31: 4 | E31: 5 | F31: 6
A32: 8010 | B32: ÀÜ¸²ØºÜÀ` (ïáÕ 8100+ïáÕ 8200), (ïáÕ 8000 Ñ³Ï³é³Ï Ýß³Ýáí) | D32: =F32+E32 -> 145000 | E32: =E34 -> 0 | F32: =F34 -> 145000
B33: ³Û¹ ÃíáõÙ`
A34: 8100 | B34: ². ÜºðøÆÜ ²Ô´ÚàôðÜºð (ïáÕ 8110+ïáÕ 8160), (ïáÕ 8010-ïáÕ 8200) | D34: =D64 -> 145000 | E34: 0 | F34: =D34 -> 145000
B35: ³Û¹ ÃíáõÙ` | D35: 0
A36: 8110 | B36: 1. öàÊ²èàô ØÆæàòÜºð (ïáÕ 8111+ïáÕ 8120) | D36: 0 | E36: 0 | F36: 0
B37: ³Û¹ ÃíáõÙ` | D37: 0
A38: 8111 | B38: 1.1. ²ñÅ»ÃÕÃ»ñ (µ³ó³éáõÃÛ³Ùµ µ³ÅÝ»ïáÙë»ñÇ ¨ Ï³åÇï³ÉáõÙ ³ÛÉ Ù³ëÝ³ÏóáõÃÛ³Ý) տող 8112+ տող 8113 | D38: 0 | E38: X | F38: 0
B39: áñÇó`
A40: 8112 | B40: - ÃáÕ³ñÏáõÙÇó ¨ ï»Õ³µ³ßËáõÙÇó Ùáõïù»ñ | C40: 9111 | D40: 0 | E40: X
A41: 8113 | B41: - ÑÇÙÝ³Ï³Ý ·áõÙ³ñÇ Ù³ñáõÙ | C41: 6111 | D41: 0 | E41: X
A42: 8120 | B42: 1.2. ì³ñÏ»ñ ¨ ÷áË³ïíáõÃÛáõÝÝ»ñ (ëï³óáõÙ ¨ Ù³ñáõÙ) (ïáÕ 8121+ïáÕ8140) | D42: 0 | E42: 0 | F42: 0
B43: ³Û¹ ÃíáõÙ` | D43: 0
A44: 8121 | B44: 1.2.1. ì³ñÏ»ñ (տող 8122+ տող 8130) | D44: 0 | E44: X | F44: 0
B45: áñÇó` | D45: 0
A46: 8122 | B46: - í³ñÏ»ñÇ ëï³óáõÙ (տող 8123+ տող 8124) | C46: 9112 | D46: 0 | E46: X | F46: 0
B47: áñÇó`
A48: 8123 | B48: å»ï³Ï³Ý µÛáõç»Çó | D48: 0 | E48: X
A49: 8124 | B49: ³ÛÉ ³ÕµÛáõñÝ»ñÇó | D49: 0 | E49: X
A50: 8130 | B50: - ëï³óí³Í í³ñÏ»ñÇ ÑÇÙÝ³Ï³Ý ·áõÙ³ñÇ Ù³ñáõÙ (տող 8131+ տող 8132) | C50: 6112 | D50: 0 | E50: X | F50: 0
B51: áñÇó`
A52: 8131 | B52: ÐÐ å»ï³Ï³Ý µÛáõç»ÇÝ | D52: 0 | E52: X
A53: 8132 | B53: ³ÛÉ ³ÕµÛáõñÝ»ñÇÝ | D53: 0 | E53: X
A54: 8140 | B54: 1.2.2. öáË³ïíáõÃÛáõÝÝ»ñ (տող 8141+ տող 8150) | D54: 0 | E54: 0 | F54: 0
B55: áñÇó`
A56: 8141 | B56: - µÛáõç»ï³ÛÇÝ ÷áË³ïíáõÃÛáõÝÝ»ñÇ ëï³óáõÙ (տող 8142+ տող 8143) | C56: 9112 | D56: 0 | E56: 0 | F56: 0
B57: áñÇó`
A58: 8142 | B58: ÐÐ å»ï³Ï³Ý µÛáõç»Çó | D58: 0 | F58: X
A59: 8143 | B59: ÐÐ ³ÛÉ Ñ³Ù³ÛÝùÝ»ñÇ µÛáõç»Ý»ñÇó | D59: 0
A60: 8150 | B60: - ëï³óí³Í ÷áË³ïíáõÃÛáõÝÝ»ñÇ ·áõÙ³ñÇ Ù³ñáõÙ (տող 8151+ տող 8152) | C60: 6112 | D60: 0 | E60: 0 | F60: 0
B61: áñÇó`
A62: 8151 | B62: ÐÐ å»ï³Ï³Ý µÛáõç»ÇÝ | D62: 0 | F62: X
A63: 8152 | B63: ÐÐ ³ÛÉ Ñ³Ù³ÛÝùÝ»ñÇ µÛáõç»Ý»ñÇÝ | D63: 0
A64: 8160 | B64: 2. üÆÜ²Üê²Î²Ü ²ÎîÆìÜºð (ïáÕ8161+ïáÕ8170+ïáÕ8190-ïáÕ8197+ïáÕ8198+ïáÕ8199) | D64: =D75 -> 145000 | E64: =E75 -> 0 | F64: =F75 -> 145000
B65: ³Û¹ ÃíáõÙ`
A66: 8161 | B66: 2.1. ´³ÅÝ»ïáÙë»ñ ¨ Ï³åÇï³ÉáõÙ ³ÛÉ Ù³ëÝ³ÏóáõÃÛáõÝ (տող 8162+ տող 8163 + տող 8164) | D66: 0 | E66: X | F66: 0
B67: áñÇó`
A68: 8162 | B68: - Ñ³Ù³ÛÝù³ÛÇÝ ë»÷³Ï³ÝáõÃÛ³Ý µ³ÅÝ»ïáÙë»ñÇ ¨ Ï³åÇï³ÉáõÙ Ñ³Ù³ÛÝùÇ Ù³ëÝ³ÏóáõÃÛ³Ý Çñ³óáõÙÇó Ùáõïù»ñ | C68: 9213 | D68: 0 | E68: X
A69: 8163 | B69: - Çñ³í³µ³Ý³Ï³Ý ³ÝÓ³Ýó Ï³ÝáÝ³¹ñ³Ï³Ý Ï³åÇï³ÉáõÙ å»ï³Ï³Ý Ù³ëÝ³ÏóáõÃÛ³Ý, å»ï³Ï³Ý ë»÷³Ï³ÝáõÃÛáõÝ Ñ³Ý¹Çë³óáÕ ³Ýß³ñÅ ·áõÛùÇ (µ³ó³éáõÃÛ³Ùµ ÑáÕ»ñÇ), ³Û¹ ÃíáõÙª ³Ý³í³ñï ßÇÝ³ñ³ñáõÃÛ³Ý ûµÛ»ÏïÝ»ñÇ Ù³ëÝ³íáñ»óáõÙÇó ³é³ç³ó³Í ÙÇçáóÝ»ñÇó Ñ³Ù³ÛÝùÇ µÛáõç» Ù³ëÑ³ÝáõÙÇó Ùáõïù»ñ | C69: 9213 | D69: 0 | E69: X
A70: 8164 | B70: - µ³ÅÝ»ïáÙë»ñ ¨ Ï³åÇï³ÉáõÙ ³ÛÉ Ù³ëÝ³ÏóáõÃÛáõÝ Ó»éùµ»ñáõÙ | C70: 6213 | D70: 0 | E70: X
A71: 8170 | B71: 2.2. öáË³ïíáõÃÛáõÝÝ»ñ (տող 8171+ տող 8172) | D71: 0 | E71: 0 | F71: 0
B72: áñÇó` | D72: 0
A73: 8171 | B73: - Ý³ËÏÇÝáõÙ ïñ³Ù³¹ñí³Í ÷áË³ïíáõÃÛáõÝÝ»ñÇ ¹ÇÙ³ó ëï³óíáÕ Ù³ñáõÙÝ»ñÇó Ùáõïù»ñ | C73: 9212 | D73: 0
A74: 8172 | B74: - ÷áË³ïíáõÃÛáõÝÝ»ñÇ ïñ³Ù³¹ñáõÙ | C74: 6212 | D74: 0
A75: 8190 | B75: 2.3. Ð³Ù³ÛÝùÇ µÛáõç»Ç ÙÇçáóÝ»ñÇ ï³ñ»ëÏ½µÇ ³½³ï ÙÝ³óáñ¹Á` (տող 8191 + տող 8194-տող 8193) | D75: =E75+F75 -> 145000 | E75: 0 | F75: =F81 -> 145000
B76: ³Û¹ ÃíáõÙ` | D76: 0
A77: 8191 | B77: 2.3.1. Ð³Ù³ÛÝùÇ µÛáõç»Ç í³ñã³Ï³Ý Ù³ëÇ ÙÇçáóÝ»ñÇ ï³ñ»ëÏ½µÇ ³½³ï ÙÝ³óáñ¹ | C77: 9320 | D77: =E77 -> 145000 | E77: =F84 -> 145000 | F77: X
B78: áñÇó` | D78: 0
A79: 8192 | B79: - »ÝÃ³Ï³ ¿ áõÕÕÙ³Ý Ñ³Ù³ÛÝùÇ µÛáõç»Ç í³ñã³Ï³Ý Ù³ëÇó Ý³Ëáñ¹ ï³ñáõÙ ýÇÝ³Ýë³íáñÙ³Ý »ÝÃ³Ï³, ë³Ï³ÛÝ ãýÇÝ³Ýë³íáñí³Í`³éÏ³ å³ñï³íáñáõÃÛáõÝÝ»ñÇ Ï³ï³ñÙ³ÝÁ | D79: =E79 -> 0 | E79: 0 | F79: X
A80: 8193 | B80: - »ÝÃ³Ï³ ¿ áõÕÕÙ³Ý Ñ³Ù³ÛÝùÇ µÛáõç»Ç ýáÝ¹³ÛÇÝ Ù³ë (ïáÕ 8191 - ïáÕ 8192) | D80: =E80 -> -145000 | E80: =-F81 -> -145000 | F80: X
A81: 8194 | B81: 2.3.2. Ð³Ù³ÛÝùÇ µÛáõç»Ç ýáÝ¹³ÛÇÝ Ù³ëÇ ÙÇçáóÝ»ñÇ ï³ñ»ëÏ½µÇ ÙÝ³óáñ¹ (ïáÕ 8195 + ïáÕ 8196) | C81: 9330 | D81: =F81 -> 145000 | E81: X | F81: =F83+F84 -> 145000
B82: áñÇó`
A83: 8195 | B83: - ³é³Ýó í³ñã³Ï³Ý Ù³ëÇ ÙÇçáóÝ»ñÇ ï³ñ»ëÏ½µÇ ³½³ï ÙÝ³óáñ¹Çó ýáÝ¹³ÛÇÝ Ù³ë Ùáõïù³·ñÙ³Ý »ÝÃ³Ï³ ·áõÙ³ñÇ | D83: =F83 -> 0 | E83: X | F83: 0
A84: 8196 | B84: - í³ñã³Ï³Ý Ù³ëÇ ÙÇçáóÝ»ñÇ ï³ñ»ëÏ½µÇ ³½³ï ÙÝ³óáñ¹Çó ýáÝ¹³ÛÇÝ Ù³ë Ùáõïù³·ñÙ³Ý »ÝÃ³Ï³ ·áõÙ³ñÁ (ïáÕ 8193) | D84: =F84 -> 145000 | E84: X | F84: 145000
A85: 8197 | B85: 2.4. Ð³Ù³ÛÝùÇ µÛáõç»Ç ýáÝ¹³ÛÇÝ Ù³ëÇ Å³Ù³Ý³Ï³íáñ ³½³ï ÙÇçáóÝ»ñÇ ïñ³Ù³¹ñáõÙ í³ñã³Ï³Ý Ù³ë | E85: X | F85: X
A86: 8198 | B86: 2.5. Ð³Ù³ÛÝùÇ µÛáõç»Ç ýáÝ¹³ÛÇÝ Ù³ëÇ Å³Ù³Ý³Ï³íáñ ³½³ï ÙÇçáóÝ»ñÇó í³ñã³Ï³Ý Ù³ë ïñ³Ù³¹ñí³Í ÙÇçáóÝ»ñÇ í»ñ³¹³ñÓ ýáÝ¹³ÛÇÝ Ù³ë | D86: 0
A87: 8199 | B87: 2.6. Ð³Ù³ÛÝùÇ µÛáõç»Ç Ñ³ßíáõÙ ÙÇçáóÝ»ñÇ ÙÝ³óáñ¹Ý»ñÁ Ñ³ßí»ïáõ Å³Ù³Ý³Ï³Ñ³ïí³ÍáõÙ (ïáÕ8010- ïáÕ 8110 - ïáÕ 8161 - ïáÕ 8170- ïáÕ 8190- ïáÕ 8197- ïáÕ 8198 - ïáÕ 8210) | D87: 0 | F87: 0
A88: 8199³ | B88: áñÇó` Í³Ëë»ñÇ ýÇÝ³Ýë³íáñÙ³ÝÁ ãáõÕÕí³Í Ñ³Ù³ÛÝùÇ µÛáõç»Ç ÙÇçáóÝ»ñÇ ï³ñ»ëÏ½µÇ ³½³ï ÙÝ³óáñ¹Ç ·áõÙ³ñÁ | D88: 0 | E88: X
A89: 8200 | B89: ´. ²ðî²øÆÜ ²Ô´ÚàôðÜºð (ïáÕ 8210) | D89: 0 | E89: 0 | F89: 0
B90: ³Û¹ ÃíáõÙ` | D90: 0
A91: 8210 | B91: 1. öàÊ²èàô ØÆæàòÜºð (ïáÕ 8211+ïáÕ 8220) | D91: 0 | E91: 0 | F91: 0
B92: ³Û¹ ÃíáõÙ` | D92: 0
A93: 8211 | B93: 1.1.Արժեթղթեր (բացառությամբ բաժնետոմսերի և կապիտալում այլ մասնակցության) տող 8212+ տող 8213 | D93: 0 | E93: X | F93: 0
B94: áñÇó`
A95: 8212 | B95: - ÃáÕ³ñÏáõÙÇó ¨ ï»Õ³µ³ßËáõÙÇó Ùáõïù»ñ | C95: 9121 | D95: 0 | E95: X
A96: 8213 | B96: - ÑÇÙÝ³Ï³Ý ·áõÙ³ñÇ Ù³ñáõÙ | C96: 6121 | D96: 0 | E96: X
A97: 8220 | B97: 1.2. ì³ñÏ»ñ ¨ ÷áË³ïíáõÃÛáõÝÝ»ñ (ëï³óáõÙ ¨ Ù³ñáõÙ) ïáÕ 8221+ïáÕ 8240 | D97: 0 | E97: 0 | F97: 0
B98: ³Û¹ ÃíáõÙ` | D98: 0
A99: 8221 | B99: 1.2.1. ì³ñÏ»ñ (տող 8222+ տող 8230) | D99: 0 | E99: X | F99: 0
B100: áñÇó`
A101: 8222 | B101: - í³ñÏ»ñÇ ëï³óáõÙ | C101: 9122 | D101: 0 | E101: X
A102: 8230 | B102: - ëï³óí³Í í³ñÏ»ñÇ ÑÇÙÝ³Ï³Ý ·áõÙ³ñÇ Ù³ñáõÙ | C102: 6122 | D102: 0 | E102: X
A103: 8240 | B103: 1.2.2. öáË³ïíáõÃÛáõÝÝ»ñ (տող 8241+ տող 8250) | D103: 0 | E103: 0 | F103: 0
B104: áñÇó` | D104: 0
A105: 8241 | B105: - ÷áË³ïíáõÃÛáõÝÝ»ñÇ ëï³óáõÙ | C105: 9122 | D105: 0
A106: 8250 | B106: - ëï³óí³Í ÷áË³ïíáõÃÛáõÝÝ»ñÇ ·áõÙ³ñÇ Ù³ñáõÙ | C106: 6122 | D106: 0

Sheet subv aparat (hidden)
F1: Ð³í»Éí³Í N 4
F3: úñÇÝ³Ï»ÉÇ Ó¨ N 3
F4: Ð³ëï³ïí»É ¿ ÐÐ ýÇÝ³ÝëÝ»ñÇ ¨ ¿ÏáÝáÙÇÏ³ÛÇ
B5: §Ð ² ê î ² î àô Ø ºØª¦ | G5: Ý³Ë³ñ³ñÇ 23 ÑáõÉÇëÇ 2007 Ãí³Ï³ÝÇ
F6: N 597-Ü Ññ³Ù³Ýáí
A7: Ý³Ë³Ñ³ßÇíÁ 0 երեք միլիոն երկու հարյուր դրամ
A8: ( ÁÝ¹³Ù»ÝÁ ·áõÙ³ñÁ Ãí»ñáí ¨ ï³é»ñáí****)
A9: ___________________________________________________________________ Ñ³½³ñ ¹ñ³Ù ·áõÙ³ñáí:
A11: ______________________________________Է.Արշակյան___________________________________ | G11: Î.î.
A12: (ÐÐ å»ï³Ï³Ý Ï³é³í³ñÙ³Ý Ï³Ù ï»Õ³Ï³Ý ÇÝùÝ³Ï³é³í³ñÙ³Ý Ù³ñÙÝÇ Õ»Ï³í³ñÇ ëïáñ³·ñáõÃÛáõÝÁ ¨ ².Ð.².)
A13: §28 ¦ դեկտեմբերի 2022թ
A14: Ü ² Ê ² Ð ² Þ Æ ì*
A15: ÐÇÙÝ³ñÏÝ»ñÇ ÏáÕÙÇó µÛáõç»ï³ÛÇÝ Ñ³ïÏ³óáõÙÝ»ñÇ Ñ³ßíÇÝ Çñ³Ï³Ý³óíáÕ Í³Ëë»ñÇ (»Éù»ñÇ) ³é³ÝÓÇÝ ï»ë³ÏÝ»ñÇ
A16: ¥Áëï ïÝï»ë³·Çï³Ï³Ý ¹³ë³Ï³ñ·Ù³Ý Ñá¹í³ÍÝ»ñÇ¤
A17: §01¦ §ÐáõÝí³ñÇ ¦ 2023 Ã. -- §30¦ §¹»Ïï»Ùµ»ñÇ ¦ 2023 Ã.
A19: 1. ÐÇÙÝ³ñÏÇ ³Ýí³ÝáõÙÁ î³ßÇñÇ ù³Õ³ù³å»ï³ñ³Ý | F19: 8.***** ´Ûáõç»ï³ÛÇÝ Í³Ëë»ñÇ ·áñÍ³é³Ï³Ý ¹³ë³Ï³ñ·Ù³Ý
A20: 2. öáëï³ÛÇÝ Ñ³ëó»Ý ù. î³ßÇñ | F20: Í³ÍÏ³·Çñ | G20: 01 | H20: 1 | I20: 1
A21: 3. ÐÇÙÝ³ñÏÇ ï»Õ³µ³ßËÙ³Ý Ù³ñ½Ç ¨ Ñ³Ù³ÛÝùÇ Ïá¹Á
A22: Áëï µÛáõç»ï³ÛÇÝ Í³Ëë»ñÇ ï³ñ³Íù³ÛÇÝ ¹³ë³Ï³ñ·Ù³Ý | F22: 9. Ìñ³·ñÇ ³Ýí³ÝáõÙÁ _ սուբվեն ծրագիր
A23: 4. ** ä»ï³Ï³Ý Ï³é³í³ñÙ³Ý (ï»Õ³Ï³Ý ÇÝùÝ³Ï³é³í³ñÙ³Ý) Ù³ñÙÝÇ ³Ýí³ÝáõÙÁ | F23: 10. Ìñ³·ñÇ Ïá¹Á 51
A24: _______________________________________________________________________________________ | F24: 11. *** ä»ï³Ï³Ý Ï³é³í³ñÙ³Ý (ï»Õ³Ï³Ý .ÇÝù ÇÝùÝ³Ï³é³í³ñÙ³Ý)Ù³ñÙÇÝÝ»ñÇ ·»ñ³ï»ëã³Ï³Ý Ïá¹Á
A25: 5. ÐÇÙÝ³ñÏÁ ëå³ë³ñÏáÕ ï»Õ³Ï³Ý ·³ÝÓ³å»ï³Ï³Ý µ³ÅÝÇ (î¶´) ³Ýí³ÝáõÙÁ _Տաշիրի
A26: 6. ÐÇÙÝ³ñÏÇª ï»Õ³Ï³Ý ·³ÝÓ³å»ï³Ï³Ý µ³ÅÝáõÙ (î¶´) Ñ³ßí³éÙ³Ý Ñ³Ù³ñÁ
A27: 7. Ì³Ëë»ñÇ ýÇÝ³Ýë³íáñÙ³Ý ³ÕµÛáõñÇ Ïá¹Á` | G27: 12. â³÷Ç ÙÇ³íáñÁª Ñ³½³ñ ¹ñ³Ù
A28: (ÐÐ å»ï³Ï³Ý µÛáõç»ª 1, Ñ³Ù³ÛÝùÇ µÛáõç»ª 2) | H28: 900272000358
A30: îáÕÇ NN | B30: ´Ûáõç»ï³ÛÇÝ Í³Ëë»ñÇ ïÝï»ë³·Çï³Ï³Ý ¹³ë³Ï³ñ·Ù³Ý ï³ññ»ñ | D30: ÜáõÛÝ Å³Ù³Ý³Ï³Ñ³ïí³ÍÇ Ñ³Ù³ñ Ý³ËÏÇÝáõÙ Ñ³ëï³ïí³Íª ·áñÍáÕ | F30: êáõÛÝ Ý³Ë³Ñ³ßíáí Ñ³ëï³ïíáÕ óáõó³ÝÇßÝ»ñÁ | G30: ³Û¹ ÃíáõÙª Áëï »é³ÙëÛ³ÏÝ»ñÇ (»é³ÙëÛ³ÏÇ ³ÙÇëÝ»ñÇ)³×áÕ³Ï³Ý
B31: ³Ýí³ÝáõÙÝ»ñÁ | C31: NN | D31: Ý³Ë³Ñ³ßíÇ óáõó³ÝÇßÝ»ñÁ | E31: Ý³Ë³Ñ³ßíáõÙ Ï³ï³ñí³Í ÷á÷áËáõÃÛáõÝ-Ý»ñÁ (³í»É³óáõÙÁª /+/, å³Ï³ë»óáõÙÁª/-/ | G31: I | H31: II | I31: III | J31: IV
A32: ² | B32: ´ | C32: ¶ | D32: 1 | E32: 2 | F32: 3 | G32: 4 | H32: 5 | I32: 6 | J32: 7
A33: 1100000 | B33: ². ÀÜÂ²òÆÎ Ì²Êêºðª ÀÜ¸²ØºÜÀ, ³Û¹ ÃíáõÙ` | C33: x | D33: =D68 -> 0 | E33: 0 | F33: 0 | G33: 0 | H33: 0 | I33: 0 | J33: 0
A34: 1110000 | B34: 1.äºî²Î²Ü, îºÔ²Î²Ü ÆÜøÜ²Î²è²ì²ðØ²Ü Ø²ðØÆÜÜºðÆ, ¸ð²Üò ºÜÂ²Î² ´Úàôæºî²ÚÆÜ ÐÆØÜ²ðÎÜºðÆ ²ÞÊ²îàÔÜºðÆ ²ÞÊ²î²ì²ðÒÀª ÀÜ¸²ØºÜÀ, ³Û¹ ÃíáõÙª | C34: x | D34: 0 | F34: 0 | G34: 0 | H34: 0 | I34: 0 | J34: 0
A35: 1110000 | B35: 1,1 ²ßË³ï³ÝùÇ í³ñÓ³ïñáõÃÛáõÝ | C35: x | D35: 0 | F35: 0 | G35: 0 | H35: 0 | I35: 0 | J35: 0
A36: 1111000 | B36: -²ßË³ïáÕÝ»ñÇ ³ßË³ï³í³ñÓ»ñ ¨ Ñ³í»É³í×³ñÝ»ñ | C36: 411100
A37: 1112000 | B37: - ä³ñ·¨³ïñáõÙÝ»ñ, ¹ñ³Ù³Ï³Ý Ëñ³ËáõëáõÙÝ»ñ ¨ Ñ³ïáõÏ í×³ñÝ»ñ | C37: 411200
A38: 1113000 | B38: -ø³Õ³ù³óÇ³Ï³Ý, ¹³ï³Ï³Ý ¨ å»ï³Ï³Ý Í³é³ÛáÕÝ»ñÇ å³ñ·¨³ïñáõÙ | C38: 411300
A39: 1114000 | B39: -ÐÐ ýÇÝ³ÝëÝ»ñÇ ¨ ¿ÏáÝáÙÇÏ³ÛÇ Ý³Ë³ñ³ñáõÃÛ³Ý, Ñ³ñÏ³ÛÇÝ ¨ Ù³ùë³ÛÇÝ Ù³ñÙÇÝÝ»ñÇ ³ßË³ïáÕÝ»ñÇ å³ñ·¨³ïñáõÙ | C39: 411400
A40: 1115000 | B40: -²ÛÉ í³ñÓ³ïñáõÃÛáõÝÝ»ñ | C40: 411500
A41: 1116000 | B41: -´Ý»Õ»Ý ³ßË³ï³í³ñÓ»ñ ¨ Ñ³í»É³í×³ñÝ»ñ | C41: 412100
A42: 1117000 | B42: -ì×³ñÝ»ñ êáóÇ³É³Ï³Ý ³å³Ñáí³·ñáõÃÛ³Ý å»ï³Ï³Ý ÑÇÙÝ³¹ñ³ÙÇÝ | C42: 413100
A43: 1120000 | B43: 2 Ì³é³ÛáõÃÛáõÝÝ»ñÇ ¨ ³åñ³ÝùÝ»ñÇ Ó»éù µ»ñáõÙ | C43: x | D43: 0 | F43: 0 | G43: 0 | H43: 0 | I43: 0 | J43: 0
A44: 1121000 | B44: 2.1 Þ³ñáõÝ³Ï³Ï³Ý Í³Ëë»ñ | D44: 0 | F44: 0 | G44: 0 | H44: 0 | I44: 0 | J44: 0
A45: 1121100 | B45: -·áñÍ³éÝ³Ï³Ý ¨ µ³ÝÏ³ÛÇÝ Í³é³ÛáõÃÛáõÝÝ»ñÇ Í³Ëë»ñ | C45: 421100 | D45: 0
A46: 1121200 | B46: -¿Ý»ñ·»ïÇÏ Í³é³ÛáõÃÛáõÝÝ»ñ | C46: 421200 | D46: 0
A47: 1121300 | B47: -ÎáÙáõÝ³É Í³é³ÛáõÃÛáõÝÝ»ñ | C47: 421300 | D47: 0
A48: 1121400 | B48: -Î³åÇ Í³é³ÛáõÃÛáõÝÝ»ñ | C48: 421400 | D48: 0
A49: 1121500 | B49: -²å³Ñáí³·ñ³Ï³Ý Í³Ëë»ñ | C49: 421500 | D49: 0
A50: 1121600 | B50: -¶áõÛùÇ ¨ ë³ñù³íáñáõÙÝ»ñÇ í³ñÓ³Ï³ÉáõÃÛáõÝ | C50: 421600 | D50: 0
A51: 1121700 | B51: -²ñï³·»ñ³ï»ëã³Ï³Ý Í³Ëë»ñ | C51: 421700 | D51: 0
A52: 1122000 | B52: 2.2 ¶áñÍáõÕáõÙÝ»ñÇ ¨ ßñç³·³ÛáõÃÛ³Ý Í³Ëë»ñ | C52: x | D52: 0 | F52: 0 | G52: 0 | H52: 0 | I52: 0 | J52: 0
A53: 1122100 | B53: -Ü»ñùÇÝ ·áñÍáõÕáõÙÝ»ñ | C53: 422100
A54: 1122200 | B54: -²ñï³ë³ÑÙ³ÝÛ³Ý ·áñÍáõÕáõÙÝ»ñÇ ·Íáí Í³Ëë»ñ | C54: 422200
A55: 1122300 | B55: -²ÛÉ ïñ³Ýëåáñï³ÛÇÝ Í³Ëë»ñ | C55: 422900
A56: 1123000 | B56: 2.3 ä³ÛÙ³Ý³·ñ³ÛÇÝ Í³é³ÛáõÃÛáõÝÝ»ñÇ Ó»éù µ»ñáõÙ | C56: x | D56: 0 | F56: 0 | G56: 0 | H56: 0 | I56: 0 | J56: 0
A57: 1123100 | B57: -ì³ñã³Ï³Ý Í³é³ÛáõÃÛáõÝÝ»ñ | C57: 423100 | D57: 0
A58: 1123200 | B58: -Ð³Ù³Ï³ñ·ã³ÛÇÝ Í³é³ÛáõÃÛáõÝÝ»ñ | C58: 423200 | D58: 0
A59: 1123300 | B59: -²ßË³ï³Ï³½ÙÇ Ù³ëÝ³·Çï³Ï³Ý ½³ñ·³óÙ³Ý Í³é³ÛáõÃÛáõÝÝ»ñ | C59: 423300 | D59: 0
A60: 1123400 | B60: -î»Õ³Ï³ïí³Ï³Ý Í³é³ÛáõÃÛáõÝÝ»ñ | C60: 423400 | D60: 0
A61: 1123500 | B61: -Î³é³í³ñã³Ï³Ý Í³é³ÛáõÃÛáõÝÝ»ñ | C61: 423500 | D61: 0
A62: 1123600 | B62: - Î»Ýó³Õ³ÛÇÝ ¨ Ñ³Ýñ³ÛÇÝ ëÝÝ¹Ç Í³é³ÛáõÃÛáõÝÝ»ñ | C62: 423600 | D62: 0
A63: 1123700 | B63: -Ü»ñÏ³Û³óáõóã³Ï³Ý Í³Ëë»ñ | C63: 423700 | D63: 0
A64: 1123800 | B64: -ÀÝ¹Ñ³Ýáõñ µÝáõÛÃÇ ³ÛÉ Í³é³ÛáõÃÛáõÝÝ»ñ | C64: 423900 | D64: 0
A65: 1124000 | B65: 2.4 ²ÛÉ Ù³ëÝ³·Çï³Ï³Ý Í³é³ÛáõÃÛáõÝÝ»ñÇ Ó»éù µ»ñáõÙ | C65: x | D65: 0 | F65: 0 | G65: 0 | H65: 0 | I65: 0 | J65: 0
A66: 1124100 | B66: -Ø³ëÝ³·Çï³Ï³Ý Í³é³ÛáõÃÛáõÝÝ»ñ | C66: 424100 | D66: 0
A67: 1125000 | B67: 2.5 ÀÝÃ³óÇÏ Ýáñá·áõÙ ¨ å³Ñå³ÝáõÙ (Í³é³ÛáõÃÛáõÝÝ»ñ ¨ ÝÛáõÃ»ñ) | C67: x | D67: 0 | F67: 0 | G67: 0 | H67: 0 | I67: 0 | J67: 0
A68: 1125100 | B68: -Þ»Ýù»ñÇ ¨ Ï³éáõÛóÝ»ñÇ ÁÝÃ³óÇÏ Ýáñá·áõÙ ¨ å³Ñå³ÝáõÙ | C68: 425100 | D68: 0 | E68: 0 | F68: =D68+E68 -> 0 | G68: 0 | H68: 0 | I68: 0 | J68: =F68 -> 0
A69: 1125200 | B69: -Ø»ù»Ý³Ý»ñÇ ¨ ë³ñù³íáñáõÙÝ»ñÇ ÁÝÃ³óÇÏ Ýáñá·áõÙ ¨ å³Ñå³ÝáõÙ | C69: 425200 | D69: 0
A70: 1126000 | B70: 2.6 ÜÛáõÃ»ñ | C70: x | D70: 0 | F70: 0 | G70: 0 | H70: 0 | I70: 0 | J70: 0
A71: 1126100 | B71: -¶ñ³ë»ÝÛ³Ï³ÛÇÝ ÝÛáõÃ»ñ ¨ Ñ³·áõëï | C71: 426100 | D71: 0
A72: 1126200 | B72: -¶ÛáõÕ³ïÝï»ë³Ï³Ý ³åñ³ÝùÝ»ñ | C72: 426200 | D72: 0
A73: 1126300 | B73: -ì»ñ³å³ïñ³ëïÙ³Ý ¨ áõëáõóÙ³Ý ÝÛáõÃ»ñ | C73: 426300 | D73: 0
A74: 1126400 | B74: -îñ³Ýëåáñï³ÛÇÝ ÝÛáõÃ»ñ | C74: 426400 | D74: 0
A75: 1126500 | B75: -Þñç³Ï³ ÙÇç³í³ÛñÇ å³ßïå³ÝáõÃÛ³Ý ¨ ·Çï³Ï³Ý ÝÛáõÃ»ñ | C75: 426500 | D75: 0
A76: 1126600 | B76: -²éáÕç³å³Ñ³Ï³Ý ¨ É³µáñ³ïáñ ÝÛáõÃ»ñ | C76: 426600 | D76: 0
A77: 1126700 | B77: -Î»Ýó³Õ³ÛÇÝ ¨ Ñ³Ýñ³ÛÇÝ ëÝÝ¹Ç ÝÛáõÃ»ñ | C77: 426700 | D77: 0
A78: 1126800 | B78: -Ð³ïáõÏ Ýå³ï³Ï³ÛÇÝ ³ÛÉ ÝÛáõÃ»ñ | C78: 426900 | D78: 0
A79: 1130000 | B79: 3 îáÏáë³í×³ñÝ»ñ | C79: x | D79: 0 | F79: 0 | G79: 0 | H79: 0 | I79: 0 | J79: 0
A80: 1130100 | B80: -Ü»ñùÇÝ ³ñÅ»ÃÕÃ»ñÇ ïáÏáë³í×³ñÝ»ñ | C80: 441100
A81: 1130200 | B81: -Ü»ñùÇÝ í³ñÏ»ñÇ ïáÏáë³í×³ñÝ»ñ | C81: 441200
A82: 1130300 | B82: -²ñï³ùÇÝ ³ñÅ»ÃÕÃ»ñÇ ·Íáí ïáÏáë³í×³ñÝ»ñ | C82: 442100
A83: 1130400 | B83: -²ñï³ùÇÝ í³ñÏ»ñÇ ·Íáí ïáÏáë³í×³ñÝ»ñ | C83: 442200
A84: 1131000 | B84: öáË³éáõÃÛáõÝÝ»ñÇ Ñ»ï Ï³åí³Í í×³ñÝ»ñ | C84: x
A85: 1131100 | B85: -öáË³Ý³ÏÙ³Ý Ïáõñë»ñÇ µ³ó³ë³Ï³Ý ï³ñµ»ñáõÃÛáõÝ | C85: 443100
A86: 1131200 | B86: -îáõÛÅ»ñ | C86: 443200
A87: 1131300 | B87: -öáË³éáõÃÛáõÝÝ»ñÇ ·Íáí ïáõñù»ñ | C87: 443300
A88: 1140000 | B88: 4. êáõµëÇ¹Ç³Ý»ñ | C88: x | D88: 0 | F88: 0 | G88: 0 | H88: 0 | I88: 0 | J88: 0
A89: 1141000 | B89: -êáõµëÇ¹Ç³Ý»ñ áã-ýÇÝ³Ýë³Ï³Ý å»ï³Ï³Ý Ï³½Ù³Ï»ñåáõÃÛáõÝÝ»ñÇÝ | C89: 451100
A90: 1142000 | B90: -êáõµëÇ¹Ç³Ý»ñ ýÇÝ³Ýë³Ï³Ý å»ï³Ï³Ý Ï³½Ù³Ï»ñåáõÃÛáõÝÝ»ñÇÝ | C90: 451200
A91: 1143000 | B91: -êáõµëÇ¹Ç³Ý»ñ áã å»ï³Ï³Ý áã ýÇÝ³Ýë³Ï³Ý Ï³½Ù³Ï»ñåáõÃÛáõÝÝ»ñÇÝ | C91: 452100
A92: 1144000 | B92: -êáõµëÇ¹Ç³Ý»ñ áã å»ï³Ï³Ý ýÇÝ³Ýë³Ï³Ý Ï³½Ù³Ï»ñåáõÃÛáõÝÝ»ñÇÝ | C92: 452200
A93: 1150000 | B93: 5.¸ñ³Ù³ßÝáñÑÝ»ñ | C93: x | D93: 0 | F93: 0 | G93: 0 | H93: 0 | I93: 0 | J93: 0
A94: 1151000 | B94: -ÀÝÃ³óÇÏ ¹ñ³Ù³ßÝáñÑÝ»ñ ûï³ñ»ñÏñÛ³ Ï³é³í³ñáõÃÛáõÝÝ»ñÇÝ | C94: 461100
A95: 1152000 | B95: -Î³åÇï³É ¹ñ³Ù³ßÝáñÑÝ»ñ ûï³ñ»ñÏñÛ³ Ï³é³í³ñáõÃÛáõÝÝ»ñÇÝ | C95: 461200
A96: 1153000 | B96: -ÀÝÃ³óÇÏ ¹ñ³Ù³ßÝáñÑÝ»ñ ÙÇç³½·³ÛÇÝ Ï³½Ù³Ï»ñåáõÃÛáõÝÝ»ñÇÝ | C96: 462100
A97: 1154000 | B97: -Î³åÇï³É ¹ñ³Ù³ßÝáñÑÝ»ñ ÙÇç³½·³ÛÇÝ Ï³½Ù³Ï»ñåáõÃÛáõÝÝ»ñÇÝ | C97: 462200
A98: 1155000 | B98: -ÀÝÃ³óÇÏ ¹ñ³Ù³ßÝáñÑÝ»ñ å»ï³Ï³Ý Ñ³ïí³ÍÇ ³ÛÉ Ù³Ï³ñ¹³ÏÝ»ñÇÝ | C98: 463100
A99: 1156000 | B99: -Î³åÇï³É ¹ñ³Ù³ßÝáñÑÝ»ñ å»ï³Ï³Ý Ñ³ïí³ÍÇ ³ÛÉ Ù³Ï³ñ¹³ÏÝ»ñÇÝ | C99: 463200
A100: 1160000 | B100: 6. êàòÆ²È²Î²Ü Üä²êîÜºð | C100: x | D100: 0 | F100: 0 | G100: 0 | H100: 0 | I100: 0 | J100: 0
A101: 1161000 | B101: 6.1 êàòÆ²È²Î²Ü ²ä²ÐàìàôÂÚ²Ü Üä²êîÜºð (ä²ðî²¸Æð êàòÆ²È²Î²Ü ²ä²Ðàì²¶ðàôÂÚ²Ü Î²¼Ø²ÎºðäàôÂÚàôÜÜºð) | C101: x | D101: 0 | F101: 0 | G101: 0 | H101: 0 | I101: 0 | J101: 0
A102: 1161100 | B102: -îÝ³ÛÇÝ ïÝï»ëáõÃÛáõÝÝ»ñÇÝ ¹ñ³Ùáí í×³ñíáÕ ëáóÇ³É³Ï³Ý ³å³Ñáí³·ñáõÃÛ³Ý í×³ñÝ»ñ | C102: 471100
A103: 1161200 | B103: -êáóÇ³É³Ï³Ý ³å³ÑáíáõÃÛ³Ý µÝ»Õ»Ý Ýå³ëïÝ»ñ Í³é³ÛáõÃÛáõÝÝ»ñ Ù³ïáõóáÕÝ»ñÇÝ | C103: 471200
A104: 1162000 | B104: 6.2 êàòÆ²È²Î²Ü ú¶ÜàôÂÚ²Ü ¸ð²Ø²Î²Ü ²ðî²Ð²ÚîàôÂÚ²Ø´ Üä²êîÜºð (´ÚàôæºÆò) | C104: x | D104: 0 | F104: 0 | G104: 0 | H104: 0 | I104: 0 | J104: 0
A105: 1162100 | B105: -ÐÇí³Ý¹áõÃÛ³Ý ¨ Ñ³ßÙ³Ý¹³ÙáõÃÛ³Ý Ýå³ëïÝ»ñ µÛáõç»Çó | C105: 472100
A106: 1162200 | B106: -Ø³ÛñáõÃÛ³Ý Ýå³ëïÝ»ñ µÛáõç»Çó | C106: 472200
A107: 1162300 | B107: -ºñ»Ë³Ý»ñÇ Ï³Ù ÁÝï³Ý»Ï³Ý Ýå³ëïÝ»ñ µÛáõç»Çó | C107: 472300
A108: 1162400 | B108: -¶áñÍ³½ñÏáõÃÛ³Ý Ýå³ëïÝ»ñ µÛáõç»Çó | C108: 472400
A109: 1162500 | B109: -Î»Ýë³Ãáß³ÏÇ ³ÝóÝ»Éáõ Ñ»ï Ï³åí³Í ¨ ï³ñÇù³ÛÇÝ Ýå³ëïÝ»ñ µÛáõç»Çó | C109: 472500
A110: 1162600 | B110: -ÐáõÕ³ñÏ³íáñáõÃÛ³Ý Ýå³ëïÝ»ñ µÛáõç»Çó | C110: 472600
A111: 1162700 | B111: -ÎñÃ³Ï³Ý, Ùß³ÏáõÃ³ÛÇÝ ¨ ëåáñï³ÛÇÝ Ýå³ëïÝ»ñ µÛáõç»Çó | C111: 472700
A112: 1162800 | B112: -´Ý³Ï³ñ³Ý³ÛÇÝ Ýå³ëïÝ»ñ µÛáõç»Çó | C112: 472800
A113: 1162900 | B113: -²ÛÉ Ýå³ëïÝ»ñ µÛáõç»Çó | C113: 472900
A114: 1170000 | B114: 7. ²ÚÈ Ì²Êêºð | C114: x | D114: 0 | F114: 0 | G114: 0 | H114: 0 | I114: 0 | J114: 0
A115: 1171000 | B115: 7.1 ÜìÆð²îìàôÂÚàôÜÜºð àâ-Î²è²ì²ðâ²Î²Ü (Ð²ê²ð²Î²Î²Ü) Î²¼Ø²ÎºðäàôÂÚàôÜÜºðÆÜ | C115: x | D115: 0 | F115: 0 | G115: 0 | H115: 0 | I115: 0 | J115: 0
A116: 1171100 | B116: -îÝ³ÛÇÝ ïÝï»ëáõÃÛáõÝÝ»ñÇÝ Í³é³ÛáõÃÛáõÝÝ»ñ Ù³ïáõóáÕ` ß³ÑáõÛÃ ãÑ»ï³åÝ¹áÕ Ï³½Ù³Ï»ñåáõÃÛáõÝÝ»ñÇÝ ÝíÇñ³ïíáõÃÛáõÝÝ»ñ | C116: 481100 | D116: 0
A117: 1171200 | B117: -ÜíÇñ³ïíáõÃÛáõÝÝ»ñ ³ÛÉ ß³ÑáõÛÃ ãÑ»ï³åÝ¹áÕ Ï³½Ù³Ï»ñåáõÃÛáõÝÝ»ñÇÝ | C117: 481900 | D117: 0
A118: 1172000 | B118: 7.2 Ð²ðÎºð, ä²ðî²¸Æð ìÖ²ðÜºð ºì îàôÚÄºð, àðàÜø Î²è²ì²ðØ²Ü î²ð´ºð Ø²Î²ð¸²ÎÜºðÆ ÎàÔØÆò ÎÆð²èìàôØ ºÜ ØÆØÚ²Üò ÜÎ²îØ²Ø´ | C118: x | D118: 0 | F118: 0 | G118: 0 | H118: 0 | I118: 0 | J118: 0
A119: 1172100 | B119: -²ßË³ï³í³ñÓÇ ýáÝ¹ | C119: 482100 | D119: 0
A120: 1172200 | B120: -²ÛÉ Ñ³ñÏ»ñ | C120: 482200 | D120: 0
A121: 1172300 | B121: -ä³ñï³¹Çñ í×³ñÝ»ñ | C121: 482300 | D121: 0
A122: 1172400 | B122: -ä»ï³Ï³Ý Ñ³ïí³ÍÇ ï³ñµ»ñ Ù³Ï³ñ¹³ÏÝ»ñÇ ÏáÕÙÇó ÙÇÙÛ³Ýó ÝÏ³ïÙ³Ùµ ÏÇñ³éíáÕ ïáõÛÅ»ñ | C122: 482400 | D122: 0
A123: 1173000 | B123: 7.3 ¸²î²ð²ÜÜºðÆ ÎàÔØÆò ÜÞ²Ü²Îì²Ì îàôÚÄºð ºì îàô¶²ÜøÜºð | C123: x | D123: 0 | F123: 0 | G123: 0 | H123: 0 | I123: 0 | J123: 0
A124: 1173100 | B124: -¸³ï³ñ³ÝÝ»ñÇ ÏáÕÙÇó Ýß³Ý³Ïí³Í ïáõÛÅ»ñ ¨ ïáõ·³ÝùÝ»ñ | C124: 483100 | D124: 0
A125: 1174000 | B125: 7.4 ´Ü²Î²Ü ²ÔºîÜºðÆò Î²Ø ²ÚÈ ´Ü²Î²Ü ä²îÖ²èÜºðàì ²è²æ²ò²Ì ìÜ²êÜºðÆ Î²Ø ìÜ²êì²ÌøÜºðÆ ìºð²Î²Ü¶ÜàôØ | C125: x | D125: 0 | F125: 0 | G125: 0 | H125: 0 | I125: 0 | J125: 0
A126: 1174100 | B126: -´Ý³Ï³Ý ³Õ»ïÝ»ñÇó ³é³ç³ó³Í íÝ³ëí³ÍùÝ»ñÇ Ï³Ù íÝ³ëÝ»ñÇ í»ñ³Ï³Ý·ÝáõÙ | C126: 484100 | D126: 0
A127: 1174200 | B127: -²ÛÉ µÝ³Ï³Ý å³ï×³éÝ»ñáí ëï³ó³Í íÝ³ëí³ÍùÝ»ñÇ í»ñ³Ï³Ý·ÝáõÙ | C127: 484200 | D127: 0
A128: 1175000 | B128: 7.5 Î²è²ì²ðØ²Ü Ø²ðØÆÜÜºðÆ ¶àðÌàôÜºàôÂÚ²Ü Ðºîºì²Üøàì ²è²æ²ò²Ì ìÜ²êÜºðÆ Î²Ø ìÜ²êì²ÌøÜºðÆ ìºð²Î²Ü¶ÜàôØ | C128: x | D128: 0 | F128: 0 | G128: 0 | H128: 0 | I128: 0 | J128: 0
A129: 1175100 | B129: -Î³é³í³ñÙ³Ý Ù³ñÙÇÝÝ»ñÇ ·áñÍáõÝ»áõÃÛ³Ý Ñ»ï¨³Ýùáí ³é³ç³ó³Í íÝ³ëí³ÍùÝ»ñÇ Ï³Ù íÝ³ëÝ»ñÇ í»ñ³Ï³Ý·ÝáõÙ | C129: 485100 | D129: 0
A130: 1176000 | B130: 7.6 ²ÚÈ Ì²Êêºð | C130: x | D130: 0 | F130: 0 | G130: 0 | H130: 0 | I130: 0 | J130: 0
A131: 1176100 | B131: -²ÛÉ Í³Ëë»ñ | C131: 486100 | D131: 0
A132: 1177000 | B132: 7.7 ä²Ðàôêî²ÚÆÜ ØÆæàòÜºð | C132: x | D132: 0 | F132: 0 | G132: 0 | H132: 0 | I132: 0 | J132: 0
A133: 1177100 | B133: -ä³Ñáõëï³ÛÇÝ ÙÇçáóÝ»ñ | C133: 489100 | D133: 0
A134: ---- | B134: -------
A135: 1200000 | B135: Բ, àâ-üÆÜ²Üê²Î²Ü ²ÎîÆìÜºðÆ ¶Ìàì Ì²Êêºð | C135: x | D135: =D138 -> 0 | E135: =E141 -> 0 | F135: =F138 -> 0 | G135: =G138 -> 0 | H135: =H138 -> 0 | I135: =I138 -> 0 | J135: =J138 -> 0
B136: ³Û¹ ÃíáõÙ`
A137: ---- | B137: -------
A138: 1210000 | B138: 1.ÐÆØÜ²Î²Ü ØÆæàòÜºð | C138: x | D138: =D140+D141+D142 -> 0 | F138: =F140+F141+F142 -> 0 | G138: =G140+G141+G142 -> 0 | H138: =H140+H141+H142 -> 0 | I138: =I140+I141+I142 -> 0 | J138: =F138 -> 0
A139: 1211000 | B139: -Þ»Ýù»ñÇ ¨ ßÇÝáõÃÛáõÝÝ»ñÇ Ó»éù µ»ñáõÙ | C139: 511100 | D139: 0
A140: 1212000 | B140: -Þ»Ýù»ñÇ ¨ ßÇÝáõÃÛáõÝÝ»ñÇ Ï³éáõóáõÙ | C140: 511200 | D140: 0 | E140: 0 | F140: =D140+E140 -> 0 | G140: 0 | H140: 0 | I140: 0 | J140: =F140 -> 0
A141: 1213000 | B141: -Þ»Ýù»ñÇ ¨ ßÇÝáõÃÛáõÝÝ»ñÇ Ï³åÇï³É í»ñ³Ýáñá·áõÙ | C141: 511300 | D141: 0 | E141: 0 | F141: =D141+E141 -> 0 | G141: 0 | H141: 0 | I141: 0 | J141: =F141 -> 0
A142: 1214000 | B142: -îñ³Ýëåáñï³ÛÇÝ ë³ñù³íáñáõÙÝ»ñ | C142: 512100 | D142: 0 | F142: =D142+E142 -> 0 | G142: 0 | H142: 0 | I142: 0 | J142: =F142 -> 0
A143: 1215000 | B143: -ì³ñã³Ï³Ý ë³ñù³íáñáõÙÝ»ñ | C143: 512200 | D143: 0
A144: 1216000 | B144: -²ÛÉ Ù»ù»Ý³Ý»ñ ¨ ë³ñù³íáñáõÙÝ»ñ | C144: 512900 | D144: 0
A145: 1217000 | B145: -²×»óíáÕ ³ÏïÇíÝ»ñ | C145: 513100 | D145: 0
A146: 1218000 | B146: -àã-ÝÛáõÃ³Ï³Ý ÑÇÙÝ³Ï³Ý ÙÇçáóÝ»ñ | C146: 513200 | D146: 0
A147: 1220000 | B147: 2.ä²Þ²ðÜºð | C147: x | D147: 0 | F147: 0 | H147: 0 | I147: 0 | J147: 0
A148: 1221000 | B148: -è³½Ù³í³ñ³Ï³Ý å³ß³ñÝ»ñ | C148: 521100 | D148: 0
A149: 1222000 | B149: -ÜÛáõÃ»ñ ¨ å³ñ³·³Ý»ñ | C149: 522100 | D149: 0
A150: 1223000 | B150: -ì»ñ³í³×³éùÇ Ñ³Ù³ñ Ý³Ë³ï»ëí³Í ³åñ³ÝùÝ»ñ | C150: 523100 | D150: 0
A151: 1224000 | B151: -êå³éÙ³Ý Ýå³ï³Ïáí å³ÑíáÕ å³ß³ñÝ»ñ | C151: 524100 | D151: 0
A152: 1230000 | B152: 3.´²ðÒð²ðÄºø ²ÎîÆìÜºð | C152: x | D152: 0 | F152: 0 | G152: 0 | H152: 0 | I152: 0 | J152: 0
A153: 1231000 | B153: -´³ñÓñ³ñÅ»ù ³ÏïÇíÝ»ñ | C153: 531100 | D153: 0
A154: 1240000 | B154: 4.àâ ²ðî²¸ð²Î²Ü ԱԿՏԻՎՆԵՐ | C154: x | D154: 0 | F154: 0 | G154: 0 | H154: 0 | I154: 0 | J154: 0
A155: 1241000 | B155: -ÐáÕ | C155: 541100 | D155: 0
A156: 1242000 | B156: -ÀÝ¹»ñù³ÛÇÝ ³ÏïÇíÝ»ñ | C156: 542100 | D156: 0
A157: 1243000 | B157: -²ÛÉ µÝ³Ï³Ý Í³·áõÙ áõÝ»óáÕ ³ÏïÇíÝ»ñ | C157: 543100 | D157: 0
A158: 1244000 | B158: -àã ÝÛáõÃ³Ï³Ý áã ³ñï³¹ñ³Ï³Ý ³ÏïÇíÝ»ñ | C158: 544100 | D158: 0
A159: 1000000 | B159: ԸՆԴԱՄԵՆԸ ºÈøºð` (ïáÕ 1100000+ïáÕ1200000) | C159: x | D159: =D33+D135 -> 0 | E159: 0 | F159: 0 | G159: 0 | H159: 0 | I159: 0 | J159: =F159 -> 0
A162: § ¦ § դեկտ»Ùµ»ñ ¦ 2022 Ã.
A164: ÐÆØÜ²ðÎÆ ÔºÎ²ì²ðª _______________ _________________ | G164: Է.Արշակյան
E165: (ëïáñ³·ñáõÃÛáõÝ) | G165: (².Ð.².)
A166: Î.î.
A167: üÆÜ²Üê²Î²Ü Ì²è²ÚàôÂÚ²Ü äºîª _______________ _________________ | G167: Ն. Մուրադյան
B168: (¶ÈÊ²ìàð Ð²Þì²ä²Ð) | E168: (ëïáñ³·ñáõÃÛáõÝ) | G168: (².Ð.².)

Sheet aparat (hidden)
I1: Ð³í»Éí³Í N 2
H3: úñÇÝ³Ï»ÉÇ Ó¨ N1
G4: h³ëï³ïí»É ¿ ÐÐ ýÇÝ³ÝëÝ»ñÇ ¨ ¿ÏáÝáÙÇÏ³ÛÇ
H5: Ý³Ë³ñ³ñÇ 23 ÑáõÉÇëÇ 2007 Ãí³Ï³ÝÇ
B6: §Ð ² ê î ² î àô Ø ºØª¦ | G6: N 597-Ü Ññ³Ù³Ýáí
A8: Ý³Ë³Ñ³ßÇíÁª 218932,0 երկու հարյուր տասնութ միլիոն ինն հարյուր երեսուներկու հազ դրամ
A9: ( ÁÝ¹³Ù»ÝÁ ·áõÙ³ñÁ Ãí»ñáí ¨ ï³é»ñáí****)
A10: _______________________________________________________________________________________________________________ Ñ³½³ñ ¹ñ³Ù ·áõÙ³ñáí:
A12: __________________________________________________________________________________________ | B12: Է.Արշակյան | H12: Î.î.
A13: (ÐÐ å»ï³Ï³Ý Ï³é³í³ñÙ³Ý Ù³ñÙÝÇ Õ»Ï³í³ñÇ /Ñ³Ù³ÛÝùÇ Õ»Ï³í³ñÇ/ ëïáñ³·ñáõÃÛáõÝÁ ¨ ².Ð.².)
A14: §28 ¦ դեկտեմբերի 2022թ
B15: Ü²Ê²Ð²ÞÆì*
B16: ´ Ú àô æ º î ² Ú Æ Ü Ð Æ Ø Ü ² ð Î Æ ä ² Ð ä ² Ü Ø ² Ü Ì ² Ê ê º ð Æ
A17: §01¦ §ÐáõÝí³ñÇ ¦ 2013 Ã.-- §31¦§դեկտեմբերի ¦ 2013 Ã §դեկտեմբերի ¦ 2013 Ã. Å³Ù³Ý³Ï³Ñ³ïí³ÍÇ Ñ³Ù³ñ | B17: §01¦ §ÐáõÝí³ñÇ ¦ 2023 Ã. -- §30¦ §¹»Ïï»Ùµ»ñÇ ¦ 2023 Ã.
A19: 1. ÐÇÙÝ³ñÏÇ ³Ýí³ÝáõÙÁ î³ßÇñÇ ù³Õ³ù³պ»ï³ñ³Ý | G19: 8. * ´Ûáõç»ï³ÛÇÝ Í³Ëë»ñÇ ·áñÍ³é³Ï³Ý ¹³ë³Ï³ñ·.
G20: Í³ÍÏ³·Çñ | H20: 01 | I20: 1 | J20: 1
A21: 3. ÐÇÙÝ³ñÏÇ ï»Õ³µ³ßËÙ³Ý Ù³ñ½Ç ¨ Ñ³Ù³ÛÝùÇ Ïá¹Ý Áëï | G21: 9. Ìñ³·ñÇ ³Ýí³ÝáõÙÁ___Ï³é³í³ñÙ³Ý ³å³ñ³ï
A22: µÛáõç»ï³ÛÇÝ Í³Ëë»ñÇ ï³ñ³Íù³ÛÇÝ ¹³ë³Ï³ñ·Ù³Ý | G22: ________________________________
A23: 4. ** ÐÐ å»ï³Ï³Ý Ï³é³í³ñÙ³Ý (ï»Õ³Ï³Ý ÇÝùÝ³Ï³é³í³ñÙ³Ý) Ù³ñÙÝÇ | G23: 10. Ìñ³·ñÇ Ïá¹Á
A24: ³Ýí³ÝáõÙÁ Լոռու մարզպետարան | G24: 11.*** ÐÐ å»ï³Ï³Ý Ï³é³í³ñÙ³Ý (îÆ)
A25: 5. ÐÇÙÝ³ñÏÁ ëå³ë³ñÏáÕ ï»Õ³Ï³Ý ·³ÝÓ³å»ï³Ï³Ý µ³ÅÝÇ (î¶´) ³Ýí³ÝáõÙÁ Տաշիրի | G25: Ù³ñÙÝÇ Ïá¹Ý Áëï µÛáõç»ï³ÛÇÝ Í³Ëë»ñÇ ·»ñ³ï»ëã³Ï.
A26: 6. ÐÇÙÝ³ñÏÇª ï»Õ³Ï³Ý ·³ÝÓ³å»ï³Ï³Ý µ³ÅÝáõÙ (î¶´) Ñ³ßí³éÙ³Ý Ñ³Ù³ñÁ | G26: ¹³ë³Ï³ñ·Ù³Ý
A27: 7. üÇÝ³Ýë³íáñÙ³Ý ³ÕµÛáõñÇ Ïá¹Á (ÐÐ å»ï³Ï³Ý µÛáõç»ª 1, Ñ³Ù³ÛÝùÇ µÛáõç»ª 2) | E27: 2 | G27: 12. â³÷Ç ÙÇ³íáñÁª Ñ³½³ñ ¹ñ³Ù
H28: 900272101024
A29: îáÕÇ NN | B29: ´Ûáõç»ï³ÛÇÝ Í³Ëë»ñÇ ïÝï»ë³·Çï³Ï³Ý ¹³ë³Ï³ñ·Ù³Ý ï³ññ»ñ | D29: ÜáõÛÝ Å³Ù³Ý³Ï³Ñ³ïí³ÍÇ Ñ³Ù³ñ Ý³ËÏÇÝáõÙ Ñ³ëï³ïí³Íª ·áñÍáÕ | F29: êáõÛÝ Ý³Ë³Ñ³ßíáí Ñ³ëï³ïíáÕ óáõó³ÝÇßÝ»ñÁ | G29: ³Û¹ ÃíáõÙª Áëï »é³ÙëÛ³ÏÝ»ñÇ (»é³ÙëÛ³ÏÇ ³ÙÇëÝ»ñÇ)³×áÕ³Ï³Ý
B30: ³Ýí³ÝáõÙÝ»ñÁ | C30: NN | D30: Ý³Ë³Ñ³ßíÇ óáõó³ÝÇßÝ»ñÁ | E30: Ý³Ë³Ñ³ßíáõÙ Ï³ï³ñí³Í ÷á÷áËáõÃÛáõÝ-Ý»ñÁ (³í»É³óáõÙÁª /+/, å³Ï³ë»óáõÙÁª/-/ | G30: I | H30: II | I30: III | J30: IV
A31: ² | B31: ´ | C31: ¶ | D31: 1 | E31: 2 | F31: 3 | G31: 4 | H31: 5 | I31: 6 | J31: 7
A32: 1100000 | B32: ². ÀÜÂ²òÆÎ Ì²Êêºðª ÀÜ¸²ØºÜÀ, | C32: x | D32: =D33+D42+D131+D92 -> 372350 | E32: =E33+E43+E55+E66+E69+E135+E51+E77 -> 0 | F32: =F33+F42+F131+F132+F78+F92 -> 372350 | G32: =G33+G42+G131+G132+G78+G92 -> 33630 | H32: =H33+H42+H131+H132+H78+H92 -> 67996 | I32: =I33+I42+I138+I78+I92 -> 93901 | J32: =J33+J42+J131+J132+J92 -> 372350
A33: 1110000 | B33: 1.äºî²Î²Ü, îºÔ²Î²Ü ÆÜøÜ²Î²è²ì²ðØ²Ü Ø²ðØÆÜÜºðÆ, ¸ð²Üò ºÜÂ²Î² ´Úàôæºî²ÚÆÜ ÐÆØÜ²ðÎÜºðÆ ²ÞÊ²îàÔÜºðÆ ²ÞÊ²î²ì²ðÒÀª ÀÜ¸²ØºÜÀ, ³Û¹ ÃíáõÙª | C33: x | D33: =D34 -> 278000 | E33: =E34 -> 0 | F33: 278000 | G33: 22500 | H33: 47846 | I33: 65901 | J33: 278000
A34: 1110000 | B34: 1,1 ²ßË³ï³ÝùÇ í³ñÓ³ïñáõÃÛáõÝ | C34: x | D34: =SUM(D35:D41) -> 278000 | E34: =SUM(E35:E41) -> 0 | F34: =SUM(F35:F41) -> 278000 | G34: =G35+G36 -> 22500 | H34: =H35+H36 -> 47846 | I34: =I35+I36 -> 65901 | J34: 278000
A35: 1111000 | B35: -²ßË³ïáÕÝ»ñÇ ³ßË³ï³í³ñÓ»ñ ¨ Ñ³í»É³í×³ñÝ»ñ | C35: 411100 | D35: 255000 | E35: 0 | F35: =D35+E35 -> 255000 | G35: 22500 | H35: 47846 | I35: 65901 | J35: =F35 -> 255000
A36: 1112000 | B36: - ä³ñ·¨³ïñáõÙÝ»ñ, ¹ñ³Ù³Ï³Ý Ëñ³ËáõëáõÙÝ»ñ ¨ Ñ³ïáõÏ í×³ñÝ»ñ | C36: 411200 | D36: 23000 | E36: 0 | F36: =D36+E36 -> 23000 | G36: 0 | H36: 0 | I36: 0 | J36: =F36 -> 23000
A37: 1113000 | B37: -ø³Õ³ù³óÇ³Ï³Ý, ¹³ï³Ï³Ý ¨ å»ï³Ï³Ý Í³é³ÛáÕÝ»ñÇ å³ñ·¨³ïñáõÙ | C37: 411300 | F37: 0 | J37: 0
A38: 1114000 | B38: -ÐÐ ýÇÝ³ÝëÝ»ñÇ ¨ ¿ÏáÝáÙÇÏ³ÛÇ Ý³Ë³ñ³ñáõÃÛ³Ý, Ñ³ñÏ³ÛÇÝ ¨ Ù³ùë³ÛÇÝ Ù³ñÙÇÝÝ»ñÇ ³ßË³ïáÕÝ»ñÇ å³ñ·¨³ïñáõÙ | C38: 411400 | F38: 0 | J38: 0
A39: 1115000 | B39: -²ÛÉ í³ñÓ³ïñáõÃÛáõÝÝ»ñ | C39: 411500 | F39: 0 | J39: 0
A40: 1116000 | B40: -´Ý»Õ»Ý ³ßË³ï³í³ñÓ»ñ ¨ Ñ³í»É³í×³ñÝ»ñ | C40: 412100 | F40: 0 | J40: 0
A41: 1117000 | B41: - êáóÇ³É³Ï³Ý ³å³ÑáíáõÃÛ³Ý í×³ñÝ»ñ | C41: 413100 | D41: 0 | E41: 0 | F41: 0 | G41: 0 | H41: 0 | I41: 0 | J41: =F41 -> 0
A42: 1120000 | B42: 2 Ì³é³ÛáõÃÛáõÝÝ»ñÇ ¨ ³åñ³ÝùÝ»ñÇ Ó»éù µ»ñáõÙ | C42: x | D42: =D43+D55+D66+D69+D51+D64 -> 93850 | F42: =F43+F55+F66+F69+F51+F64 -> 93850 | G42: =G43+G51+G55+G64+G66+G69 -> 11080 | H42: =H43+H51+H55+H64+H66+H69 -> 18550 | I42: =I43+I51+I64+I66+I69+I55 -> 26850 | J42: =F42 -> 93850
A43: 1121000 | B43: 2.1 Þ³ñáõÝ³Ï³Ï³Ý Í³Ëë»ñ | D43: =SUM(D44:D49) -> 60250 | E43: =SUM(E45:E49) -> 0 | F43: =SUM(F44:F49) -> 60250 | G43: =SUM(G44:G49) -> 5900 | H43: =H45+H46+H47+H48 -> 8800 | I43: =I45+I46+I47+I48 -> 12700 | J43: =SUM(J44:J49) -> 60250
A44: 1121100 | B44: -·áñÍ³éÝ³Ï³Ý ¨ µ³ÝÏ³ÛÇÝ Í³é³ÛáõÃÛáõÝÝ»ñÇ Í³Ëë»ñ | C44: 421100 | E44: 0 | F44: =D44+E44 -> 0 | J44: 0
A45: 1121200 | B45: -¿Ý»ñ·»ïÇÏ Í³é³ÛáõÃÛáõÝÝ»ñ | C45: 421200 | D45: 55000 | E45: 0 | F45: 55000 | G45: 5000 | H45: 7000 | I45: 10000 | J45: =F45 -> 55000
A46: 1121300 | B46: -ÎáÙáõÝ³É Í³é³ÛáõÃÛáõÝÝ»ñ | C46: 421300 | D46: 800 | E46: 0 | F46: 800 | G46: 150 | H46: 150 | I46: 300 | J46: =F46 -> 800
A47: 1121400 | B47: -Î³åÇ Í³é³ÛáõÃÛáõÝÝ»ñ | C47: 421400 | D47: 4000 | E47: 0 | F47: 4000 | G47: 600 | H47: 1500 | I47: 2100 | J47: =F47 -> 4000
A48: 1121500 | B48: -²å³Ñáí³·ñ³Ï³Ý Í³Ëë»ñ | C48: 421500 | D48: 450 | E48: 0 | F48: 450 | G48: 150 | H48: 150 | I48: 300 | J48: =F48 -> 450
A49: 1121600 | B49: -¶áõÛùÇ ¨ ë³ñù³íáñáõÙÝ»ñÇ í³ñÓ³Ï³ÉáõÃÛáõÝ | C49: 421600 | F49: 0 | J49: 0
A50: 1121700 | B50: -²ñï³·»ñ³ï»ëã³Ï³Ý Í³Ëë»ñ | C50: 421700 | J50: 0
A51: 1122000 | B51: 2.2 ¶áñÍáõÕáõÙÝ»ñÇ ¨ ßñç³·³ÛáõÃÛ³Ý Í³Ëë»ñ | C51: x | D51: =D52+D53+D54 -> 1500 | E51: 0 | F51: =D51+E51 -> 1500 | G51: =G52+G53 -> 150 | H51: =H52+H53 -> 400 | I51: =I52+I53 -> 500 | J51: =F51 -> 1500
A52: 1122100 | B52: -Ü»ñùÇÝ ·áñÍáõÕáõÙÝ»ñ | C52: 422100 | D52: 1500 | E52: 0 | F52: =D52+E52 -> 1500 | G52: 150 | H52: 400 | I52: 500 | J52: =F52 -> 1500
A53: 1122200 | B53: -²ñï³ë³ÑÙ³ÝÛ³Ý ·áñÍáõÕáõÙÝ»ñÇ ·Íáí Í³Ëë»ñ | C53: 422200 | D53: 0 | E53: 0 | F53: =D53+E53 -> 0 | G53: 0 | H53: 0 | I53: 0 | J53: =F53 -> 0
A54: 1122300 | B54: -²ÛÉ ïñ³Ýëåáñï³ÛÇÝ Í³Ëë»ñ | C54: 422900 | J54: 0
A55: 1123000 | B55: 2.3 ä³ÛÙ³Ý³·ñ³ÛÇÝ ³ÛÉ Í³é³ÛáõÃÛáõÝÝ»ñÇ Ó»éù µ»ñáõÙ | C55: x | D55: =SUM(D56:D63) -> 9700 | E55: =E63+E57+E62 -> 0 | F55: =SUM(F56:F63) -> 9700 | G55: =SUM(G56:G63) -> 2130 | H55: =H57+H59+H62+H63+H58 -> 3900 | I55: =I57+I59+I62+I63+I58 -> 5100 | J55: =F55 -> 9700
A56: 1123100 | B56: -ì³ñã³Ï³Ý Í³é³ÛáõÃÛáõÝÝ»ñ | C56: 423100 | F56: =D56+E56 -> 0 | J56: =F56 -> 0
A57: 1123200 | B57: -Ð³Ù³Ï³ñ·ã³ÛÇÝ Í³é³ÛáõÃÛáõÝÝ»ñ | C57: 423200 | D57: 2500 | E57: 0 | F57: =D57+E57 -> 2500 | G57: 500 | H57: 1000 | I57: 1500 | J57: =F57 -> 2500
A58: 1123300 | B58: -²ßË³ï³Ï³½ÙÇ Ù³ëÝ³·Çï³Ï³Ý ½³ñ·³óÙ³Ý Í³é³ÛáõÃÛáõÝÝ»ñ | C58: 423300 | D58: 200 | E58: 0 | F58: 200 | G58: 50 | H58: 50 | I58: 100 | J58: =F58 -> 200
A59: 1123400 | B59: -î»Õ³Ï³ïí³Ï³Ý Í³é³ÛáõÃÛáõÝÝ»ñ | C59: 423400 | D59: 1500 | E59: 0 | F59: 1500 | G59: 280 | H59: 350 | I59: 400 | J59: =F59 -> 1500 | K59: 0
A60: 1123500 | B60: -Î³é³í³ñã³Ï³Ý Í³é³ÛáõÃÛáõÝÝ»ñ | C60: 423500 | F60: 0 | J60: 0
A61: 1123600 | B61: - Î»Ýó³Õ³ÛÇÝ ¨ Ñ³Ýñ³ÛÇÝ ëÝÝ¹Ç Í³é³ÛáõÃÛáõÝÝ»ñ | C61: 423600 | F61: 0 | J61: 0
A62: 1123700 | B62: -Ü»ñÏ³Û³óáõóã³Ï³Ý Í³Ëë»ñ | C62: 423700 | D62: 1000 | E62: 0 | F62: 1000 | G62: 200 | H62: 200 | I62: 200 | J62: 1000
A63: 1123800 | B63: -ÀÝ¹Ñ³Ýáõñ µÝáõÛÃÇ ³ÛÉ Í³é³ÛáõÃÛáõÝÝ»ñ | C63: 423900 | D63: 4500 | E63: 0 | F63: 4500 | G63: 1100 | H63: 2300 | I63: 2900 | J63: 4500
A64: 1124000 | B64: 2.4 ²ÛÉ Ù³ëÝ³·Çï³Ï³Ý Í³é³ÛáõÃÛáõÝÝ»ñÇ Ó»éù µ»ñáõÙ | C64: x | D64: =D65 -> 4000 | F64: =F65 -> 4000 | G64: =G65 -> 300 | H64: =H65 -> 1500 | I64: =I65 -> 2800 | J64: 4000
A65: 1124100 | B65: -Ø³ëÝ³·Çï³Ï³Ý Í³é³ÛáõÃÛáõÝÝ»ñ | C65: 424100 | D65: 4000 | E65: 0 | F65: =D65+E65 -> 4000 | G65: 300 | H65: 1500 | I65: 2800 | J65: 4000
A66: 1125000 | B66: 2.5 ÀÝÃ³óÇÏ Ýáñá·áõÙ ¨ å³Ñå³ÝáõÙ (Í³é³ÛáõÃÛáõÝÝ»ñ ¨ ÝÛáõÃ»ñ) | C66: x | D66: =D67+D68 -> 5500 | E66: =SUM(E67:E68) -> 0 | F66: =F67+F68 -> 5500 | G66: =G67+G68 -> 500 | H66: =H67+H68 -> 900 | I66: =I67+I68 -> 1200 | J66: =J67+J68 -> 5500
A67: 1125100 | B67: -Þ»Ýù»ñÇ ¨ Ï³éáõÛóÝ»ñÇ ÁÝÃ³óÇÏ Ýáñá·áõÙ ¨ å³Ñå³ÝáõÙ | C67: 425100 | D67: 0 | F67: =D67+E67 -> 0 | I67: 0 | J67: =F67 -> 0
A68: 1125200 | B68: -Ø»ù»Ý³Ý»ñÇ ¨ ë³ñù³íáñáõÙÝ»ñÇ ÁÝÃ³óÇÏ Ýáñá·áõÙ ¨ å³Ñå³ÝáõÙ | C68: 425200 | D68: 5500 | E68: 0 | F68: =D68+E68 -> 5500 | G68: 500 | H68: 900 | I68: 1200 | J68: 5500
A69: 1126000 | B69: 2.6 ÜÛáõÃ»ñ | C69: x | D69: =SUM(D70:D77) -> 12900 | E69: 0 | F69: =SUM(F70:F77) -> 12900 | G69: =SUM(G70:G77) -> 2100 | H69: =SUM(H70:H77) -> 3050 | I69: =I70+I73+I76+I77 -> 4550 | J69: 12900
A70: 1126100 | B70: -¶ñ³ë»ÝÛ³Ï³ÛÇÝ ÝÛáõÃ»ñ ¨ Ñ³·áõëï | C70: 426100 | D70: 2000 | E70: 0 | F70: =D70+E70 -> 2000 | G70: 300 | H70: 500 | I70: 750 | J70: 2000
A71: 1126200 | B71: -¶ÛáõÕ³ïÝï»ë³Ï³Ý ³åñ³ÝùÝ»ñ | C71: 426200 | F71: =D71+E71 -> 0 | J71: 0
A72: 1126300 | B72: -ì»ñ³å³ïñ³ëïÙ³Ý ¨ áõëáõóÙ³Ý ÝÛáõÃ»ñ | C72: 426300 | F72: 0 | J72: 0
A73: 1126400 | B73: -îñ³Ýëåáñï³ÛÇÝ ÝÛáõÃ»ñ | C73: 426400 | D73: 8000 | E73: 0 | F73: 8000 | G73: 1500 | H73: 2000 | I73: 3000 | J73: 8000
A74: 1126500 | B74: -Þñç³Ï³ ÙÇç³í³ÛñÇ å³ßïå³ÝáõÃÛ³Ý ¨ ·Çï³Ï³Ý ÝÛáõÃ»ñ | C74: 426500 | F74: 0 | J74: 0
A75: 1126600 | B75: -²éáÕç³å³Ñ³Ï³Ý ¨ É³µáñ³ïáñ ÝÛáõÃ»ñ | C75: 426600 | F75: 0 | J75: =F75 -> 0
A76: 1126700 | B76: -Î»Ýó³Õ³ÛÇÝ ¨ Ñ³Ýñ³ÛÇÝ ëÝÝ¹Ç ÝÛáõÃ»ñ | C76: 426700 | D76: 900 | F76: 900 | G76: 100 | H76: 200 | I76: 300 | J76: =F76 -> 900
A77: 1126800 | B77: -Ð³ïáõÏ Ýå³ï³Ï³ÛÇÝ ³ÛÉ ÝÛáõÃ»ñ | C77: 426900 | D77: 2000 | E77: 0 | F77: 2000 | G77: 200 | H77: 350 | I77: 500 | J77: =F77 -> 2000
A78: 1130000 | B78: 3 îáÏáë³í×³ñÝ»ñ | C78: x | D78: 0 | E78: =E114 -> 0 | F78: 0 | G78: =G114 -> 0 | H78: 0 | I78: 0 | J78: 0
A79: 1130100 | B79: -Ü»ñùÇÝ ³ñÅ»ÃÕÃ»ñÇ ïáÏáë³í×³ñÝ»ñ | C79: 441100 | J79: 0
A80: 1130200 | B80: -Ü»ñùÇÝ í³ñÏ»ñÇ ïáÏáë³í×³ñÝ»ñ | C80: 441200 | J80: 0
A81: 1130300 | B81: -²ñï³ùÇÝ ³ñÅ»ÃÕÃ»ñÇ ·Íáí ïáÏáë³í×³ñÝ»ñ | C81: 442100 | J81: 0
A82: 1130400 | B82: -²ñï³ùÇÝ í³ñÏ»ñÇ ·Íáí ïáÏáë³í×³ñÝ»ñ | C82: 442200 | J82: 0
A83: 1131000 | B83: öáË³éáõÃÛáõÝÝ»ñÇ Ñ»ï Ï³åí³Í í×³ñÝ»ñ | C83: x | J83: 0
A84: 1131100 | B84: -öáË³Ý³ÏÙ³Ý Ïáõñë»ñÇ µ³ó³ë³Ï³Ý ï³ñµ»ñáõÃÛáõÝ | C84: 443100 | J84: 0
A85: 1131200 | B85: -îáõÛÅ»ñ | C85: 443200 | J85: 0
A86: 1131300 | B86: -öáË³éáõÃÛáõÝÝ»ñÇ ·Íáí ïáõñù»ñ | C86: 443300 | J86: 0
A87: 1140000 | B87: 4. êáõµëÇ¹Ç³Ý»ñ | C87: x | D87: 0 | F87: 0 | G87: 0 | H87: 0 | I87: 0 | J87: 0
A88: 1141000 | B88: -êáõµëÇ¹Ç³Ý»ñ áã-ýÇÝ³Ýë³Ï³Ý å»ï³Ï³Ý Ï³½Ù³Ï»ñåáõÃÛáõÝÝ»ñÇÝ | C88: 451100 | J88: 0
A89: 1142000 | B89: -êáõµëÇ¹Ç³Ý»ñ ýÇÝ³Ýë³Ï³Ý å»ï³Ï³Ý Ï³½Ù³Ï»ñåáõÃÛáõÝÝ»ñÇÝ | C89: 451200 | J89: 0
A90: 1143000 | B90: -êáõµëÇ¹Ç³Ý»ñ áã å»ï³Ï³Ý áã ýÇÝ³Ýë³Ï³Ý Ï³½Ù³Ï»ñåáõÃÛáõÝÝ»ñÇÝ | C90: 452100 | J90: 0
A91: 1144000 | B91: -êáõµëÇ¹Ç³Ý»ñ áã å»ï³Ï³Ý ýÇÝ³Ýë³Ï³Ý Ï³½Ù³Ï»ñåáõÃÛáõÝÝ»ñÇÝ | C91: 452200 | J91: 0
A92: 1150000 | B92: 5.¸ñ³Ù³ßÝáñÑÝ»ñ | C92: x | D92: =D107+D114 -> 0 | F92: =F107+F114 -> 0 | G92: =G107+G114 -> 0 | H92: =H107+H114 -> 500 | I92: =I107+I114 -> 1000 | J92: =F92 -> 0
A93: 1151000 | B93: ¸ñ³Ù³ßÝáñÑÝ»ñ ûï³ñ»ñÏñÛ³ Ï³é³í³ñáõÃÛáõÝÝ»ñÇÝ | C93: x | D93: 0 | F93: 0 | G93: 0 | H93: 0 | I93: 0 | J93: 0
A94: 1151100 | B94: ÀÝÃ³óÇÏ ¹ñ³Ù³ßÝáñÑÝ»ñ ûï³ñ»ñÏñÛ³ Ï³é³í³ñáõÃÛáõÝÝ»ñÇÝ | C94: 461100 | J94: 0
A95: 1151200 | B95: Î³åÇï³É ¹ñ³Ù³ßÝáñÑÝ»ñ ûï³ñ»ñÏñÛ³ Ï³é³í³ñáõÃÛáõÝÝ»ñÇÝ | C95: 461200 | J95: 0
A96: 1152000 | B96: ¸ñ³Ù³ßÝáñÑÝ»ñ ÙÇç³½·³ÛÇÝ Ï³½Ù³Ï»ñåáõÃÛáõÝÝ»ñÇÝ | C96: x | D96: 0 | F96: 0 | G96: 0 | H96: 0 | I96: 0 | J96: 0
A97: 1152100 | B97: ÀÝÃ³óÇÏ ¹ñ³Ù³ßÝáñÑÝ»ñ ÙÇç³½·³ÛÇÝ Ï³½Ù³Ï»ñåáõÃÛáõÝÝ»ñÇÝ | C97: 462100 | J97: 0
A98: 1152200 | B98: Î³åÇï³É ¹ñ³Ù³ßÝáñÑ»ñ ÙÇç³½·³ÛÇÝ Ï³½Ù³Ï»ñåáõÃÛáõÝÝ»ñÇÝ | C98: 462200 | J98: 0
A99: 1153000 | B99: ÀÝÃ³óÇÏ ¹ñ³Ù³ßÝáñÑÝ»ñ å»ï³Ï³Ý Ñ³ïí³ÍÇ ³ÛÉ Ù³Ï³ñ¹³ÏÝ»ñÇÝ | C99: x | D99: 0 | F99: 0 | G99: 0 | H99: 0 | I99: 0 | J99: 0
A100: 1153100 | B100: ÀÝÃ³óÇÏ ¹ñ³Ù³ßÝáñÑÝ»ñ å»ï³Ï³Ý Ï³é³í³ñÙ³Ý Ñ³ïí³ÍÇÝ | C100: 463100 | J100: 0
A101: 1153200 | B101: ÀÝÃ³óÇÏ ëáõµí»ÝóÇ³Ý»ñ Ñ³Ù³ÛÝùÝ»ñÇÝ | C101: 463200 | J101: 0
A102: 1153300 | B102: ä»ï³Ï³Ý µÛáõç»Çó Ñ³Ù³ÛÝùÝ»ñÇ µÛáõç»Ý»ñÇÝ ýÇÝ³Ýë³Ï³Ý Ñ³Ù³Ñ³ñÃ»óÙ³Ý ëÏ½µáõÝùáí ïñíáÕ ¹áï³óÇ³Ý»ñ | C102: 463300 | J102: 0
A103: 1153400 | B103: úñ»ÝùÝ»ñÇ ÏÇñ³ñÏÙ³Ý ³ñ¹ÛáõÝùáõÙ Ñ³Ù³ÛÝùÝ»ñÇ µÛáõç»Ý»ñÇ ÏáñáõëïÝ»ñÇ ÷áËÑ³ïáõóáõÙ | C103: 463400 | J103: 0
A104: 1153500 | B104: ²ÛÉ ÁÝÃ³óÇÏ ¹ñ³Ù³ßÝáñÑÝ»ñ Ñ³Ù³ÛÝùÝ»ñÇÝ | C104: 463500 | J104: 0
A105: 1153700 | B105: ÀÝÃ³óÇÏ ¹ñ³Ù³ßÝáñÑÝ»ñ å»ï³Ï³Ý ¨ Ñ³Ù³ÛÝùÝ»ñÇ áã ³é¨ïñ³ÛÇÝ Ï³½Ù³Ï»ñåáõÃÛáõÝÝ»ñÇÝ | C105: 463700 | D105: 0 | F105: =D105+E105 -> 0 | H105: 0 | I105: 0 | J105: =F105 -> 0
A106: 1153800 | B106: ÀÝÃ³óÇÏ ¹ñ³Ù³ßÝáñÑÝ»ñ å»ï³Ï³Ý ¨ Ñ³Ù³ÛÝùÝ»ñÇ ³é¨ïñ³ÛÇÝ Ï³½Ù³Ï»ñåáõÃÛáõÝÝ»ñÇÝ | C106: 463800 | F106: =D106+E106 -> 0 | J106: 0
A107: 1153900 | B107: ²ÛÉ ÁÝÃ³óÇÏ ¹ñ³Ù³ßÝáñÑÝ»ñ | C107: 463900 | D107: 0 | F107: 0 | G107: 0 | H107: 0 | I107: 0 | J107: =F107 -> 0
A108: 1154000 | B108: Î³åÇï³É ¹ñ³Ù³ßÝáñÑÝ»ñ å»ï³Ï³Ý Ñ³ïí³ÍÇ ³ÛÉ Ù³Ï³ñ¹³ÏÝ»ñÇÝ | C108: x | D108: 0 | F108: 0 | G108: 0 | H108: 0 | I108: 0 | J108: 0
A109: 1154100 | B109: Î³åÇï³É ¹ñ³Ù³ßÝáñÑÝ»ñ å»ï³Ï³Ý Ï³é³í³ñÙ³Ý Ñ³ïí³ÍÇÝ | C109: 465100 | J109: 0
A110: 1154200 | B110: Î³åÇï³É ëáõµí»ÝóÇ³Ý»ñ Ñ³Ù³ÛÝùÝ»ñÇÝ | C110: 465200 | J110: 0
A111: 1154300 | B111: ²ÛÉ Ï³åÇï³É ¹ñ³Ù³ßÝáñÑÝ»ñ Ñ³Ù³ÛÝùÝ»ñÇÝ | C111: 465300 | J111: 0
A112: 1154500 | B112: Î³åÇï³É ¹ñ³Ù³ßÝáñÑÝ»ñ å»ï³Ï³Ý ¨ Ñ³Ù³ÛÝùÝ»ñÇ áã ³é¨ïñ³ÛÇÝ Ï³½Ù³Ï»ñåáõÃÛáõÝÝ»ñÇÝ | C112: 465500 | J112: 0
A113: 1154600 | B113: Î³åÇï³É ¹ñ³Ù³ßÝáñÑÝ»ñ å»ï³Ï³Ý ¨ Ñ³Ù³ÛÝù³ÛÇÝ ³é¨ïñ³ÛÇÝ Ï³½Ù³Ï»ñåáõÃÛáõÝÝ»ñÇÝ | C113: 465600 | J113: 0
A114: 1154700 | B114: ²ÛÉ Ï³åÇï³É ¹ñ³Ù³ßÝáñÑÝ»ñ | C114: 465700 | D114: 0 | E114: 0 | F114: =D114+E114 -> 0 | G114: 0 | H114: 500 | I114: 1000 | J114: =F114 -> 0
A115: 1160000 | B115: 6. êàòÆ²È²Î²Ü Üä²êîÜºð ºì ÎºÜê²ÂàÞ²ÎÜºð | C115: x | D115: 0 | F115: 0 | G115: 0 | H115: 0 | I115: 0 | J115: 0
A116: 1161000 | B116: 6.1 êàòÆ²È²Î²Ü ²ä²ÐàìàôÂÚ²Ü Üä²êîÜºð | C116: x | D116: 0 | F116: 0 | G116: 0 | H116: 0 | I116: 0 | J116: 0
A117: 1161100 | B117: -îÝ³ÛÇÝ ïÝï»ëáõÃÛáõÝÝ»ñÇÝ ¹ñ³Ùáí í×³ñíáÕ ëáóÇ³É³Ï³Ý ³å³ÑáíáõÃÛ³Ý í×³ñÝ»ñ | C117: 471100 | J117: 0
A118: 1161200 | B118: -êáóÇ³É³Ï³Ý ³å³ÑáíáõÃÛ³Ý µÝ»Õ»Ý Ýå³ëïÝ»ñ Í³é³ÛáõÃÛáõÝÝ»ñ Ù³ïáõóáÕÝ»ñÇÝ | C118: 471200 | J118: 0
A119: 1162000 | B119: 6.2 êàòÆ²È²Î²Ü ú¶ÜàôÂÚ²Ü ¸ð²Ø²Î²Ü ²ðî²Ð²ÚîàôÂÚ²Ø´ Üä²êîÜºð (´ÚàôæºÆò) | C119: x | D119: 0 | F119: 0 | G119: 0 | H119: 0 | I119: 0 | J119: 0
A120: 1162100 | B120: -ÐÇí³Ý¹áõÃÛ³Ý ¨ Ñ³ßÙ³Ý¹³ÙáõÃÛ³Ý Ýå³ëïÝ»ñ µÛáõç»Çó | C120: 472100 | J120: 0
A121: 1162200 | B121: -Ø³ÛñáõÃÛ³Ý Ýå³ëïÝ»ñ µÛáõç»Çó | C121: 472200 | J121: 0
A122: 1162300 | B122: -ºñ»Ë³Ý»ñÇ Ï³Ù ÁÝï³Ý»Ï³Ý Ýå³ëïÝ»ñ µÛáõç»Çó | C122: 472300 | J122: 0
A123: 1162400 | B123: -¶áñÍ³½ñÏáõÃÛ³Ý Ýå³ëïÝ»ñ µÛáõç»Çó | C123: 472400 | J123: 0
A124: 1162500 | B124: -Î»Ýë³Ãáß³ÏÇ ³ÝóÝ»Éáõ Ñ»ï Ï³åí³Í ¨ ï³ñÇù³ÛÇÝ Ýå³ëïÝ»ñ µÛáõç»Çó | C124: 472500 | J124: 0
A125: 1162600 | B125: -ÐáõÕ³ñÏ³íáñáõÃÛ³Ý Ýå³ëïÝ»ñ µÛáõç»Çó | C125: 472600 | J125: 0
A126: 1162700 | B126: -ÎñÃ³Ï³Ý, Ùß³ÏáõÃ³ÛÇÝ ¨ ëåáñï³ÛÇÝ Ýå³ëïÝ»ñ µÛáõç»Çó | C126: 472700 | J126: 0
A127: 1162800 | B127: -´Ý³Ï³ñ³Ý³ÛÇÝ Ýå³ëïÝ»ñ µÛáõç»Çó | C127: 472800 | J127: 0
A128: 1162900 | B128: -²ÛÉ Ýå³ëïÝ»ñ µÛáõç»Çó | C128: 472900 | J128: 0
A129: 1163000 | B129: 6.3 ÎºÜê²ÂàÞ²ÎÜºð | C129: x | D129: 0 | F129: 0 | G129: 0 | H129: 0 | I129: 0 | J129: 0
A130: 1163100 | B130: -Ï»Ýë³Ãáß³ÏÝ»ñ | C130: 474100 | J130: 0
A131: 1170000 | B131: 7. ²ÚÈ Ì²Êêºð | C131: x | D131: =D135+D140 -> 500 | E131: 0 | F131: 500 | G131: 50 | H131: 1100 | I131: 1150 | J131: 500
A132: 1171000 | B132: 7.1 ÜìÆð²îìàôÂÚàôÜÜºð àâ-Î²è²ì²ðâ²Î²Ü (Ð²ê²ð²Î²Î²Ü) Î²¼Ø²ÎºðäàôÂÚàôÜÜºðÆÜ | C132: x | D132: 0 | E132: =E134 -> 0 | F132: 0 | G132: 0 | H132: 0 | I132: 0 | J132: 0
A133: 1171100 | B133: -îÝ³ÛÇÝ ïÝï»ëáõÃÛáõÝÝ»ñÇÝ Í³é³ÛáõÃÛáõÝÝ»ñ Ù³ïáõóáÕ` ß³ÑáõÛÃ ãÑ»ï³åÝ¹áÕ Ï³½Ù³Ï»ñåáõÃÛáõÝÝ»ñÇÝ ÝíÇñ³ïíáõÃÛáõÝÝ»ñ | C133: 481100 | J133: 0
A134: 1171200 | B134: -ÜíÇñ³ïíáõÃÛáõÝÝ»ñ ³ÛÉ ß³ÑáõÛÃ ãÑ»ï³åÝ¹áÕ Ï³½Ù³Ï»ñåáõÃÛáõÝÝ»ñÇÝ | C134: 481900 | D134: 0 | E134: 0 | F134: =D134+E134 -> 0 | I134: 0 | J134: 0
A135: 1172000 | B135: 7.2 Ð²ðÎºð, ä²ðî²¸Æð ìÖ²ðÜºð ºì îàôÚÄºð, àðàÜø Î²è²ì²ðØ²Ü î²ð´ºð Ø²Î²ð¸²ÎÜºðÆ ÎàÔØÆò ÎÆð²èìàôØ ºÜ ØÆØÚ²Üò ÜÎ²îØ²Ø´ | C135: x | D135: =D137+D138 -> 500 | E135: =E138 -> 0 | F135: =F137+F138 -> 500 | G135: =G137+G138 -> 50 | H135: =H137+H138 -> 100 | I135: =I137+I138 -> 150 | J135: =F135 -> 500
A136: 1172100 | B136: -²ßË³ï³í³ñÓÇ ýáÝ¹ | C136: 482100 | F136: =D136+E136 -> 0 | J136: 0
A137: 1172200 | B137: -²ÛÉ Ñ³ñÏ»ñ | C137: 482200 | D137: 0 | E137: 0 | F137: =D137+E137 -> 0 | G137: 0 | H137: 0 | I137: 0 | J137: =F137 -> 0
A138: 1172300 | B138: -ä³ñï³¹Çñ í×³ñÝ»ñ | C138: 482300 | D138: 500 | E138: 0 | F138: =D138+E138 -> 500 | G138: 50 | H138: 100 | I138: 150 | J138: =F138 -> 500
A139: 1172400 | B139: -ä»ï³Ï³Ý Ñ³ïí³ÍÇ ï³ñµ»ñ Ù³Ï³ñ¹³ÏÝ»ñÇ ÏáÕÙÇó ÙÇÙÛ³Ýó ÝÏ³ïÙ³Ùµ ÏÇñ³éíáÕ ïáõÛÅ»ñ | C139: 482400 | J139: 0
A140: 1173000 | B140: 7.3 ¸²î²ð²ÜÜºðÆ ÎàÔØÆò ÜÞ²Ü²Îì²Ì îàôÚÄºð ºì îàô¶²ÜøÜºð | C140: x | D140: =D141 -> 0 | E140: 0 | F140: 0 | G140: 0 | H140: 1000 | I140: 1000 | J140: 0
A141: 1173100 | B141: -¸³ï³ñ³ÝÝ»ñÇ ÏáÕÙÇó Ýß³Ý³Ïí³Í ïáõÛÅ»ñ ¨ ïáõ·³ÝùÝ»ñ | C141: 483100 | D141: 0 | E141: 0 | F141: =D141+E141 -> 0 | G141: 0 | H141: 1000 | I141: 1000 | J141: =F141 -> 0
A142: 1174000 | B142: 7.4 ´Ü²Î²Ü ²ÔºîÜºðÆò Î²Ø ²ÚÈ ´Ü²Î²Ü ä²îÖ²èÜºðàì ²è²æ²ò²Ì ìÜ²êÜºðÆ Î²Ø ìÜ²êì²ÌøÜºðÆ ìºð²Î²Ü¶ÜàôØ | C142: x | D142: 0 | F142: 0 | G142: 0 | H142: 0 | I142: 0 | J142: 0
A143: 1174100 | B143: -´Ý³Ï³Ý ³Õ»ïÝ»ñÇó ³é³ç³ó³Í íÝ³ëí³ÍùÝ»ñÇ Ï³Ù íÝ³ëÝ»ñÇ í»ñ³Ï³Ý·ÝáõÙ | C143: 484100 | J143: 0
A144: 1174200 | B144: -²ÛÉ µÝ³Ï³Ý å³ï×³éÝ»ñáí ëï³ó³Í íÝ³ëí³ÍùÝ»ñÇ í»ñ³Ï³Ý·ÝáõÙ | C144: 484200 | J144: 0
A145: 1175000 | B145: 7.5 Î²è²ì²ðØ²Ü Ø²ðØÆÜÜºðÆ ¶àðÌàôÜºàôÂÚ²Ü Ðºîºì²Üøàì ²è²æ²ò²Ì ìÜ²êÜºðÆ Î²Ø ìÜ²êì²ÌøÜºðÆ ìºð²Î²Ü¶ÜàôØ | C145: x | D145: 0 | F145: 0 | G145: 0 | H145: 0 | I145: 0 | J145: 0
A146: 1175100 | B146: -Î³é³í³ñÙ³Ý Ù³ñÙÇÝÝ»ñÇ ·áñÍáõÝ»áõÃÛ³Ý Ñ»ï¨³Ýùáí ³é³ç³ó³Í íÝ³ëí³ÍùÝ»ñÇ Ï³Ù íÝ³ëÝ»ñÇ í»ñ³Ï³Ý·ÝáõÙ | C146: 485100 | J146: 0
A147: 1176000 | B147: 7.6 ²ÚÈ Ì²Êêºð | C147: x | D147: 0 | F147: 0 | G147: 0 | H147: 0 | I147: 0 | J147: 0
A148: 1176100 | B148: -²ÛÉ Í³Ëë»ñ | C148: 486100 | J148: 0
A149: 1177000 | B149: 7.7 ä²Ðàôêî²ÚÆÜ ØÆæàòÜºð | C149: x | D149: 0 | F149: 0 | G149: 0 | H149: 0 | I149: 0 | J149: 0
A150: 1177100 | B150: -ä³Ñáõëï³ÛÇÝ ÙÇçáóÝ»ñ | C150: 489100 | J150: 0
A151: 1200000 | B151: Բ, àâ-üÆÜ²Üê²Î²Ü ²ÎîÆìÜºðÆ ¶Ìàì Ì²Êêºð | C151: x | D151: =D152 -> 10082 | E151: =E155 -> 0 | F151: =F152 -> 10082 | G151: =G152 -> 3219 | H151: =H152 -> 3219 | I151: =I152 -> 3219 | J151: =F152 -> 10082
A152: 1210000 | B152: 1.ÐÆØÜ²Î²Ü ØÆæàòÜºð | C152: x | D152: =D157+D158+D155+D156+D160 -> 10082 | E152: =E151+E157 -> 0 | F152: =F157+F158+F155+F156+F160 -> 10082 | G152: =SUM(G153:G165) -> 3219 | H152: =SUM(H153:H165) -> 3219 | I152: =SUM(I153:I165) -> 3219 | J152: =F152 -> 10082
A153: 1211000 | B153: -Þ»Ýù»ñÇ ¨ ßÇÝáõÃÛáõÝÝ»ñÇ Ó»éù µ»ñáõÙ | C153: 511100 | F153: =D153+E153 -> 0 | J153: 0
A154: 1212000 | B154: -Þ»Ýù»ñÇ ¨ ßÇÝáõÃÛáõÝÝ»ñÇ Ï³éáõóáõÙ | C154: 511200 | F154: =D154+E154 -> 0 | J154: 0
A155: 1213000 | B155: -Þ»Ýù»ñÇ ¨ ßÇÝáõÃÛáõÝ. Ï³åÇï³É í»ñ³Ýáñá·áõÙ | C155: 511300 | D155: 0 | E155: 0 | F155: =D155+E155 -> 0 | G155: 0 | H155: 0 | I155: 0 | J155: 0
A156: 1214000 | B156: -îñ³Ýëåáñï³ÛÇÝ ë³ñù³íáñáõÙÝ»ñ | C156: 512100 | D156: 2500 | E156: 0 | F156: 2500 | G156: 1000 | H156: 1000 | I156: 1000 | J156: 2500
A157: 1215000 | B157: -ì³ñã³Ï³Ý ë³ñù³íáñáõÙÝ»ñ | C157: 512200 | D157: 4682 | E157: 0 | F157: =D157+E157 -> 4682 | G157: 1800 | H157: 1800 | I157: 1800 | J157: 4682
A158: 1216000 | B158: -²ÛÉ Ù»ù»Ý³Ý»ñ ¨ ë³ñù³íáñáõÙÝ»ñ | C158: 512900 | D158: 2200 | E158: 0 | F158: 2200 | G158: 219 | H158: 219 | I158: 219 | J158: 2200
A159: 1217000 | B159: -²×»óíáÕ ³ÏïÇíÝ»ñ | C159: 513100 | F159: 0 | J159: 0
A160: 1218100 | B160: -àã-ÝÛáõÃ³Ï³Ý ÑÇÙÝ³Ï³Ý ÙÇçáóÝ»ñ | C160: 513200 | D160: 700 | E160: 0 | F160: 700 | G160: 200 | H160: 200 | I160: 200 | J160: =F160 -> 700
A161: 1218200 | B161: -¶»á¹»½Ç³Ï³Ý ù³ñï»½³·ñ³Ï³Ý Í³Ëë»ñ | C161: 513300 | F161: 0 | J161: 0
A162: 1218300 | B162: -Ü³Ë³·Í³Ñ»ï³½áï³Ï³Ý Í³Ëë»ñ | C162: 513400 | D162: 0 | F162: 0 | I162: 0 | J162: =F162 -> 0
A163: 1220000 | B163: 2.ä²Þ²ðÜºð | C163: x | D163: 0 | F163: 0 | G163: 0 | H163: 0 | I163: 0 | J163: 0
A164: 1221000 | B164: -è³½Ù³í³ñ³Ï³Ý å³ß³ñÝ»ñ | C164: 521100 | J164: 0
A165: 1222000 | B165: -ÜÛáõÃ»ñ ¨ å³ñ³·³Ý»ñ | C165: 522100 | J165: 0
A166: 1223000 | B166: -ì»ñ³í³×³éùÇ Ñ³Ù³ñ Ý³Ë³ï»ëí³Í ³åñ³ÝùÝ»ñ | C166: 523100 | J166: 0
A167: 1224000 | B167: -êå³éÙ³Ý Ýå³ï³Ïáí å³ÑíáÕ å³ß³ñÝ»ñ | C167: 524100 | J167: 0
A168: 1230000 | B168: 3.´²ðÒð²ðÄºø ²ÎîÆìÜºð | C168: x | D168: 0 | F168: 0 | G168: 0 | H168: 0 | I168: 0 | J168: 0
A169: 1231000 | B169: -´³ñÓñ³ñÅ»ù ³ÏïÇíÝ»ñ | C169: 531100 | J169: 0
A170: 1240000 | B170: 4.â²ðî²¸ðì²Ì ԱԿՏԻՎՆԵՐ | C170: x | D170: 0 | F170: 0 | G170: 0 | H170: 0 | I170: 0 | J170: 0
A171: 1241000 | B171: -ÐáÕ | C171: 541100 | J171: 0
A172: 1242000 | B172: -ÀÝ¹»ñù³ÛÇÝ ³ÏïÇíÝ»ñ | C172: 542100
A173: 1243000 | B173: -²ÛÉ µÝ³Ï³Ý Í³·áõÙ áõÝ»óáÕ ³ÏïÇíÝ»ñ | C173: 543100
A174: 1244000 | B174: -àã ÝÛáõÃ³Ï³Ý ã³ñï³¹ñí³Í ³ÏïÇíÝ»ñ | C174: 544100
A175: 1000000 | B175: ԸՆԴԱՄԵՆԸ ԾԱԽՍԵՐ` | C175: x | D175: =D32+D151 -> 382432 | E175: =E32+E152 -> 0 | F175: =F32+F151 -> 382432 | G175: =G32+G151 -> 36849 | H175: =H32+H151 -> 71215 | I175: =I32+I151 -> 97120 | J175: =J32+J151 -> 382432
A177: § ¦ § դեկտ»Ùµ»ñ ¦ 2022 Ã.
A179: ÐÆØÜ²ðÎÆ ÔºÎ²ì²ðª _______________ Է. Արշակյան _________________
A180: (ëïáñ³·ñáõÃÛáõÝ) (².Ð.².)
A181: Î.î.
A183: Î.î üÆÜ²Üê²Î²Ü Ì²è²ÚàôÂÚ²Ü äºîª _______________ _________________ | G183: Ն. Մուրադյան
B184: (¶ÈÊ²ìàð Ð²Þì²ä²Ð) | E184: (ëïáñ³·ñáõÃÛáõÝ) | G184: (².Ð.².)

Sheet zags (hidden)
I1: Ð³í»Éí³Í N 2
H3: úñÇÝ³Ï»ÉÇ Ó¨ N1
G4: h³ëï³ïí»É ¿ ÐÐ ýÇÝ³ÝëÝ»ñÇ ¨ ¿ÏáÝáÙÇÏ³ÛÇ
H5: Ý³Ë³ñ³ñÇ 23 ÑáõÉÇëÇ 2007 Ãí³Ï³ÝÇ
B6: §Ð ² ê î ² î àô Ø ºØª¦ | G6: N 597-Ü Ññ³Ù³Ýáí
A8: Ý³Ë³Ñ³ßÇíÁª 2640,0 երկու միլիÇáÝ վեց Ñ³ñÛáõñ քառասուն հազ. դրամ
A9: ( ÁÝ¹³Ù»ÝÁ ·áõÙ³ñÁ Ãí»ñáí ¨ ï³é»ñáí****)
A10: _______________________________________________________________________________________________________________ Ñ³½³ñ ¹ñ³Ù ·áõÙ³ñáí:
A12: __________________________________________________________________________________________ | B12: Է. Արշակյան | H12: Î.î.
A13: (ÐÐ å»ï³Ï³Ý Ï³é³í³ñÙ³Ý Ù³ñÙÝÇ Õ»Ï³í³ñÇ /Ñ³Ù³ÛÝùÇ Õ»Ï³í³ñÇ/ ëïáñ³·ñáõÃÛáõÝÁ ¨ ².Ð.².)
A14: §28 ¦ դեկտեմբերի 2022թ
B15: Ü²Ê²Ð²ÞÆì*
B16: ´ Ú àô æ º î ² Ú Æ Ü Ð Æ Ø Ü ² ð Î Æ ä ² Ð ä ² Ü Ø ² Ü Ì ² Ê ê º ð Æ
B17: §01¦ §ÐáõÝí³ñÇ ¦ 2023 Ã. -- §30¦ §¹»Ïï»Ùµ»ñÇ ¦ 2023 Ã.
A19: 1. ÐÇÙÝ³ñÏÇ ³Ýí³ÝáõÙÁ ՔԿԱԳ | G19: 8. ***** ´Ûáõç»ï³ÛÇÝ Í³Ëë»ñÇ ·áñÍ³é³Ï³Ý ¹³ë³Ï³ñ·.
G20: Í³ÍÏ³·Çñ | H20: 01 | I20: 3 | J20: 3
A21: 3. ÐÇÙÝ³ñÏÇ ï»Õ³µ³ßËÙ³Ý Ù³ñ½Ç ¨ Ñ³Ù³ÛÝùÇ Ïá¹Ý Áëï | G21: 9. Ìñ³·ñÇ ³Ýí³ÝáõÙÁ_պատվիրակված լիազոր.
A22: µÛáõç»ï³ÛÇÝ Í³Ëë»ñÇ ï³ñ³Íù³ÛÇÝ ¹³ë³Ï³ñ·Ù³Ý | G22: ________________________________
A23: 4. ** ÐÐ å»ï³Ï³Ý Ï³é³í³ñÙ³Ý (ï»Õ³Ï³Ý ÇÝùÝ³Ï³é³í³ñÙ³Ý) Ù³ñÙÝÇ | G23: 10. Ìñ³·ñÇ Ïá¹Á
A24: ³Ýí³ÝáõÙÁ Լոռու մարզպետարան | G24: 11.*** ÐÐ å»ï³Ï³Ý Ï³é³í³ñÙ³Ý (îÆ)
A25: 5. ÐÇÙÝ³ñÏÁ ëå³ë³ñÏáÕ ï»Õ³Ï³Ý ·³ÝÓ³å»ï³Ï³Ý µ³ÅÝÇ (î¶´) ³Ýí³ÝáõÙÁ Տաշիրի | G25: Ù³ñÙÝÇ Ïá¹Ý Áëï µÛáõç»ï³ÛÇÝ Í³Ëë»ñÇ ·»ñ³ï»ëã³Ï.
A26: 6. ÐÇÙÝ³ñÏÇª ï»Õ³Ï³Ý ·³ÝÓ³å»ï³Ï³Ý µ³ÅÝáõÙ (î¶´) Ñ³ßí³éÙ³Ý Ñ³Ù³ñÁ | G26: ¹³ë³Ï³ñ·Ù³Ý
A27: 7. üÇÝ³Ýë³íáñÙ³Ý ³ÕµÛáõñÇ Ïá¹Á (ÐÐ å»ï³Ï³Ý µÛáõç»ª 1, Ñ³Ù³ÛÝùÇ µÛáõç»ª 2) | E27: 2 | G27: 12. â³÷Ç ÙÇ³íáñÁª Ñ³½³ñ ¹ñ³Ù
H28: 900272132029
A29: îáÕÇ NN | B29: ´Ûáõç»ï³ÛÇÝ Í³Ëë»ñÇ ïÝï»ë³·Çï³Ï³Ý ¹³ë³Ï³ñ·Ù³Ý ï³ññ»ñ | D29: ÜáõÛÝ Å³Ù³Ý³Ï³Ñ³ïí³ÍÇ Ñ³Ù³ñ Ý³ËÏÇÝáõÙ Ñ³ëï³ïí³Íª ·áñÍáÕ | F29: êáõÛÝ Ý³Ë³Ñ³ßíáí Ñ³ëï³ïíáÕ óáõó³ÝÇßÝ»ñÁ | G29: ³Û¹ ÃíáõÙª Áëï »é³ÙëÛ³ÏÝ»ñÇ (»é³ÙëÛ³ÏÇ ³ÙÇëÝ»ñÇ)³×áÕ³Ï³Ý
B30: ³Ýí³ÝáõÙÝ»ñÁ | C30: NN | D30: Ý³Ë³Ñ³ßíÇ óáõó³ÝÇßÝ»ñÁ | E30: Ý³Ë³Ñ³ßíáõÙ Ï³ï³ñí³Í ÷á÷áËáõÃÛáõÝ-Ý»ñÁ (³í»É³óáõÙÁª /+/, å³Ï³ë»óáõÙÁª/-/ | G30: I | H30: II | I30: III | J30: IV
A31: ² | B31: ´ | C31: ¶ | D31: 1 | E31: 2 | F31: 3 | G31: 4 | H31: 5 | I31: 6 | J31: 7
A32: 1100000 | B32: ². ÀÜÂ²òÆÎ Ì²Êêºðª ÀÜ¸²ØºÜÀ, | C32: x | D32: =D33+D42+D138 -> 2640 | E32: =E33+E42+E51+E66+E69+E63 -> 0 | F32: =F33+F42+F138 -> 2640 | G32: =G33+G42+G131 -> 660 | H32: =H33+H42+H131 -> 1320 | I32: =I33+I42+I131 -> 1980 | J32: =J33+J42+J131 -> 2640
A33: 1110000 | B33: 1.äºî²Î²Ü, îºÔ²Î²Ü ÆÜøÜ²Î²è²ì²ðØ²Ü Ø²ðØÆÜÜºðÆ, ¸ð²Üò ºÜÂ²Î² ´Úàôæºî²ÚÆÜ ÐÆØÜ²ðÎÜºðÆ ²ÞÊ²îàÔÜºðÆ ²ÞÊ²î²ì²ðÒÀª ÀÜ¸²ØºÜÀ, ³Û¹ ÃíáõÙª | C33: x | D33: =D34 -> 2640 | E33: =E35 -> 0 | F33: =F34 -> 2640 | G33: =G34 -> 660 | H33: =H34 -> 1320 | I33: =I34 -> 1980 | J33: =J34 -> 2640
A34: 1110000 | B34: 1,1 ²ßË³ï³ÝùÇ í³ñÓ³ïñáõÃÛáõÝ | C34: x | D34: =SUM(D35:D41) -> 2640 | F34: =SUM(F35:F41) -> 2640 | G34: =SUM(G35:G41) -> 660 | H34: =SUM(H35:H41) -> 1320 | I34: =SUM(I35:I41) -> 1980 | J34: =SUM(J35:J41) -> 2640
A35: 1111000 | B35: -²ßË³ïáÕÝ»ñÇ ³ßË³ï³í³ñÓ»ñ ¨ Ñ³í»É³í×³ñÝ»ñ | C35: 411100 | D35: 2640 | E35: 0 | F35: =D35+E35 -> 2640 | G35: 660 | H35: 1320 | I35: 1980 | J35: =F35 -> 2640
A36: 1112000 | B36: - ä³ñ·¨³ïñáõÙÝ»ñ, ¹ñ³Ù³Ï³Ý Ëñ³ËáõëáõÙÝ»ñ ¨ Ñ³ïáõÏ í×³ñÝ»ñ | C36: 411200 | D36: 0 | F36: =D36+E36 -> 0 | H36: 0 | I36: 0 | J36: =F36 -> 0
A37: 1113000 | B37: -ø³Õ³ù³óÇ³Ï³Ý, ¹³ï³Ï³Ý ¨ å»ï³Ï³Ý Í³é³ÛáÕÝ»ñÇ å³ñ·¨³ïñáõÙ | C37: 411300 | F37: 0 | J37: 0
A38: 1114000 | B38: -ÐÐ ýÇÝ³ÝëÝ»ñÇ ¨ ¿ÏáÝáÙÇÏ³ÛÇ Ý³Ë³ñ³ñáõÃÛ³Ý, Ñ³ñÏ³ÛÇÝ ¨ Ù³ùë³ÛÇÝ Ù³ñÙÇÝÝ»ñÇ ³ßË³ïáÕÝ»ñÇ å³ñ·¨³ïñáõÙ | C38: 411400 | F38: 0 | J38: 0
A39: 1115000 | B39: -²ÛÉ í³ñÓ³ïñáõÃÛáõÝÝ»ñ | C39: 411500 | F39: 0 | J39: 0
A40: 1116000 | B40: -´Ý»Õ»Ý ³ßË³ï³í³ñÓ»ñ ¨ Ñ³í»É³í×³ñÝ»ñ | C40: 412100 | F40: 0 | J40: 0
A41: 1117000 | B41: - êáóÇ³É³Ï³Ý ³å³ÑáíáõÃÛ³Ý í×³ñÝ»ñ | C41: 413100 | D41: 0 | F41: 0 | G41: 0 | H41: 0 | I41: 0 | J41: =F41 -> 0
A42: 1120000 | B42: 2 Ì³é³ÛáõÃÛáõÝÝ»ñÇ ¨ ³åñ³ÝùÝ»ñÇ Ó»éù µ»ñáõÙ | C42: x | D42: =D43+D55+D66+D69+D51+D64 -> 0 | E42: =E43 -> 0 | F42: =F43+F55+F66+F69+F51+F64 -> 0 | G42: =G43+G51+G55+G64+G66+G69 -> 0 | H42: =H43+H51+H55+H64+H66+H69 -> 0 | I42: =I43+I51+I55+I64+I66+I69 -> 0 | J42: =F42 -> 0
A43: 1121000 | B43: 2.1 Þ³ñáõÝ³Ï³Ï³Ý Í³Ëë»ñ | D43: =SUM(D44:D49) -> 0 | E43: =E45+E47 -> 0 | F43: =SUM(F44:F49) -> 0 | G43: =SUM(G44:G49) -> 0 | H43: =SUM(H44:H49) -> 0 | I43: =SUM(I44:I49) -> 0 | J43: =SUM(J44:J49) -> 0
A44: 1121100 | B44: -·áñÍ³éÝ³Ï³Ý ¨ µ³ÝÏ³ÛÇÝ Í³é³ÛáõÃÛáõÝÝ»ñÇ Í³Ëë»ñ | C44: 421100 | F44: =D44+E44 -> 0 | J44: 0
A45: 1121200 | B45: -¿Ý»ñ·»ïÇÏ Í³é³ÛáõÃÛáõÝÝ»ñ | C45: 421200 | D45: 0 | E45: 0 | F45: 0 | G45: 0 | H45: 0 | I45: 0 | J45: =F45 -> 0
A46: 1121300 | B46: -ÎáÙáõÝ³É Í³é³ÛáõÃÛáõÝÝ»ñ | C46: 421300 | D46: 0 | F46: 0 | G46: 0 | H46: 0 | I46: 0 | J46: =F46 -> 0
A47: 1121400 | B47: -Î³åÇ Í³é³ÛáõÃÛáõÝÝ»ñ | C47: 421400 | D47: 0 | E47: 0 | F47: 0 | G47: 0 | H47: 0 | I47: 0 | J47: =F47 -> 0
A48: 1121500 | B48: -²å³Ñáí³·ñ³Ï³Ý Í³Ëë»ñ | C48: 421500 | F48: 0 | J48: 0
A49: 1121600 | B49: -¶áõÛùÇ ¨ ë³ñù³íáñáõÙÝ»ñÇ í³ñÓ³Ï³ÉáõÃÛáõÝ | C49: 421600 | F49: 0 | J49: 0
A50: 1121700 | B50: -²ñï³·»ñ³ï»ëã³Ï³Ý Í³Ëë»ñ | C50: 421700 | J50: 0
A51: 1122000 | B51: 2.2 ¶áñÍáõÕáõÙÝ»ñÇ ¨ ßñç³·³ÛáõÃÛ³Ý Í³Ëë»ñ | C51: x | D51: =D52 -> 0 | E51: 0 | F51: 0 | G51: 0 | H51: 0 | I51: 0 | J51: 0
A52: 1122100 | B52: -Ü»ñùÇÝ ·áñÍáõÕáõÙÝ»ñ | C52: 422100 | D52: 0 | E52: 0 | F52: =D52+E52 -> 0 | G52: 0 | H52: 0 | I52: 0 | J52: =F52 -> 0
A53: 1122200 | B53: -²ñï³ë³ÑÙ³ÝÛ³Ý ·áñÍáõÕáõÙÝ»ñÇ ·Íáí Í³Ëë»ñ | C53: 422200 | F53: =D53+E53 -> 0 | J53: 0
A54: 1122300 | B54: -²ÛÉ ïñ³Ýëåáñï³ÛÇÝ Í³Ëë»ñ | C54: 422900 | F54: =D54+E54 -> 0 | J54: 0
A55: 1123000 | B55: 2.3 ä³ÛÙ³Ý³·ñ³ÛÇÝ ³ÛÉ Í³é³ÛáõÃÛáõÝÝ»ñÇ Ó»éù µ»ñáõÙ | C55: x | D55: =SUM(D56:D63) -> 0 | F55: =SUM(F56:F63) -> 0 | G55: =SUM(G56:G63) -> 0 | H55: =SUM(H56:H63) -> 0 | I55: =SUM(I56:I63) -> 0 | J55: =F55 -> 0
A56: 1123100 | B56: -ì³ñã³Ï³Ý Í³é³ÛáõÃÛáõÝÝ»ñ | C56: 423100 | F56: =D56+E56 -> 0 | J56: =F56 -> 0
A57: 1123200 | B57: -Ð³Ù³Ï³ñ·ã³ÛÇÝ Í³é³ÛáõÃÛáõÝÝ»ñ | C57: 423200 | D57: 0 | F57: =D57+E57 -> 0 | G57: 0 | H57: 0 | I57: 0 | J57: =F57 -> 0
A58: 1123300 | B58: -²ßË³ï³Ï³½ÙÇ Ù³ëÝ³·Çï³Ï³Ý ½³ñ·³óÙ³Ý Í³é³ÛáõÃÛáõÝÝ»ñ | C58: 423300 | F58: 0
A59: 1123400 | B59: -î»Õ³Ï³ïí³Ï³Ý Í³é³ÛáõÃÛáõÝÝ»ñ | C59: 423400 | D59: 0 | F59: 0 | G59: 0 | H59: 0 | I59: 0 | J59: =F59 -> 0
A60: 1123500 | B60: -Î³é³í³ñã³Ï³Ý Í³é³ÛáõÃÛáõÝÝ»ñ | C60: 423500 | F60: 0 | J60: 0
A61: 1123600 | B61: - Î»Ýó³Õ³ÛÇÝ ¨ Ñ³Ýñ³ÛÇÝ ëÝÝ¹Ç Í³é³ÛáõÃÛáõÝÝ»ñ | C61: 423600 | F61: 0 | J61: 0
A62: 1123700 | B62: -Ü»ñÏ³Û³óáõóã³Ï³Ý Í³Ëë»ñ | C62: 423700 | D62: 0 | F62: 0 | G62: 0 | H62: 0 | I62: 0 | J62: 0
A63: 1123800 | B63: -ÀÝ¹Ñ³Ýáõñ µÝáõÛÃÇ ³ÛÉ Í³é³ÛáõÃÛáõÝÝ»ñ | C63: 423900 | D63: 0 | E63: 0 | F63: 0 | G63: 0 | H63: 0 | I63: 0 | J63: 0
A64: 1124000 | B64: 2.4 ²ÛÉ Ù³ëÝ³·Çï³Ï³Ý Í³é³ÛáõÃÛáõÝÝ»ñÇ Ó»éù µ»ñáõÙ | C64: x | D64: =D65 -> 0 | F64: =F65 -> 0 | G64: =G65 -> 0 | H64: =H65 -> 0 | I64: =I65 -> 0 | J64: 0
A65: 1124100 | B65: -Ø³ëÝ³·Çï³Ï³Ý Í³é³ÛáõÃÛáõÝÝ»ñ | C65: 424100 | J65: 0
A66: 1125000 | B66: 2.5 ÀÝÃ³óÇÏ Ýáñá·áõÙ ¨ å³Ñå³ÝáõÙ (Í³é³ÛáõÃÛáõÝÝ»ñ ¨ ÝÛáõÃ»ñ) | C66: x | D66: =D67+D68 -> 0 | E66: 0 | F66: 0 | G66: 0 | H66: 0 | I66: 0 | J66: 0
A67: 1125100 | B67: -Þ»Ýù»ñÇ ¨ Ï³éáõÛóÝ»ñÇ ÁÝÃ³óÇÏ Ýáñá·áõÙ ¨ å³Ñå³ÝáõÙ | C67: 425100 | D67: 0 | E67: 0 | F67: =D67+E67 -> 0 | G67: 0 | H67: 0 | I67: 0 | J67: =F67 -> 0
A68: 1125200 | B68: -Ø»ù»Ý³Ý»ñÇ ¨ ë³ñù³íáñáõÙÝ»ñÇ ÁÝÃ³óÇÏ Ýáñá·áõÙ ¨ å³Ñå³ÝáõÙ | C68: 425200 | D68: 0 | E68: 0 | F68: =D68+E68 -> 0 | G68: 0 | H68: 0 | I68: 0 | J68: 0
A69: 1126000 | B69: 2.6 ÜÛáõÃ»ñ | C69: x | D69: =SUM(D70:D77) -> 0 | E69: =E77+E70 -> 0 | F69: =SUM(F70:F77) -> 0 | G69: =SUM(G70:G77) -> 0 | H69: =SUM(H70:H77) -> 0 | I69: =SUM(I70:I77) -> 0 | J69: 0
A70: 1126100 | B70: -¶ñ³ë»ÝÛ³Ï³ÛÇÝ ÝÛáõÃ»ñ ¨ Ñ³·áõëï | C70: 426100 | D70: 0 | E70: 0 | F70: =D70+E70 -> 0 | G70: 0 | H70: 0 | I70: 0 | J70: 0
A71: 1126200 | B71: -¶ÛáõÕ³ïÝï»ë³Ï³Ý ³åñ³ÝùÝ»ñ | C71: 426200 | F71: =D71+E71 -> 0 | J71: 0
A72: 1126300 | B72: -ì»ñ³å³ïñ³ëïÙ³Ý ¨ áõëáõóÙ³Ý ÝÛáõÃ»ñ | C72: 426300 | F72: 0 | J72: 0
A73: 1126400 | B73: -îñ³Ýëåáñï³ÛÇÝ ÝÛáõÃ»ñ | C73: 426400 | D73: 0 | F73: 0 | G73: 0 | H73: 0 | I73: 0 | J73: 0
A74: 1126500 | B74: -Þñç³Ï³ ÙÇç³í³ÛñÇ å³ßïå³ÝáõÃÛ³Ý ¨ ·Çï³Ï³Ý ÝÛáõÃ»ñ | C74: 426500 | F74: 0 | J74: 0
A75: 1126600 | B75: -²éáÕç³å³Ñ³Ï³Ý ¨ É³µáñ³ïáñ ÝÛáõÃ»ñ | C75: 426600 | F75: 0 | J75: =F75 -> 0
A76: 1126700 | B76: -Î»Ýó³Õ³ÛÇÝ ¨ Ñ³Ýñ³ÛÇÝ ëÝÝ¹Ç ÝÛáõÃ»ñ | C76: 426700 | D76: 0 | E76: 0 | F76: 0 | G76: 0 | H76: 0 | I76: 0 | J76: =F76 -> 0
A77: 1126800 | B77: -Ð³ïáõÏ Ýå³ï³Ï³ÛÇÝ ³ÛÉ ÝÛáõÃ»ñ | C77: 426900 | D77: 0 | E77: 0 | F77: =D77+E77 -> 0 | G77: 0 | H77: 0 | I77: 0 | J77: =F77 -> 0
A78: 1130000 | B78: 3 îáÏáë³í×³ñÝ»ñ | C78: x | D78: 0 | F78: 0 | G78: 0 | H78: 0 | I78: 0 | J78: 0
A79: 1130100 | B79: -Ü»ñùÇÝ ³ñÅ»ÃÕÃ»ñÇ ïáÏáë³í×³ñÝ»ñ | C79: 441100 | J79: 0
A80: 1130200 | B80: -Ü»ñùÇÝ í³ñÏ»ñÇ ïáÏáë³í×³ñÝ»ñ | C80: 441200 | J80: 0
A81: 1130300 | B81: -²ñï³ùÇÝ ³ñÅ»ÃÕÃ»ñÇ ·Íáí ïáÏáë³í×³ñÝ»ñ | C81: 442100 | J81: 0
A82: 1130400 | B82: -²ñï³ùÇÝ í³ñÏ»ñÇ ·Íáí ïáÏáë³í×³ñÝ»ñ | C82: 442200 | J82: 0
A83: 1131000 | B83: öáË³éáõÃÛáõÝÝ»ñÇ Ñ»ï Ï³åí³Í í×³ñÝ»ñ | C83: x | J83: 0
A84: 1131100 | B84: -öáË³Ý³ÏÙ³Ý Ïáõñë»ñÇ µ³ó³ë³Ï³Ý ï³ñµ»ñáõÃÛáõÝ | C84: 443100 | J84: 0
A85: 1131200 | B85: -îáõÛÅ»ñ | C85: 443200 | J85: 0
A86: 1131300 | B86: -öáË³éáõÃÛáõÝÝ»ñÇ ·Íáí ïáõñù»ñ | C86: 443300 | J86: 0
A87: 1140000 | B87: 4. êáõµëÇ¹Ç³Ý»ñ | C87: x | D87: 0 | F87: 0 | G87: 0 | H87: 0 | I87: 0 | J87: 0
A88: 1141000 | B88: -êáõµëÇ¹Ç³Ý»ñ áã-ýÇÝ³Ýë³Ï³Ý å»ï³Ï³Ý Ï³½Ù³Ï»ñåáõÃÛáõÝÝ»ñÇÝ | C88: 451100 | J88: 0
A89: 1142000 | B89: -êáõµëÇ¹Ç³Ý»ñ ýÇÝ³Ýë³Ï³Ý å»ï³Ï³Ý Ï³½Ù³Ï»ñåáõÃÛáõÝÝ»ñÇÝ | C89: 451200 | J89: 0
A90: 1143000 | B90: -êáõµëÇ¹Ç³Ý»ñ áã å»ï³Ï³Ý áã ýÇÝ³Ýë³Ï³Ý Ï³½Ù³Ï»ñåáõÃÛáõÝÝ»ñÇÝ | C90: 452100 | J90: 0
A91: 1144000 | B91: -êáõµëÇ¹Ç³Ý»ñ áã å»ï³Ï³Ý ýÇÝ³Ýë³Ï³Ý Ï³½Ù³Ï»ñåáõÃÛáõÝÝ»ñÇÝ | C91: 452200 | J91: 0
A92: 1150000 | B92: 5.¸ñ³Ù³ßÝáñÑÝ»ñ | C92: x | D92: 0 | F92: 0 | G92: 0 | H92: 0 | I92: 0 | J92: 0
A93: 1151000 | B93: ¸ñ³Ù³ßÝáñÑÝ»ñ ûï³ñ»ñÏñÛ³ Ï³é³í³ñáõÃÛáõÝÝ»ñÇÝ | C93: x | D93: 0 | F93: 0 | G93: 0 | H93: 0 | I93: 0 | J93: 0
A94: 1151100 | B94: ÀÝÃ³óÇÏ ¹ñ³Ù³ßÝáñÑÝ»ñ ûï³ñ»ñÏñÛ³ Ï³é³í³ñáõÃÛáõÝÝ»ñÇÝ | C94: 461100 | J94: 0
A95: 1151200 | B95: Î³åÇï³É ¹ñ³Ù³ßÝáñÑÝ»ñ ûï³ñ»ñÏñÛ³ Ï³é³í³ñáõÃÛáõÝÝ»ñÇÝ | C95: 461200 | J95: 0
A96: 1152000 | B96: ¸ñ³Ù³ßÝáñÑÝ»ñ ÙÇç³½·³ÛÇÝ Ï³½Ù³Ï»ñåáõÃÛáõÝÝ»ñÇÝ | C96: x | D96: 0 | F96: 0 | G96: 0 | H96: 0 | I96: 0 | J96: 0
A97: 1152100 | B97: ÀÝÃ³óÇÏ ¹ñ³Ù³ßÝáñÑÝ»ñ ÙÇç³½·³ÛÇÝ Ï³½Ù³Ï»ñåáõÃÛáõÝÝ»ñÇÝ | C97: 462100 | J97: 0
A98: 1152200 | B98: Î³åÇï³É ¹ñ³Ù³ßÝáñÑ»ñ ÙÇç³½·³ÛÇÝ Ï³½Ù³Ï»ñåáõÃÛáõÝÝ»ñÇÝ | C98: 462200 | J98: 0
A99: 1153000 | B99: ÀÝÃ³óÇÏ ¹ñ³Ù³ßÝáñÑÝ»ñ å»ï³Ï³Ý Ñ³ïí³ÍÇ ³ÛÉ Ù³Ï³ñ¹³ÏÝ»ñÇÝ | C99: x | D99: 0 | F99: 0 | G99: 0 | H99: 0 | I99: 0 | J99: 0
A100: 1153100 | B100: ÀÝÃ³óÇÏ ¹ñ³Ù³ßÝáñÑÝ»ñ å»ï³Ï³Ý Ï³é³í³ñÙ³Ý Ñ³ïí³ÍÇÝ | C100: 463100 | J100: 0
A101: 1153200 | B101: ÀÝÃ³óÇÏ ëáõµí»ÝóÇ³Ý»ñ Ñ³Ù³ÛÝùÝ»ñÇÝ | C101: 463200 | J101: 0
A102: 1153300 | B102: ä»ï³Ï³Ý µÛáõç»Çó Ñ³Ù³ÛÝùÝ»ñÇ µÛáõç»Ý»ñÇÝ ýÇÝ³Ýë³Ï³Ý Ñ³Ù³Ñ³ñÃ»óÙ³Ý ëÏ½µáõÝùáí ïñíáÕ ¹áï³óÇ³Ý»ñ | C102: 463300 | J102: 0
A103: 1153400 | B103: úñ»ÝùÝ»ñÇ ÏÇñ³ñÏÙ³Ý ³ñ¹ÛáõÝùáõÙ Ñ³Ù³ÛÝùÝ»ñÇ µÛáõç»Ý»ñÇ ÏáñáõëïÝ»ñÇ ÷áËÑ³ïáõóáõÙ | C103: 463400 | J103: 0
A104: 1153500 | B104: ²ÛÉ ÁÝÃ³óÇÏ ¹ñ³Ù³ßÝáñÑÝ»ñ Ñ³Ù³ÛÝùÝ»ñÇÝ | C104: 463500 | J104: 0
A105: 1153700 | B105: ÀÝÃ³óÇÏ ¹ñ³Ù³ßÝáñÑÝ»ñ å»ï³Ï³Ý ¨ Ñ³Ù³ÛÝùÝ»ñÇ áã ³é¨ïñ³ÛÇÝ Ï³½Ù³Ï»ñåáõÃÛáõÝÝ»ñÇÝ | C105: 463700 | J105: 0
A106: 1153800 | B106: ÀÝÃ³óÇÏ ¹ñ³Ù³ßÝáñÑÝ»ñ å»ï³Ï³Ý ¨ Ñ³Ù³ÛÝùÝ»ñÇ ³é¨ïñ³ÛÇÝ Ï³½Ù³Ï»ñåáõÃÛáõÝÝ»ñÇÝ | C106: 463800 | J106: 0
A107: 1153900 | B107: ²ÛÉ ÁÝÃ³óÇÏ ¹ñ³Ù³ßÝáñÑÝ»ñ | C107: 463900 | J107: 0
A108: 1154000 | B108: Î³åÇï³É ¹ñ³Ù³ßÝáñÑÝ»ñ å»ï³Ï³Ý Ñ³ïí³ÍÇ ³ÛÉ Ù³Ï³ñ¹³ÏÝ»ñÇÝ | C108: x | D108: 0 | F108: 0 | G108: 0 | H108: 0 | I108: 0 | J108: 0
A109: 1154100 | B109: Î³åÇï³É ¹ñ³Ù³ßÝáñÑÝ»ñ å»ï³Ï³Ý Ï³é³í³ñÙ³Ý Ñ³ïí³ÍÇÝ | C109: 465100 | J109: 0
A110: 1154200 | B110: Î³åÇï³É ëáõµí»ÝóÇ³Ý»ñ Ñ³Ù³ÛÝùÝ»ñÇÝ | C110: 465200 | J110: 0
A111: 1154300 | B111: ²ÛÉ Ï³åÇï³É ¹ñ³Ù³ßÝáñÑÝ»ñ Ñ³Ù³ÛÝùÝ»ñÇÝ | C111: 465300 | J111: 0
A112: 1154500 | B112: Î³åÇï³É ¹ñ³Ù³ßÝáñÑÝ»ñ å»ï³Ï³Ý ¨ Ñ³Ù³ÛÝùÝ»ñÇ áã ³é¨ïñ³ÛÇÝ Ï³½Ù³Ï»ñåáõÃÛáõÝÝ»ñÇÝ | C112: 465500 | J112: 0
A113: 1154600 | B113: Î³åÇï³É ¹ñ³Ù³ßÝáñÑÝ»ñ å»ï³Ï³Ý ¨ Ñ³Ù³ÛÝù³ÛÇÝ ³é¨ïñ³ÛÇÝ Ï³½Ù³Ï»ñåáõÃÛáõÝÝ»ñÇÝ | C113: 465600 | J113: 0
A114: 1154700 | B114: ²ÛÉ Ï³åÇï³É ¹ñ³Ù³ßÝáñÑÝ»ñ | C114: 465700 | J114: 0
A115: 1160000 | B115: 6. êàòÆ²È²Î²Ü Üä²êîÜºð ºì ÎºÜê²ÂàÞ²ÎÜºð | C115: x | D115: 0 | F115: 0 | G115: 0 | H115: 0 | I115: 0 | J115: 0
A116: 1161000 | B116: 6.1 êàòÆ²È²Î²Ü ²ä²ÐàìàôÂÚ²Ü Üä²êîÜºð | C116: x | D116: 0 | F116: 0 | G116: 0 | H116: 0 | I116: 0 | J116: 0
A117: 1161100 | B117: -îÝ³ÛÇÝ ïÝï»ëáõÃÛáõÝÝ»ñÇÝ ¹ñ³Ùáí í×³ñíáÕ ëáóÇ³É³Ï³Ý ³å³ÑáíáõÃÛ³Ý í×³ñÝ»ñ | C117: 471100 | J117: 0
A118: 1161200 | B118: -êáóÇ³É³Ï³Ý ³å³ÑáíáõÃÛ³Ý µÝ»Õ»Ý Ýå³ëïÝ»ñ Í³é³ÛáõÃÛáõÝÝ»ñ Ù³ïáõóáÕÝ»ñÇÝ | C118: 471200 | J118: 0
A119: 1162000 | B119: 6.2 êàòÆ²È²Î²Ü ú¶ÜàôÂÚ²Ü ¸ð²Ø²Î²Ü ²ðî²Ð²ÚîàôÂÚ²Ø´ Üä²êîÜºð (´ÚàôæºÆò) | C119: x | D119: 0 | F119: 0 | G119: 0 | H119: 0 | I119: 0 | J119: 0
A120: 1162100 | B120: -ÐÇí³Ý¹áõÃÛ³Ý ¨ Ñ³ßÙ³Ý¹³ÙáõÃÛ³Ý Ýå³ëïÝ»ñ µÛáõç»Çó | C120: 472100 | J120: 0
A121: 1162200 | B121: -Ø³ÛñáõÃÛ³Ý Ýå³ëïÝ»ñ µÛáõç»Çó | C121: 472200 | J121: 0
A122: 1162300 | B122: -ºñ»Ë³Ý»ñÇ Ï³Ù ÁÝï³Ý»Ï³Ý Ýå³ëïÝ»ñ µÛáõç»Çó | C122: 472300 | J122: 0
A123: 1162400 | B123: -¶áñÍ³½ñÏáõÃÛ³Ý Ýå³ëïÝ»ñ µÛáõç»Çó | C123: 472400 | J123: 0
A124: 1162500 | B124: -Î»Ýë³Ãáß³ÏÇ ³ÝóÝ»Éáõ Ñ»ï Ï³åí³Í ¨ ï³ñÇù³ÛÇÝ Ýå³ëïÝ»ñ µÛáõç»Çó | C124: 472500 | J124: 0
A125: 1162600 | B125: -ÐáõÕ³ñÏ³íáñáõÃÛ³Ý Ýå³ëïÝ»ñ µÛáõç»Çó | C125: 472600 | J125: 0
A126: 1162700 | B126: -ÎñÃ³Ï³Ý, Ùß³ÏáõÃ³ÛÇÝ ¨ ëåáñï³ÛÇÝ Ýå³ëïÝ»ñ µÛáõç»Çó | C126: 472700 | J126: 0
A127: 1162800 | B127: -´Ý³Ï³ñ³Ý³ÛÇÝ Ýå³ëïÝ»ñ µÛáõç»Çó | C127: 472800 | J127: 0
A128: 1162900 | B128: -²ÛÉ Ýå³ëïÝ»ñ µÛáõç»Çó | C128: 472900 | J128: 0
A129: 1163000 | B129: 6.3 ÎºÜê²ÂàÞ²ÎÜºð | C129: x | D129: 0 | F129: 0 | G129: 0 | H129: 0 | I129: 0 | J129: 0
A130: 1163100 | B130: -Ï»Ýë³Ãáß³ÏÝ»ñ | C130: 474100 | J130: 0
A131: 1170000 | B131: 7. ²ÚÈ Ì²Êêºð | C131: x | D131: =D135 -> 0 | F131: =F135 -> 0 | G131: =G135 -> 0 | H131: =H135 -> 0 | I131: =I135 -> 0 | J131: =J135 -> 0
A132: 1171000 | B132: 7.1 ÜìÆð²îìàôÂÚàôÜÜºð àâ-Î²è²ì²ðâ²Î²Ü (Ð²ê²ð²Î²Î²Ü) Î²¼Ø²ÎºðäàôÂÚàôÜÜºðÆÜ | C132: x | D132: 0 | F132: 0 | G132: 0 | H132: 0 | I132: 0 | J132: 0
A133: 1171100 | B133: -îÝ³ÛÇÝ ïÝï»ëáõÃÛáõÝÝ»ñÇÝ Í³é³ÛáõÃÛáõÝÝ»ñ Ù³ïáõóáÕ` ß³ÑáõÛÃ ãÑ»ï³åÝ¹áÕ Ï³½Ù³Ï»ñåáõÃÛáõÝÝ»ñÇÝ ÝíÇñ³ïíáõÃÛáõÝÝ»ñ | C133: 481100 | J133: 0
A134: 1171200 | B134: -ÜíÇñ³ïíáõÃÛáõÝÝ»ñ ³ÛÉ ß³ÑáõÛÃ ãÑ»ï³åÝ¹áÕ Ï³½Ù³Ï»ñåáõÃÛáõÝÝ»ñÇÝ | C134: 481900 | J134: 0
A135: 1172000 | B135: 7.2 Ð²ðÎºð, ä²ðî²¸Æð ìÖ²ðÜºð ºì îàôÚÄºð, àðàÜø Î²è²ì²ðØ²Ü î²ð´ºð Ø²Î²ð¸²ÎÜºðÆ ÎàÔØÆò ÎÆð²èìàôØ ºÜ ØÆØÚ²Üò ÜÎ²îØ²Ø´ | C135: x | D135: =D137+D138 -> 0 | F135: =F137+F138 -> 0 | G135: =G137+G138 -> 0 | H135: =H137+H138 -> 0 | I135: =I137+I138 -> 0 | J135: =F135 -> 0
A136: 1172100 | B136: -²ßË³ï³í³ñÓÇ ýáÝ¹ | C136: 482100 | J136: 0
A137: 1172200 | B137: -²ÛÉ Ñ³ñÏ»ñ | C137: 482200 | D137: 0 | F137: 0 | G137: 0 | H137: 0 | I137: 0 | J137: =F137 -> 0
A138: 1172300 | B138: -ä³ñï³¹Çñ í×³ñÝ»ñ | C138: 482300 | D138: 0 | F138: 0 | G138: 0 | H138: 0 | I138: 0 | J138: =F138 -> 0
A139: 1172400 | B139: -ä»ï³Ï³Ý Ñ³ïí³ÍÇ ï³ñµ»ñ Ù³Ï³ñ¹³ÏÝ»ñÇ ÏáÕÙÇó ÙÇÙÛ³Ýó ÝÏ³ïÙ³Ùµ ÏÇñ³éíáÕ ïáõÛÅ»ñ | C139: 482400 | J139: 0
A140: 1173000 | B140: 7.3 ¸²î²ð²ÜÜºðÆ ÎàÔØÆò ÜÞ²Ü²Îì²Ì îàôÚÄºð ºì îàô¶²ÜøÜºð | C140: x | D140: 0 | F140: 0 | G140: 0 | H140: 0 | I140: 0 | J140: 0
A141: 1173100 | B141: -¸³ï³ñ³ÝÝ»ñÇ ÏáÕÙÇó Ýß³Ý³Ïí³Í ïáõÛÅ»ñ ¨ ïáõ·³ÝùÝ»ñ | C141: 483100 | J141: 0
A142: 1174000 | B142: 7.4 ´Ü²Î²Ü ²ÔºîÜºðÆò Î²Ø ²ÚÈ ´Ü²Î²Ü ä²îÖ²èÜºðàì ²è²æ²ò²Ì ìÜ²êÜºðÆ Î²Ø ìÜ²êì²ÌøÜºðÆ ìºð²Î²Ü¶ÜàôØ | C142: x | D142: 0 | F142: 0 | G142: 0 | H142: 0 | I142: 0 | J142: 0
A143: 1174100 | B143: -´Ý³Ï³Ý ³Õ»ïÝ»ñÇó ³é³ç³ó³Í íÝ³ëí³ÍùÝ»ñÇ Ï³Ù íÝ³ëÝ»ñÇ í»ñ³Ï³Ý·ÝáõÙ | C143: 484100 | J143: 0
A144: 1174200 | B144: -²ÛÉ µÝ³Ï³Ý å³ï×³éÝ»ñáí ëï³ó³Í íÝ³ëí³ÍùÝ»ñÇ í»ñ³Ï³Ý·ÝáõÙ | C144: 484200 | J144: 0
A145: 1175000 | B145: 7.5 Î²è²ì²ðØ²Ü Ø²ðØÆÜÜºðÆ ¶àðÌàôÜºàôÂÚ²Ü Ðºîºì²Üøàì ²è²æ²ò²Ì ìÜ²êÜºðÆ Î²Ø ìÜ²êì²ÌøÜºðÆ ìºð²Î²Ü¶ÜàôØ | C145: x | D145: 0 | F145: 0 | G145: 0 | H145: 0 | I145: 0 | J145: 0
A146: 1175100 | B146: -Î³é³í³ñÙ³Ý Ù³ñÙÇÝÝ»ñÇ ·áñÍáõÝ»áõÃÛ³Ý Ñ»ï¨³Ýùáí ³é³ç³ó³Í íÝ³ëí³ÍùÝ»ñÇ Ï³Ù íÝ³ëÝ»ñÇ í»ñ³Ï³Ý·ÝáõÙ | C146: 485100 | J146: 0
A147: 1176000 | B147: 7.6 ²ÚÈ Ì²Êêºð | C147: x | D147: 0 | F147: 0 | G147: 0 | H147: 0 | I147: 0 | J147: 0
A148: 1176100 | B148: -²ÛÉ Í³Ëë»ñ | C148: 486100 | J148: 0
A149: 1177000 | B149: 7.7 ä²Ðàôêî²ÚÆÜ ØÆæàòÜºð | C149: x | D149: 0 | F149: 0 | G149: 0 | H149: 0 | I149: 0 | J149: 0
A150: 1177100 | B150: -ä³Ñáõëï³ÛÇÝ ÙÇçáóÝ»ñ | C150: 489100 | J150: 0
A151: 1200000 | B151: Բ, àâ-üÆÜ²Üê²Î²Ü ²ÎîÆìÜºðÆ ¶Ìàì Ì²Êêºð | C151: x | D151: =D152 -> 0 | F151: =F152 -> 0 | G151: =G152 -> 0 | H151: =H152 -> 0 | I151: =I152 -> 0 | J151: =F152 -> 0
A152: 1210000 | B152: 1.ÐÆØÜ²Î²Ü ØÆæàòÜºð | C152: x | D152: =SUM(D153:D158) -> 0 | E152: =E157 -> 0 | F152: =F157 -> 0 | G152: =SUM(G153:G155) -> 0 | H152: =+SUM(H153:H155) -> 0 | I152: =SUM(I153:I157) -> 0 | J152: =F152 -> 0
A153: 1211000 | B153: -Þ»Ýù»ñÇ ¨ ßÇÝáõÃÛáõÝÝ»ñÇ Ó»éù µ»ñáõÙ | C153: 511100 | J153: =F153 -> 0
A154: 1212000 | B154: -Þ»Ýù»ñÇ ¨ ßÇÝáõÃÛáõÝÝ»ñÇ Ï³éáõóáõÙ | C154: 511200 | J154: =F154 -> 0
A155: 1213000 | B155: -Þ»Ýù»ñÇ ¨ ßÇÝáõÃÛáõÝÝ»ñÇ Ï³åÇï³É í»ñ³Ýáñá·áõÙ | C155: 511300 | D155: 0 | F155: 0 | G155: 0 | H155: 0 | I155: 0 | J155: =F155 -> 0
A156: 1214000 | B156: -îñ³Ýëåáñï³ÛÇÝ ë³ñù³íáñáõÙÝ»ñ | C156: 512100 | J156: 0
A157: 1215000 | B157: -ì³ñã³Ï³Ý ë³ñù³íáñáõÙÝ»ñ | C157: 512200 | D157: 0 | E157: 0 | F157: =D157+E157 -> 0 | G157: 0 | H157: 0 | I157: 0 | J157: =F157 -> 0
A158: 1216000 | B158: -²ÛÉ Ù»ù»Ý³Ý»ñ ¨ ë³ñù³íáñáõÙÝ»ñ | C158: 512900 | J158: 0
A159: 1217000 | B159: -²×»óíáÕ ³ÏïÇíÝ»ñ | C159: 513100 | J159: 0
A160: 1218100 | B160: -àã-ÝÛáõÃ³Ï³Ý ÑÇÙÝ³Ï³Ý ÙÇçáóÝ»ñ | C160: 513200 | J160: 0
A161: 1218200 | B161: -¶»á¹»½Ç³Ï³Ý ù³ñï»½³·ñ³Ï³Ý Í³Ëë»ñ | C161: 513300 | J161: 0
A162: 1218300 | B162: -Ü³Ë³·Í³Ñ»ï³½áï³Ï³Ý Í³Ëë»ñ | C162: 513400 | J162: 0
A163: 1220000 | B163: 2.ä²Þ²ðÜºð | C163: x | D163: 0 | F163: 0 | G163: 0 | H163: 0 | I163: 0 | J163: 0
A164: 1221000 | B164: -è³½Ù³í³ñ³Ï³Ý å³ß³ñÝ»ñ | C164: 521100 | J164: 0
A165: 1222000 | B165: -ÜÛáõÃ»ñ ¨ å³ñ³·³Ý»ñ | C165: 522100 | J165: 0
A166: 1223000 | B166: -ì»ñ³í³×³éùÇ Ñ³Ù³ñ Ý³Ë³ï»ëí³Í ³åñ³ÝùÝ»ñ | C166: 523100 | J166: 0
A167: 1224000 | B167: -êå³éÙ³Ý Ýå³ï³Ïáí å³ÑíáÕ å³ß³ñÝ»ñ | C167: 524100 | J167: 0
A168: 1230000 | B168: 3.´²ðÒð²ðÄºø ²ÎîÆìÜºð | C168: x | D168: 0 | F168: 0 | G168: 0 | H168: 0 | I168: 0 | J168: 0
A169: 1231000 | B169: -´³ñÓñ³ñÅ»ù ³ÏïÇíÝ»ñ | C169: 531100 | J169: 0
A170: 1240000 | B170: 4.â²ðî²¸ðì²Ì ԱԿՏԻՎՆԵՐ | C170: x | D170: 0 | F170: 0 | G170: 0 | H170: 0 | I170: 0 | J170: 0
A171: 1241000 | B171: -ÐáÕ | C171: 541100 | J171: 0
A172: 1242000 | B172: -ÀÝ¹»ñù³ÛÇÝ ³ÏïÇíÝ»ñ | C172: 542100
A173: 1243000 | B173: -²ÛÉ µÝ³Ï³Ý Í³·áõÙ áõÝ»óáÕ ³ÏïÇíÝ»ñ | C173: 543100
A174: 1244000 | B174: -àã ÝÛáõÃ³Ï³Ý ã³ñï³¹ñí³Í ³ÏïÇíÝ»ñ | C174: 544100
A175: 1000000 | B175: ԸՆԴԱՄԵՆԸ ԾԱԽՍԵՐ` | C175: x | D175: =D32+D151 -> 2640 | E175: =E32 -> 0 | F175: =F32+F151 -> 2640 | G175: =G32+G151 -> 660 | H175: =H32+H151+H157 -> 1320 | I175: =I32+I151 -> 1980 | J175: =J32+J151 -> 2640
A177: § ¦ § դեկտ»Ùµ»ñ ¦ 2022 Ã.
A179: ÐÆØÜ²ðÎÆ ÔºÎ²ì²ðª _______________ Ա Անախասյան _________________
A180: (ëïáñ³·ñáõÃÛáõÝ) (².Ð.².)
A181: Î.î.
A183: üÆÜ²Üê²Î²Ü Ì²è²ÚàôÂÚ²Ü äºîª _______________ _________________ | G183: Ն. Մուրադյան
B184: (¶ÈÊ²ìàð Ð²Þì²ä²Ð) | E184: (ëïáñ³·ñáõÃÛáõÝ) | G184: (².Ð.².)
A201: 5.5 áñ¨¿ ³Ùëí³ Ýáñ Ý³Ë³Ñ³ßíÇª 3-ñ¹ ëÛáõÝ³ÏáõÙ Ý»ñÏ³Û³óíáõÙ »Ý ïíÛ³É µÛáõç»ï³ÛÇÝ ï³ñí³ Ñ³Ù³å³ï³ëË³Ý ³Ùëí³ óáõó³ÝÇßÝ»ñÁ, ÇëÏ 4-Çó 7-ñ¹ ëÛáõÝ³ÏÝ»ñÁ ã»Ý Éñ³óíáõÙ:
A202: ** Ì²ÜàÂ²¶ðàôÂÚàôÜ II. N 1 ûñÇÝ³Ï»ÉÇ Ó¨Ç Ýßí³Í ïáÕÁ ÐÐ å»ï³Ï³Ý Ï³é³í³ñÙ³Ý ¨ ï»Õ³Ï³Ý ÇÝùÝ³Ï³é³í³ñÙ³Ý í»ñ³¹³ë Ù³ñÙÇÝÝ»ñÁ ã»Ý Éñ³óÝáõÙ:
A203: *** Ì²ÜàÂ²¶ðàôÂÚàôÜ III. N 1 ûñÇÝ³Ï»ÉÇ Ó¨Ç Ýßí³Í ïáÕÁ ÐÐ å»ï³Ï³Ý Ï³é³í³ñÙ³Ý ¨ ï»Õ³Ï³Ý ÇÝùÝ³Ï³é³í³ñÙ³Ý Ù³ñÙÇÝÝ»ñÁ Éñ³óÝáõÙ »Ý Çñ»Ýó Ñ³Ù³ñ µÛáõç»ï³ÛÇÝ Í³Ëë»ñÇ ·»ñ³ï»ëã³Ï³Ý ¹³ë³Ï³ñ·Ù³Ùµ ë³ÑÙ³Ý³Í Ïá¹Á:
A204: **** Ì²ÜàÂ²¶ðàôÂÚàôÜ IV. N 1 ûñÇÝ³Ï»ÉÇ Ó¨Ç Ýßí³Í ïáÕÁª ³ÝÏ³Ë Ýñ³ÝÇó, Ã» Ýáñ Ý³Ë³Ñ³ßÇíÁ áñ ¹»åùáõÙ ¿ Ñ³ëï³ïíáõÙ, Éñ³óíáõÙ ¿ N 1 ûñÇÝ³Ï»ÉÇ Ó¨Ç ³ÕÛáõë³ÏÇ §²¦ ëÛáõÝ³ÏáõÙ ³Ùñ³·ñí³Í N 1000000 (§ÀÝ¹³Ù»ÝÁ
A205: Í³Ëë»ñ¦) ïáÕÇ 3-ñ¹ ëÛáõÝ³ÏáõÙ µ»ñí³Í óáõó³ÝÇßÇ ·áõÙ³ñáí (Ãí»ñáí ¨ ï³é»ñáí):
A206: ***** Ì²ÜàÂ²¶ðàôÂÚàôÜ V. N 1 ûñÇÝ³Ï»ÉÇ Ó¨Ç Ýßí³Í ïáÕÁ Éñ³óíáõÙ ¿ Ññ³Ù³Ýáí Ñ³ëï³ïí³Í N 11 Ñ³í»Éí³ÍÇ` §´Ûáõç»ï³ÛÇÝ Í³Ëë»ñÇ ·áñÍ³é³Ï³Ý ¹³ë³Ï³ñ·áõÙ¦, ï³ññ»ñÇÝ Ñ³Ù³å³ï³ëË³Ý` µ³ÅÇÝ (2 ÝÇß), ËáõÙµ(1ÝÇß) ¨ ¹³ë (1ÝÇß):
A207: §__¦ §________________¦ 200_ Ã.
A209: ÐÆØÜ²ðÎÆ ÔºÎ²ì²ðª _______________ _________________
A210: (ëïáñ³·ñáõÃÛáõÝ) (².Ð.².)
A211: Î.î.
A213: üÆÜ²Üê²Î²Ü Ì²è²ÚàôÂÚ²Ü äºîª ________________ ___________________
A214: (¶ÈÊ²ìàð Ð²Þì²ä²Ð) (ëïáñ³·ñáõÃÛáõÝ) (².Ð.².)

Sheet 1.5.1 (hidden)
I1: Ð³í»Éí³Í N 2
H3: úñÇÝ³Ï»ÉÇ Ó¨ N1
G4: h³ëï³ïí»É ¿ ÐÐ ýÇÝ³ÝëÝ»ñÇ ¨ ¿ÏáÝáÙÇÏ³ÛÇ
H5: Ý³Ë³ñ³ñÇ 23 ÑáõÉÇëÇ 2007 Ãí³Ï³ÝÇ
B6: §Ð ² ê î ² î àô Ø ºØª¦ | G6: N 597-Ü Ññ³Ù³Ýáí
A8: Ý³Ë³Ñ³ßÇíÁ 34500,0 երեսունչորս միլիոն հինգ հարյուր հազար դրամ
A9: ( ÁÝ¹³Ù»ÝÁ ·áõÙ³ñÁ Ãí»ñáí ¨ ï³é»ñáí****)
A10: _______________________________________________________________________________________________________________ Ñ³½³ñ ¹ñ³Ù ·áõÙ³ñáí:
B12: Է. Արշակյան | H12: Î.î.
A13: (ÐÐ å»ï³Ï³Ý Ï³é³í³ñÙ³Ý Ù³ñÙÝÇ Õ»Ï³í³ñÇ /Ñ³Ù³ÛÝùÇ Õ»Ï³í³ñÇ/ ëïáñ³·ñáõÃÛáõÝÁ ¨ ².Ð.².)
A14: §28 ¦ դեկտեմբերի 2022թ
B15: Ü²Ê²Ð²ÞÆì*
B16: ´ Ú àô æ º î ² Ú Æ Ü Ð Æ Ø Ü ² ð Î Æ ä ² Ð ä ² Ü Ø ² Ü Ì ² Ê ê º ð Æ
A17: §01¦ §ÐáõÝí³ñÇ ¦ 2023 Ã. -- §30¦ §¹»Ïï»Ùµ»ñÇ ¦ 2023 Ã.
A19: 1. ÐÇÙÝ³ñÏÇ ³Ýí³ÝáõÙÁ Քաղաքապետարան | G19: 8. * ´Ûáõç»ï³ÛÇÝ Í³Ëë»ñÇ ·áñÍ³é³Ï³Ý ¹³ë³Ï³ñ·.
G20: Í³ÍÏ³·Çñ | H20: 1 | I20: 5 | J20: 1
A21: 3. ÐÇÙÝ³ñÏÇ ï»Õ³µ³ßËÙ³Ý Ù³ñ½Ç ¨ Ñ³Ù³ÛÝùÇ Ïá¹Ý Áëï | G21: 9. Ìñ³·ñÇ ³Ýí³ÝáõÙÁ_ընդանուր բնույթի հանր. ծառ.
A22: µÛáõç»ï³ÛÇÝ Í³Ëë»ñÇ ï³ñ³Íù³ÛÇÝ ¹³ë³Ï³ñ·Ù³Ý | G22: ________________________________
A23: 4. ** ÐÐ å»ï³Ï³Ý Ï³é³í³ñÙ³Ý (ï»Õ³Ï³Ý ÇÝùÝ³Ï³é³í³ñÙ³Ý) Ù³ñÙÝÇ | G23: 10. Ìñ³·ñÇ Ïá¹Á
A24: ³Ýí³ÝáõÙÁ Լոռու մարզպետարան | G24: 11.*** ÐÐ å»ï³Ï³Ý Ï³é³í³ñÙ³Ý (îÆ)
A25: 5. ÐÇÙÝ³ñÏÁ ëå³ë³ñÏáÕ ï»Õ³Ï³Ý ·³ÝÓ³å»ï³Ï³Ý µ³ÅÝÇ (î¶´) ³Ýí³ÝáõÙÁ Տաշիրի | G25: Ù³ñÙÝÇ Ïá¹Ý Áëï µÛáõç»ï³ÛÇÝ Í³Ëë»ñÇ ·»ñ³ï»ëã³Ï.
A26: 6. ÐÇÙÝ³ñÏÇª ï»Õ³Ï³Ý ·³ÝÓ³å»ï³Ï³Ý µ³ÅÝáõÙ (î¶´) Ñ³ßí³éÙ³Ý Ñ³Ù³ñÁ | G26: ¹³ë³Ï³ñ·Ù³Ý
A27: 7. üÇÝ³Ýë³íáñÙ³Ý ³ÕµÛáõñÇ Ïá¹Á (ÐÐ å»ï³Ï³Ý µÛáõç»ª 1, Ñ³Ù³ÛÝùÇ µÛáõç»ª 2) | E27: 2 | G27: 12. â³÷Ç ÙÇ³íáñÁª Ñ³½³ñ ¹ñ³Ù
H28: 900272423014
A29: îáÕÇ NN | B29: ´Ûáõç»ï³ÛÇÝ Í³Ëë»ñÇ ïÝï»ë³·Çï³Ï³Ý ¹³ë³Ï³ñ·Ù³Ý ï³ññ»ñ | D29: ÜáõÛÝ Å³Ù³Ý³Ï³Ñ³ïí³ÍÇ Ñ³Ù³ñ Ý³ËÏÇÝáõÙ Ñ³ëï³ïí³Íª ·áñÍáÕ | F29: êáõÛÝ Ý³Ë³Ñ³ßíáí Ñ³ëï³ïíáÕ óáõó³ÝÇßÝ»ñÁ | G29: ³Û¹ ÃíáõÙª Áëï »é³ÙëÛ³ÏÝ»ñÇ (»é³ÙëÛ³ÏÇ ³ÙÇëÝ»ñÇ)³×áÕ³Ï³Ý
B30: ³Ýí³ÝáõÙÝ»ñÁ | C30: NN | D30: Ý³Ë³Ñ³ßíÇ óáõó³ÝÇßÝ»ñÁ | E30: Ý³Ë³Ñ³ßíáõÙ Ï³ï³ñí³Í ÷á÷áËáõÃÛáõÝ-Ý»ñÁ (³í»É³óáõÙÁª /+/, å³Ï³ë»óáõÙÁª/-/ | G30: I | H30: II | I30: III | J30: IV
A31: ² | B31: ´ | C31: ¶ | D31: 1 | E31: 2 | F31: 3 | G31: 4 | H31: 5 | I31: 6 | J31: 7
A32: 1100000 | B32: ². ÀÜÂ²òÆÎ Ì²Êêºðª ÀÜ¸²ØºÜÀ, | C32: x | D32: =D42+D135 -> 22500 | E32: =E65+E131 -> 0 | F32: =D32+E32 -> 22500 | G32: =G33+G42+G131 -> 5650 | H32: =H33+H42+H131 -> 7800 | I32: =I42+I135 -> 10000 | J32: =F32 -> 22500
A33: 1110000 | B33: 1.äºî²Î²Ü, îºÔ²Î²Ü ÆÜøÜ²Î²è²ì²ðØ²Ü Ø²ðØÆÜÜºðÆ, ¸ð²Üò ºÜÂ²Î² ´Úàôæºî²ÚÆÜ ÐÆØÜ²ðÎÜºðÆ ²ÞÊ²îàÔÜºðÆ ²ÞÊ²î²ì²ðÒÀª ÀÜ¸²ØºÜÀ, ³Û¹ ÃíáõÙª | C33: x | D33: =D34 -> 0 | F33: =F34 -> 0 | G33: =G34 -> 0 | H33: =H34 -> 0 | I33: =I34 -> 0 | J33: =J34 -> 0
A34: 1110000 | B34: 1,1 ²ßË³ï³ÝùÇ í³ñÓ³ïñáõÃÛáõÝ | C34: x | D34: =SUM(D35:D41) -> 0 | F34: =SUM(F35:F41) -> 0 | G34: =SUM(G35:G41) -> 0 | H34: =SUM(H35:H41) -> 0 | I34: =SUM(I35:I41) -> 0 | J34: =SUM(J35:J41) -> 0
A35: 1111000 | B35: -²ßË³ïáÕÝ»ñÇ ³ßË³ï³í³ñÓ»ñ ¨ Ñ³í»É³í×³ñÝ»ñ | C35: 411100 | D35: 0 | F35: 0 | G35: 0 | H35: 0 | I35: 0 | J35: =F35 -> 0
A36: 1112000 | B36: - ä³ñ·¨³ïñáõÙÝ»ñ, ¹ñ³Ù³Ï³Ý Ëñ³ËáõëáõÙÝ»ñ ¨ Ñ³ïáõÏ í×³ñÝ»ñ | C36: 411200 | D36: 0 | F36: 0 | G36: 0 | H36: 0 | I36: 0 | J36: =F36 -> 0
A37: 1113000 | B37: -ø³Õ³ù³óÇ³Ï³Ý, ¹³ï³Ï³Ý ¨ å»ï³Ï³Ý Í³é³ÛáÕÝ»ñÇ å³ñ·¨³ïñáõÙ | C37: 411300 | J37: 0
A38: 1114000 | B38: -ÐÐ ýÇÝ³ÝëÝ»ñÇ ¨ ¿ÏáÝáÙÇÏ³ÛÇ Ý³Ë³ñ³ñáõÃÛ³Ý, Ñ³ñÏ³ÛÇÝ ¨ Ù³ùë³ÛÇÝ Ù³ñÙÇÝÝ»ñÇ ³ßË³ïáÕÝ»ñÇ å³ñ·¨³ïñáõÙ | C38: 411400 | J38: 0
A39: 1115000 | B39: -²ÛÉ í³ñÓ³ïñáõÃÛáõÝÝ»ñ | C39: 411500 | J39: 0
A40: 1116000 | B40: -´Ý»Õ»Ý ³ßË³ï³í³ñÓ»ñ ¨ Ñ³í»É³í×³ñÝ»ñ | C40: 412100 | J40: 0
A41: 1117000 | B41: - êáóÇ³É³Ï³Ý ³å³ÑáíáõÃÛ³Ý í×³ñÝ»ñ | C41: 413100 | D41: 0 | F41: 0 | G41: 0 | H41: 0 | I41: 0 | J41: =F41 -> 0
A42: 1120000 | B42: 2 Ì³é³ÛáõÃÛáõÝÝ»ñÇ ¨ ³åñ³ÝùÝ»ñÇ Ó»éù µ»ñáõÙ | C42: x | D42: =D43+D55+D66+D69+D51+D64 -> 15000 | F42: =F43+F55+F66+F69+F51+F64 -> 15000 | G42: =G43+G51+G55+G64+G66+G69 -> 4650 | H42: =H43+H51+H55+H64+H66+H69 -> 5800 | I42: =I43+I51+I55+I64+I66+I69 -> 7500 | J42: =F42 -> 15000
A43: 1121000 | B43: 2.1 Þ³ñáõÝ³Ï³Ï³Ý Í³Ëë»ñ | D43: =SUM(D44:D49) -> 0 | F43: =SUM(F44:F49) -> 0 | G43: =SUM(G44:G49) -> 0 | H43: =SUM(H44:H49) -> 0 | I43: =SUM(I44:I49) -> 0 | J43: =SUM(J44:J49) -> 0
A44: 1121100 | B44: -·áñÍ³éÝ³Ï³Ý ¨ µ³ÝÏ³ÛÇÝ Í³é³ÛáõÃÛáõÝÝ»ñÇ Í³Ëë»ñ | C44: 421100 | J44: 0
A45: 1121200 | B45: -¿Ý»ñ·»ïÇÏ Í³é³ÛáõÃÛáõÝÝ»ñ | C45: 421200 | D45: 0 | F45: 0 | G45: 0 | H45: 0 | I45: 0 | J45: =F45 -> 0
A46: 1121300 | B46: -ÎáÙáõÝ³É Í³é³ÛáõÃÛáõÝÝ»ñ | C46: 421300 | D46: 0 | F46: 0 | G46: 0 | H46: 0 | I46: 0 | J46: =F46 -> 0
A47: 1121400 | B47: -Î³åÇ Í³é³ÛáõÃÛáõÝÝ»ñ | C47: 421400 | D47: 0 | F47: 0 | G47: 0 | H47: 0 | I47: 0 | J47: =F47 -> 0
A48: 1121500 | B48: -²å³Ñáí³·ñ³Ï³Ý Í³Ëë»ñ | C48: 421500 | J48: 0
A49: 1121600 | B49: -¶áõÛùÇ ¨ ë³ñù³íáñáõÙÝ»ñÇ í³ñÓ³Ï³ÉáõÃÛáõÝ | C49: 421600 | J49: 0
A50: 1121700 | B50: -²ñï³·»ñ³ï»ëã³Ï³Ý Í³Ëë»ñ | C50: 421700 | J50: 0
A51: 1122000 | B51: 2.2 ¶áñÍáõÕáõÙÝ»ñÇ ¨ ßñç³·³ÛáõÃÛ³Ý Í³Ëë»ñ | C51: x | D51: =D52 -> 0 | F51: =F52 -> 0 | G51: =G52 -> 0 | H51: =H52 -> 0 | I51: =I52 -> 0 | J51: =J52 -> 0
A52: 1122100 | B52: -Ü»ñùÇÝ ·áñÍáõÕáõÙÝ»ñ | C52: 422100 | D52: 0 | F52: 0 | G52: 0 | H52: 0 | I52: 0 | J52: =F52 -> 0
A53: 1122200 | B53: -²ñï³ë³ÑÙ³ÝÛ³Ý ·áñÍáõÕáõÙÝ»ñÇ ·Íáí Í³Ëë»ñ | C53: 422200 | J53: 0
A54: 1122300 | B54: -²ÛÉ ïñ³Ýëåáñï³ÛÇÝ Í³Ëë»ñ | C54: 422900 | J54: 0
A55: 1123000 | B55: 2.3 ä³ÛÙ³Ý³·ñ³ÛÇÝ ³ÛÉ Í³é³ÛáõÃÛáõÝÝ»ñÇ Ó»éù µ»ñáõÙ | C55: x | D55: =SUM(D56:D63) -> 0 | F55: =SUM(F56:F63) -> 0 | G55: =SUM(G56:G63) -> 0 | H55: =SUM(H56:H63) -> 0 | I55: =SUM(I56:I63) -> 0 | J55: =F55 -> 0
A56: 1123100 | B56: -ì³ñã³Ï³Ý Í³é³ÛáõÃÛáõÝÝ»ñ | C56: 423100 | J56: =F56 -> 0
A57: 1123200 | B57: -Ð³Ù³Ï³ñ·ã³ÛÇÝ Í³é³ÛáõÃÛáõÝÝ»ñ | C57: 423200 | D57: 0 | F57: 0 | G57: 0 | H57: 0 | I57: 0 | J57: =F57 -> 0
A58: 1123300 | B58: -²ßË³ï³Ï³½ÙÇ Ù³ëÝ³·Çï³Ï³Ý ½³ñ·³óÙ³Ý Í³é³ÛáõÃÛáõÝÝ»ñ | C58: 423300
A59: 1123400 | B59: -î»Õ³Ï³ïí³Ï³Ý Í³é³ÛáõÃÛáõÝÝ»ñ | C59: 423400 | D59: 0 | F59: 0 | G59: 0 | H59: 0 | I59: 0 | J59: =F59 -> 0
A60: 1123500 | B60: -Î³é³í³ñã³Ï³Ý Í³é³ÛáõÃÛáõÝÝ»ñ | C60: 423500 | J60: 0
A61: 1123600 | B61: - Î»Ýó³Õ³ÛÇÝ ¨ Ñ³Ýñ³ÛÇÝ ëÝÝ¹Ç Í³é³ÛáõÃÛáõÝÝ»ñ | C61: 423600 | J61: 0
A62: 1123700 | B62: -Ü»ñÏ³Û³óáõóã³Ï³Ý Í³Ëë»ñ | C62: 423700 | D62: 0 | F62: 0 | G62: 0 | H62: 0 | I62: 0 | J62: 0
A63: 1123800 | B63: -ÀÝ¹Ñ³Ýáõñ µÝáõÛÃÇ ³ÛÉ Í³é³ÛáõÃÛáõÝÝ»ñ | C63: 423900 | D63: 0 | F63: 0 | G63: 0 | H63: 0 | I63: 0 | J63: 0
A64: 1124000 | B64: 2.4 ²ÛÉ Ù³ëÝ³·Çï³Ï³Ý Í³é³ÛáõÃÛáõÝÝ»ñÇ Ó»éù µ»ñáõÙ | C64: x | D64: =D65 -> 15000 | F64: =F65 -> 15000 | G64: =G65 -> 4650 | H64: =H65 -> 5800 | I64: =I65 -> 7500 | J64: 15000
A65: 1124100 | B65: -Ø³ëÝ³·Çï³Ï³Ý Í³é³ÛáõÃÛáõÝÝ»ñ | C65: 424100 | D65: 15000 | E65: 0 | F65: =D65+E65 -> 15000 | G65: 4650 | H65: 5800 | I65: 7500 | J65: 15000
A66: 1125000 | B66: 2.5 ÀÝÃ³óÇÏ Ýáñá·áõÙ ¨ å³Ñå³ÝáõÙ (Í³é³ÛáõÃÛáõÝÝ»ñ ¨ ÝÛáõÃ»ñ) | C66: x | D66: =D67+D68 -> 0 | E66: =E114 -> 0 | F66: 0 | G66: 0 | H66: 0 | I66: 0 | J66: 0
A67: 1125100 | B67: -Þ»Ýù»ñÇ ¨ Ï³éáõÛóÝ»ñÇ ÁÝÃ³óÇÏ Ýáñá·áõÙ ¨ å³Ñå³ÝáõÙ | C67: 425100 | J67: =F67 -> 0
A68: 1125200 | B68: -Ø»ù»Ý³Ý»ñÇ ¨ ë³ñù³íáñáõÙÝ»ñÇ ÁÝÃ³óÇÏ Ýáñá·áõÙ ¨ å³Ñå³ÝáõÙ | C68: 425200 | D68: 0 | F68: 0 | G68: 0 | H68: 0 | I68: 0 | J68: 0
A69: 1126000 | B69: 2.6 ÜÛáõÃ»ñ | C69: x | D69: =SUM(D70:D77) -> 0 | F69: =SUM(F70:F77) -> 0 | G69: =SUM(G70:G77) -> 0 | H69: =SUM(H70:H77) -> 0 | I69: =SUM(I70:I77) -> 0 | J69: 0
A70: 1126100 | B70: -¶ñ³ë»ÝÛ³Ï³ÛÇÝ ÝÛáõÃ»ñ ¨ Ñ³·áõëï | C70: 426100 | D70: 0 | F70: 0 | G70: 0 | H70: 0 | I70: 0 | J70: 0
A71: 1126200 | B71: -¶ÛáõÕ³ïÝï»ë³Ï³Ý ³åñ³ÝùÝ»ñ | C71: 426200 | J71: 0
A72: 1126300 | B72: -ì»ñ³å³ïñ³ëïÙ³Ý ¨ áõëáõóÙ³Ý ÝÛáõÃ»ñ | C72: 426300 | J72: 0
A73: 1126400 | B73: -îñ³Ýëåáñï³ÛÇÝ ÝÛáõÃ»ñ | C73: 426400 | D73: 0 | F73: 0 | G73: 0 | H73: 0 | I73: 0 | J73: 0
A74: 1126500 | B74: -Þñç³Ï³ ÙÇç³í³ÛñÇ å³ßïå³ÝáõÃÛ³Ý ¨ ·Çï³Ï³Ý ÝÛáõÃ»ñ | C74: 426500 | J74: 0
A75: 1126600 | B75: -²éáÕç³å³Ñ³Ï³Ý ¨ É³µáñ³ïáñ ÝÛáõÃ»ñ | C75: 426600 | J75: =F75 -> 0
A76: 1126700 | B76: -Î»Ýó³Õ³ÛÇÝ ¨ Ñ³Ýñ³ÛÇÝ ëÝÝ¹Ç ÝÛáõÃ»ñ | C76: 426700 | D76: 0 | F76: 0 | G76: 0 | H76: 0 | I76: 0 | J76: =F76 -> 0
A77: 1126800 | B77: -Ð³ïáõÏ Ýå³ï³Ï³ÛÇÝ ³ÛÉ ÝÛáõÃ»ñ | C77: 426900 | D77: 0 | F77: 0 | G77: 0 | H77: 0 | I77: 0 | J77: =F77 -> 0
A78: 1130000 | B78: 3 îáÏáë³í×³ñÝ»ñ | C78: x | D78: 0 | F78: 0 | G78: 0 | H78: 0 | I78: 0 | J78: 0
A79: 1130100 | B79: -Ü»ñùÇÝ ³ñÅ»ÃÕÃ»ñÇ ïáÏáë³í×³ñÝ»ñ | C79: 441100 | J79: 0
A80: 1130200 | B80: -Ü»ñùÇÝ í³ñÏ»ñÇ ïáÏáë³í×³ñÝ»ñ | C80: 441200 | J80: 0
A81: 1130300 | B81: -²ñï³ùÇÝ ³ñÅ»ÃÕÃ»ñÇ ·Íáí ïáÏáë³í×³ñÝ»ñ | C81: 442100 | J81: 0
A82: 1130400 | B82: -²ñï³ùÇÝ í³ñÏ»ñÇ ·Íáí ïáÏáë³í×³ñÝ»ñ | C82: 442200 | J82: 0
A83: 1131000 | B83: öáË³éáõÃÛáõÝÝ»ñÇ Ñ»ï Ï³åí³Í í×³ñÝ»ñ | C83: x | J83: 0
A84: 1131100 | B84: -öáË³Ý³ÏÙ³Ý Ïáõñë»ñÇ µ³ó³ë³Ï³Ý ï³ñµ»ñáõÃÛáõÝ | C84: 443100 | J84: 0
A85: 1131200 | B85: -îáõÛÅ»ñ | C85: 443200 | J85: 0
A86: 1131300 | B86: -öáË³éáõÃÛáõÝÝ»ñÇ ·Íáí ïáõñù»ñ | C86: 443300 | J86: 0
A87: 1140000 | B87: 4. êáõµëÇ¹Ç³Ý»ñ | C87: x | D87: 0 | F87: 0 | G87: 0 | H87: 0 | I87: 0 | J87: 0
A88: 1141000 | B88: -êáõµëÇ¹Ç³Ý»ñ áã-ýÇÝ³Ýë³Ï³Ý å»ï³Ï³Ý Ï³½Ù³Ï»ñåáõÃÛáõÝÝ»ñÇÝ | C88: 451100 | J88: 0
A89: 1142000 | B89: -êáõµëÇ¹Ç³Ý»ñ ýÇÝ³Ýë³Ï³Ý å»ï³Ï³Ý Ï³½Ù³Ï»ñåáõÃÛáõÝÝ»ñÇÝ | C89: 451200 | J89: 0
A90: 1143000 | B90: -êáõµëÇ¹Ç³Ý»ñ áã å»ï³Ï³Ý áã ýÇÝ³Ýë³Ï³Ý Ï³½Ù³Ï»ñåáõÃÛáõÝÝ»ñÇÝ | C90: 452100 | J90: 0
A91: 1144000 | B91: -êáõµëÇ¹Ç³Ý»ñ áã å»ï³Ï³Ý ýÇÝ³Ýë³Ï³Ý Ï³½Ù³Ï»ñåáõÃÛáõÝÝ»ñÇÝ | C91: 452200 | J91: 0
A92: 1150000 | B92: 5.¸ñ³Ù³ßÝáñÑÝ»ñ | C92: x | D92: 0 | F92: 0 | G92: 0 | H92: 0 | I92: 0 | J92: 0
A93: 1151000 | B93: ¸ñ³Ù³ßÝáñÑÝ»ñ ûï³ñ»ñÏñÛ³ Ï³é³í³ñáõÃÛáõÝÝ»ñÇÝ | C93: x | D93: 0 | F93: 0 | G93: 0 | H93: 0 | I93: 0 | J93: 0
A94: 1151100 | B94: ÀÝÃ³óÇÏ ¹ñ³Ù³ßÝáñÑÝ»ñ ûï³ñ»ñÏñÛ³ Ï³é³í³ñáõÃÛáõÝÝ»ñÇÝ | C94: 461100 | J94: 0
A95: 1151200 | B95: Î³åÇï³É ¹ñ³Ù³ßÝáñÑÝ»ñ ûï³ñ»ñÏñÛ³ Ï³é³í³ñáõÃÛáõÝÝ»ñÇÝ | C95: 461200 | J95: 0
A96: 1152000 | B96: ¸ñ³Ù³ßÝáñÑÝ»ñ ÙÇç³½·³ÛÇÝ Ï³½Ù³Ï»ñåáõÃÛáõÝÝ»ñÇÝ | C96: x | D96: 0 | F96: 0 | G96: 0 | H96: 0 | I96: 0 | J96: 0
A97: 1152100 | B97: ÀÝÃ³óÇÏ ¹ñ³Ù³ßÝáñÑÝ»ñ ÙÇç³½·³ÛÇÝ Ï³½Ù³Ï»ñåáõÃÛáõÝÝ»ñÇÝ | C97: 462100 | J97: 0
A98: 1152200 | B98: Î³åÇï³É ¹ñ³Ù³ßÝáñÑ»ñ ÙÇç³½·³ÛÇÝ Ï³½Ù³Ï»ñåáõÃÛáõÝÝ»ñÇÝ | C98: 462200 | J98: 0
A99: 1153000 | B99: ÀÝÃ³óÇÏ ¹ñ³Ù³ßÝáñÑÝ»ñ å»ï³Ï³Ý Ñ³ïí³ÍÇ ³ÛÉ Ù³Ï³ñ¹³ÏÝ»ñÇÝ | C99: x | D99: 0 | F99: 0 | G99: 0 | H99: 0 | I99: 0 | J99: 0
A100: 1153100 | B100: ÀÝÃ³óÇÏ ¹ñ³Ù³ßÝáñÑÝ»ñ å»ï³Ï³Ý Ï³é³í³ñÙ³Ý Ñ³ïí³ÍÇÝ | C100: 463100 | J100: 0
A101: 1153200 | B101: ÀÝÃ³óÇÏ ëáõµí»ÝóÇ³Ý»ñ Ñ³Ù³ÛÝùÝ»ñÇÝ | C101: 463200 | J101: 0
A102: 1153300 | B102: ä»ï³Ï³Ý µÛáõç»Çó Ñ³Ù³ÛÝùÝ»ñÇ µÛáõç»Ý»ñÇÝ ýÇÝ³Ýë³Ï³Ý Ñ³Ù³Ñ³ñÃ»óÙ³Ý ëÏ½µáõÝùáí ïñíáÕ ¹áï³óÇ³Ý»ñ | C102: 463300 | J102: 0
A103: 1153400 | B103: úñ»ÝùÝ»ñÇ ÏÇñ³ñÏÙ³Ý ³ñ¹ÛáõÝùáõÙ Ñ³Ù³ÛÝùÝ»ñÇ µÛáõç»Ý»ñÇ ÏáñáõëïÝ»ñÇ ÷áËÑ³ïáõóáõÙ | C103: 463400 | J103: 0
A104: 1153500 | B104: ²ÛÉ ÁÝÃ³óÇÏ ¹ñ³Ù³ßÝáñÑÝ»ñ Ñ³Ù³ÛÝùÝ»ñÇÝ | C104: 463500 | J104: 0
A105: 1153700 | B105: ÀÝÃ³óÇÏ ¹ñ³Ù³ßÝáñÑÝ»ñ å»ï³Ï³Ý ¨ Ñ³Ù³ÛÝùÝ»ñÇ áã ³é¨ïñ³ÛÇÝ Ï³½Ù³Ï»ñåáõÃÛáõÝÝ»ñÇÝ | C105: 463700 | J105: 0
A106: 1153800 | B106: ÀÝÃ³óÇÏ ¹ñ³Ù³ßÝáñÑÝ»ñ å»ï³Ï³Ý ¨ Ñ³Ù³ÛÝùÝ»ñÇ ³é¨ïñ³ÛÇÝ Ï³½Ù³Ï»ñåáõÃÛáõÝÝ»ñÇÝ | C106: 463800 | J106: 0
A107: 1153900 | B107: ²ÛÉ ÁÝÃ³óÇÏ ¹ñ³Ù³ßÝáñÑÝ»ñ | C107: 463900 | D107: 0 | F107: 0 | I107: 0 | J107: =F107 -> 0
A108: 1154000 | B108: Î³åÇï³É ¹ñ³Ù³ßÝáñÑÝ»ñ å»ï³Ï³Ý Ñ³ïí³ÍÇ ³ÛÉ Ù³Ï³ñ¹³ÏÝ»ñÇÝ | C108: x | D108: 0 | F108: 0 | G108: 0 | H108: 0 | I108: 0 | J108: 0
A109: 1154100 | B109: Î³åÇï³É ¹ñ³Ù³ßÝáñÑÝ»ñ å»ï³Ï³Ý Ï³é³í³ñÙ³Ý Ñ³ïí³ÍÇÝ | C109: 465100 | J109: 0
A110: 1154200 | B110: Î³åÇï³É ëáõµí»ÝóÇ³Ý»ñ Ñ³Ù³ÛÝùÝ»ñÇÝ | C110: 465200 | J110: 0
A111: 1154300 | B111: ²ÛÉ Ï³åÇï³É ¹ñ³Ù³ßÝáñÑÝ»ñ Ñ³Ù³ÛÝùÝ»ñÇÝ | C111: 465300 | J111: 0
A112: 1154500 | B112: Î³åÇï³É ¹ñ³Ù³ßÝáñÑÝ»ñ å»ï³Ï³Ý ¨ Ñ³Ù³ÛÝùÝ»ñÇ áã ³é¨ïñ³ÛÇÝ Ï³½Ù³Ï»ñåáõÃÛáõÝÝ»ñÇÝ | C112: 465500 | J112: 0
A113: 1154600 | B113: Î³åÇï³É ¹ñ³Ù³ßÝáñÑÝ»ñ å»ï³Ï³Ý ¨ Ñ³Ù³ÛÝù³ÛÇÝ ³é¨ïñ³ÛÇÝ Ï³½Ù³Ï»ñåáõÃÛáõÝÝ»ñÇÝ | C113: 465600 | J113: 0
A114: 1154700 | B114: ²ÛÉ Ï³åÇï³É ¹ñ³Ù³ßÝáñÑÝ»ñ | C114: 465700 | D114: 0 | E114: 0 | F114: =D114+E114 -> 0 | G114: 0 | H114: 0 | I114: 0 | J114: =F114 -> 0
A115: 1160000 | B115: 6. êàòÆ²È²Î²Ü Üä²êîÜºð ºì ÎºÜê²ÂàÞ²ÎÜºð | C115: x | D115: 0 | F115: 0 | G115: 0 | H115: 0 | I115: 0 | J115: 0
A116: 1161000 | B116: 6.1 êàòÆ²È²Î²Ü ²ä²ÐàìàôÂÚ²Ü Üä²êîÜºð | C116: x | D116: 0 | F116: 0 | G116: 0 | H116: 0 | I116: 0 | J116: 0
A117: 1161100 | B117: -îÝ³ÛÇÝ ïÝï»ëáõÃÛáõÝÝ»ñÇÝ ¹ñ³Ùáí í×³ñíáÕ ëáóÇ³É³Ï³Ý ³å³ÑáíáõÃÛ³Ý í×³ñÝ»ñ | C117: 471100 | J117: 0
A118: 1161200 | B118: -êáóÇ³É³Ï³Ý ³å³ÑáíáõÃÛ³Ý µÝ»Õ»Ý Ýå³ëïÝ»ñ Í³é³ÛáõÃÛáõÝÝ»ñ Ù³ïáõóáÕÝ»ñÇÝ | C118: 471200 | J118: 0
A119: 1162000 | B119: 6.2 êàòÆ²È²Î²Ü ú¶ÜàôÂÚ²Ü ¸ð²Ø²Î²Ü ²ðî²Ð²ÚîàôÂÚ²Ø´ Üä²êîÜºð (´ÚàôæºÆò) | C119: x | D119: 0 | F119: 0 | G119: 0 | H119: 0 | I119: 0 | J119: 0
A120: 1162100 | B120: -ÐÇí³Ý¹áõÃÛ³Ý ¨ Ñ³ßÙ³Ý¹³ÙáõÃÛ³Ý Ýå³ëïÝ»ñ µÛáõç»Çó | C120: 472100 | J120: 0
A121: 1162200 | B121: -Ø³ÛñáõÃÛ³Ý Ýå³ëïÝ»ñ µÛáõç»Çó | C121: 472200 | J121: 0
A122: 1162300 | B122: -ºñ»Ë³Ý»ñÇ Ï³Ù ÁÝï³Ý»Ï³Ý Ýå³ëïÝ»ñ µÛáõç»Çó | C122: 472300 | J122: 0
A123: 1162400 | B123: -¶áñÍ³½ñÏáõÃÛ³Ý Ýå³ëïÝ»ñ µÛáõç»Çó | C123: 472400 | J123: 0
A124: 1162500 | B124: -Î»Ýë³Ãáß³ÏÇ ³ÝóÝ»Éáõ Ñ»ï Ï³åí³Í ¨ ï³ñÇù³ÛÇÝ Ýå³ëïÝ»ñ µÛáõç»Çó | C124: 472500 | J124: 0
A125: 1162600 | B125: -ÐáõÕ³ñÏ³íáñáõÃÛ³Ý Ýå³ëïÝ»ñ µÛáõç»Çó | C125: 472600 | J125: 0
A126: 1162700 | B126: -ÎñÃ³Ï³Ý, Ùß³ÏáõÃ³ÛÇÝ ¨ ëåáñï³ÛÇÝ Ýå³ëïÝ»ñ µÛáõç»Çó | C126: 472700 | J126: 0
A127: 1162800 | B127: -´Ý³Ï³ñ³Ý³ÛÇÝ Ýå³ëïÝ»ñ µÛáõç»Çó | C127: 472800 | J127: 0
A128: 1162900 | B128: -²ÛÉ Ýå³ëïÝ»ñ µÛáõç»Çó | C128: 472900 | J128: 0
A129: 1163000 | B129: 6.3 ÎºÜê²ÂàÞ²ÎÜºð | C129: x | D129: 0 | F129: 0 | G129: 0 | H129: 0 | I129: 0 | J129: 0
A130: 1163100 | B130: -Ï»Ýë³Ãáß³ÏÝ»ñ | C130: 474100 | J130: 0
A131: 1170000 | B131: 7. ²ÚÈ Ì²Êêºð | C131: x | D131: =D135 -> 7500 | E131: =E138 -> 0 | F131: =F135 -> 7500 | G131: =G135 -> 1000 | H131: =H135 -> 2000 | I131: =I135 -> 2500 | J131: =J135 -> 7500
A132: 1171000 | B132: 7.1 ÜìÆð²îìàôÂÚàôÜÜºð àâ-Î²è²ì²ðâ²Î²Ü (Ð²ê²ð²Î²Î²Ü) Î²¼Ø²ÎºðäàôÂÚàôÜÜºðÆÜ | C132: x | D132: 0 | F132: 0 | G132: 0 | H132: 0 | I132: 0 | J132: 0
A133: 1171100 | B133: -îÝ³ÛÇÝ ïÝï»ëáõÃÛáõÝÝ»ñÇÝ Í³é³ÛáõÃÛáõÝÝ»ñ Ù³ïáõóáÕ` ß³ÑáõÛÃ ãÑ»ï³åÝ¹áÕ Ï³½Ù³Ï»ñåáõÃÛáõÝÝ»ñÇÝ ÝíÇñ³ïíáõÃÛáõÝÝ»ñ | C133: 481100 | J133: 0
A134: 1171200 | B134: -ÜíÇñ³ïíáõÃÛáõÝÝ»ñ ³ÛÉ ß³ÑáõÛÃ ãÑ»ï³åÝ¹áÕ Ï³½Ù³Ï»ñåáõÃÛáõÝÝ»ñÇÝ | C134: 481900 | J134: 0
A135: 1172000 | B135: 7.2 Ð²ðÎºð, ä²ðî²¸Æð ìÖ²ðÜºð ºì îàôÚÄºð, àðàÜø Î²è²ì²ðØ²Ü î²ð´ºð Ø²Î²ð¸²ÎÜºðÆ ÎàÔØÆò ÎÆð²èìàôØ ºÜ ØÆØÚ²Üò ÜÎ²îØ²Ø´ | C135: x | D135: =D137+D138 -> 7500 | F135: =F137+F138 -> 7500 | G135: =G137+G138 -> 1000 | H135: =H137+H138 -> 2000 | I135: =I137+I138 -> 2500 | J135: =F135 -> 7500
A136: 1172100 | B136: -²ßË³ï³í³ñÓÇ ýáÝ¹ | C136: 482100 | J136: 0
A137: 1172200 | B137: -²ÛÉ Ñ³ñÏ»ñ | C137: 482200 | D137: 0 | E137: 0 | F137: 0 | G137: 0 | H137: 0 | I137: 0 | J137: =F137 -> 0
A138: 1172300 | B138: -ä³ñï³¹Çñ í×³ñÝ»ñ | C138: 482300 | D138: 7500 | E138: 0 | F138: =D138+E138 -> 7500 | G138: 1000 | H138: 2000 | I138: 2500 | J138: =F138 -> 7500
A139: 1172400 | B139: -ä»ï³Ï³Ý Ñ³ïí³ÍÇ ï³ñµ»ñ Ù³Ï³ñ¹³ÏÝ»ñÇ ÏáÕÙÇó ÙÇÙÛ³Ýó ÝÏ³ïÙ³Ùµ ÏÇñ³éíáÕ ïáõÛÅ»ñ | C139: 482400 | J139: 0
A140: 1173000 | B140: 7.3 ¸²î²ð²ÜÜºðÆ ÎàÔØÆò ÜÞ²Ü²Îì²Ì îàôÚÄºð ºì îàô¶²ÜøÜºð | C140: x | D140: 0 | F140: 0 | G140: 0 | H140: 0 | I140: 0 | J140: 0
A141: 1173100 | B141: -¸³ï³ñ³ÝÝ»ñÇ ÏáÕÙÇó Ýß³Ý³Ïí³Í ïáõÛÅ»ñ ¨ ïáõ·³ÝùÝ»ñ | C141: 483100 | J141: 0
A142: 1174000 | B142: 7.4 ´Ü²Î²Ü ²ÔºîÜºðÆò Î²Ø ²ÚÈ ´Ü²Î²Ü ä²îÖ²èÜºðàì ²è²æ²ò²Ì ìÜ²êÜºðÆ Î²Ø ìÜ²êì²ÌøÜºðÆ ìºð²Î²Ü¶ÜàôØ | C142: x | D142: 0 | F142: 0 | G142: 0 | H142: 0 | I142: 0 | J142: 0
A143: 1174100 | B143: -´Ý³Ï³Ý ³Õ»ïÝ»ñÇó ³é³ç³ó³Í íÝ³ëí³ÍùÝ»ñÇ Ï³Ù íÝ³ëÝ»ñÇ í»ñ³Ï³Ý·ÝáõÙ | C143: 484100 | J143: 0
A144: 1174200 | B144: -²ÛÉ µÝ³Ï³Ý å³ï×³éÝ»ñáí ëï³ó³Í íÝ³ëí³ÍùÝ»ñÇ í»ñ³Ï³Ý·ÝáõÙ | C144: 484200 | J144: 0
A145: 1175000 | B145: 7.5 Î²è²ì²ðØ²Ü Ø²ðØÆÜÜºðÆ ¶àðÌàôÜºàôÂÚ²Ü Ðºîºì²Üøàì ²è²æ²ò²Ì ìÜ²êÜºðÆ Î²Ø ìÜ²êì²ÌøÜºðÆ ìºð²Î²Ü¶ÜàôØ | C145: x | D145: 0 | F145: 0 | G145: 0 | H145: 0 | I145: 0 | J145: 0
A146: 1175100 | B146: -Î³é³í³ñÙ³Ý Ù³ñÙÇÝÝ»ñÇ ·áñÍáõÝ»áõÃÛ³Ý Ñ»ï¨³Ýùáí ³é³ç³ó³Í íÝ³ëí³ÍùÝ»ñÇ Ï³Ù íÝ³ëÝ»ñÇ í»ñ³Ï³Ý·ÝáõÙ | C146: 485100 | J146: 0
A147: 1176000 | B147: 7.6 ²ÚÈ Ì²Êêºð | C147: x | D147: 0 | F147: 0 | G147: 0 | H147: 0 | I147: 0 | J147: 0
A148: 1176100 | B148: -²ÛÉ Í³Ëë»ñ | C148: 486100 | J148: 0
A149: 1177000 | B149: 7.7 ä²Ðàôêî²ÚÆÜ ØÆæàòÜºð | C149: x | D149: 0 | F149: 0 | G149: 0 | H149: 0 | I149: 0 | J149: 0
A150: 1177100 | B150: -ä³Ñáõëï³ÛÇÝ ÙÇçáóÝ»ñ | C150: 489100 | J150: 0
A151: 1200000 | B151: Բ, àâ-üÆÜ²Üê²Î²Ü ²ÎîÆìÜºðÆ ¶Ìàì Ì²Êêºð | C151: x | D151: =D152 -> 12000 | E151: =E162 -> 0 | F151: =D151+E151 -> 12000 | G151: =G152 -> 6900 | H151: =H152 -> 6900 | I151: =I152 -> 6900 | J151: =F152 -> 12000
A152: 1210000 | B152: 1.ÐÆØÜ²Î²Ü ØÆæàòÜºð | C152: x | D152: =SUM(D153:D162) -> 12000 | E152: =E162 -> 0 | F152: =D152+E152 -> 12000 | G152: =SUM(G153:G162) -> 6900 | H152: =SUM(H153:H162) -> 6900 | I152: =SUM(I153:I162) -> 6900 | J152: =F152 -> 12000
A153: 1211000 | B153: -Þ»Ýù»ñÇ ¨ ßÇÝáõÃÛáõÝÝ»ñÇ Ó»éù µ»ñáõÙ | C153: 511100 | F153: =D153+E153 -> 0 | J153: =F153 -> 0
A154: 1212000 | B154: -Þ»Ýù»ñÇ ¨ ßÇÝáõÃÛáõÝÝ»ñÇ Ï³éáõóáõÙ | C154: 511200 | F154: 0 | J154: =F154 -> 0
A155: 1213000 | B155: -Þ»Ýù»ñÇ ¨ ßÇÝáõÃÛáõÝÝ»ñÇ Ï³åÇï³É í»ñ³Ýáñá·áõÙ | C155: 511300 | D155: 0 | F155: 0 | G155: 0 | H155: 0 | I155: 0 | J155: =F155 -> 0
A156: 1214000 | B156: -îñ³Ýëåáñï³ÛÇÝ ë³ñù³íáñáõÙÝ»ñ | C156: 512100 | F156: 0 | J156: 0
A157: 1215000 | B157: -ì³ñã³Ï³Ý ë³ñù³íáñáõÙÝ»ñ | C157: 512200 | D157: 0 | F157: 0 | I157: 0 | J157: =F157 -> 0
A158: 1216000 | B158: -²ÛÉ Ù»ù»Ý³Ý»ñ ¨ ë³ñù³íáñáõÙÝ»ñ | C158: 512900 | F158: 0 | J158: 0
A159: 1217000 | B159: -²×»óíáÕ ³ÏïÇíÝ»ñ | C159: 513100 | F159: 0 | J159: 0
A160: 1218100 | B160: -àã-ÝÛáõÃ³Ï³Ý ÑÇÙÝ³Ï³Ý ÙÇçáóÝ»ñ | C160: 513200 | F160: 0 | J160: 0
A161: 1218200 | B161: -¶»á¹»½Ç³Ï³Ý ù³ñï»½³·ñ³Ï³Ý Í³Ëë»ñ | C161: 513300 | F161: 0 | J161: 0
A162: 1218300 | B162: -Ü³Ë³·Í³Ñ»ï³½áï³Ï³Ý Í³Ëë»ñ | C162: 513400 | D162: 12000 | E162: 0 | F162: 12000 | G162: 6900 | H162: 6900 | I162: 6900 | J162: =F162 -> 12000
A163: 1220000 | B163: 2.ä²Þ²ðÜºð | C163: x | D163: 0 | F163: 0 | G163: 0 | H163: 0 | I163: 0 | J163: 0
A164: 1221000 | B164: -è³½Ù³í³ñ³Ï³Ý å³ß³ñÝ»ñ | C164: 521100 | F164: 0 | J164: 0
A165: 1222000 | B165: -ÜÛáõÃ»ñ ¨ å³ñ³·³Ý»ñ | C165: 522100 | F165: 0 | J165: 0
A166: 1223000 | B166: -ì»ñ³í³×³éùÇ Ñ³Ù³ñ Ý³Ë³ï»ëí³Í ³åñ³ÝùÝ»ñ | C166: 523100 | F166: 0 | J166: 0
A167: 1224000 | B167: -êå³éÙ³Ý Ýå³ï³Ïáí å³ÑíáÕ å³ß³ñÝ»ñ | C167: 524100 | F167: 0 | J167: 0
A168: 1230000 | B168: 3.´²ðÒð²ðÄºø ²ÎîÆìÜºð | C168: x | D168: 0 | F168: 0 | G168: 0 | H168: 0 | I168: 0 | J168: 0
A169: 1231000 | B169: -´³ñÓñ³ñÅ»ù ³ÏïÇíÝ»ñ | C169: 531100 | F169: 0 | J169: 0
A170: 1240000 | B170: 4.â²ðî²¸ðì²Ì ԱԿՏԻՎՆԵՐ | C170: x | D170: 0 | F170: 0 | G170: 0 | H170: 0 | I170: 0 | J170: 0
A171: 1241000 | B171: -ÐáÕ | C171: 541100 | F171: 0 | J171: 0
A172: 1242000 | B172: -ÀÝ¹»ñù³ÛÇÝ ³ÏïÇíÝ»ñ | C172: 542100 | F172: 0
A173: 1243000 | B173: -²ÛÉ µÝ³Ï³Ý Í³·áõÙ áõÝ»óáÕ ³ÏïÇíÝ»ñ | C173: 543100 | F173: 0
A174: 1244000 | B174: -àã ÝÛáõÃ³Ï³Ý ã³ñï³¹ñí³Í ³ÏïÇíÝ»ñ | C174: 544100 | F174: 0
A175: 1000000 | B175: ԸՆԴԱՄԵՆԸ ԾԱԽՍԵՐ` | C175: x | D175: =D32+D151 -> 34500 | E175: 0 | F175: 34500 | G175: 12550 | H175: 14700 | I175: 16900 | J175: 34500
A177: § ¦ § դեկտ»Ùµ»ñ ¦ 2022 Ã.
A179: ÐÆØÜ²ðÎÆ ÔºÎ²ì²ðª _______________ Է. Արշակյան _________________
A180: (ëïáñ³·ñáõÃÛáõÝ) (².Ð.².)
A181: Î.î.
A182: üÆÜ²Üê²Î²Ü Ì²è²ÚàôÂÚ²Ü äºîª _______________ _________________ | G182: Ն. Մուրադյան
B183: (¶ÈÊ²ìàð Ð²Þì²ä²Ð) | E183: (ëïáñ³·ñáõÃÛáõÝ) | G183: (².Ð.².)
A201: 5.5 áñ¨¿ ³Ùëí³ Ýáñ Ý³Ë³Ñ³ßíÇª 3-ñ¹ ëÛáõÝ³ÏáõÙ Ý»ñÏ³Û³óíáõÙ »Ý ïíÛ³É µÛáõç»ï³ÛÇÝ ï³ñí³ Ñ³Ù³å³ï³ëË³Ý ³Ùëí³ óáõó³ÝÇßÝ»ñÁ, ÇëÏ 4-Çó 7-ñ¹ ëÛáõÝ³ÏÝ»ñÁ ã»Ý Éñ³óíáõÙ:
A202: ** Ì²ÜàÂ²¶ðàôÂÚàôÜ II. N 1 ûñÇÝ³Ï»ÉÇ Ó¨Ç Ýßí³Í ïáÕÁ ÐÐ å»ï³Ï³Ý Ï³é³í³ñÙ³Ý ¨ ï»Õ³Ï³Ý ÇÝùÝ³Ï³é³í³ñÙ³Ý í»ñ³¹³ë Ù³ñÙÇÝÝ»ñÁ ã»Ý Éñ³óÝáõÙ:
A203: *** Ì²ÜàÂ²¶ðàôÂÚàôÜ III. N 1 ûñÇÝ³Ï»ÉÇ Ó¨Ç Ýßí³Í ïáÕÁ ÐÐ å»ï³Ï³Ý Ï³é³í³ñÙ³Ý ¨ ï»Õ³Ï³Ý ÇÝùÝ³Ï³é³í³ñÙ³Ý Ù³ñÙÇÝÝ»ñÁ Éñ³óÝáõÙ »Ý Çñ»Ýó Ñ³Ù³ñ µÛáõç»ï³ÛÇÝ Í³Ëë»ñÇ ·»ñ³ï»ëã³Ï³Ý ¹³ë³Ï³ñ·Ù³Ùµ ë³ÑÙ³Ý³Í Ïá¹Á:
A204: **** Ì²ÜàÂ²¶ðàôÂÚàôÜ IV. N 1 ûñÇÝ³Ï»ÉÇ Ó¨Ç Ýßí³Í ïáÕÁª ³ÝÏ³Ë Ýñ³ÝÇó, Ã» Ýáñ Ý³Ë³Ñ³ßÇíÁ áñ ¹»åùáõÙ ¿ Ñ³ëï³ïíáõÙ, Éñ³óíáõÙ ¿ N 1 ûñÇÝ³Ï»ÉÇ Ó¨Ç ³ÕÛáõë³ÏÇ §²¦ ëÛáõÝ³ÏáõÙ ³Ùñ³·ñí³Í N 1000000 (§ÀÝ¹³Ù»ÝÁ
A205: Í³Ëë»ñ¦) ïáÕÇ 3-ñ¹ ëÛáõÝ³ÏáõÙ µ»ñí³Í óáõó³ÝÇßÇ ·áõÙ³ñáí (Ãí»ñáí ¨ ï³é»ñáí):
A206: ***** Ì²ÜàÂ²¶ðàôÂÚàôÜ V. N 1 ûñÇÝ³Ï»ÉÇ Ó¨Ç Ýßí³Í ïáÕÁ Éñ³óíáõÙ ¿ Ññ³Ù³Ýáí Ñ³ëï³ïí³Í N 11 Ñ³í»Éí³ÍÇ` §´Ûáõç»ï³ÛÇÝ Í³Ëë»ñÇ ·áñÍ³é³Ï³Ý ¹³ë³Ï³ñ·áõÙ¦, ï³ññ»ñÇÝ Ñ³Ù³å³ï³ëË³Ý` µ³ÅÇÝ (2 ÝÇß), ËáõÙµ(1ÝÇß) ¨ ¹³ë (1ÝÇß):
A207: §__¦ §________________¦ 200_ Ã.
A209: ÐÆØÜ²ðÎÆ ÔºÎ²ì²ðª _______________ _________________
A210: (ëïáñ³·ñáõÃÛáõÝ) (².Ð.².)
A211: Î.î.
A213: üÆÜ²Üê²Î²Ü Ì²è²ÚàôÂÚ²Ü äºîª ________________ ___________________
A214: (¶ÈÊ²ìàð Ð²Þì²ä²Ð) (ëïáñ³·ñáõÃÛáõÝ) (².Ð.².)

Sheet sybv 1,6,1 (hidden)
I1: Ð³í»Éí³Í N 2
H3: úñÇÝ³Ï»ÉÇ Ó¨ N1
G4: h³ëï³ïí»É ¿ ÐÐ ýÇÝ³ÝëÝ»ñÇ ¨ ¿ÏáÝáÙÇÏ³ÛÇ
H5: Ý³Ë³ñ³ñÇ 23 ÑáõÉÇëÇ 2007 Ãí³Ï³ÝÇ
B6: §Ð ² ê î ² î àô Ø ºØª¦ | G6: N 597-Ü Ññ³Ù³Ýáí
A8: Ý³Ë³Ñ³ßÇíÁª 35000,0 երեսունհինգ միլիոն դրամ
A9: ( ÁÝ¹³Ù»ÝÁ ·áõÙ³ñÁ Ãí»ñáí ¨ ï³é»ñáí****)
A10: _______________________________________________________________________________________________________________ Ñ³½³ñ ¹ñ³Ù ·áõÙ³ñáí:
A12: __________________________________________________________________________________________ | B12: Է. Արշակյան | H12: Î.î.
A13: (ÐÐ å»ï³Ï³Ý Ï³é³í³ñÙ³Ý Ù³ñÙÝÇ Õ»Ï³í³ñÇ /Ñ³Ù³ÛÝùÇ Õ»Ï³í³ñÇ/ ëïáñ³·ñáõÃÛáõÝÁ ¨ ².Ð.².)
A14: §28 ¦ դեկտեմբերի 2022թ
B15: Ü²Ê²Ð²ÞÆì*
B16: ´ Ú àô æ º î ² Ú Æ Ü Ð Æ Ø Ü ² ð Î Æ ä ² Ð ä ² Ü Ø ² Ü Ì ² Ê ê º ð Æ
B17: §01¦ §ÐáõÝí³ñÇ ¦ 2023 Ã. -- §30¦ §¹»Ïï»Ùµ»ñÇ ¦ 2023 Ã.
A19: 1. ÐÇÙÝ³ñÏÇ ³Ýí³ÝáõÙÁ Քաղաքապետարան | G19: 8. * ´Ûáõç»ï³ÛÇÝ Í³Ëë»ñÇ ·áñÍ³é³Ï³Ý ¹³ë³Ï³ñ·.
G20: Í³ÍÏ³·Çñ | H20: 1 | I20: 6 | J20: 1
A21: 3. ÐÇÙÝ³ñÏÇ ï»Õ³µ³ßËÙ³Ý Ù³ñ½Ç ¨ Ñ³Ù³ÛÝùÇ Ïá¹Ý Áëï | G21: 9. Ìñ³·ñÇ ³Ýí³ÝáõÙÁ_ընդհանուր բնույթի հանր .ծառ.
A22: µÛáõç»ï³ÛÇÝ Í³Ëë»ñÇ ï³ñ³Íù³ÛÇÝ ¹³ë³Ï³ñ·Ù³Ý | G22: ________________________________
A23: 4. ** ÐÐ å»ï³Ï³Ý Ï³é³í³ñÙ³Ý (ï»Õ³Ï³Ý ÇÝùÝ³Ï³é³í³ñÙ³Ý) Ù³ñÙÝÇ | G23: 10. Ìñ³·ñÇ Ïá¹Á
A24: ³Ýí³ÝáõÙÁ Լոռու մարզպետարան | G24: 11.*** ÐÐ å»ï³Ï³Ý Ï³é³í³ñÙ³Ý (îÆ)
A25: 5. ÐÇÙÝ³ñÏÁ ëå³ë³ñÏáÕ ï»Õ³Ï³Ý ·³ÝÓ³å»ï³Ï³Ý µ³ÅÝÇ (î¶´) ³Ýí³ÝáõÙÁ Տաշիրի | G25: Ù³ñÙÝÇ Ïá¹Ý Áëï µÛáõç»ï³ÛÇÝ Í³Ëë»ñÇ ·»ñ³ï»ëã³Ï.
A26: 6. ÐÇÙÝ³ñÏÇª ï»Õ³Ï³Ý ·³ÝÓ³å»ï³Ï³Ý µ³ÅÝáõÙ (î¶´) Ñ³ßí³éÙ³Ý Ñ³Ù³ñÁ | G26: ¹³ë³Ï³ñ·Ù³Ý
A27: 7. üÇÝ³Ýë³íáñÙ³Ý ³ÕµÛáõñÇ Ïá¹Á (ÐÐ å»ï³Ï³Ý µÛáõç»ª 1, Ñ³Ù³ÛÝùÇ µÛáõç»ª 2) | E27: 2 | G27: 12. â³÷Ç ÙÇ³íáñÁª Ñ³½³ñ ¹ñ³Ù
H29: 900927424012
A30: îáÕÇ NN | B30: ´Ûáõç»ï³ÛÇÝ Í³Ëë»ñÇ ïÝï»ë³·Çï³Ï³Ý ¹³ë³Ï³ñ·Ù³Ý ï³ññ»ñ | D30: ÜáõÛÝ Å³Ù³Ý³Ï³Ñ³ïí³ÍÇ Ñ³Ù³ñ Ý³ËÏÇÝáõÙ Ñ³ëï³ïí³Íª ·áñÍáÕ | F30: êáõÛÝ Ý³Ë³Ñ³ßíáí Ñ³ëï³ïíáÕ óáõó³ÝÇßÝ»ñÁ | G30: ³Û¹ ÃíáõÙª Áëï »é³ÙëÛ³ÏÝ»ñÇ (»é³ÙëÛ³ÏÇ ³ÙÇëÝ»ñÇ)³×áÕ³Ï³Ý
B31: ³Ýí³ÝáõÙÝ»ñÁ | C31: NN | D31: Ý³Ë³Ñ³ßíÇ óáõó³ÝÇßÝ»ñÁ | E31: Ý³Ë³Ñ³ßíáõÙ Ï³ï³ñí³Í ÷á÷áËáõÃÛáõÝ-Ý»ñÁ (³í»É³óáõÙÁª /+/, å³Ï³ë»óáõÙÁª/-/ | G31: I | H31: II | I31: III | J31: IV
A32: ² | B32: ´ | C32: ¶ | D32: 1 | E32: 2 | F32: 3 | G32: 4 | H32: 5 | I32: 6 | J32: 7
A33: 1100000 | B33: ². ÀÜÂ²òÆÎ Ì²Êêºðª ÀÜ¸²ØºÜÀ, | C33: x | D33: =D108+D132+D99 -> 0 | E33: =E99 -> 0 | F33: =D33+E33 -> 0 | G33: =G100+G132 -> 0 | H33: =H100+H132+H43+H115 -> 0 | I33: =I100+I132+I43+I99+I115 -> 0 | J33: =F33 -> 0
A34: 1110000 | B34: 1.äºî²Î²Ü, îºÔ²Î²Ü ÆÜøÜ²Î²è²ì²ðØ²Ü Ø²ðØÆÜÜºðÆ, ¸ð²Üò ºÜÂ²Î² ´Úàôæºî²ÚÆÜ ÐÆØÜ²ðÎÜºðÆ ²ÞÊ²îàÔÜºðÆ ²ÞÊ²î²ì²ðÒÀª ÀÜ¸²ØºÜÀ, ³Û¹ ÃíáõÙª | C34: x | D34: =D35 -> 0 | F34: =F35 -> 0 | G34: =G35 -> 0 | H34: =H35 -> 0 | I34: =I35 -> 0 | J34: =J35 -> 0
A35: 1110000 | B35: 1,1 ²ßË³ï³ÝùÇ í³ñÓ³ïñáõÃÛáõÝ | C35: x | D35: =SUM(D36:D42) -> 0 | F35: =SUM(F36:F42) -> 0 | G35: =SUM(G36:G42) -> 0 | H35: =SUM(H36:H42) -> 0 | I35: =SUM(I36:I42) -> 0 | J35: =SUM(J36:J42) -> 0
A36: 1111000 | B36: -²ßË³ïáÕÝ»ñÇ ³ßË³ï³í³ñÓ»ñ ¨ Ñ³í»É³í×³ñÝ»ñ | C36: 411100 | D36: 0 | F36: 0 | G36: 0 | H36: 0 | I36: 0 | J36: =F36 -> 0
A37: 1112000 | B37: - ä³ñ·¨³ïñáõÙÝ»ñ, ¹ñ³Ù³Ï³Ý Ëñ³ËáõëáõÙÝ»ñ ¨ Ñ³ïáõÏ í×³ñÝ»ñ | C37: 411200 | D37: 0 | F37: 0 | G37: 0 | H37: 0 | I37: 0 | J37: =F37 -> 0
A38: 1113000 | B38: -ø³Õ³ù³óÇ³Ï³Ý, ¹³ï³Ï³Ý ¨ å»ï³Ï³Ý Í³é³ÛáÕÝ»ñÇ å³ñ·¨³ïñáõÙ | C38: 411300 | J38: 0
A39: 1114000 | B39: -ÐÐ ýÇÝ³ÝëÝ»ñÇ ¨ ¿ÏáÝáÙÇÏ³ÛÇ Ý³Ë³ñ³ñáõÃÛ³Ý, Ñ³ñÏ³ÛÇÝ ¨ Ù³ùë³ÛÇÝ Ù³ñÙÇÝÝ»ñÇ ³ßË³ïáÕÝ»ñÇ å³ñ·¨³ïñáõÙ | C39: 411400 | J39: 0
A40: 1115000 | B40: -²ÛÉ í³ñÓ³ïñáõÃÛáõÝÝ»ñ | C40: 411500 | J40: 0
A41: 1116000 | B41: -´Ý»Õ»Ý ³ßË³ï³í³ñÓ»ñ ¨ Ñ³í»É³í×³ñÝ»ñ | C41: 412100 | J41: 0
A42: 1117000 | B42: - êáóÇ³É³Ï³Ý ³å³ÑáíáõÃÛ³Ý í×³ñÝ»ñ | C42: 413100 | D42: 0 | F42: 0 | G42: 0 | H42: 0 | I42: 0 | J42: =F42 -> 0
A43: 1120000 | B43: 2 Ì³é³ÛáõÃÛáõÝÝ»ñÇ ¨ ³åñ³ÝùÝ»ñÇ Ó»éù µ»ñáõÙ | C43: x | D43: =D44+D56+D67+D70+D52+D65 -> 0 | F43: =F44+F56+F67+F70+F52+F65 -> 0 | G43: =G44+G52+G56+G65+G67+G70 -> 0 | H43: =H44+H52+H56+H65+H67+H70 -> 0 | I43: =I44+I52+I56+I65+I67+I70 -> 0 | J43: =F43 -> 0
A44: 1121000 | B44: 2.1 Þ³ñáõÝ³Ï³Ï³Ý Í³Ëë»ñ | D44: =SUM(D45:D50) -> 0 | F44: =SUM(F45:F50) -> 0 | G44: =SUM(G45:G50) -> 0 | H44: =SUM(H45:H50) -> 0 | I44: =SUM(I45:I50) -> 0 | J44: =SUM(J45:J50) -> 0
A45: 1121100 | B45: -·áñÍ³éÝ³Ï³Ý ¨ µ³ÝÏ³ÛÇÝ Í³é³ÛáõÃÛáõÝÝ»ñÇ Í³Ëë»ñ | C45: 421100 | J45: 0
A46: 1121200 | B46: -¿Ý»ñ·»ïÇÏ Í³é³ÛáõÃÛáõÝÝ»ñ | C46: 421200 | D46: 0 | F46: 0 | G46: 0 | H46: 0 | I46: 0 | J46: =F46 -> 0
A47: 1121300 | B47: -ÎáÙáõÝ³É Í³é³ÛáõÃÛáõÝÝ»ñ | C47: 421300 | D47: 0 | F47: 0 | G47: 0 | H47: 0 | I47: 0 | J47: =F47 -> 0
A48: 1121400 | B48: -Î³åÇ Í³é³ÛáõÃÛáõÝÝ»ñ | C48: 421400 | D48: 0 | F48: 0 | G48: 0 | H48: 0 | I48: 0 | J48: =F48 -> 0
A49: 1121500 | B49: -²å³Ñáí³·ñ³Ï³Ý Í³Ëë»ñ | C49: 421500 | J49: 0
A50: 1121600 | B50: -¶áõÛùÇ ¨ ë³ñù³íáñáõÙÝ»ñÇ í³ñÓ³Ï³ÉáõÃÛáõÝ | C50: 421600 | J50: 0
A51: 1121700 | B51: -²ñï³·»ñ³ï»ëã³Ï³Ý Í³Ëë»ñ | C51: 421700 | J51: 0
A52: 1122000 | B52: 2.2 ¶áñÍáõÕáõÙÝ»ñÇ ¨ ßñç³·³ÛáõÃÛ³Ý Í³Ëë»ñ | C52: x | D52: =D53 -> 0 | F52: =F53 -> 0 | G52: =G53 -> 0 | H52: =H53 -> 0 | I52: =I53 -> 0 | J52: =J53 -> 0
A53: 1122100 | B53: -Ü»ñùÇÝ ·áñÍáõÕáõÙÝ»ñ | C53: 422100 | D53: 0 | F53: 0 | G53: 0 | H53: 0 | I53: 0 | J53: =F53 -> 0
A54: 1122200 | B54: -²ñï³ë³ÑÙ³ÝÛ³Ý ·áñÍáõÕáõÙÝ»ñÇ ·Íáí Í³Ëë»ñ | C54: 422200 | J54: 0
A55: 1122300 | B55: -²ÛÉ ïñ³Ýëåáñï³ÛÇÝ Í³Ëë»ñ | C55: 422900 | J55: 0
A56: 1123000 | B56: 2.3 ä³ÛÙ³Ý³·ñ³ÛÇÝ ³ÛÉ Í³é³ÛáõÃÛáõÝÝ»ñÇ Ó»éù µ»ñáõÙ | C56: x | D56: =SUM(D57:D64) -> 0 | F56: =SUM(F57:F64) -> 0 | G56: =SUM(G57:G64) -> 0 | H56: =SUM(H57:H64) -> 0 | I56: =SUM(I57:I64) -> 0 | J56: =F56 -> 0
A57: 1123100 | B57: -ì³ñã³Ï³Ý Í³é³ÛáõÃÛáõÝÝ»ñ | C57: 423100 | J57: =F57 -> 0
A58: 1123200 | B58: -Ð³Ù³Ï³ñ·ã³ÛÇÝ Í³é³ÛáõÃÛáõÝÝ»ñ | C58: 423200 | D58: 0 | F58: 0 | G58: 0 | H58: 0 | I58: 0 | J58: =F58 -> 0
A59: 1123300 | B59: -²ßË³ï³Ï³½ÙÇ Ù³ëÝ³·Çï³Ï³Ý ½³ñ·³óÙ³Ý Í³é³ÛáõÃÛáõÝÝ»ñ | C59: 423300
A60: 1123400 | B60: -î»Õ³Ï³ïí³Ï³Ý Í³é³ÛáõÃÛáõÝÝ»ñ | C60: 423400 | D60: 0 | F60: 0 | G60: 0 | H60: 0 | I60: 0 | J60: =F60 -> 0
A61: 1123500 | B61: -Î³é³í³ñã³Ï³Ý Í³é³ÛáõÃÛáõÝÝ»ñ | C61: 423500 | E61: 0 | F61: =D61+E61 -> 0 | I61: 0 | J61: 0
A62: 1123600 | B62: - Î»Ýó³Õ³ÛÇÝ ¨ Ñ³Ýñ³ÛÇÝ ëÝÝ¹Ç Í³é³ÛáõÃÛáõÝÝ»ñ | C62: 423600 | J62: 0
A63: 1123700 | B63: -Ü»ñÏ³Û³óáõóã³Ï³Ý Í³Ëë»ñ | C63: 423700 | D63: 0 | F63: 0 | G63: 0 | H63: 0 | I63: 0 | J63: 0
A64: 1123800 | B64: -ÀÝ¹Ñ³Ýáõñ µÝáõÛÃÇ ³ÛÉ Í³é³ÛáõÃÛáõÝÝ»ñ | C64: 423900 | D64: 0 | F64: =D64 -> 0 | G64: 0 | H64: 0 | I64: 0 | J64: 0
A65: 1124000 | B65: 2.4 ²ÛÉ Ù³ëÝ³·Çï³Ï³Ý Í³é³ÛáõÃÛáõÝÝ»ñÇ Ó»éù µ»ñáõÙ | C65: x | D65: =D66 -> 0 | F65: =F66 -> 0 | G65: =G66 -> 0 | H65: =H66 -> 0 | I65: =I66 -> 0 | J65: 0
A66: 1124100 | B66: -Ø³ëÝ³·Çï³Ï³Ý Í³é³ÛáõÃÛáõÝÝ»ñ | C66: 424100 | F66: 0 | G66: 0 | H66: 0 | I66: 0 | J66: 0
A67: 1125000 | B67: 2.5 ÀÝÃ³óÇÏ Ýáñá·áõÙ ¨ å³Ñå³ÝáõÙ (Í³é³ÛáõÃÛáõÝÝ»ñ ¨ ÝÛáõÃ»ñ) | C67: x | D67: =D68+D69 -> 0 | F67: =F68+F69 -> 0 | G67: =G68+G69 -> 0 | H67: =H68+H69 -> 0 | I67: =I68+I69 -> 0 | J67: =J68+J69 -> 0
A68: 1125100 | B68: -Þ»Ýù»ñÇ ¨ Ï³éáõÛóÝ»ñÇ ÁÝÃ³óÇÏ Ýáñá·áõÙ ¨ å³Ñå³ÝáõÙ | C68: 425100 | J68: =F68 -> 0
A69: 1125200 | B69: -Ø»ù»Ý³Ý»ñÇ ¨ ë³ñù³íáñáõÙÝ»ñÇ ÁÝÃ³óÇÏ Ýáñá·áõÙ ¨ å³Ñå³ÝáõÙ | C69: 425200 | D69: 0 | F69: 0 | G69: 0 | H69: 0 | I69: 0 | J69: 0
A70: 1126000 | B70: 2.6 ÜÛáõÃ»ñ | C70: x | D70: =SUM(D71:D78) -> 0 | F70: =SUM(F71:F78) -> 0 | G70: =SUM(G71:G78) -> 0 | H70: =SUM(H71:H78) -> 0 | I70: =SUM(I71:I78) -> 0 | J70: 0
A71: 1126100 | B71: -¶ñ³ë»ÝÛ³Ï³ÛÇÝ ÝÛáõÃ»ñ ¨ Ñ³·áõëï | C71: 426100 | D71: 0 | F71: 0 | G71: 0 | H71: 0 | I71: 0 | J71: 0
A72: 1126200 | B72: -¶ÛáõÕ³ïÝï»ë³Ï³Ý ³åñ³ÝùÝ»ñ | C72: 426200 | J72: 0
A73: 1126300 | B73: -ì»ñ³å³ïñ³ëïÙ³Ý ¨ áõëáõóÙ³Ý ÝÛáõÃ»ñ | C73: 426300 | J73: 0
A74: 1126400 | B74: -îñ³Ýëåáñï³ÛÇÝ ÝÛáõÃ»ñ | C74: 426400 | D74: 0 | F74: 0 | G74: 0 | H74: 0 | I74: 0 | J74: 0
A75: 1126500 | B75: -Þñç³Ï³ ÙÇç³í³ÛñÇ å³ßïå³ÝáõÃÛ³Ý ¨ ·Çï³Ï³Ý ÝÛáõÃ»ñ | C75: 426500 | J75: 0
A76: 1126600 | B76: -²éáÕç³å³Ñ³Ï³Ý ¨ É³µáñ³ïáñ ÝÛáõÃ»ñ | C76: 426600 | J76: =F76 -> 0
A77: 1126700 | B77: -Î»Ýó³Õ³ÛÇÝ ¨ Ñ³Ýñ³ÛÇÝ ëÝÝ¹Ç ÝÛáõÃ»ñ | C77: 426700 | D77: 0 | E77: 0 | F77: =E77+D77 -> 0 | G77: 0 | H77: 0 | I77: 0 | J77: =F77 -> 0
A78: 1126800 | B78: -Ð³ïáõÏ Ýå³ï³Ï³ÛÇÝ ³ÛÉ ÝÛáõÃ»ñ | C78: 426900 | D78: 0 | F78: 0 | G78: 0 | H78: 0 | I78: 0 | J78: =F78 -> 0
A79: 1130000 | B79: 3 îáÏáë³í×³ñÝ»ñ | C79: x | D79: 0 | F79: 0 | G79: 0 | H79: 0 | I79: 0 | J79: 0
A80: 1130100 | B80: -Ü»ñùÇÝ ³ñÅ»ÃÕÃ»ñÇ ïáÏáë³í×³ñÝ»ñ | C80: 441100 | J80: 0
A81: 1130200 | B81: -Ü»ñùÇÝ í³ñÏ»ñÇ ïáÏáë³í×³ñÝ»ñ | C81: 441200 | J81: 0
A82: 1130300 | B82: -²ñï³ùÇÝ ³ñÅ»ÃÕÃ»ñÇ ·Íáí ïáÏáë³í×³ñÝ»ñ | C82: 442100 | J82: 0
A83: 1130400 | B83: -²ñï³ùÇÝ í³ñÏ»ñÇ ·Íáí ïáÏáë³í×³ñÝ»ñ | C83: 442200 | J83: 0
A84: 1131000 | B84: öáË³éáõÃÛáõÝÝ»ñÇ Ñ»ï Ï³åí³Í í×³ñÝ»ñ | C84: x | J84: 0
A85: 1131100 | B85: -öáË³Ý³ÏÙ³Ý Ïáõñë»ñÇ µ³ó³ë³Ï³Ý ï³ñµ»ñáõÃÛáõÝ | C85: 443100 | J85: 0
A86: 1131200 | B86: -îáõÛÅ»ñ | C86: 443200 | J86: 0
A87: 1131300 | B87: -öáË³éáõÃÛáõÝÝ»ñÇ ·Íáí ïáõñù»ñ | C87: 443300 | J87: 0
A88: 1140000 | B88: 4. êáõµëÇ¹Ç³Ý»ñ | C88: x | D88: 0 | F88: 0 | G88: 0 | H88: 0 | I88: 0 | J88: 0
A89: 1141000 | B89: -êáõµëÇ¹Ç³Ý»ñ áã-ýÇÝ³Ýë³Ï³Ý å»ï³Ï³Ý Ï³½Ù³Ï»ñåáõÃÛáõÝÝ»ñÇÝ | C89: 451100 | J89: 0
A90: 1142000 | B90: -êáõµëÇ¹Ç³Ý»ñ ýÇÝ³Ýë³Ï³Ý å»ï³Ï³Ý Ï³½Ù³Ï»ñåáõÃÛáõÝÝ»ñÇÝ | C90: 451200 | J90: 0
A91: 1143000 | B91: -êáõµëÇ¹Ç³Ý»ñ áã å»ï³Ï³Ý áã ýÇÝ³Ýë³Ï³Ý Ï³½Ù³Ï»ñåáõÃÛáõÝÝ»ñÇÝ | C91: 452100 | J91: 0
A92: 1144000 | B92: -êáõµëÇ¹Ç³Ý»ñ áã å»ï³Ï³Ý ýÇÝ³Ýë³Ï³Ý Ï³½Ù³Ï»ñåáõÃÛáõÝÝ»ñÇÝ | C92: 452200 | J92: 0
A93: 1150000 | B93: 5.¸ñ³Ù³ßÝáñÑÝ»ñ | C93: x | D93: 0 | F93: 0 | G93: 0 | H93: 0 | I93: 0 | J93: 0
A94: 1151000 | B94: ¸ñ³Ù³ßÝáñÑÝ»ñ ûï³ñ»ñÏñÛ³ Ï³é³í³ñáõÃÛáõÝÝ»ñÇÝ | C94: x | D94: 0 | F94: 0 | G94: 0 | H94: 0 | I94: 0 | J94: 0
A95: 1151100 | B95: ÀÝÃ³óÇÏ ¹ñ³Ù³ßÝáñÑÝ»ñ ûï³ñ»ñÏñÛ³ Ï³é³í³ñáõÃÛáõÝÝ»ñÇÝ | C95: 461100 | J95: 0
A96: 1151200 | B96: Î³åÇï³É ¹ñ³Ù³ßÝáñÑÝ»ñ ûï³ñ»ñÏñÛ³ Ï³é³í³ñáõÃÛáõÝÝ»ñÇÝ | C96: 461200 | J96: 0
A97: 1152000 | B97: ¸ñ³Ù³ßÝáñÑÝ»ñ ÙÇç³½·³ÛÇÝ Ï³½Ù³Ï»ñåáõÃÛáõÝÝ»ñÇÝ | C97: x | D97: 0 | F97: 0 | G97: 0 | H97: 0 | I97: 0 | J97: 0
A98: 1152100 | B98: ÀÝÃ³óÇÏ ¹ñ³Ù³ßÝáñÑÝ»ñ ÙÇç³½·³ÛÇÝ Ï³½Ù³Ï»ñåáõÃÛáõÝÝ»ñÇÝ | C98: 462100 | J98: 0
A99: 1152200 | B99: Î³åÇï³É ¹ñ³Ù³ßÝáñÑ»ñ ÙÇç³½·³ÛÇÝ Ï³½Ù³Ï»ñåáõÃÛáõÝÝ»ñÇÝ | C99: 462200 | D99: 0 | E99: 0 | F99: =D99+E99 -> 0 | I99: 0 | J99: =F99 -> 0
A100: 1153000 | B100: ÀÝÃ³óÇÏ ¹ñ³Ù³ßÝáñÑÝ»ñ å»ï³Ï³Ý Ñ³ïí³ÍÇ ³ÛÉ Ù³Ï³ñ¹³ÏÝ»ñÇÝ | C100: x | D100: 0 | F100: =F108 -> 0 | G100: =G108 -> 0 | H100: =H108 -> 0 | I100: =I108 -> 0 | J100: =J108 -> 0
A101: 1153100 | B101: ÀÝÃ³óÇÏ ¹ñ³Ù³ßÝáñÑÝ»ñ å»ï³Ï³Ý Ï³é³í³ñÙ³Ý Ñ³ïí³ÍÇÝ | C101: 463100 | J101: 0
A102: 1153200 | B102: ÀÝÃ³óÇÏ ëáõµí»ÝóÇ³Ý»ñ Ñ³Ù³ÛÝùÝ»ñÇÝ | C102: 463200 | J102: 0
A103: 1153300 | B103: ä»ï³Ï³Ý µÛáõç»Çó Ñ³Ù³ÛÝùÝ»ñÇ µÛáõç»Ý»ñÇÝ ýÇÝ³Ýë³Ï³Ý Ñ³Ù³Ñ³ñÃ»óÙ³Ý ëÏ½µáõÝùáí ïñíáÕ ¹áï³óÇ³Ý»ñ | C103: 463300 | J103: 0
A104: 1153400 | B104: úñ»ÝùÝ»ñÇ ÏÇñ³ñÏÙ³Ý ³ñ¹ÛáõÝùáõÙ Ñ³Ù³ÛÝùÝ»ñÇ µÛáõç»Ý»ñÇ ÏáñáõëïÝ»ñÇ ÷áËÑ³ïáõóáõÙ | C104: 463400 | J104: 0
A105: 1153500 | B105: ²ÛÉ ÁÝÃ³óÇÏ ¹ñ³Ù³ßÝáñÑÝ»ñ Ñ³Ù³ÛÝùÝ»ñÇÝ | C105: 463500 | J105: 0
A106: 1153700 | B106: ÀÝÃ³óÇÏ ¹ñ³Ù³ßÝáñÑÝ»ñ å»ï³Ï³Ý ¨ Ñ³Ù³ÛÝùÝ»ñÇ áã ³é¨ïñ³ÛÇÝ Ï³½Ù³Ï»ñåáõÃÛáõÝÝ»ñÇÝ | C106: 463700 | J106: 0
A107: 1153800 | B107: ÀÝÃ³óÇÏ ¹ñ³Ù³ßÝáñÑÝ»ñ å»ï³Ï³Ý ¨ Ñ³Ù³ÛÝùÝ»ñÇ ³é¨ïñ³ÛÇÝ Ï³½Ù³Ï»ñåáõÃÛáõÝÝ»ñÇÝ | C107: 463800 | J107: 0
A108: 1153900 | B108: ²ÛÉ ÁÝÃ³óÇÏ ¹ñ³Ù³ßÝáñÑÝ»ñ | C108: 463900 | D108: 0 | E108: 0 | F108: =D108 -> 0 | G108: 0 | H108: 0 | I108: 0 | J108: =F108 -> 0
A109: 1154000 | B109: Î³åÇï³É ¹ñ³Ù³ßÝáñÑÝ»ñ å»ï³Ï³Ý Ñ³ïí³ÍÇ ³ÛÉ Ù³Ï³ñ¹³ÏÝ»ñÇÝ | C109: x | D109: 0 | F109: 0 | G109: 0 | H109: 0 | I109: 0 | J109: 0
A110: 1154100 | B110: Î³åÇï³É ¹ñ³Ù³ßÝáñÑÝ»ñ å»ï³Ï³Ý Ï³é³í³ñÙ³Ý Ñ³ïí³ÍÇÝ | C110: 465100 | J110: 0
A111: 1154200 | B111: Î³åÇï³É ëáõµí»ÝóÇ³Ý»ñ Ñ³Ù³ÛÝùÝ»ñÇÝ | C111: 465200 | J111: 0
A112: 1154300 | B112: ²ÛÉ Ï³åÇï³É ¹ñ³Ù³ßÝáñÑÝ»ñ Ñ³Ù³ÛÝùÝ»ñÇÝ | C112: 465300 | J112: 0
A113: 1154500 | B113: Î³åÇï³É ¹ñ³Ù³ßÝáñÑÝ»ñ å»ï³Ï³Ý ¨ Ñ³Ù³ÛÝùÝ»ñÇ áã ³é¨ïñ³ÛÇÝ Ï³½Ù³Ï»ñåáõÃÛáõÝÝ»ñÇÝ | C113: 465500 | J113: 0
A114: 1154600 | B114: Î³åÇï³É ¹ñ³Ù³ßÝáñÑÝ»ñ å»ï³Ï³Ý ¨ Ñ³Ù³ÛÝù³ÛÇÝ ³é¨ïñ³ÛÇÝ Ï³½Ù³Ï»ñåáõÃÛáõÝÝ»ñÇÝ | C114: 465600 | J114: 0
A115: 1154700 | B115: ²ÛÉ Ï³åÇï³É ¹ñ³Ù³ßÝáñÑÝ»ñ | C115: 465700 | D115: 0 | E115: 0 | F115: =D115+E115 -> 0 | G115: 0 | H115: 0 | I115: 0 | J115: =F115 -> 0
A116: 1160000 | B116: 6. êàòÆ²È²Î²Ü Üä²êîÜºð ºì ÎºÜê²ÂàÞ²ÎÜºð | C116: x | D116: 0 | F116: 0 | G116: 0 | H116: 0 | I116: 0 | J116: 0
A117: 1161000 | B117: 6.1 êàòÆ²È²Î²Ü ²ä²ÐàìàôÂÚ²Ü Üä²êîÜºð | C117: x | D117: 0 | F117: 0 | G117: 0 | H117: 0 | I117: 0 | J117: 0
A118: 1161100 | B118: -îÝ³ÛÇÝ ïÝï»ëáõÃÛáõÝÝ»ñÇÝ ¹ñ³Ùáí í×³ñíáÕ ëáóÇ³É³Ï³Ý ³å³ÑáíáõÃÛ³Ý í×³ñÝ»ñ | C118: 471100 | J118: 0
A119: 1161200 | B119: -êáóÇ³É³Ï³Ý ³å³ÑáíáõÃÛ³Ý µÝ»Õ»Ý Ýå³ëïÝ»ñ Í³é³ÛáõÃÛáõÝÝ»ñ Ù³ïáõóáÕÝ»ñÇÝ | C119: 471200 | J119: 0
A120: 1162000 | B120: 6.2 êàòÆ²È²Î²Ü ú¶ÜàôÂÚ²Ü ¸ð²Ø²Î²Ü ²ðî²Ð²ÚîàôÂÚ²Ø´ Üä²êîÜºð (´ÚàôæºÆò) | C120: x | D120: 0 | F120: 0 | G120: 0 | H120: 0 | I120: 0 | J120: 0
A121: 1162100 | B121: -ÐÇí³Ý¹áõÃÛ³Ý ¨ Ñ³ßÙ³Ý¹³ÙáõÃÛ³Ý Ýå³ëïÝ»ñ µÛáõç»Çó | C121: 472100 | J121: 0
A122: 1162200 | B122: -Ø³ÛñáõÃÛ³Ý Ýå³ëïÝ»ñ µÛáõç»Çó | C122: 472200 | J122: 0
A123: 1162300 | B123: -ºñ»Ë³Ý»ñÇ Ï³Ù ÁÝï³Ý»Ï³Ý Ýå³ëïÝ»ñ µÛáõç»Çó | C123: 472300 | J123: 0
A124: 1162400 | B124: -¶áñÍ³½ñÏáõÃÛ³Ý Ýå³ëïÝ»ñ µÛáõç»Çó | C124: 472400 | J124: 0
A125: 1162500 | B125: -Î»Ýë³Ãáß³ÏÇ ³ÝóÝ»Éáõ Ñ»ï Ï³åí³Í ¨ ï³ñÇù³ÛÇÝ Ýå³ëïÝ»ñ µÛáõç»Çó | C125: 472500 | J125: 0
A126: 1162600 | B126: -ÐáõÕ³ñÏ³íáñáõÃÛ³Ý Ýå³ëïÝ»ñ µÛáõç»Çó | C126: 472600 | J126: 0
A127: 1162700 | B127: -ÎñÃ³Ï³Ý, Ùß³ÏáõÃ³ÛÇÝ ¨ ëåáñï³ÛÇÝ Ýå³ëïÝ»ñ µÛáõç»Çó | C127: 472700 | J127: 0
A128: 1162800 | B128: -´Ý³Ï³ñ³Ý³ÛÇÝ Ýå³ëïÝ»ñ µÛáõç»Çó | C128: 472800 | J128: 0
A129: 1162900 | B129: -²ÛÉ Ýå³ëïÝ»ñ µÛáõç»Çó | C129: 472900 | J129: 0
A130: 1163000 | B130: 6.3 ÎºÜê²ÂàÞ²ÎÜºð | C130: x | D130: 0 | F130: 0 | G130: 0 | H130: 0 | I130: 0 | J130: 0
A131: 1163100 | B131: -Ï»Ýë³Ãáß³ÏÝ»ñ | C131: 474100 | J131: 0
A132: 1170000 | B132: 7. ²ÚÈ Ì²Êêºð | C132: x | D132: =D133 -> 0 | F132: =F133 -> 0 | G132: =G133 -> 0 | H132: =H133 -> 0 | I132: =I133 -> 0 | J132: =J133 -> 0
A133: 1171000 | B133: 7.1 ÜìÆð²îìàôÂÚàôÜÜºð àâ-Î²è²ì²ðâ²Î²Ü (Ð²ê²ð²Î²Î²Ü) Î²¼Ø²ÎºðäàôÂÚàôÜÜºðÆÜ | C133: x | D133: =D135 -> 0 | F133: =F135 -> 0 | G133: =G135 -> 0 | H133: =H135 -> 0 | I133: =I135 -> 0 | J133: =F133 -> 0
A134: 1171100 | B134: -îÝ³ÛÇÝ ïÝï»ëáõÃÛáõÝÝ»ñÇÝ Í³é³ÛáõÃÛáõÝÝ»ñ Ù³ïáõóáÕ` ß³ÑáõÛÃ ãÑ»ï³åÝ¹áÕ Ï³½Ù³Ï»ñåáõÃÛáõÝÝ»ñÇÝ ÝíÇñ³ïíáõÃÛáõÝÝ»ñ | C134: 481100 | J134: 0
A135: 1171200 | B135: -ÜíÇñ³ïíáõÃÛáõÝÝ»ñ ³ÛÉ ß³ÑáõÛÃ ãÑ»ï³åÝ¹áÕ Ï³½Ù³Ï»ñåáõÃÛáõÝÝ»ñÇÝ | C135: 481900 | D135: 0 | E135: 0 | F135: =D135+E135 -> 0 | G135: 0 | H135: 0 | I135: 0 | J135: =F135 -> 0
A136: 1172000 | B136: 7.2 Ð²ðÎºð, ä²ðî²¸Æð ìÖ²ðÜºð ºì îàôÚÄºð, àðàÜø Î²è²ì²ðØ²Ü î²ð´ºð Ø²Î²ð¸²ÎÜºðÆ ÎàÔØÆò ÎÆð²èìàôØ ºÜ ØÆØÚ²Üò ÜÎ²îØ²Ø´ | C136: x | D136: =D138+D139 -> 0 | F136: =F138+F139 -> 0 | G136: =G138+G139 -> 0 | H136: =H138+H139 -> 0 | I136: =I138+I139 -> 0 | J136: =F136 -> 0
A137: 1172100 | B137: -²ßË³ï³í³ñÓÇ ýáÝ¹ | C137: 482100 | J137: 0
A138: 1172200 | B138: -²ÛÉ Ñ³ñÏ»ñ | C138: 482200 | D138: 0 | F138: 0 | G138: 0 | H138: 0 | I138: 0 | J138: =F138 -> 0
A139: 1172300 | B139: -ä³ñï³¹Çñ í×³ñÝ»ñ | C139: 482300 | D139: 0 | F139: 0 | G139: 0 | H139: 0 | I139: 0 | J139: =F139 -> 0
A140: 1172400 | B140: -ä»ï³Ï³Ý Ñ³ïí³ÍÇ ï³ñµ»ñ Ù³Ï³ñ¹³ÏÝ»ñÇ ÏáÕÙÇó ÙÇÙÛ³Ýó ÝÏ³ïÙ³Ùµ ÏÇñ³éíáÕ ïáõÛÅ»ñ | C140: 482400 | J140: 0
A141: 1173000 | B141: 7.3 ¸²î²ð²ÜÜºðÆ ÎàÔØÆò ÜÞ²Ü²Îì²Ì îàôÚÄºð ºì îàô¶²ÜøÜºð | C141: x | D141: 0 | F141: 0 | G141: 0 | H141: 0 | I141: 0 | J141: 0
A142: 1173100 | B142: -¸³ï³ñ³ÝÝ»ñÇ ÏáÕÙÇó Ýß³Ý³Ïí³Í ïáõÛÅ»ñ ¨ ïáõ·³ÝùÝ»ñ | C142: 483100 | J142: 0
A143: 1174000 | B143: 7.4 ´Ü²Î²Ü ²ÔºîÜºðÆò Î²Ø ²ÚÈ ´Ü²Î²Ü ä²îÖ²èÜºðàì ²è²æ²ò²Ì ìÜ²êÜºðÆ Î²Ø ìÜ²êì²ÌøÜºðÆ ìºð²Î²Ü¶ÜàôØ | C143: x | D143: 0 | F143: 0 | G143: 0 | H143: 0 | I143: 0 | J143: 0
A144: 1174100 | B144: -´Ý³Ï³Ý ³Õ»ïÝ»ñÇó ³é³ç³ó³Í íÝ³ëí³ÍùÝ»ñÇ Ï³Ù íÝ³ëÝ»ñÇ í»ñ³Ï³Ý·ÝáõÙ | C144: 484100 | J144: 0
A145: 1174200 | B145: -²ÛÉ µÝ³Ï³Ý å³ï×³éÝ»ñáí ëï³ó³Í íÝ³ëí³ÍùÝ»ñÇ í»ñ³Ï³Ý·ÝáõÙ | C145: 484200 | J145: 0
A146: 1175000 | B146: 7.5 Î²è²ì²ðØ²Ü Ø²ðØÆÜÜºðÆ ¶àðÌàôÜºàôÂÚ²Ü Ðºîºì²Üøàì ²è²æ²ò²Ì ìÜ²êÜºðÆ Î²Ø ìÜ²êì²ÌøÜºðÆ ìºð²Î²Ü¶ÜàôØ | C146: x | D146: 0 | F146: 0 | G146: 0 | H146: 0 | I146: 0 | J146: 0
A147: 1175100 | B147: -Î³é³í³ñÙ³Ý Ù³ñÙÇÝÝ»ñÇ ·áñÍáõÝ»áõÃÛ³Ý Ñ»ï¨³Ýùáí ³é³ç³ó³Í íÝ³ëí³ÍùÝ»ñÇ Ï³Ù íÝ³ëÝ»ñÇ í»ñ³Ï³Ý·ÝáõÙ | C147: 485100 | J147: 0
A148: 1176000 | B148: 7.6 ²ÚÈ Ì²Êêºð | C148: x | D148: 0 | F148: 0 | G148: 0 | H148: 0 | I148: 0 | J148: 0
A149: 1176100 | B149: -²ÛÉ Í³Ëë»ñ | C149: 486100 | J149: 0
A150: 1177000 | B150: 7.7 ä²Ðàôêî²ÚÆÜ ØÆæàòÜºð | C150: x | D150: 0 | F150: 0 | G150: 0 | H150: 0 | I150: 0 | J150: 0
A151: 1177100 | B151: -ä³Ñáõëï³ÛÇÝ ÙÇçáóÝ»ñ | C151: 489100 | J151: 0
A152: 1200000 | B152: Բ, àâ-üÆÜ²Üê²Î²Ü ²ÎîÆìÜºðÆ ¶Ìàì Ì²Êêºð | C152: x | D152: =D153 -> 35000 | E152: =E155 -> 0 | F152: =F153 -> 35000 | G152: =G153 -> 0 | H152: =H153 -> 0 | I152: =I153 -> 0 | J152: =F153 -> 35000
A153: 1210000 | B153: 1.ÐÆØÜ²Î²Ü ØÆæàòÜºð | C153: x | D153: =SUM(D154:D156) -> 35000 | F153: =SUM(F154:F163) -> 35000 | G153: =SUM(G154:G163) -> 0 | H153: =SUM(H154:H163) -> 0 | I153: =SUM(I154:I163) -> 0 | J153: =F153 -> 35000
A154: 1211000 | B154: -Þ»Ýù»ñÇ ¨ ßÇÝáõÃÛáõÝÝ»ñÇ Ó»éù µ»ñáõÙ | C154: 511100 | J154: =F154 -> 0
A155: 1212000 | B155: -Þ»Ýù»ñÇ ¨ ßÇÝáõÃÛáõÝÝ»ñÇ Ï³éáõóáõÙ | C155: 511200 | D155: 35000 | E155: 0 | F155: =D155+E155 -> 35000 | G155: 0 | H155: 0 | I155: 0 | J155: =F155 -> 35000
A156: 1213000 | B156: -Þ»Ýù»ñÇ ¨ ßÇÝáõÃÛáõÝÝ»ñÇ Ï³åÇï³É í»ñ³Ýáñá·áõÙ | C156: 511300 | D156: 0 | F156: 0 | G156: 0 | H156: 0 | I156: 0 | J156: =F156 -> 0
A157: 1214000 | B157: -îñ³Ýëåáñï³ÛÇÝ ë³ñù³íáñáõÙÝ»ñ | C157: 512100 | J157: 0
A158: 1215000 | B158: -ì³ñã³Ï³Ý ë³ñù³íáñáõÙÝ»ñ | C158: 512200 | F158: 0 | I158: 0 | J158: =F158 -> 0
A159: 1216000 | B159: -²ÛÉ Ù»ù»Ý³Ý»ñ ¨ ë³ñù³íáñáõÙÝ»ñ | C159: 512900 | J159: 0
A160: 1217000 | B160: -²×»óíáÕ ³ÏïÇíÝ»ñ | C160: 513100 | J160: 0
A161: 1218100 | B161: -àã-ÝÛáõÃ³Ï³Ý ÑÇÙÝ³Ï³Ý ÙÇçáóÝ»ñ | C161: 513200 | J161: 0
A162: 1218200 | B162: -¶»á¹»½Ç³Ï³Ý ù³ñï»½³·ñ³Ï³Ý Í³Ëë»ñ | C162: 513300 | J162: 0
A163: 1218300 | B163: -Ü³Ë³·Í³Ñ»ï³½áï³Ï³Ý Í³Ëë»ñ | C163: 513400 | J163: 0
A164: 1220000 | B164: 2.ä²Þ²ðÜºð | C164: x | D164: 0 | F164: 0 | G164: 0 | H164: 0 | I164: 0 | J164: 0
A165: 1221000 | B165: -è³½Ù³í³ñ³Ï³Ý å³ß³ñÝ»ñ | C165: 521100 | J165: 0
A166: 1222000 | B166: -ÜÛáõÃ»ñ ¨ å³ñ³·³Ý»ñ | C166: 522100 | J166: 0
A167: 1223000 | B167: -ì»ñ³í³×³éùÇ Ñ³Ù³ñ Ý³Ë³ï»ëí³Í ³åñ³ÝùÝ»ñ | C167: 523100 | J167: 0
A168: 1224000 | B168: -êå³éÙ³Ý Ýå³ï³Ïáí å³ÑíáÕ å³ß³ñÝ»ñ | C168: 524100 | J168: 0
A169: 1230000 | B169: 3.´²ðÒð²ðÄºø ²ÎîÆìÜºð | C169: x | D169: 0 | F169: 0 | G169: 0 | H169: 0 | I169: 0 | J169: 0
A170: 1231000 | B170: -´³ñÓñ³ñÅ»ù ³ÏïÇíÝ»ñ | C170: 531100 | J170: 0
A171: 1240000 | B171: 4.â²ðî²¸ðì²Ì ԱԿՏԻՎՆԵՐ | C171: x | D171: 0 | F171: 0 | G171: 0 | H171: 0 | I171: 0 | J171: 0
A172: 1241000 | B172: -ÐáÕ | C172: 541100 | J172: 0
A173: 1242000 | B173: -ÀÝ¹»ñù³ÛÇÝ ³ÏïÇíÝ»ñ | C173: 542100
A174: 1243000 | B174: -²ÛÉ µÝ³Ï³Ý Í³·áõÙ áõÝ»óáÕ ³ÏïÇíÝ»ñ | C174: 543100
A175: 1244000 | B175: -àã ÝÛáõÃ³Ï³Ý ã³ñï³¹ñí³Í ³ÏïÇíÝ»ñ | C175: 544100
A176: 1000000 | B176: ԸՆԴԱՄԵՆԸ ԾԱԽՍԵՐ` | C176: x | D176: =D33+D152 -> 35000 | E176: 0 | F176: 35000 | G176: 0 | H176: 0 | I176: 0 | J176: 35000
A178: § ¦ § դեկտ»Ùµ»ñ ¦ 2022 Ã.
A180: ÐÆØÜ²ðÎÆ ÔºÎ²ì²ðª _______________ Է. Արշակյան _________________
A181: (ëïáñ³·ñáõÃÛáõÝ) (².Ð.².)
A182: Î.î.
A184: Î.î üÆÜ²Üê²Î²Ü Ì²è²ÚàôÂÚ²Ü äºîª _______________ _________________ | G184: Ն. Մուրադյան
B185: (¶ÈÊ²ìàð Ð²Þì²ä²Ð) | E185: (ëïáñ³·ñáõÃÛáõÝ) | G185: (².Ð.².)
A203: 5.5 áñ¨¿ ³Ùëí³ Ýáñ Ý³Ë³Ñ³ßíÇª 3-ñ¹ ëÛáõÝ³ÏáõÙ Ý»ñÏ³Û³óíáõÙ »Ý ïíÛ³É µÛáõç»ï³ÛÇÝ ï³ñí³ Ñ³Ù³å³ï³ëË³Ý ³Ùëí³ óáõó³ÝÇßÝ»ñÁ, ÇëÏ 4-Çó 7-ñ¹ ëÛáõÝ³ÏÝ»ñÁ ã»Ý Éñ³óíáõÙ:
A204: ** Ì²ÜàÂ²¶ðàôÂÚàôÜ II. N 1 ûñÇÝ³Ï»ÉÇ Ó¨Ç Ýßí³Í ïáÕÁ ÐÐ å»ï³Ï³Ý Ï³é³í³ñÙ³Ý ¨ ï»Õ³Ï³Ý ÇÝùÝ³Ï³é³í³ñÙ³Ý í»ñ³¹³ë Ù³ñÙÇÝÝ»ñÁ ã»Ý Éñ³óÝáõÙ:
A205: *** Ì²ÜàÂ²¶ðàôÂÚàôÜ III. N 1 ûñÇÝ³Ï»ÉÇ Ó¨Ç Ýßí³Í ïáÕÁ ÐÐ å»ï³Ï³Ý Ï³é³í³ñÙ³Ý ¨ ï»Õ³Ï³Ý ÇÝùÝ³Ï³é³í³ñÙ³Ý Ù³ñÙÇÝÝ»ñÁ Éñ³óÝáõÙ »Ý Çñ»Ýó Ñ³Ù³ñ µÛáõç»ï³ÛÇÝ Í³Ëë»ñÇ ·»ñ³ï»ëã³Ï³Ý ¹³ë³Ï³ñ·Ù³Ùµ ë³ÑÙ³Ý³Í Ïá¹Á:
A206: **** Ì²ÜàÂ²¶ðàôÂÚàôÜ IV. N 1 ûñÇÝ³Ï»ÉÇ Ó¨Ç Ýßí³Í ïáÕÁª ³ÝÏ³Ë Ýñ³ÝÇó, Ã» Ýáñ Ý³Ë³Ñ³ßÇíÁ áñ ¹»åùáõÙ ¿ Ñ³ëï³ïíáõÙ, Éñ³óíáõÙ ¿ N 1 ûñÇÝ³Ï»ÉÇ Ó¨Ç ³ÕÛáõë³ÏÇ §²¦ ëÛáõÝ³ÏáõÙ ³Ùñ³·ñí³Í N 1000000 (§ÀÝ¹³Ù»ÝÁ
A207: Í³Ëë»ñ¦) ïáÕÇ 3-ñ¹ ëÛáõÝ³ÏáõÙ µ»ñí³Í óáõó³ÝÇßÇ ·áõÙ³ñáí (Ãí»ñáí ¨ ï³é»ñáí):
A208: ***** Ì²ÜàÂ²¶ðàôÂÚàôÜ V. N 1 ûñÇÝ³Ï»ÉÇ Ó¨Ç Ýßí³Í ïáÕÁ Éñ³óíáõÙ ¿ Ññ³Ù³Ýáí Ñ³ëï³ïí³Í N 11 Ñ³í»Éí³ÍÇ` §´Ûáõç»ï³ÛÇÝ Í³Ëë»ñÇ ·áñÍ³é³Ï³Ý ¹³ë³Ï³ñ·áõÙ¦, ï³ññ»ñÇÝ Ñ³Ù³å³ï³ëË³Ý` µ³ÅÇÝ (2 ÝÇß), ËáõÙµ(1ÝÇß) ¨ ¹³ë (1ÝÇß):
A209: §__¦ §________________¦ 200_ Ã.
A211: ÐÆØÜ²ðÎÆ ÔºÎ²ì²ðª _______________ _________________
A212: (ëïáñ³·ñáõÃÛáõÝ) (².Ð.².)
A213: Î.î.
A215: üÆÜ²Üê²Î²Ü Ì²è²ÚàôÂÚ²Ü äºîª ________________ ___________________
A216: (¶ÈÊ²ìàð Ð²Þì²ä²Ð) (ëïáñ³·ñáõÃÛáõÝ) (².Ð.².)

Sheet 1.6.1 (hidden)
I1: Ð³í»Éí³Í N 2
H3: úñÇÝ³Ï»ÉÇ Ó¨ N1
G4: h³ëï³ïí»É ¿ ÐÐ ýÇÝ³ÝëÝ»ñÇ ¨ ¿ÏáÝáÙÇÏ³ÛÇ
H5: Ý³Ë³ñ³ñÇ 23 ÑáõÉÇëÇ 2007 Ãí³Ï³ÝÇ
B6: §Ð ² ê î ² î àô Ø ºØª¦ | G6: N 597-Ü Ññ³Ù³Ýáí
A8: Ý³Ë³Ñ³ßÇíÁª 66000,0 վաթսունվեց միլիոն դրամ
A9: ( ÁÝ¹³Ù»ÝÁ ·áõÙ³ñÁ Ãí»ñáí ¨ ï³é»ñáí****)
A10: _______________________________________________________________________________________________________________ Ñ³½³ñ ¹ñ³Ù ·áõÙ³ñáí:
A12: __________________________________________________________________________________________ | B12: Է. Արշակյան | H12: Î.î.
A13: (ÐÐ å»ï³Ï³Ý Ï³é³í³ñÙ³Ý Ù³ñÙÝÇ Õ»Ï³í³ñÇ /Ñ³Ù³ÛÝùÇ Õ»Ï³í³ñÇ/ ëïáñ³·ñáõÃÛáõÝÁ ¨ ².Ð.².)
A14: §28 ¦ դեկտեմբերի 2022թ
B15: Ü²Ê²Ð²ÞÆì*
B16: ´ Ú àô æ º î ² Ú Æ Ü Ð Æ Ø Ü ² ð Î Æ ä ² Ð ä ² Ü Ø ² Ü Ì ² Ê ê º ð Æ
B17: §01¦ §ÐáõÝí³ñÇ ¦ 2023 Ã. -- §30¦ §¹»Ïï»Ùµ»ñÇ ¦ 2023 Ã.
A19: 1. ÐÇÙÝ³ñÏÇ ³Ýí³ÝáõÙÁ Քաղաքապետարան | G19: 8. * ´Ûáõç»ï³ÛÇÝ Í³Ëë»ñÇ ·áñÍ³é³Ï³Ý ¹³ë³Ï³ñ·.
G20: Í³ÍÏ³·Çñ | H20: 1 | I20: 6 | J20: 1
A21: 3. ÐÇÙÝ³ñÏÇ ï»Õ³µ³ßËÙ³Ý Ù³ñ½Ç ¨ Ñ³Ù³ÛÝùÇ Ïá¹Ý Áëï | G21: 9. Ìñ³·ñÇ ³Ýí³ÝáõÙÁ_ընդհանուր բնույթի հանր .ծառ.
A22: µÛáõç»ï³ÛÇÝ Í³Ëë»ñÇ ï³ñ³Íù³ÛÇÝ ¹³ë³Ï³ñ·Ù³Ý | G22: ________________________________
A23: 4. ** ÐÐ å»ï³Ï³Ý Ï³é³í³ñÙ³Ý (ï»Õ³Ï³Ý ÇÝùÝ³Ï³é³í³ñÙ³Ý) Ù³ñÙÝÇ | G23: 10. Ìñ³·ñÇ Ïá¹Á
A24: ³Ýí³ÝáõÙÁ Լոռու մարզպետարան | G24: 11.*** ÐÐ å»ï³Ï³Ý Ï³é³í³ñÙ³Ý (îÆ)
A25: 5. ÐÇÙÝ³ñÏÁ ëå³ë³ñÏáÕ ï»Õ³Ï³Ý ·³ÝÓ³å»ï³Ï³Ý µ³ÅÝÇ (î¶´) ³Ýí³ÝáõÙÁ Տաշիրի | G25: Ù³ñÙÝÇ Ïá¹Ý Áëï µÛáõç»ï³ÛÇÝ Í³Ëë»ñÇ ·»ñ³ï»ëã³Ï.
A26: 6. ÐÇÙÝ³ñÏÇª ï»Õ³Ï³Ý ·³ÝÓ³å»ï³Ï³Ý µ³ÅÝáõÙ (î¶´) Ñ³ßí³éÙ³Ý Ñ³Ù³ñÁ | G26: ¹³ë³Ï³ñ·Ù³Ý
A27: 7. üÇÝ³Ýë³íáñÙ³Ý ³ÕµÛáõñÇ Ïá¹Á (ÐÐ å»ï³Ï³Ý µÛáõç»ª 1, Ñ³Ù³ÛÝùÇ µÛáõç»ª 2) | E27: 2 | G27: 12. â³÷Ç ÙÇ³íáñÁª Ñ³½³ñ ¹ñ³Ù
H29: 900927424012
A30: îáÕÇ NN | B30: ´Ûáõç»ï³ÛÇÝ Í³Ëë»ñÇ ïÝï»ë³·Çï³Ï³Ý ¹³ë³Ï³ñ·Ù³Ý ï³ññ»ñ | D30: ÜáõÛÝ Å³Ù³Ý³Ï³Ñ³ïí³ÍÇ Ñ³Ù³ñ Ý³ËÏÇÝáõÙ Ñ³ëï³ïí³Íª ·áñÍáÕ | F30: êáõÛÝ Ý³Ë³Ñ³ßíáí Ñ³ëï³ïíáÕ óáõó³ÝÇßÝ»ñÁ | G30: ³Û¹ ÃíáõÙª Áëï »é³ÙëÛ³ÏÝ»ñÇ (»é³ÙëÛ³ÏÇ ³ÙÇëÝ»ñÇ)³×áÕ³Ï³Ý
B31: ³Ýí³ÝáõÙÝ»ñÁ | C31: NN | D31: Ý³Ë³Ñ³ßíÇ óáõó³ÝÇßÝ»ñÁ | E31: Ý³Ë³Ñ³ßíáõÙ Ï³ï³ñí³Í ÷á÷áËáõÃÛáõÝ-Ý»ñÁ (³í»É³óáõÙÁª /+/, å³Ï³ë»óáõÙÁª/-/ | G31: I | H31: II | I31: III | J31: IV
A32: ² | B32: ´ | C32: ¶ | D32: 1 | E32: 2 | F32: 3 | G32: 4 | H32: 5 | I32: 6 | J32: 7
A33: 1100000 | B33: ². ÀÜÂ²òÆÎ Ì²Êêºðª ÀÜ¸²ØºÜÀ, | C33: x | D33: =D108+D132+D99 -> 1000 | E33: =E99 -> 0 | F33: =D33+E33 -> 1000 | G33: =G100+G132 -> 200 | H33: =H100+H132+H43+H115 -> 300 | I33: =I100+I132+I43+I99+I115 -> 400 | J33: =F33 -> 1000
A34: 1110000 | B34: 1.äºî²Î²Ü, îºÔ²Î²Ü ÆÜøÜ²Î²è²ì²ðØ²Ü Ø²ðØÆÜÜºðÆ, ¸ð²Üò ºÜÂ²Î² ´Úàôæºî²ÚÆÜ ÐÆØÜ²ðÎÜºðÆ ²ÞÊ²îàÔÜºðÆ ²ÞÊ²î²ì²ðÒÀª ÀÜ¸²ØºÜÀ, ³Û¹ ÃíáõÙª | C34: x | D34: =D35 -> 0 | F34: =F35 -> 0 | G34: =G35 -> 0 | H34: =H35 -> 0 | I34: =I35 -> 0 | J34: =J35 -> 0
A35: 1110000 | B35: 1,1 ²ßË³ï³ÝùÇ í³ñÓ³ïñáõÃÛáõÝ | C35: x | D35: =SUM(D36:D42) -> 0 | F35: =SUM(F36:F42) -> 0 | G35: =SUM(G36:G42) -> 0 | H35: =SUM(H36:H42) -> 0 | I35: =SUM(I36:I42) -> 0 | J35: =SUM(J36:J42) -> 0
A36: 1111000 | B36: -²ßË³ïáÕÝ»ñÇ ³ßË³ï³í³ñÓ»ñ ¨ Ñ³í»É³í×³ñÝ»ñ | C36: 411100 | D36: 0 | F36: 0 | G36: 0 | H36: 0 | I36: 0 | J36: =F36 -> 0
A37: 1112000 | B37: - ä³ñ·¨³ïñáõÙÝ»ñ, ¹ñ³Ù³Ï³Ý Ëñ³ËáõëáõÙÝ»ñ ¨ Ñ³ïáõÏ í×³ñÝ»ñ | C37: 411200 | D37: 0 | F37: 0 | G37: 0 | H37: 0 | I37: 0 | J37: =F37 -> 0
A38: 1113000 | B38: -ø³Õ³ù³óÇ³Ï³Ý, ¹³ï³Ï³Ý ¨ å»ï³Ï³Ý Í³é³ÛáÕÝ»ñÇ å³ñ·¨³ïñáõÙ | C38: 411300 | J38: 0
A39: 1114000 | B39: -ÐÐ ýÇÝ³ÝëÝ»ñÇ ¨ ¿ÏáÝáÙÇÏ³ÛÇ Ý³Ë³ñ³ñáõÃÛ³Ý, Ñ³ñÏ³ÛÇÝ ¨ Ù³ùë³ÛÇÝ Ù³ñÙÇÝÝ»ñÇ ³ßË³ïáÕÝ»ñÇ å³ñ·¨³ïñáõÙ | C39: 411400 | J39: 0
A40: 1115000 | B40: -²ÛÉ í³ñÓ³ïñáõÃÛáõÝÝ»ñ | C40: 411500 | J40: 0
A41: 1116000 | B41: -´Ý»Õ»Ý ³ßË³ï³í³ñÓ»ñ ¨ Ñ³í»É³í×³ñÝ»ñ | C41: 412100 | J41: 0
A42: 1117000 | B42: - êáóÇ³É³Ï³Ý ³å³ÑáíáõÃÛ³Ý í×³ñÝ»ñ | C42: 413100 | D42: 0 | F42: 0 | G42: 0 | H42: 0 | I42: 0 | J42: =F42 -> 0
A43: 1120000 | B43: 2 Ì³é³ÛáõÃÛáõÝÝ»ñÇ ¨ ³åñ³ÝùÝ»ñÇ Ó»éù µ»ñáõÙ | C43: x | D43: =D44+D56+D67+D70+D52+D65 -> 0 | F43: =F44+F56+F67+F70+F52+F65 -> 0 | G43: =G44+G52+G56+G65+G67+G70 -> 0 | H43: =H44+H52+H56+H65+H67+H70 -> 0 | I43: =I44+I52+I56+I65+I67+I70 -> 0 | J43: =F43 -> 0
A44: 1121000 | B44: 2.1 Þ³ñáõÝ³Ï³Ï³Ý Í³Ëë»ñ | D44: =SUM(D45:D50) -> 0 | F44: =SUM(F45:F50) -> 0 | G44: =SUM(G45:G50) -> 0 | H44: =SUM(H45:H50) -> 0 | I44: =SUM(I45:I50) -> 0 | J44: =SUM(J45:J50) -> 0
A45: 1121100 | B45: -·áñÍ³éÝ³Ï³Ý ¨ µ³ÝÏ³ÛÇÝ Í³é³ÛáõÃÛáõÝÝ»ñÇ Í³Ëë»ñ | C45: 421100 | J45: 0
A46: 1121200 | B46: -¿Ý»ñ·»ïÇÏ Í³é³ÛáõÃÛáõÝÝ»ñ | C46: 421200 | D46: 0 | F46: 0 | G46: 0 | H46: 0 | I46: 0 | J46: =F46 -> 0
A47: 1121300 | B47: -ÎáÙáõÝ³É Í³é³ÛáõÃÛáõÝÝ»ñ | C47: 421300 | D47: 0 | F47: 0 | G47: 0 | H47: 0 | I47: 0 | J47: =F47 -> 0
A48: 1121400 | B48: -Î³åÇ Í³é³ÛáõÃÛáõÝÝ»ñ | C48: 421400 | D48: 0 | F48: 0 | G48: 0 | H48: 0 | I48: 0 | J48: =F48 -> 0
A49: 1121500 | B49: -²å³Ñáí³·ñ³Ï³Ý Í³Ëë»ñ | C49: 421500 | J49: 0
A50: 1121600 | B50: -¶áõÛùÇ ¨ ë³ñù³íáñáõÙÝ»ñÇ í³ñÓ³Ï³ÉáõÃÛáõÝ | C50: 421600 | J50: 0
A51: 1121700 | B51: -²ñï³·»ñ³ï»ëã³Ï³Ý Í³Ëë»ñ | C51: 421700 | J51: 0
A52: 1122000 | B52: 2.2 ¶áñÍáõÕáõÙÝ»ñÇ ¨ ßñç³·³ÛáõÃÛ³Ý Í³Ëë»ñ | C52: x | D52: =D53 -> 0 | F52: =F53 -> 0 | G52: =G53 -> 0 | H52: =H53 -> 0 | I52: =I53 -> 0 | J52: =J53 -> 0
A53: 1122100 | B53: -Ü»ñùÇÝ ·áñÍáõÕáõÙÝ»ñ | C53: 422100 | D53: 0 | F53: 0 | G53: 0 | H53: 0 | I53: 0 | J53: =F53 -> 0
A54: 1122200 | B54: -²ñï³ë³ÑÙ³ÝÛ³Ý ·áñÍáõÕáõÙÝ»ñÇ ·Íáí Í³Ëë»ñ | C54: 422200 | J54: 0
A55: 1122300 | B55: -²ÛÉ ïñ³Ýëåáñï³ÛÇÝ Í³Ëë»ñ | C55: 422900 | J55: 0
A56: 1123000 | B56: 2.3 ä³ÛÙ³Ý³·ñ³ÛÇÝ ³ÛÉ Í³é³ÛáõÃÛáõÝÝ»ñÇ Ó»éù µ»ñáõÙ | C56: x | D56: =SUM(D57:D64) -> 0 | F56: =SUM(F57:F64) -> 0 | G56: =SUM(G57:G64) -> 0 | H56: =SUM(H57:H64) -> 0 | I56: =SUM(I57:I64) -> 0 | J56: =F56 -> 0
A57: 1123100 | B57: -ì³ñã³Ï³Ý Í³é³ÛáõÃÛáõÝÝ»ñ | C57: 423100 | J57: =F57 -> 0
A58: 1123200 | B58: -Ð³Ù³Ï³ñ·ã³ÛÇÝ Í³é³ÛáõÃÛáõÝÝ»ñ | C58: 423200 | D58: 0 | F58: 0 | G58: 0 | H58: 0 | I58: 0 | J58: =F58 -> 0
A59: 1123300 | B59: -²ßË³ï³Ï³½ÙÇ Ù³ëÝ³·Çï³Ï³Ý ½³ñ·³óÙ³Ý Í³é³ÛáõÃÛáõÝÝ»ñ | C59: 423300
A60: 1123400 | B60: -î»Õ³Ï³ïí³Ï³Ý Í³é³ÛáõÃÛáõÝÝ»ñ | C60: 423400 | D60: 0 | F60: 0 | G60: 0 | H60: 0 | I60: 0 | J60: =F60 -> 0
A61: 1123500 | B61: -Î³é³í³ñã³Ï³Ý Í³é³ÛáõÃÛáõÝÝ»ñ | C61: 423500 | E61: 0 | F61: =D61+E61 -> 0 | I61: 0 | J61: 0
A62: 1123600 | B62: - Î»Ýó³Õ³ÛÇÝ ¨ Ñ³Ýñ³ÛÇÝ ëÝÝ¹Ç Í³é³ÛáõÃÛáõÝÝ»ñ | C62: 423600 | J62: 0
A63: 1123700 | B63: -Ü»ñÏ³Û³óáõóã³Ï³Ý Í³Ëë»ñ | C63: 423700 | D63: 0 | F63: 0 | G63: 0 | H63: 0 | I63: 0 | J63: 0
A64: 1123800 | B64: -ÀÝ¹Ñ³Ýáõñ µÝáõÛÃÇ ³ÛÉ Í³é³ÛáõÃÛáõÝÝ»ñ | C64: 423900 | D64: 0 | F64: =D64 -> 0 | G64: 0 | H64: 0 | I64: 0 | J64: 0
A65: 1124000 | B65: 2.4 ²ÛÉ Ù³ëÝ³·Çï³Ï³Ý Í³é³ÛáõÃÛáõÝÝ»ñÇ Ó»éù µ»ñáõÙ | C65: x | D65: =D66 -> 0 | F65: =F66 -> 0 | G65: =G66 -> 0 | H65: =H66 -> 0 | I65: =I66 -> 0 | J65: 0
A66: 1124100 | B66: -Ø³ëÝ³·Çï³Ï³Ý Í³é³ÛáõÃÛáõÝÝ»ñ | C66: 424100 | F66: 0 | G66: 0 | H66: 0 | I66: 0 | J66: 0
A67: 1125000 | B67: 2.5 ÀÝÃ³óÇÏ Ýáñá·áõÙ ¨ å³Ñå³ÝáõÙ (Í³é³ÛáõÃÛáõÝÝ»ñ ¨ ÝÛáõÃ»ñ) | C67: x | D67: =D68+D69 -> 0 | F67: =F68+F69 -> 0 | G67: =G68+G69 -> 0 | H67: =H68+H69 -> 0 | I67: =I68+I69 -> 0 | J67: =J68+J69 -> 0
A68: 1125100 | B68: -Þ»Ýù»ñÇ ¨ Ï³éáõÛóÝ»ñÇ ÁÝÃ³óÇÏ Ýáñá·áõÙ ¨ å³Ñå³ÝáõÙ | C68: 425100 | J68: =F68 -> 0
A69: 1125200 | B69: -Ø»ù»Ý³Ý»ñÇ ¨ ë³ñù³íáñáõÙÝ»ñÇ ÁÝÃ³óÇÏ Ýáñá·áõÙ ¨ å³Ñå³ÝáõÙ | C69: 425200 | D69: 0 | F69: 0 | G69: 0 | H69: 0 | I69: 0 | J69: 0
A70: 1126000 | B70: 2.6 ÜÛáõÃ»ñ | C70: x | D70: =SUM(D71:D78) -> 0 | F70: =SUM(F71:F78) -> 0 | G70: =SUM(G71:G78) -> 0 | H70: =SUM(H71:H78) -> 0 | I70: =SUM(I71:I78) -> 0 | J70: 0
A71: 1126100 | B71: -¶ñ³ë»ÝÛ³Ï³ÛÇÝ ÝÛáõÃ»ñ ¨ Ñ³·áõëï | C71: 426100 | D71: 0 | F71: 0 | G71: 0 | H71: 0 | I71: 0 | J71: 0
A72: 1126200 | B72: -¶ÛáõÕ³ïÝï»ë³Ï³Ý ³åñ³ÝùÝ»ñ | C72: 426200 | J72: 0
A73: 1126300 | B73: -ì»ñ³å³ïñ³ëïÙ³Ý ¨ áõëáõóÙ³Ý ÝÛáõÃ»ñ | C73: 426300 | J73: 0
A74: 1126400 | B74: -îñ³Ýëåáñï³ÛÇÝ ÝÛáõÃ»ñ | C74: 426400 | D74: 0 | F74: 0 | G74: 0 | H74: 0 | I74: 0 | J74: 0
A75: 1126500 | B75: -Þñç³Ï³ ÙÇç³í³ÛñÇ å³ßïå³ÝáõÃÛ³Ý ¨ ·Çï³Ï³Ý ÝÛáõÃ»ñ | C75: 426500 | J75: 0
A76: 1126600 | B76: -²éáÕç³å³Ñ³Ï³Ý ¨ É³µáñ³ïáñ ÝÛáõÃ»ñ | C76: 426600 | J76: =F76 -> 0
A77: 1126700 | B77: -Î»Ýó³Õ³ÛÇÝ ¨ Ñ³Ýñ³ÛÇÝ ëÝÝ¹Ç ÝÛáõÃ»ñ | C77: 426700 | D77: 0 | E77: 0 | F77: =E77+D77 -> 0 | G77: 0 | H77: 0 | I77: 0 | J77: =F77 -> 0
A78: 1126800 | B78: -Ð³ïáõÏ Ýå³ï³Ï³ÛÇÝ ³ÛÉ ÝÛáõÃ»ñ | C78: 426900 | D78: 0 | F78: 0 | G78: 0 | H78: 0 | I78: 0 | J78: =F78 -> 0
A79: 1130000 | B79: 3 îáÏáë³í×³ñÝ»ñ | C79: x | D79: 0 | F79: 0 | G79: 0 | H79: 0 | I79: 0 | J79: 0
A80: 1130100 | B80: -Ü»ñùÇÝ ³ñÅ»ÃÕÃ»ñÇ ïáÏáë³í×³ñÝ»ñ | C80: 441100 | J80: 0
A81: 1130200 | B81: -Ü»ñùÇÝ í³ñÏ»ñÇ ïáÏáë³í×³ñÝ»ñ | C81: 441200 | J81: 0
A82: 1130300 | B82: -²ñï³ùÇÝ ³ñÅ»ÃÕÃ»ñÇ ·Íáí ïáÏáë³í×³ñÝ»ñ | C82: 442100 | J82: 0
A83: 1130400 | B83: -²ñï³ùÇÝ í³ñÏ»ñÇ ·Íáí ïáÏáë³í×³ñÝ»ñ | C83: 442200 | J83: 0
A84: 1131000 | B84: öáË³éáõÃÛáõÝÝ»ñÇ Ñ»ï Ï³åí³Í í×³ñÝ»ñ | C84: x | J84: 0
A85: 1131100 | B85: -öáË³Ý³ÏÙ³Ý Ïáõñë»ñÇ µ³ó³ë³Ï³Ý ï³ñµ»ñáõÃÛáõÝ | C85: 443100 | J85: 0
A86: 1131200 | B86: -îáõÛÅ»ñ | C86: 443200 | J86: 0
A87: 1131300 | B87: -öáË³éáõÃÛáõÝÝ»ñÇ ·Íáí ïáõñù»ñ | C87: 443300 | J87: 0
A88: 1140000 | B88: 4. êáõµëÇ¹Ç³Ý»ñ | C88: x | D88: 0 | F88: 0 | G88: 0 | H88: 0 | I88: 0 | J88: 0
A89: 1141000 | B89: -êáõµëÇ¹Ç³Ý»ñ áã-ýÇÝ³Ýë³Ï³Ý å»ï³Ï³Ý Ï³½Ù³Ï»ñåáõÃÛáõÝÝ»ñÇÝ | C89: 451100 | J89: 0
A90: 1142000 | B90: -êáõµëÇ¹Ç³Ý»ñ ýÇÝ³Ýë³Ï³Ý å»ï³Ï³Ý Ï³½Ù³Ï»ñåáõÃÛáõÝÝ»ñÇÝ | C90: 451200 | J90: 0
A91: 1143000 | B91: -êáõµëÇ¹Ç³Ý»ñ áã å»ï³Ï³Ý áã ýÇÝ³Ýë³Ï³Ý Ï³½Ù³Ï»ñåáõÃÛáõÝÝ»ñÇÝ | C91: 452100 | J91: 0
A92: 1144000 | B92: -êáõµëÇ¹Ç³Ý»ñ áã å»ï³Ï³Ý ýÇÝ³Ýë³Ï³Ý Ï³½Ù³Ï»ñåáõÃÛáõÝÝ»ñÇÝ | C92: 452200 | J92: 0
A93: 1150000 | B93: 5.¸ñ³Ù³ßÝáñÑÝ»ñ | C93: x | D93: 0 | F93: 0 | G93: 0 | H93: 0 | I93: 0 | J93: 0
A94: 1151000 | B94: ¸ñ³Ù³ßÝáñÑÝ»ñ ûï³ñ»ñÏñÛ³ Ï³é³í³ñáõÃÛáõÝÝ»ñÇÝ | C94: x | D94: 0 | F94: 0 | G94: 0 | H94: 0 | I94: 0 | J94: 0
A95: 1151100 | B95: ÀÝÃ³óÇÏ ¹ñ³Ù³ßÝáñÑÝ»ñ ûï³ñ»ñÏñÛ³ Ï³é³í³ñáõÃÛáõÝÝ»ñÇÝ | C95: 461100 | J95: 0
A96: 1151200 | B96: Î³åÇï³É ¹ñ³Ù³ßÝáñÑÝ»ñ ûï³ñ»ñÏñÛ³ Ï³é³í³ñáõÃÛáõÝÝ»ñÇÝ | C96: 461200 | J96: 0
A97: 1152000 | B97: ¸ñ³Ù³ßÝáñÑÝ»ñ ÙÇç³½·³ÛÇÝ Ï³½Ù³Ï»ñåáõÃÛáõÝÝ»ñÇÝ | C97: x | D97: 0 | F97: 0 | G97: 0 | H97: 0 | I97: 0 | J97: 0
A98: 1152100 | B98: ÀÝÃ³óÇÏ ¹ñ³Ù³ßÝáñÑÝ»ñ ÙÇç³½·³ÛÇÝ Ï³½Ù³Ï»ñåáõÃÛáõÝÝ»ñÇÝ | C98: 462100 | J98: 0
A99: 1152200 | B99: Î³åÇï³É ¹ñ³Ù³ßÝáñÑ»ñ ÙÇç³½·³ÛÇÝ Ï³½Ù³Ï»ñåáõÃÛáõÝÝ»ñÇÝ | C99: 462200 | D99: 0 | E99: 0 | F99: =D99+E99 -> 0 | I99: 0 | J99: =F99 -> 0
A100: 1153000 | B100: ÀÝÃ³óÇÏ ¹ñ³Ù³ßÝáñÑÝ»ñ å»ï³Ï³Ý Ñ³ïí³ÍÇ ³ÛÉ Ù³Ï³ñ¹³ÏÝ»ñÇÝ | C100: x | D100: 0 | F100: =F108 -> 500 | G100: =G108 -> 100 | H100: =H108 -> 100 | I100: =I108 -> 100 | J100: =J108 -> 500
A101: 1153100 | B101: ÀÝÃ³óÇÏ ¹ñ³Ù³ßÝáñÑÝ»ñ å»ï³Ï³Ý Ï³é³í³ñÙ³Ý Ñ³ïí³ÍÇÝ | C101: 463100 | J101: 0
A102: 1153200 | B102: ÀÝÃ³óÇÏ ëáõµí»ÝóÇ³Ý»ñ Ñ³Ù³ÛÝùÝ»ñÇÝ | C102: 463200 | J102: 0
A103: 1153300 | B103: ä»ï³Ï³Ý µÛáõç»Çó Ñ³Ù³ÛÝùÝ»ñÇ µÛáõç»Ý»ñÇÝ ýÇÝ³Ýë³Ï³Ý Ñ³Ù³Ñ³ñÃ»óÙ³Ý ëÏ½µáõÝùáí ïñíáÕ ¹áï³óÇ³Ý»ñ | C103: 463300 | J103: 0
A104: 1153400 | B104: úñ»ÝùÝ»ñÇ ÏÇñ³ñÏÙ³Ý ³ñ¹ÛáõÝùáõÙ Ñ³Ù³ÛÝùÝ»ñÇ µÛáõç»Ý»ñÇ ÏáñáõëïÝ»ñÇ ÷áËÑ³ïáõóáõÙ | C104: 463400 | J104: 0
A105: 1153500 | B105: ²ÛÉ ÁÝÃ³óÇÏ ¹ñ³Ù³ßÝáñÑÝ»ñ Ñ³Ù³ÛÝùÝ»ñÇÝ | C105: 463500 | J105: 0
A106: 1153700 | B106: ÀÝÃ³óÇÏ ¹ñ³Ù³ßÝáñÑÝ»ñ å»ï³Ï³Ý ¨ Ñ³Ù³ÛÝùÝ»ñÇ áã ³é¨ïñ³ÛÇÝ Ï³½Ù³Ï»ñåáõÃÛáõÝÝ»ñÇÝ | C106: 463700 | J106: 0
A107: 1153800 | B107: ÀÝÃ³óÇÏ ¹ñ³Ù³ßÝáñÑÝ»ñ å»ï³Ï³Ý ¨ Ñ³Ù³ÛÝùÝ»ñÇ ³é¨ïñ³ÛÇÝ Ï³½Ù³Ï»ñåáõÃÛáõÝÝ»ñÇÝ | C107: 463800 | J107: 0
A108: 1153900 | B108: ²ÛÉ ÁÝÃ³óÇÏ ¹ñ³Ù³ßÝáñÑÝ»ñ | C108: 463900 | D108: 500 | E108: 0 | F108: 500 | G108: 100 | H108: 100 | I108: 100 | J108: =F108 -> 500
A109: 1154000 | B109: Î³åÇï³É ¹ñ³Ù³ßÝáñÑÝ»ñ å»ï³Ï³Ý Ñ³ïí³ÍÇ ³ÛÉ Ù³Ï³ñ¹³ÏÝ»ñÇÝ | C109: x | D109: 0 | F109: 0 | G109: 0 | H109: 0 | I109: 0 | J109: 0
A110: 1154100 | B110: Î³åÇï³É ¹ñ³Ù³ßÝáñÑÝ»ñ å»ï³Ï³Ý Ï³é³í³ñÙ³Ý Ñ³ïí³ÍÇÝ | C110: 465100 | J110: 0
A111: 1154200 | B111: Î³åÇï³É ëáõµí»ÝóÇ³Ý»ñ Ñ³Ù³ÛÝùÝ»ñÇÝ | C111: 465200 | J111: 0
A112: 1154300 | B112: ²ÛÉ Ï³åÇï³É ¹ñ³Ù³ßÝáñÑÝ»ñ Ñ³Ù³ÛÝùÝ»ñÇÝ | C112: 465300 | J112: 0
A113: 1154500 | B113: Î³åÇï³É ¹ñ³Ù³ßÝáñÑÝ»ñ å»ï³Ï³Ý ¨ Ñ³Ù³ÛÝùÝ»ñÇ áã ³é¨ïñ³ÛÇÝ Ï³½Ù³Ï»ñåáõÃÛáõÝÝ»ñÇÝ | C113: 465500 | J113: 0
A114: 1154600 | B114: Î³åÇï³É ¹ñ³Ù³ßÝáñÑÝ»ñ å»ï³Ï³Ý ¨ Ñ³Ù³ÛÝù³ÛÇÝ ³é¨ïñ³ÛÇÝ Ï³½Ù³Ï»ñåáõÃÛáõÝÝ»ñÇÝ | C114: 465600 | J114: 0
A115: 1154700 | B115: ²ÛÉ Ï³åÇï³É ¹ñ³Ù³ßÝáñÑÝ»ñ | C115: 465700 | D115: 0 | E115: 0 | F115: =D115+E115 -> 0 | G115: 0 | H115: 0 | I115: 0 | J115: =F115 -> 0
A116: 1160000 | B116: 6. êàòÆ²È²Î²Ü Üä²êîÜºð ºì ÎºÜê²ÂàÞ²ÎÜºð | C116: x | D116: 0 | F116: 0 | G116: 0 | H116: 0 | I116: 0 | J116: 0
A117: 1161000 | B117: 6.1 êàòÆ²È²Î²Ü ²ä²ÐàìàôÂÚ²Ü Üä²êîÜºð | C117: x | D117: 0 | F117: 0 | G117: 0 | H117: 0 | I117: 0 | J117: 0
A118: 1161100 | B118: -îÝ³ÛÇÝ ïÝï»ëáõÃÛáõÝÝ»ñÇÝ ¹ñ³Ùáí í×³ñíáÕ ëáóÇ³É³Ï³Ý ³å³ÑáíáõÃÛ³Ý í×³ñÝ»ñ | C118: 471100 | J118: 0
A119: 1161200 | B119: -êáóÇ³É³Ï³Ý ³å³ÑáíáõÃÛ³Ý µÝ»Õ»Ý Ýå³ëïÝ»ñ Í³é³ÛáõÃÛáõÝÝ»ñ Ù³ïáõóáÕÝ»ñÇÝ | C119: 471200 | J119: 0
A120: 1162000 | B120: 6.2 êàòÆ²È²Î²Ü ú¶ÜàôÂÚ²Ü ¸ð²Ø²Î²Ü ²ðî²Ð²ÚîàôÂÚ²Ø´ Üä²êîÜºð (´ÚàôæºÆò) | C120: x | D120: 0 | F120: 0 | G120: 0 | H120: 0 | I120: 0 | J120: 0
A121: 1162100 | B121: -ÐÇí³Ý¹áõÃÛ³Ý ¨ Ñ³ßÙ³Ý¹³ÙáõÃÛ³Ý Ýå³ëïÝ»ñ µÛáõç»Çó | C121: 472100 | J121: 0
A122: 1162200 | B122: -Ø³ÛñáõÃÛ³Ý Ýå³ëïÝ»ñ µÛáõç»Çó | C122: 472200 | J122: 0
A123: 1162300 | B123: -ºñ»Ë³Ý»ñÇ Ï³Ù ÁÝï³Ý»Ï³Ý Ýå³ëïÝ»ñ µÛáõç»Çó | C123: 472300 | J123: 0
A124: 1162400 | B124: -¶áñÍ³½ñÏáõÃÛ³Ý Ýå³ëïÝ»ñ µÛáõç»Çó | C124: 472400 | J124: 0
A125: 1162500 | B125: -Î»Ýë³Ãáß³ÏÇ ³ÝóÝ»Éáõ Ñ»ï Ï³åí³Í ¨ ï³ñÇù³ÛÇÝ Ýå³ëïÝ»ñ µÛáõç»Çó | C125: 472500 | J125: 0
A126: 1162600 | B126: -ÐáõÕ³ñÏ³íáñáõÃÛ³Ý Ýå³ëïÝ»ñ µÛáõç»Çó | C126: 472600 | J126: 0
A127: 1162700 | B127: -ÎñÃ³Ï³Ý, Ùß³ÏáõÃ³ÛÇÝ ¨ ëåáñï³ÛÇÝ Ýå³ëïÝ»ñ µÛáõç»Çó | C127: 472700 | J127: 0
A128: 1162800 | B128: -´Ý³Ï³ñ³Ý³ÛÇÝ Ýå³ëïÝ»ñ µÛáõç»Çó | C128: 472800 | J128: 0
A129: 1162900 | B129: -²ÛÉ Ýå³ëïÝ»ñ µÛáõç»Çó | C129: 472900 | J129: 0
A130: 1163000 | B130: 6.3 ÎºÜê²ÂàÞ²ÎÜºð | C130: x | D130: 0 | F130: 0 | G130: 0 | H130: 0 | I130: 0 | J130: 0
A131: 1163100 | B131: -Ï»Ýë³Ãáß³ÏÝ»ñ | C131: 474100 | J131: 0
A132: 1170000 | B132: 7. ²ÚÈ Ì²Êêºð | C132: x | D132: =D133 -> 500 | F132: =F133 -> 500 | G132: =G133 -> 100 | H132: =H133 -> 200 | I132: =I133 -> 300 | J132: =J133 -> 500
A133: 1171000 | B133: 7.1 ÜìÆð²îìàôÂÚàôÜÜºð àâ-Î²è²ì²ðâ²Î²Ü (Ð²ê²ð²Î²Î²Ü) Î²¼Ø²ÎºðäàôÂÚàôÜÜºðÆÜ | C133: x | D133: =D135 -> 500 | F133: =F135 -> 500 | G133: =G135 -> 100 | H133: =H135 -> 200 | I133: =I135 -> 300 | J133: =F133 -> 500
A134: 1171100 | B134: -îÝ³ÛÇÝ ïÝï»ëáõÃÛáõÝÝ»ñÇÝ Í³é³ÛáõÃÛáõÝÝ»ñ Ù³ïáõóáÕ` ß³ÑáõÛÃ ãÑ»ï³åÝ¹áÕ Ï³½Ù³Ï»ñåáõÃÛáõÝÝ»ñÇÝ ÝíÇñ³ïíáõÃÛáõÝÝ»ñ | C134: 481100 | J134: 0
A135: 1171200 | B135: -ÜíÇñ³ïíáõÃÛáõÝÝ»ñ ³ÛÉ ß³ÑáõÛÃ ãÑ»ï³åÝ¹áÕ Ï³½Ù³Ï»ñåáõÃÛáõÝÝ»ñÇÝ | C135: 481900 | D135: 500 | E135: 0 | F135: =D135+E135 -> 500 | G135: 100 | H135: 200 | I135: 300 | J135: =F135 -> 500
A136: 1172000 | B136: 7.2 Ð²ðÎºð, ä²ðî²¸Æð ìÖ²ðÜºð ºì îàôÚÄºð, àðàÜø Î²è²ì²ðØ²Ü î²ð´ºð Ø²Î²ð¸²ÎÜºðÆ ÎàÔØÆò ÎÆð²èìàôØ ºÜ ØÆØÚ²Üò ÜÎ²îØ²Ø´ | C136: x | D136: =D138+D139 -> 0 | F136: =F138+F139 -> 0 | G136: =G138+G139 -> 0 | H136: =H138+H139 -> 0 | I136: =I138+I139 -> 0 | J136: =F136 -> 0
A137: 1172100 | B137: -²ßË³ï³í³ñÓÇ ýáÝ¹ | C137: 482100 | J137: 0
A138: 1172200 | B138: -²ÛÉ Ñ³ñÏ»ñ | C138: 482200 | D138: 0 | F138: 0 | G138: 0 | H138: 0 | I138: 0 | J138: =F138 -> 0
A139: 1172300 | B139: -ä³ñï³¹Çñ í×³ñÝ»ñ | C139: 482300 | D139: 0 | F139: 0 | G139: 0 | H139: 0 | I139: 0 | J139: =F139 -> 0
A140: 1172400 | B140: -ä»ï³Ï³Ý Ñ³ïí³ÍÇ ï³ñµ»ñ Ù³Ï³ñ¹³ÏÝ»ñÇ ÏáÕÙÇó ÙÇÙÛ³Ýó ÝÏ³ïÙ³Ùµ ÏÇñ³éíáÕ ïáõÛÅ»ñ | C140: 482400 | J140: 0
A141: 1173000 | B141: 7.3 ¸²î²ð²ÜÜºðÆ ÎàÔØÆò ÜÞ²Ü²Îì²Ì îàôÚÄºð ºì îàô¶²ÜøÜºð | C141: x | D141: 0 | F141: 0 | G141: 0 | H141: 0 | I141: 0 | J141: 0
A142: 1173100 | B142: -¸³ï³ñ³ÝÝ»ñÇ ÏáÕÙÇó Ýß³Ý³Ïí³Í ïáõÛÅ»ñ ¨ ïáõ·³ÝùÝ»ñ | C142: 483100 | J142: 0
A143: 1174000 | B143: 7.4 ´Ü²Î²Ü ²ÔºîÜºðÆò Î²Ø ²ÚÈ ´Ü²Î²Ü ä²îÖ²èÜºðàì ²è²æ²ò²Ì ìÜ²êÜºðÆ Î²Ø ìÜ²êì²ÌøÜºðÆ ìºð²Î²Ü¶ÜàôØ | C143: x | D143: 0 | F143: 0 | G143: 0 | H143: 0 | I143: 0 | J143: 0
A144: 1174100 | B144: -´Ý³Ï³Ý ³Õ»ïÝ»ñÇó ³é³ç³ó³Í íÝ³ëí³ÍùÝ»ñÇ Ï³Ù íÝ³ëÝ»ñÇ í»ñ³Ï³Ý·ÝáõÙ | C144: 484100 | J144: 0
A145: 1174200 | B145: -²ÛÉ µÝ³Ï³Ý å³ï×³éÝ»ñáí ëï³ó³Í íÝ³ëí³ÍùÝ»ñÇ í»ñ³Ï³Ý·ÝáõÙ | C145: 484200 | J145: 0
A146: 1175000 | B146: 7.5 Î²è²ì²ðØ²Ü Ø²ðØÆÜÜºðÆ ¶àðÌàôÜºàôÂÚ²Ü Ðºîºì²Üøàì ²è²æ²ò²Ì ìÜ²êÜºðÆ Î²Ø ìÜ²êì²ÌøÜºðÆ ìºð²Î²Ü¶ÜàôØ | C146: x | D146: 0 | F146: 0 | G146: 0 | H146: 0 | I146: 0 | J146: 0
A147: 1175100 | B147: -Î³é³í³ñÙ³Ý Ù³ñÙÇÝÝ»ñÇ ·áñÍáõÝ»áõÃÛ³Ý Ñ»ï¨³Ýùáí ³é³ç³ó³Í íÝ³ëí³ÍùÝ»ñÇ Ï³Ù íÝ³ëÝ»ñÇ í»ñ³Ï³Ý·ÝáõÙ | C147: 485100 | J147: 0
A148: 1176000 | B148: 7.6 ²ÚÈ Ì²Êêºð | C148: x | D148: 0 | F148: 0 | G148: 0 | H148: 0 | I148: 0 | J148: 0
A149: 1176100 | B149: -²ÛÉ Í³Ëë»ñ | C149: 486100 | J149: 0
A150: 1177000 | B150: 7.7 ä²Ðàôêî²ÚÆÜ ØÆæàòÜºð | C150: x | D150: 0 | F150: 0 | G150: 0 | H150: 0 | I150: 0 | J150: 0
A151: 1177100 | B151: -ä³Ñáõëï³ÛÇÝ ÙÇçáóÝ»ñ | C151: 489100 | J151: 0
A152: 1200000 | B152: Բ, àâ-üÆÜ²Üê²Î²Ü ²ÎîÆìÜºðÆ ¶Ìàì Ì²Êêºð | C152: x | D152: =D153 -> 65000 | E152: =E155 -> 0 | F152: =F153 -> 65000 | G152: =G153 -> 0 | H152: =H153 -> 0 | I152: =I153 -> 0 | J152: =F153 -> 65000
A153: 1210000 | B153: 1.ÐÆØÜ²Î²Ü ØÆæàòÜºð | C153: x | D153: =SUM(D154:D156) -> 65000 | F153: =SUM(F154:F163) -> 65000 | G153: =SUM(G154:G163) -> 0 | H153: =SUM(H154:H163) -> 0 | I153: =SUM(I154:I163) -> 0 | J153: =F153 -> 65000
A154: 1211000 | B154: -Þ»Ýù»ñÇ ¨ ßÇÝáõÃÛáõÝÝ»ñÇ Ó»éù µ»ñáõÙ | C154: 511100 | J154: =F154 -> 0
A155: 1212000 | B155: -Þ»Ýù»ñÇ ¨ ßÇÝáõÃÛáõÝÝ»ñÇ Ï³éáõóáõÙ | C155: 511200 | D155: 65000 | E155: 0 | F155: =D155+E155 -> 65000 | G155: 0 | H155: 0 | I155: 0 | J155: =F155 -> 65000
A156: 1213000 | B156: -Þ»Ýù»ñÇ ¨ ßÇÝáõÃÛáõÝÝ»ñÇ Ï³åÇï³É í»ñ³Ýáñá·áõÙ | C156: 511300 | D156: 0 | F156: 0 | G156: 0 | H156: 0 | I156: 0 | J156: =F156 -> 0
A157: 1214000 | B157: -îñ³Ýëåáñï³ÛÇÝ ë³ñù³íáñáõÙÝ»ñ | C157: 512100 | J157: 0
A158: 1215000 | B158: -ì³ñã³Ï³Ý ë³ñù³íáñáõÙÝ»ñ | C158: 512200 | F158: 0 | I158: 0 | J158: =F158 -> 0
A159: 1216000 | B159: -²ÛÉ Ù»ù»Ý³Ý»ñ ¨ ë³ñù³íáñáõÙÝ»ñ | C159: 512900 | J159: 0
A160: 1217000 | B160: -²×»óíáÕ ³ÏïÇíÝ»ñ | C160: 513100 | J160: 0
A161: 1218100 | B161: -àã-ÝÛáõÃ³Ï³Ý ÑÇÙÝ³Ï³Ý ÙÇçáóÝ»ñ | C161: 513200 | J161: 0
A162: 1218200 | B162: -¶»á¹»½Ç³Ï³Ý ù³ñï»½³·ñ³Ï³Ý Í³Ëë»ñ | C162: 513300 | J162: 0
A163: 1218300 | B163: -Ü³Ë³·Í³Ñ»ï³½áï³Ï³Ý Í³Ëë»ñ | C163: 513400 | J163: 0
A164: 1220000 | B164: 2.ä²Þ²ðÜºð | C164: x | D164: 0 | F164: 0 | G164: 0 | H164: 0 | I164: 0 | J164: 0
A165: 1221000 | B165: -è³½Ù³í³ñ³Ï³Ý å³ß³ñÝ»ñ | C165: 521100 | J165: 0
A166: 1222000 | B166: -ÜÛáõÃ»ñ ¨ å³ñ³·³Ý»ñ | C166: 522100 | J166: 0
A167: 1223000 | B167: -ì»ñ³í³×³éùÇ Ñ³Ù³ñ Ý³Ë³ï»ëí³Í ³åñ³ÝùÝ»ñ | C167: 523100 | J167: 0
A168: 1224000 | B168: -êå³éÙ³Ý Ýå³ï³Ïáí å³ÑíáÕ å³ß³ñÝ»ñ | C168: 524100 | J168: 0
A169: 1230000 | B169: 3.´²ðÒð²ðÄºø ²ÎîÆìÜºð | C169: x | D169: 0 | F169: 0 | G169: 0 | H169: 0 | I169: 0 | J169: 0
A170: 1231000 | B170: -´³ñÓñ³ñÅ»ù ³ÏïÇíÝ»ñ | C170: 531100 | J170: 0
A171: 1240000 | B171: 4.â²ðî²¸ðì²Ì ԱԿՏԻՎՆԵՐ | C171: x | D171: 0 | F171: 0 | G171: 0 | H171: 0 | I171: 0 | J171: 0
A172: 1241000 | B172: -ÐáÕ | C172: 541100 | J172: 0
A173: 1242000 | B173: -ÀÝ¹»ñù³ÛÇÝ ³ÏïÇíÝ»ñ | C173: 542100
A174: 1243000 | B174: -²ÛÉ µÝ³Ï³Ý Í³·áõÙ áõÝ»óáÕ ³ÏïÇíÝ»ñ | C174: 543100
A175: 1244000 | B175: -àã ÝÛáõÃ³Ï³Ý ã³ñï³¹ñí³Í ³ÏïÇíÝ»ñ | C175: 544100
A176: 1000000 | B176: ԸՆԴԱՄԵՆԸ ԾԱԽՍԵՐ` | C176: x | D176: =D33+D152 -> 66000 | E176: 0 | F176: 66000 | G176: 200 | H176: 300 | I176: 400 | J176: 66000
A178: § ¦ § դեկտ»Ùµ»ñ ¦ 2022 Ã.
A180: ÐÆØÜ²ðÎÆ ÔºÎ²ì²ðª _______________ Է. Արշակյան _________________
A181: (ëïáñ³·ñáõÃÛáõÝ) (².Ð.².)
A182: Î.î.
A184: Î.î üÆÜ²Üê²Î²Ü Ì²è²ÚàôÂÚ²Ü äºîª _______________ _________________ | G184: Ն. Մուրադյան
B185: (¶ÈÊ²ìàð Ð²Þì²ä²Ð) | E185: (ëïáñ³·ñáõÃÛáõÝ) | G185: (².Ð.².)
A203: 5.5 áñ¨¿ ³Ùëí³ Ýáñ Ý³Ë³Ñ³ßíÇª 3-ñ¹ ëÛáõÝ³ÏáõÙ Ý»ñÏ³Û³óíáõÙ »Ý ïíÛ³É µÛáõç»ï³ÛÇÝ ï³ñí³ Ñ³Ù³å³ï³ëË³Ý ³Ùëí³ óáõó³ÝÇßÝ»ñÁ, ÇëÏ 4-Çó 7-ñ¹ ëÛáõÝ³ÏÝ»ñÁ ã»Ý Éñ³óíáõÙ:
A204: ** Ì²ÜàÂ²¶ðàôÂÚàôÜ II. N 1 ûñÇÝ³Ï»ÉÇ Ó¨Ç Ýßí³Í ïáÕÁ ÐÐ å»ï³Ï³Ý Ï³é³í³ñÙ³Ý ¨ ï»Õ³Ï³Ý ÇÝùÝ³Ï³é³í³ñÙ³Ý í»ñ³¹³ë Ù³ñÙÇÝÝ»ñÁ ã»Ý Éñ³óÝáõÙ:
A205: *** Ì²ÜàÂ²¶ðàôÂÚàôÜ III. N 1 ûñÇÝ³Ï»ÉÇ Ó¨Ç Ýßí³Í ïáÕÁ ÐÐ å»ï³Ï³Ý Ï³é³í³ñÙ³Ý ¨ ï»Õ³Ï³Ý ÇÝùÝ³Ï³é³í³ñÙ³Ý Ù³ñÙÇÝÝ»ñÁ Éñ³óÝáõÙ »Ý Çñ»Ýó Ñ³Ù³ñ µÛáõç»ï³ÛÇÝ Í³Ëë»ñÇ ·»ñ³ï»ëã³Ï³Ý ¹³ë³Ï³ñ·Ù³Ùµ ë³ÑÙ³Ý³Í Ïá¹Á:
A206: **** Ì²ÜàÂ²¶ðàôÂÚàôÜ IV. N 1 ûñÇÝ³Ï»ÉÇ Ó¨Ç Ýßí³Í ïáÕÁª ³ÝÏ³Ë Ýñ³ÝÇó, Ã» Ýáñ Ý³Ë³Ñ³ßÇíÁ áñ ¹»åùáõÙ ¿ Ñ³ëï³ïíáõÙ, Éñ³óíáõÙ ¿ N 1 ûñÇÝ³Ï»ÉÇ Ó¨Ç ³ÕÛáõë³ÏÇ §²¦ ëÛáõÝ³ÏáõÙ ³Ùñ³·ñí³Í N 1000000 (§ÀÝ¹³Ù»ÝÁ
A207: Í³Ëë»ñ¦) ïáÕÇ 3-ñ¹ ëÛáõÝ³ÏáõÙ µ»ñí³Í óáõó³ÝÇßÇ ·áõÙ³ñáí (Ãí»ñáí ¨ ï³é»ñáí):
A208: ***** Ì²ÜàÂ²¶ðàôÂÚàôÜ V. N 1 ûñÇÝ³Ï»ÉÇ Ó¨Ç Ýßí³Í ïáÕÁ Éñ³óíáõÙ ¿ Ññ³Ù³Ýáí Ñ³ëï³ïí³Í N 11 Ñ³í»Éí³ÍÇ` §´Ûáõç»ï³ÛÇÝ Í³Ëë»ñÇ ·áñÍ³é³Ï³Ý ¹³ë³Ï³ñ·áõÙ¦, ï³ññ»ñÇÝ Ñ³Ù³å³ï³ëË³Ý` µ³ÅÇÝ (2 ÝÇß), ËáõÙµ(1ÝÇß) ¨ ¹³ë (1ÝÇß):
A209: §__¦ §________________¦ 200_ Ã.
A211: ÐÆØÜ²ðÎÆ ÔºÎ²ì²ðª _______________ _________________
A212: (ëïáñ³·ñáõÃÛáõÝ) (².Ð.².)
A213: Î.î.
A215: üÆÜ²Üê²Î²Ü Ì²è²ÚàôÂÚ²Ü äºîª ________________ ___________________
A216: (¶ÈÊ²ìàð Ð²Þì²ä²Ð) (ëïáñ³·ñáõÃÛáõÝ) (².Ð.².)

Sheet arandzin aih (hidden)
F1: Ð³í»Éí³Í N 4
F3: úñÇÝ³Ï»ÉÇ Ó¨ N 3
F4: Ð³ëï³ïí»É ¿ ÐÐ ýÇÝ³ÝëÝ»ñÇ ¨ ¿ÏáÝáÙÇÏ³ÛÇ
B5: §Ð ² ê î ² î àô Ø ºØª¦ | G5: Ý³Ë³ñ³ñÇ 23 ÑáõÉÇëÇ 2007 Ãí³Ï³ÝÇ
F6: N 597-Ü Ññ³Ù³Ýáí
A7: Ý³Ë³Ñ³ßÇíÁª 3000.0 երեք միլիոն դրամ
A8: ( ÁÝ¹³Ù»ÝÁ ·áõÙ³ñÁ Ãí»ñáí ¨ ï³é»ñáí****)
A9: _______________________________________________________________________________________________________________ Ñ³½³ñ ¹ñ³Ù ·áõÙ³ñáí:
A10: _______________________________________________________________________________________ | G10: Î.î.
A11: (ÐÐ å»ï³Ï³Ý Ï³é³í³ñÙ³Ý Ï³Ù ï»Õ³Ï³Ý ÇÝùÝ³Ï³é³í³ñÙ³Ý Ù³ñÙÝÇ Õ»Ï³í³ñÇ ëïáñ³·ñáõÃÛáõÝÁ ¨ ².Ð.².)
A12: §28 ¦ դեկտեմբերի 2022թ
A13: Ü ² Ê ² Ð ² Þ Æ ì*
A14: ÐÇÙÝ³ñÏÝ»ñÇ ÏáÕÙÇó µÛáõç»ï³ÛÇÝ Ñ³ïÏ³óáõÙÝ»ñÇ Ñ³ßíÇÝ Çñ³Ï³Ý³óíáÕ Í³Ëë»ñÇ (»Éù»ñÇ) ³é³ÝÓÇÝ ï»ë³ÏÝ»ñÇ
A15: ¥Áëï ïÝï»ë³·Çï³Ï³Ý ¹³ë³Ï³ñ·Ù³Ý Ñá¹í³ÍÝ»ñÇ¤
B16: §01¦ §ÐáõÝí³ñÇ ¦ 2023 Ã. -- §30¦ §¹»Ïï»Ùµ»ñÇ ¦ 2023 Ã.
A18: 1. ÐÇÙÝ³ñÏÇ ³Ýí³ÝáõÙÁ î³ßÇñÇ ù³Õ³ù³å»ï³ñ³Ý | F18: 8.***** ´Ûáõç»ï³ÛÇÝ Í³Ëë»ñÇ ·áñÍ³é³Ï³Ý ¹³ë³Ï³ñ·Ù³Ý
A19: 2. öáëï³ÛÇÝ Ñ³ëó»Ý ù. î³ßÇñ | F19: Í³ÍÏ³·Çñ | G19: 2 | H19: 2 | I19: 1
A20: 3. ÐÇÙÝ³ñÏÇ ï»Õ³µ³ßËÙ³Ý Ù³ñ½Ç ¨ Ñ³Ù³ÛÝùÇ Ïá¹Á
A21: Áëï µÛáõç»ï³ÛÇÝ Í³Ëë»ñÇ ï³ñ³Íù³ÛÇÝ ¹³ë³Ï³ñ·Ù³Ý | F21: 9. Ìñ³·ñÇ ³Ýí³ÝáõÙÁ պաշտպանություն
A22: 4. ** ä»ï³Ï³Ý Ï³é³í³ñÙ³Ý (ï»Õ³Ï³Ý ÇÝùÝ³Ï³é³í³ñÙ³Ý) Ù³ñÙÝÇ ³Ýí³ÝáõÙÁ | F22: 10. Ìñ³·ñÇ Ïá¹Á
A23: _______________________________________________________________________________________ | F23: 11. *** ä»ï³Ï³Ý Ï³é³í³ñÙ³Ý (ï»Õ³Ï³Ý .ÇÝù ÇÝùÝ³Ï³é³í³ñÙ³Ý)Ù³ñÙÇÝÝ»ñÇ ·»ñ³ï»ëã³Ï³Ý Ïá¹Á
A24: 5. ÐÇÙÝ³ñÏÁ ëå³ë³ñÏáÕ ï»Õ³Ï³Ý ·³ÝÓ³å»ï³Ï³Ý µ³ÅÝÇ (î¶´) ³Ýí³ÝáõÙÁ _ Տաշիրի
A25: 6. ÐÇÙÝ³ñÏÇª ï»Õ³Ï³Ý ·³ÝÓ³å»ï³Ï³Ý µ³ÅÝáõÙ (î¶´) Ñ³ßí³éÙ³Ý Ñ³Ù³ñÁ
A26: 7. Ì³Ëë»ñÇ ýÇÝ³Ýë³íáñÙ³Ý ³ÕµÛáõñÇ Ïá¹Á` | G26: 12. â³÷Ç ÙÇ³íáñÁª Ñ³½³ñ ¹ñ³Ù
A27: (ÐÐ å»ï³Ï³Ý µÛáõç»ª 1, Ñ³Ù³ÛÝùÇ µÛáõç»ª 2) | H27: 900272400020
A29: îáÕÇ NN | B29: ´Ûáõç»ï³ÛÇÝ Í³Ëë»ñÇ ïÝï»ë³·Çï³Ï³Ý ¹³ë³Ï³ñ·Ù³Ý ï³ññ»ñ | D29: ÜáõÛÝ Å³Ù³Ý³Ï³Ñ³ïí³ÍÇ Ñ³Ù³ñ Ý³ËÏÇÝáõÙ Ñ³ëï³ïí³Íª ·áñÍáÕ | F29: êáõÛÝ Ý³Ë³Ñ³ßíáí Ñ³ëï³ïíáÕ óáõó³ÝÇßÝ»ñÁ | G29: ³Û¹ ÃíáõÙª Áëï »é³ÙëÛ³ÏÝ»ñÇ (»é³ÙëÛ³ÏÇ ³ÙÇëÝ»ñÇ)³×áÕ³Ï³Ý
B30: ³Ýí³ÝáõÙÝ»ñÁ | C30: NN | D30: Ý³Ë³Ñ³ßíÇ óáõó³ÝÇßÝ»ñÁ | E30: Ý³Ë³Ñ³ßíáõÙ Ï³ï³ñí³Í ÷á÷áËáõÃÛáõÝ-Ý»ñÁ (³í»É³óáõÙÁª /+/, å³Ï³ë»óáõÙÁª/-/ | G30: I | H30: II | I30: III | J30: IV
A31: ² | B31: ´ | C31: ¶ | D31: 1 | E31: 2 | F31: 3 | G31: 4 | H31: 5 | I31: 6 | J31: 7
A32: 1100000 | B32: ². ÀÜÂ²òÆÎ Ì²Êêºðª ÀÜ¸²ØºÜÀ, ³Û¹ ÃíáõÙ` | C32: x | D32: =D113+D66+D69 -> 3000 | E32: =E125 -> 0 | F32: =F66+F114+F69 -> 3000 | G32: =G66+G69+G113 -> 250 | H32: =H66+H69+H113 -> 500 | I32: =I66+I69+I113 -> 750 | J32: =F32 -> 3000
A33: 1110000 | B33: 1.äºî²Î²Ü, îºÔ²Î²Ü ÆÜøÜ²Î²è²ì²ðØ²Ü Ø²ðØÆÜÜºðÆ, ¸ð²Üò ºÜÂ²Î² ´Úàôæºî²ÚÆÜ ÐÆØÜ²ðÎÜºðÆ ²ÞÊ²îàÔÜºðÆ ²ÞÊ²î²ì²ðÒÀª ÀÜ¸²ØºÜÀ, ³Û¹ ÃíáõÙª | C33: x | D33: 0 | F33: 0 | G33: 0 | H33: 0 | I33: 0 | J33: 0
A34: 1110000 | B34: 1,1 ²ßË³ï³ÝùÇ í³ñÓ³ïñáõÃÛáõÝ | C34: x | D34: 0 | F34: 0 | G34: 0 | H34: 0 | I34: 0 | J34: 0
A35: 1111000 | B35: -²ßË³ïáÕÝ»ñÇ ³ßË³ï³í³ñÓ»ñ ¨ Ñ³í»É³í×³ñÝ»ñ | C35: 411100
A36: 1112000 | B36: - ä³ñ·¨³ïñáõÙÝ»ñ, ¹ñ³Ù³Ï³Ý Ëñ³ËáõëáõÙÝ»ñ ¨ Ñ³ïáõÏ í×³ñÝ»ñ | C36: 411200
A37: 1113000 | B37: -ø³Õ³ù³óÇ³Ï³Ý, ¹³ï³Ï³Ý ¨ å»ï³Ï³Ý Í³é³ÛáÕÝ»ñÇ å³ñ·¨³ïñáõÙ | C37: 411300
A38: 1114000 | B38: -ÐÐ ýÇÝ³ÝëÝ»ñÇ ¨ ¿ÏáÝáÙÇÏ³ÛÇ Ý³Ë³ñ³ñáõÃÛ³Ý, Ñ³ñÏ³ÛÇÝ ¨ Ù³ùë³ÛÇÝ Ù³ñÙÇÝÝ»ñÇ ³ßË³ïáÕÝ»ñÇ å³ñ·¨³ïñáõÙ | C38: 411400
A39: 1115000 | B39: -²ÛÉ í³ñÓ³ïñáõÃÛáõÝÝ»ñ | C39: 411500
A40: 1116000 | B40: -´Ý»Õ»Ý ³ßË³ï³í³ñÓ»ñ ¨ Ñ³í»É³í×³ñÝ»ñ | C40: 412100
A41: 1117000 | B41: -ì×³ñÝ»ñ êáóÇ³É³Ï³Ý ³å³Ñáí³·ñáõÃÛ³Ý å»ï³Ï³Ý ÑÇÙÝ³¹ñ³ÙÇÝ | C41: 413100
A42: 1120000 | B42: 2 Ì³é³ÛáõÃÛáõÝÝ»ñÇ ¨ ³åñ³ÝùÝ»ñÇ Ó»éù µ»ñáõÙ | C42: x | D42: 0 | F42: 0 | G42: 0 | H42: 0 | I42: 0 | J42: 0
A43: 1121000 | B43: 2.1 Þ³ñáõÝ³Ï³Ï³Ý Í³Ëë»ñ | D43: 0 | F43: 0 | G43: 0 | H43: 0 | I43: 0 | J43: 0
A44: 1121100 | B44: -·áñÍ³éÝ³Ï³Ý ¨ µ³ÝÏ³ÛÇÝ Í³é³ÛáõÃÛáõÝÝ»ñÇ Í³Ëë»ñ | C44: 421100
A45: 1121200 | B45: -¿Ý»ñ·»ïÇÏ Í³é³ÛáõÃÛáõÝÝ»ñ | C45: 421200
A46: 1121300 | B46: -ÎáÙáõÝ³É Í³é³ÛáõÃÛáõÝÝ»ñ | C46: 421300
A47: 1121400 | B47: -Î³åÇ Í³é³ÛáõÃÛáõÝÝ»ñ | C47: 421400
A48: 1121500 | B48: -²å³Ñáí³·ñ³Ï³Ý Í³Ëë»ñ | C48: 421500
A49: 1121600 | B49: -¶áõÛùÇ ¨ ë³ñù³íáñáõÙÝ»ñÇ í³ñÓ³Ï³ÉáõÃÛáõÝ | C49: 421600
A50: 1121700 | B50: -²ñï³·»ñ³ï»ëã³Ï³Ý Í³Ëë»ñ | C50: 421700
A51: 1122000 | B51: 2.2 ¶áñÍáõÕáõÙÝ»ñÇ ¨ ßñç³·³ÛáõÃÛ³Ý Í³Ëë»ñ | C51: x | D51: 0 | F51: 0 | G51: 0 | H51: 0 | I51: 0 | J51: 0
A52: 1122100 | B52: -Ü»ñùÇÝ ·áñÍáõÕáõÙÝ»ñ | C52: 422100
A53: 1122200 | B53: -²ñï³ë³ÑÙ³ÝÛ³Ý ·áñÍáõÕáõÙÝ»ñÇ ·Íáí Í³Ëë»ñ | C53: 422200
A54: 1122300 | B54: -²ÛÉ ïñ³Ýëåáñï³ÛÇÝ Í³Ëë»ñ | C54: 422900
A55: 1123000 | B55: 2.3 ä³ÛÙ³Ý³·ñ³ÛÇÝ Í³é³ÛáõÃÛáõÝÝ»ñÇ Ó»éù µ»ñáõÙ | C55: x | D55: 0 | F55: 0 | G55: 0 | H55: 0 | I55: 0 | J55: 0
A56: 1123100 | B56: -ì³ñã³Ï³Ý Í³é³ÛáõÃÛáõÝÝ»ñ | C56: 423100
A57: 1123200 | B57: -Ð³Ù³Ï³ñ·ã³ÛÇÝ Í³é³ÛáõÃÛáõÝÝ»ñ | C57: 423200
A58: 1123300 | B58: -²ßË³ï³Ï³½ÙÇ Ù³ëÝ³·Çï³Ï³Ý ½³ñ·³óÙ³Ý Í³é³ÛáõÃÛáõÝÝ»ñ | C58: 423300
A59: 1123400 | B59: -î»Õ³Ï³ïí³Ï³Ý Í³é³ÛáõÃÛáõÝÝ»ñ | C59: 423400
A60: 1123500 | B60: -Î³é³í³ñã³Ï³Ý Í³é³ÛáõÃÛáõÝÝ»ñ | C60: 423500
A61: 1123600 | B61: - Î»Ýó³Õ³ÛÇÝ ¨ Ñ³Ýñ³ÛÇÝ ëÝÝ¹Ç Í³é³ÛáõÃÛáõÝÝ»ñ | C61: 423600
A62: 1123700 | B62: -Ü»ñÏ³Û³óáõóã³Ï³Ý Í³Ëë»ñ | C62: 423700
A63: 1123800 | B63: -ÀÝ¹Ñ³Ýáõñ µÝáõÛÃÇ ³ÛÉ Í³é³ÛáõÃÛáõÝÝ»ñ | C63: 423900
A64: 1124000 | B64: 2.4 ²ÛÉ Ù³ëÝ³·Çï³Ï³Ý Í³é³ÛáõÃÛáõÝÝ»ñÇ Ó»éù µ»ñáõÙ | C64: x | D64: 0 | F64: 0 | G64: 0 | H64: 0 | I64: 0 | J64: 0
A65: 1124100 | B65: -Ø³ëÝ³·Çï³Ï³Ý Í³é³ÛáõÃÛáõÝÝ»ñ | C65: 424100
A66: 1125000 | B66: 2.5 ÀÝÃ³óÇÏ Ýáñá·áõÙ ¨ å³Ñå³ÝáõÙ (Í³é³ÛáõÃÛáõÝÝ»ñ ¨ ÝÛáõÃ»ñ) | C66: x | D66: =D67 -> 2000 | F66: =F67 -> 2000 | G66: =G67 -> 0 | H66: =H67 -> 0 | I66: =I67 -> 0 | J66: =J67 -> 2000
A67: 1125100 | B67: -Þ»Ýù»ñÇ ¨ Ï³éáõÛóÝ»ñÇ ÁÝÃ³óÇÏ Ýáñá·áõÙ ¨ å³Ñå³ÝáõÙ | C67: 425100 | D67: 2000 | F67: =D67 -> 2000 | G67: 0 | H67: 0 | I67: 0 | J67: =F67 -> 2000
A68: 1125200 | B68: -Ø»ù»Ý³Ý»ñÇ ¨ ë³ñù³íáñáõÙÝ»ñÇ ÁÝÃ³óÇÏ Ýáñá·áõÙ ¨ å³Ñå³ÝáõÙ | C68: 425200
A69: 1126000 | B69: 2.6 ÜÛáõÃ»ñ | C69: x | D69: =D77 -> 1000 | F69: =F77 -> 1000 | G69: =G77 -> 250 | H69: =H77 -> 500 | I69: =I77 -> 750 | J69: =J77 -> 1000
A70: 1126100 | B70: -¶ñ³ë»ÝÛ³Ï³ÛÇÝ ÝÛáõÃ»ñ ¨ Ñ³·áõëï | C70: 426100
A71: 1126200 | B71: -¶ÛáõÕ³ïÝï»ë³Ï³Ý ³åñ³ÝùÝ»ñ | C71: 426200
A72: 1126300 | B72: -ì»ñ³å³ïñ³ëïÙ³Ý ¨ áõëáõóÙ³Ý ÝÛáõÃ»ñ | C72: 426300
A73: 1126400 | B73: -îñ³Ýëåáñï³ÛÇÝ ÝÛáõÃ»ñ | C73: 426400
A74: 1126500 | B74: -Þñç³Ï³ ÙÇç³í³ÛñÇ å³ßïå³ÝáõÃÛ³Ý ¨ ·Çï³Ï³Ý ÝÛáõÃ»ñ | C74: 426500
A75: 1126600 | B75: -²éáÕç³å³Ñ³Ï³Ý ¨ É³µáñ³ïáñ ÝÛáõÃ»ñ | C75: 426600
A76: 1126700 | B76: -Î»Ýó³Õ³ÛÇÝ ¨ Ñ³Ýñ³ÛÇÝ ëÝÝ¹Ç ÝÛáõÃ»ñ | C76: 426700
A77: 1126800 | B77: -Ð³ïáõÏ Ýå³ï³Ï³ÛÇÝ ³ÛÉ ÝÛáõÃ»ñ | C77: 426900 | D77: 1000 | F77: =D77+E77 -> 1000 | G77: 250 | H77: 500 | I77: 750 | J77: =F77 -> 1000
A78: 1130000 | B78: 3 îáÏáë³í×³ñÝ»ñ | C78: x | D78: 0 | F78: 0 | G78: 0 | H78: 0 | I78: 0 | J78: 0
A79: 1130100 | B79: -Ü»ñùÇÝ ³ñÅ»ÃÕÃ»ñÇ ïáÏáë³í×³ñÝ»ñ | C79: 441100
A80: 1130200 | B80: -Ü»ñùÇÝ í³ñÏ»ñÇ ïáÏáë³í×³ñÝ»ñ | C80: 441200
A81: 1130300 | B81: -²ñï³ùÇÝ ³ñÅ»ÃÕÃ»ñÇ ·Íáí ïáÏáë³í×³ñÝ»ñ | C81: 442100
A82: 1130400 | B82: -²ñï³ùÇÝ í³ñÏ»ñÇ ·Íáí ïáÏáë³í×³ñÝ»ñ | C82: 442200
A83: 1131000 | B83: öáË³éáõÃÛáõÝÝ»ñÇ Ñ»ï Ï³åí³Í í×³ñÝ»ñ | C83: x
A84: 1131100 | B84: -öáË³Ý³ÏÙ³Ý Ïáõñë»ñÇ µ³ó³ë³Ï³Ý ï³ñµ»ñáõÃÛáõÝ | C84: 443100
A85: 1131200 | B85: -îáõÛÅ»ñ | C85: 443200
A86: 1131300 | B86: -öáË³éáõÃÛáõÝÝ»ñÇ ·Íáí ïáõñù»ñ | C86: 443300
A87: 1140000 | B87: 4. êáõµëÇ¹Ç³Ý»ñ | C87: x | D87: 0 | F87: 0 | G87: 0 | H87: 0 | I87: 0 | J87: 0
A88: 1141000 | B88: -êáõµëÇ¹Ç³Ý»ñ áã-ýÇÝ³Ýë³Ï³Ý å»ï³Ï³Ý Ï³½Ù³Ï»ñåáõÃÛáõÝÝ»ñÇÝ | C88: 451100
A89: 1142000 | B89: -êáõµëÇ¹Ç³Ý»ñ ýÇÝ³Ýë³Ï³Ý å»ï³Ï³Ý Ï³½Ù³Ï»ñåáõÃÛáõÝÝ»ñÇÝ | C89: 451200
A90: 1143000 | B90: -êáõµëÇ¹Ç³Ý»ñ áã å»ï³Ï³Ý áã ýÇÝ³Ýë³Ï³Ý Ï³½Ù³Ï»ñåáõÃÛáõÝÝ»ñÇÝ | C90: 452100
A91: 1144000 | B91: -êáõµëÇ¹Ç³Ý»ñ áã å»ï³Ï³Ý ýÇÝ³Ýë³Ï³Ý Ï³½Ù³Ï»ñåáõÃÛáõÝÝ»ñÇÝ | C91: 452200
A92: 1150000 | B92: 5.¸ñ³Ù³ßÝáñÑÝ»ñ | C92: x | D92: 0 | F92: 0 | G92: 0 | H92: 0 | I92: 0 | J92: 0
A93: 1151000 | B93: -ÀÝÃ³óÇÏ ¹ñ³Ù³ßÝáñÑÝ»ñ ûï³ñ»ñÏñÛ³ Ï³é³í³ñáõÃÛáõÝÝ»ñÇÝ | C93: 461100
A94: 1152000 | B94: -Î³åÇï³É ¹ñ³Ù³ßÝáñÑÝ»ñ ûï³ñ»ñÏñÛ³ Ï³é³í³ñáõÃÛáõÝÝ»ñÇÝ | C94: 461200
A95: 1153000 | B95: -ÀÝÃ³óÇÏ ¹ñ³Ù³ßÝáñÑÝ»ñ ÙÇç³½·³ÛÇÝ Ï³½Ù³Ï»ñåáõÃÛáõÝÝ»ñÇÝ | C95: 462100
A96: 1154000 | B96: -Î³åÇï³É ¹ñ³Ù³ßÝáñÑÝ»ñ ÙÇç³½·³ÛÇÝ Ï³½Ù³Ï»ñåáõÃÛáõÝÝ»ñÇÝ | C96: 462200
A97: 1155000 | B97: -ÀÝÃ³óÇÏ ¹ñ³Ù³ßÝáñÑÝ»ñ å»ï³Ï³Ý Ñ³ïí³ÍÇ ³ÛÉ Ù³Ï³ñ¹³ÏÝ»ñÇÝ | C97: 463100
A98: 1156000 | B98: -Î³åÇï³É ¹ñ³Ù³ßÝáñÑÝ»ñ å»ï³Ï³Ý Ñ³ïí³ÍÇ ³ÛÉ Ù³Ï³ñ¹³ÏÝ»ñÇÝ | C98: 463200
A99: 1160000 | B99: 6. êàòÆ²È²Î²Ü Üä²êîÜºð | C99: x | D99: 0 | F99: 0 | G99: 0 | H99: 0 | I99: 0 | J99: 0
A100: 1161000 | B100: 6.1 êàòÆ²È²Î²Ü ²ä²ÐàìàôÂÚ²Ü Üä²êîÜºð (ä²ðî²¸Æð êàòÆ²È²Î²Ü ²ä²Ðàì²¶ðàôÂÚ²Ü Î²¼Ø²ÎºðäàôÂÚàôÜÜºð) | C100: x | D100: 0 | F100: 0 | G100: 0 | H100: 0 | I100: 0 | J100: 0
A101: 1161100 | B101: -îÝ³ÛÇÝ ïÝï»ëáõÃÛáõÝÝ»ñÇÝ ¹ñ³Ùáí í×³ñíáÕ ëáóÇ³É³Ï³Ý ³å³Ñáí³·ñáõÃÛ³Ý í×³ñÝ»ñ | C101: 471100
A102: 1161200 | B102: -êáóÇ³É³Ï³Ý ³å³ÑáíáõÃÛ³Ý µÝ»Õ»Ý Ýå³ëïÝ»ñ Í³é³ÛáõÃÛáõÝÝ»ñ Ù³ïáõóáÕÝ»ñÇÝ | C102: 471200
A103: 1162000 | B103: 6.2 êàòÆ²È²Î²Ü ú¶ÜàôÂÚ²Ü ¸ð²Ø²Î²Ü ²ðî²Ð²ÚîàôÂÚ²Ø´ Üä²êîÜºð (´ÚàôæºÆò) | C103: x | D103: 0 | F103: 0 | G103: 0 | H103: 0 | I103: 0 | J103: 0
A104: 1162100 | B104: -ÐÇí³Ý¹áõÃÛ³Ý ¨ Ñ³ßÙ³Ý¹³ÙáõÃÛ³Ý Ýå³ëïÝ»ñ µÛáõç»Çó | C104: 472100
A105: 1162200 | B105: -Ø³ÛñáõÃÛ³Ý Ýå³ëïÝ»ñ µÛáõç»Çó | C105: 472200
A106: 1162300 | B106: -ºñ»Ë³Ý»ñÇ Ï³Ù ÁÝï³Ý»Ï³Ý Ýå³ëïÝ»ñ µÛáõç»Çó | C106: 472300
A107: 1162400 | B107: -¶áñÍ³½ñÏáõÃÛ³Ý Ýå³ëïÝ»ñ µÛáõç»Çó | C107: 472400
A108: 1162500 | B108: -Î»Ýë³Ãáß³ÏÇ ³ÝóÝ»Éáõ Ñ»ï Ï³åí³Í ¨ ï³ñÇù³ÛÇÝ Ýå³ëïÝ»ñ µÛáõç»Çó | C108: 472500
A109: 1162600 | B109: -ÐáõÕ³ñÏ³íáñáõÃÛ³Ý Ýå³ëïÝ»ñ µÛáõç»Çó | C109: 472600
A110: 1162700 | B110: -ÎñÃ³Ï³Ý, Ùß³ÏáõÃ³ÛÇÝ ¨ ëåáñï³ÛÇÝ Ýå³ëïÝ»ñ µÛáõç»Çó | C110: 472700
A111: 1162800 | B111: -´Ý³Ï³ñ³Ý³ÛÇÝ Ýå³ëïÝ»ñ µÛáõç»Çó | C111: 472800
A112: 1162900 | B112: -²ÛÉ Ýå³ëïÝ»ñ µÛáõç»Çó | C112: 472900
A113: 1170000 | B113: 7. ²ÚÈ Ì²Êêºð | C113: x | D113: =D114 -> 0 | F113: =F114 -> 0 | G113: =G114 -> 0 | H113: =H114 -> 0 | I113: =I114 -> 0 | J113: =J114 -> 1000
A114: 1171000 | B114: 7.1 ÜìÆð²îìàôÂÚàôÜÜºð àâ-Î²è²ì²ðâ²Î²Ü (Ð²ê²ð²Î²Î²Ü) Î²¼Ø²ÎºðäàôÂÚàôÜÜºðÆÜ | C114: x | D114: =D116+D125 -> 0 | F114: =F116 -> 0 | G114: =G116 -> 0 | H114: =H116 -> 0 | I114: =I116 -> 0 | J114: 1000
A115: 1171100 | B115: -îÝ³ÛÇÝ ïÝï»ëáõÃÛáõÝÝ»ñÇÝ Í³é³ÛáõÃÛáõÝÝ»ñ Ù³ïáõóáÕ` ß³ÑáõÛÃ ãÑ»ï³åÝ¹áÕ Ï³½Ù³Ï»ñåáõÃÛáõÝÝ»ñÇÝ ÝíÇñ³ïíáõÃÛáõÝÝ»ñ | C115: 481100
A116: 1171200 | B116: -ÜíÇñ³ïíáõÃÛáõÝÝ»ñ ³ÛÉ ß³ÑáõÛÃ ãÑ»ï³åÝ¹áÕ Ï³½Ù³Ï»ñåáõÃÛáõÝÝ»ñÇÝ | C116: 481900 | D116: 0 | F116: =D116+E116 -> 0 | G116: 0 | H116: 0 | I116: 0 | J116: =F116 -> 0
A117: 1172000 | B117: 7.2 Ð²ðÎºð, ä²ðî²¸Æð ìÖ²ðÜºð ºì îàôÚÄºð, àðàÜø Î²è²ì²ðØ²Ü î²ð´ºð Ø²Î²ð¸²ÎÜºðÆ ÎàÔØÆò ÎÆð²èìàôØ ºÜ ØÆØÚ²Üò ÜÎ²îØ²Ø´ | C117: x | D117: 0 | F117: 0 | G117: 0 | H117: 0 | I117: 0 | J117: 0
A118: 1172100 | B118: -²ßË³ï³í³ñÓÇ ýáÝ¹ | C118: 482100
A119: 1172200 | B119: -²ÛÉ Ñ³ñÏ»ñ | C119: 482200
A120: 1172300 | B120: -ä³ñï³¹Çñ í×³ñÝ»ñ | C120: 482300
A121: 1172400 | B121: -ä»ï³Ï³Ý Ñ³ïí³ÍÇ ï³ñµ»ñ Ù³Ï³ñ¹³ÏÝ»ñÇ ÏáÕÙÇó ÙÇÙÛ³Ýó ÝÏ³ïÙ³Ùµ ÏÇñ³éíáÕ ïáõÛÅ»ñ | C121: 482400
A122: 1173000 | B122: 7.3 ¸²î²ð²ÜÜºðÆ ÎàÔØÆò ÜÞ²Ü²Îì²Ì îàôÚÄºð ºì îàô¶²ÜøÜºð | C122: x | D122: 0 | F122: 0 | G122: 0 | H122: 0 | I122: 0 | J122: 0
A123: 1173100 | B123: -¸³ï³ñ³ÝÝ»ñÇ ÏáÕÙÇó Ýß³Ý³Ïí³Í ïáõÛÅ»ñ ¨ ïáõ·³ÝùÝ»ñ | C123: 483100
A124: 1174000 | B124: 7.4 ´Ü²Î²Ü ²ÔºîÜºðÆò Î²Ø ²ÚÈ ´Ü²Î²Ü ä²îÖ²èÜºðàì ²è²æ²ò²Ì ìÜ²êÜºðÆ Î²Ø ìÜ²êì²ÌøÜºðÆ ìºð²Î²Ü¶ÜàôØ | C124: x | D124: 0 | F124: 0 | G124: 0 | H124: 0 | I124: 0 | J124: 0
A125: 1174100 | B125: -´Ý³Ï³Ý ³Õ»ïÝ»ñÇó ³é³ç³ó³Í íÝ³ëí³ÍùÝ»ñÇ Ï³Ù íÝ³ëÝ»ñÇ í»ñ³Ï³Ý·ÝáõÙ | C125: 484100 | D125: 0 | E125: 0 | F125: =D125+E125 -> 0 | G125: 0 | H125: 0 | I125: 0 | J125: =F125 -> 0
A126: 1174200 | B126: -²ÛÉ µÝ³Ï³Ý å³ï×³éÝ»ñáí ëï³ó³Í íÝ³ëí³ÍùÝ»ñÇ í»ñ³Ï³Ý·ÝáõÙ | C126: 484200
A127: 1175000 | B127: 7.5 Î²è²ì²ðØ²Ü Ø²ðØÆÜÜºðÆ ¶àðÌàôÜºàôÂÚ²Ü Ðºîºì²Üøàì ²è²æ²ò²Ì ìÜ²êÜºðÆ Î²Ø ìÜ²êì²ÌøÜºðÆ ìºð²Î²Ü¶ÜàôØ | C127: x | D127: 0 | F127: 0 | G127: 0 | H127: 0 | I127: 0 | J127: 0
A128: 1175100 | B128: -Î³é³í³ñÙ³Ý Ù³ñÙÇÝÝ»ñÇ ·áñÍáõÝ»áõÃÛ³Ý Ñ»ï¨³Ýùáí ³é³ç³ó³Í íÝ³ëí³ÍùÝ»ñÇ Ï³Ù íÝ³ëÝ»ñÇ í»ñ³Ï³Ý·ÝáõÙ | C128: 485100
A129: 1176000 | B129: 7.6 ²ÚÈ Ì²Êêºð | C129: x | D129: 0 | F129: 0 | G129: 0 | H129: 0 | I129: 0 | J129: 0
A130: 1176100 | B130: -²ÛÉ Í³Ëë»ñ | C130: 486100
A131: 1177000 | B131: 7.7 ä²Ðàôêî²ÚÆÜ ØÆæàòÜºð | C131: x | D131: 0 | F131: 0 | G131: 0 | H131: 0 | I131: 0 | J131: 0
A132: 1177100 | B132: -ä³Ñáõëï³ÛÇÝ ÙÇçáóÝ»ñ | C132: 489100
A133: ---- | B133: -------
A134: 1200000 | B134: Բ, àâ-üÆÜ²Üê²Î²Ü ²ÎîÆìÜºðÆ ¶Ìàì Ì²Êêºð | C134: x | D134: 0 | F134: 0 | G134: 0 | H134: 0 | I134: 0 | J134: 0
B135: ³Û¹ ÃíáõÙ`
A136: ---- | B136: -------
A137: 1210000 | B137: 1.ÐÆØÜ²Î²Ü ØÆæàòÜºð | C137: x | D137: 0 | F137: 0 | G137: 0 | H137: 0 | I137: 0 | J137: 0
A138: 1211000 | B138: -Þ»Ýù»ñÇ ¨ ßÇÝáõÃÛáõÝÝ»ñÇ Ó»éù µ»ñáõÙ | C138: 511100
A139: 1212000 | B139: -Þ»Ýù»ñÇ ¨ ßÇÝáõÃÛáõÝÝ»ñÇ Ï³éáõóáõÙ | C139: 511200
A140: 1213000 | B140: -Þ»Ýù»ñÇ ¨ ßÇÝáõÃÛáõÝÝ»ñÇ Ï³åÇï³É í»ñ³Ýáñá·áõÙ | C140: 511300
A141: 1214000 | B141: -îñ³Ýëåáñï³ÛÇÝ ë³ñù³íáñáõÙÝ»ñ | C141: 512100
A142: 1215000 | B142: -ì³ñã³Ï³Ý ë³ñù³íáñáõÙÝ»ñ | C142: 512200
A143: 1216000 | B143: -²ÛÉ Ù»ù»Ý³Ý»ñ ¨ ë³ñù³íáñáõÙÝ»ñ | C143: 512900
A144: 1217000 | B144: -²×»óíáÕ ³ÏïÇíÝ»ñ | C144: 513100
A145: 1218000 | B145: -àã-ÝÛáõÃ³Ï³Ý ÑÇÙÝ³Ï³Ý ÙÇçáóÝ»ñ | C145: 513200
A146: 1220000 | B146: 2.ä²Þ²ðÜºð | C146: x | D146: 0 | F146: 0 | G146: 0 | H146: 0 | I146: 0 | J146: 0
A147: 1221000 | B147: -è³½Ù³í³ñ³Ï³Ý å³ß³ñÝ»ñ | C147: 521100
A148: 1222000 | B148: -ÜÛáõÃ»ñ ¨ å³ñ³·³Ý»ñ | C148: 522100
A149: 1223000 | B149: -ì»ñ³í³×³éùÇ Ñ³Ù³ñ Ý³Ë³ï»ëí³Í ³åñ³ÝùÝ»ñ | C149: 523100
A150: 1224000 | B150: -êå³éÙ³Ý Ýå³ï³Ïáí å³ÑíáÕ å³ß³ñÝ»ñ | C150: 524100
A151: 1230000 | B151: 3.´²ðÒð²ðÄºø ²ÎîÆìÜºð | C151: x | D151: 0 | F151: 0 | G151: 0 | H151: 0 | I151: 0 | J151: 0
A152: 1231000 | B152: -´³ñÓñ³ñÅ»ù ³ÏïÇíÝ»ñ | C152: 531100
A153: 1240000 | B153: 4.àâ ²ðî²¸ð²Î²Ü ԱԿՏԻՎՆԵՐ | C153: x | D153: 0 | F153: 0 | G153: 0 | H153: 0 | I153: 0 | J153: 0
A154: 1241000 | B154: -ÐáÕ | C154: 541100
A155: 1242000 | B155: -ÀÝ¹»ñù³ÛÇÝ ³ÏïÇíÝ»ñ | C155: 542100
A156: 1243000 | B156: -²ÛÉ µÝ³Ï³Ý Í³·áõÙ áõÝ»óáÕ ³ÏïÇíÝ»ñ | C156: 543100
A157: 1244000 | B157: -àã ÝÛáõÃ³Ï³Ý áã ³ñï³¹ñ³Ï³Ý ³ÏïÇíÝ»ñ | C157: 544100
A158: 1000000 | B158: ԸՆԴԱՄԵՆԸ ºÈøºð` (ïáÕ 1100000+ïáÕ1200000) | C158: x | D158: =D32 -> 3000 | E158: 0 | F158: 3000 | G158: 250 | H158: 500 | I158: 750 | J158: 3000
A161: § ¦ § դեկտ»Ùµ»ñ ¦ 2022 Ã.
A163: ÐÆØÜ²ðÎÆ ÔºÎ²ì²ðª _______________ _________________ | G163: Է. Արշակյան
E164: (ëïáñ³·ñáõÃÛáõÝ) | G164: (².Ð.².)
A165: Î.î.
A166: Î.î üÆÜ²Üê²Î²Ü Ì²è²ÚàôÂÚ²Ü äºîª _______________ _________________ | G166: Ն. Մուրադյան
B167: (¶ÈÊ²ìàð Ð²Þì²ä²Ð) | E167: (ëïáñ³·ñáõÃÛáõÝ) | G167: (².Ð.².)

Sheet anasnabyz (hidden)
I1: Ð³í»Éí³Í N 2
H3: úñÇÝ³Ï»ÉÇ Ó¨ N1
G4: h³ëï³ïí»É ¿ ÐÐ ýÇÝ³ÝëÝ»ñÇ ¨ ¿ÏáÝáÙÇÏ³ÛÇ
H5: Ý³Ë³ñ³ñÇ 23 ÑáõÉÇëÇ 2007 Ãí³Ï³ÝÇ
B6: §Ð ² ê î ² î àô Ø ºØª¦ | G6: N 597-Ü Ññ³Ù³Ýáí
A8: Ý³Ë³Ñ³ßÇíÁª 0. 0 զրո դրամ
A9: ( ÁÝ¹³Ù»ÝÁ ·áõÙ³ñÁ Ãí»ñáí ¨ ï³é»ñáí****)
A10: _______________________________________________________________________________________________________________ Ñ³½³ñ ¹ñ³Ù ·áõÙ³ñáí:
A12: __________________________________________________________________________________________ | B12: Է. Արշակյան | H12: Î.î.
A13: (ÐÐ å»ï³Ï³Ý Ï³é³í³ñÙ³Ý Ù³ñÙÝÇ Õ»Ï³í³ñÇ /Ñ³Ù³ÛÝùÇ Õ»Ï³í³ñÇ/ ëïáñ³·ñáõÃÛáõÝÁ ¨ ².Ð.².)
A14: §26 ¦ | B14: § ÑáõÉÇë ¦ 2012 Ã
B15: Ü²Ê²Ð²ÞÆì*
B16: ´ Ú àô æ º î ² Ú Æ Ü Ð Æ Ø Ü ² ð Î Æ ä ² Ð ä ² Ü Ø ² Ü Ì ² Ê ê º ð Æ
A17: §_01_¦ §ÐáõÝí³ñÇ ¦ 2013 Ã. -- §30¦ §¹»Ïï»Ùµ»ñÇ ¦ 2013 Ã. Å³Ù³Ý³Ï³Ñ³ïí³ÍÇ Ñ³Ù³ñ
A19: 1. ÐÇÙÝ³ñÏÇ ³Ýí³ÝáõÙÁ Անասնաբուժեր | G19: 8. ***** ´Ûáõç»ï³ÛÇÝ Í³Ëë»ñÇ ·áñÍ³é³Ï³Ý ¹³ë³Ï³ñ·.
G20: Í³ÍÏ³·Çñ | H20: 4 | I20: 2 | J20: 1
A21: 3. ÐÇÙÝ³ñÏÇ ï»Õ³µ³ßËÙ³Ý Ù³ñ½Ç ¨ Ñ³Ù³ÛÝùÇ Ïá¹Ý Áëï | G21: 9. Ìñ³·ñÇ ³Ýí³ÝáõÙÁ___Ï³é³í³ñÙ³Ý ³å³ñ³ï
A22: µÛáõç»ï³ÛÇÝ Í³Ëë»ñÇ ï³ñ³Íù³ÛÇÝ ¹³ë³Ï³ñ·Ù³Ý | G22: ________________________________
A23: 4. ** ÐÐ å»ï³Ï³Ý Ï³é³í³ñÙ³Ý (ï»Õ³Ï³Ý ÇÝùÝ³Ï³é³í³ñÙ³Ý) Ù³ñÙÝÇ | G23: 10. Ìñ³·ñÇ Ïá¹Á
A24: ³Ýí³ÝáõÙÁ Լոռու մարզպետարան | G24: 11.*** ÐÐ å»ï³Ï³Ý Ï³é³í³ñÙ³Ý (îÆ)
A25: 5. ÐÇÙÝ³ñÏÁ ëå³ë³ñÏáÕ ï»Õ³Ï³Ý ·³ÝÓ³å»ï³Ï³Ý µ³ÅÝÇ (î¶´) ³Ýí³ÝáõÙÁ Տաշիրի | G25: Ù³ñÙÝÇ Ïá¹Ý Áëï µÛáõç»ï³ÛÇÝ Í³Ëë»ñÇ ·»ñ³ï»ëã³Ï.
A26: 6. ÐÇÙÝ³ñÏÇª ï»Õ³Ï³Ý ·³ÝÓ³å»ï³Ï³Ý µ³ÅÝáõÙ (î¶´) Ñ³ßí³éÙ³Ý Ñ³Ù³ñÁ | G26: ¹³ë³Ï³ñ·Ù³Ý
A27: 7. üÇÝ³Ýë³íáñÙ³Ý ³ÕµÛáõñÇ Ïá¹Á (ÐÐ å»ï³Ï³Ý µÛáõç»ª 1, Ñ³Ù³ÛÝùÇ µÛáõç»ª 2) | E27: 2 | G27: 12. â³÷Ç ÙÇ³íáñÁª Ñ³½³ñ ¹ñ³Ù
A29: îáÕÇ NN | B29: ´Ûáõç»ï³ÛÇÝ Í³Ëë»ñÇ ïÝï»ë³·Çï³Ï³Ý ¹³ë³Ï³ñ·Ù³Ý ï³ññ»ñ | D29: ÜáõÛÝ Å³Ù³Ý³Ï³Ñ³ïí³ÍÇ Ñ³Ù³ñ Ý³ËÏÇÝáõÙ Ñ³ëï³ïí³Íª ·áñÍáÕ | F29: êáõÛÝ Ý³Ë³Ñ³ßíáí Ñ³ëï³ïíáÕ óáõó³ÝÇßÝ»ñÁ | G29: ³Û¹ ÃíáõÙª Áëï »é³ÙëÛ³ÏÝ»ñÇ (»é³ÙëÛ³ÏÇ ³ÙÇëÝ»ñÇ)³×áÕ³Ï³Ý
B30: ³Ýí³ÝáõÙÝ»ñÁ | C30: NN | D30: Ý³Ë³Ñ³ßíÇ óáõó³ÝÇßÝ»ñÁ | E30: Ý³Ë³Ñ³ßíáõÙ Ï³ï³ñí³Í ÷á÷áËáõÃÛáõÝ-Ý»ñÁ (³í»É³óáõÙÁª /+/, å³Ï³ë»óáõÙÁª/-/ | G30: I | H30: II | I30: III | J30: IV
A31: ² | B31: ´ | C31: ¶ | D31: 1 | E31: 2 | F31: 3 | G31: 4 | H31: 5 | I31: 6 | J31: 7
A32: 1100000 | B32: ². ÀÜÂ²òÆÎ Ì²Êêºðª ÀÜ¸²ØºÜÀ, | C32: x | D32: =D33+D42+D138 -> 0 | F32: =F33+F42+F138 -> 0 | G32: =G33+G42+G131 -> 0 | H32: =H33+H42+H131 -> 0 | I32: =I33+I42+I131 -> 0 | J32: =J33+J42+J131 -> 0
A33: 1110000 | B33: 1.äºî²Î²Ü, îºÔ²Î²Ü ÆÜøÜ²Î²è²ì²ðØ²Ü Ø²ðØÆÜÜºðÆ, ¸ð²Üò ºÜÂ²Î² ´Úàôæºî²ÚÆÜ ÐÆØÜ²ðÎÜºðÆ ²ÞÊ²îàÔÜºðÆ ²ÞÊ²î²ì²ðÒÀª ÀÜ¸²ØºÜÀ, ³Û¹ ÃíáõÙª | C33: x | D33: =D34 -> 0 | F33: =F34 -> 0 | G33: =G34 -> 0 | H33: =H34 -> 0 | I33: =I34 -> 0 | J33: =J34 -> 0
A34: 1110000 | B34: 1,1 ²ßË³ï³ÝùÇ í³ñÓ³ïñáõÃÛáõÝ | C34: x | D34: =SUM(D35:D41) -> 0 | F34: =SUM(F35:F41) -> 0 | G34: =SUM(G35:G41) -> 0 | H34: =SUM(H35:H41) -> 0 | I34: =SUM(I35:I41) -> 0 | J34: =SUM(J35:J41) -> 0
A35: 1111000 | B35: -²ßË³ïáÕÝ»ñÇ ³ßË³ï³í³ñÓ»ñ ¨ Ñ³í»É³í×³ñÝ»ñ | C35: 411100 | D35: 0 | E35: 0 | F35: =D35+E35 -> 0 | G35: 0 | H35: 0 | I35: 0 | J35: =F35 -> 0
A36: 1112000 | B36: - ä³ñ·¨³ïñáõÙÝ»ñ, ¹ñ³Ù³Ï³Ý Ëñ³ËáõëáõÙÝ»ñ ¨ Ñ³ïáõÏ í×³ñÝ»ñ | C36: 411200 | D36: 0 | F36: 0 | G36: 0 | H36: 0 | I36: 0 | J36: =F36 -> 0
A37: 1113000 | B37: -ø³Õ³ù³óÇ³Ï³Ý, ¹³ï³Ï³Ý ¨ å»ï³Ï³Ý Í³é³ÛáÕÝ»ñÇ å³ñ·¨³ïñáõÙ | C37: 411300 | J37: 0
A38: 1114000 | B38: -ÐÐ ýÇÝ³ÝëÝ»ñÇ ¨ ¿ÏáÝáÙÇÏ³ÛÇ Ý³Ë³ñ³ñáõÃÛ³Ý, Ñ³ñÏ³ÛÇÝ ¨ Ù³ùë³ÛÇÝ Ù³ñÙÇÝÝ»ñÇ ³ßË³ïáÕÝ»ñÇ å³ñ·¨³ïñáõÙ | C38: 411400 | J38: 0
A39: 1115000 | B39: -²ÛÉ í³ñÓ³ïñáõÃÛáõÝÝ»ñ | C39: 411500 | J39: 0
A40: 1116000 | B40: -´Ý»Õ»Ý ³ßË³ï³í³ñÓ»ñ ¨ Ñ³í»É³í×³ñÝ»ñ | C40: 412100 | J40: 0
A41: 1117000 | B41: - êáóÇ³É³Ï³Ý ³å³ÑáíáõÃÛ³Ý í×³ñÝ»ñ | C41: 413100 | D41: 0 | E41: 0 | F41: =D41+E41 -> 0 | G41: 0 | H41: 0 | I41: 0 | J41: =F41 -> 0
A42: 1120000 | B42: 2 Ì³é³ÛáõÃÛáõÝÝ»ñÇ ¨ ³åñ³ÝùÝ»ñÇ Ó»éù µ»ñáõÙ | C42: x | D42: =D43+D55+D66+D69+D51+D64 -> 0 | F42: =F43+F55+F66+F69+F51+F64 -> 0 | G42: =G43+G51+G55+G64+G66+G69 -> 0 | H42: =H43+H51+H55+H64+H66+H69 -> 0 | I42: =I43+I51+I55+I64+I66+I69 -> 0 | J42: =F42 -> 0
A43: 1121000 | B43: 2.1 Þ³ñáõÝ³Ï³Ï³Ý Í³Ëë»ñ | D43: =SUM(D44:D49) -> 0 | F43: =SUM(F44:F49) -> 0 | G43: =SUM(G44:G49) -> 0 | H43: =SUM(H44:H49) -> 0 | I43: =SUM(I44:I49) -> 0 | J43: =SUM(J44:J49) -> 0
A44: 1121100 | B44: -·áñÍ³éÝ³Ï³Ý ¨ µ³ÝÏ³ÛÇÝ Í³é³ÛáõÃÛáõÝÝ»ñÇ Í³Ëë»ñ | C44: 421100 | J44: 0
A45: 1121200 | B45: -¿Ý»ñ·»ïÇÏ Í³é³ÛáõÃÛáõÝÝ»ñ | C45: 421200 | D45: 0 | F45: 0 | G45: 0 | H45: 0 | I45: 0 | J45: =F45 -> 0
A46: 1121300 | B46: -ÎáÙáõÝ³É Í³é³ÛáõÃÛáõÝÝ»ñ | C46: 421300 | D46: 0 | F46: 0 | G46: 0 | H46: 0 | I46: 0 | J46: =F46 -> 0
A47: 1121400 | B47: -Î³åÇ Í³é³ÛáõÃÛáõÝÝ»ñ | C47: 421400 | D47: 0 | F47: 0 | G47: 0 | H47: 0 | I47: 0 | J47: =F47 -> 0
A48: 1121500 | B48: -²å³Ñáí³·ñ³Ï³Ý Í³Ëë»ñ | C48: 421500 | J48: 0
A49: 1121600 | B49: -¶áõÛùÇ ¨ ë³ñù³íáñáõÙÝ»ñÇ í³ñÓ³Ï³ÉáõÃÛáõÝ | C49: 421600 | J49: 0
A50: 1121700 | B50: -²ñï³·»ñ³ï»ëã³Ï³Ý Í³Ëë»ñ | C50: 421700 | J50: 0
A51: 1122000 | B51: 2.2 ¶áñÍáõÕáõÙÝ»ñÇ ¨ ßñç³·³ÛáõÃÛ³Ý Í³Ëë»ñ | C51: x | D51: =D52 -> 0 | F51: =F52 -> 0 | G51: =G52 -> 0 | H51: =H52 -> 0 | I51: =I52 -> 0 | J51: =J52 -> 0
A52: 1122100 | B52: -Ü»ñùÇÝ ·áñÍáõÕáõÙÝ»ñ | C52: 422100 | D52: 0 | F52: 0 | G52: 0 | H52: 0 | I52: 0 | J52: =F52 -> 0
A53: 1122200 | B53: -²ñï³ë³ÑÙ³ÝÛ³Ý ·áñÍáõÕáõÙÝ»ñÇ ·Íáí Í³Ëë»ñ | C53: 422200 | J53: 0
A54: 1122300 | B54: -²ÛÉ ïñ³Ýëåáñï³ÛÇÝ Í³Ëë»ñ | C54: 422900 | J54: 0
A55: 1123000 | B55: 2.3 ä³ÛÙ³Ý³·ñ³ÛÇÝ ³ÛÉ Í³é³ÛáõÃÛáõÝÝ»ñÇ Ó»éù µ»ñáõÙ | C55: x | D55: =SUM(D56:D63) -> 0 | F55: =SUM(F56:F63) -> 0 | G55: =SUM(G56:G63) -> 0 | H55: =SUM(H56:H63) -> 0 | I55: =SUM(I56:I63) -> 0 | J55: =F55 -> 0
A56: 1123100 | B56: -ì³ñã³Ï³Ý Í³é³ÛáõÃÛáõÝÝ»ñ | C56: 423100 | J56: =F56 -> 0
A57: 1123200 | B57: -Ð³Ù³Ï³ñ·ã³ÛÇÝ Í³é³ÛáõÃÛáõÝÝ»ñ | C57: 423200 | D57: 0 | F57: 0 | G57: 0 | H57: 0 | I57: 0 | J57: =F57 -> 0
A58: 1123300 | B58: -²ßË³ï³Ï³½ÙÇ Ù³ëÝ³·Çï³Ï³Ý ½³ñ·³óÙ³Ý Í³é³ÛáõÃÛáõÝÝ»ñ | C58: 423300
A59: 1123400 | B59: -î»Õ³Ï³ïí³Ï³Ý Í³é³ÛáõÃÛáõÝÝ»ñ | C59: 423400 | D59: 0 | F59: 0 | G59: 0 | H59: 0 | I59: 0 | J59: =F59 -> 0
A60: 1123500 | B60: -Î³é³í³ñã³Ï³Ý Í³é³ÛáõÃÛáõÝÝ»ñ | C60: 423500 | J60: 0
A61: 1123600 | B61: - Î»Ýó³Õ³ÛÇÝ ¨ Ñ³Ýñ³ÛÇÝ ëÝÝ¹Ç Í³é³ÛáõÃÛáõÝÝ»ñ | C61: 423600 | J61: 0
A62: 1123700 | B62: -Ü»ñÏ³Û³óáõóã³Ï³Ý Í³Ëë»ñ | C62: 423700 | D62: 0 | F62: 0 | G62: 0 | H62: 0 | I62: 0 | J62: 0
A63: 1123800 | B63: -ÀÝ¹Ñ³Ýáõñ µÝáõÛÃÇ ³ÛÉ Í³é³ÛáõÃÛáõÝÝ»ñ | C63: 423900 | D63: 0 | F63: 0 | G63: 0 | H63: 0 | I63: 0 | J63: 0
A64: 1124000 | B64: 2.4 ²ÛÉ Ù³ëÝ³·Çï³Ï³Ý Í³é³ÛáõÃÛáõÝÝ»ñÇ Ó»éù µ»ñáõÙ | C64: x | D64: =D65 -> 0 | F64: =F65 -> 0 | G64: =G65 -> 0 | H64: =H65 -> 0 | I64: =I65 -> 0 | J64: 0
A65: 1124100 | B65: -Ø³ëÝ³·Çï³Ï³Ý Í³é³ÛáõÃÛáõÝÝ»ñ | C65: 424100 | D65: 0 | F65: 0 | G65: 0 | H65: 0 | I65: 0 | J65: 0
A66: 1125000 | B66: 2.5 ÀÝÃ³óÇÏ Ýáñá·áõÙ ¨ å³Ñå³ÝáõÙ (Í³é³ÛáõÃÛáõÝÝ»ñ ¨ ÝÛáõÃ»ñ) | C66: x | D66: =D67+D68 -> 0 | F66: =F67+F68 -> 0 | G66: =G67+G68 -> 0 | H66: =H67+H68 -> 0 | I66: =I67+I68 -> 0 | J66: =J67+J68 -> 0
A67: 1125100 | B67: -Þ»Ýù»ñÇ ¨ Ï³éáõÛóÝ»ñÇ ÁÝÃ³óÇÏ Ýáñá·áõÙ ¨ å³Ñå³ÝáõÙ | C67: 425100 | J67: =F67 -> 0
A68: 1125200 | B68: -Ø»ù»Ý³Ý»ñÇ ¨ ë³ñù³íáñáõÙÝ»ñÇ ÁÝÃ³óÇÏ Ýáñá·áõÙ ¨ å³Ñå³ÝáõÙ | C68: 425200 | D68: 0 | F68: 0 | G68: 0 | H68: 0 | I68: 0 | J68: 0
A69: 1126000 | B69: 2.6 ÜÛáõÃ»ñ | C69: x | D69: =SUM(D70:D77) -> 0 | F69: =SUM(F70:F77) -> 0 | G69: =SUM(G70:G77) -> 0 | H69: =SUM(H70:H77) -> 0 | I69: =SUM(I70:I77) -> 0 | J69: 0
A70: 1126100 | B70: -¶ñ³ë»ÝÛ³Ï³ÛÇÝ ÝÛáõÃ»ñ ¨ Ñ³·áõëï | C70: 426100 | D70: 0 | F70: 0 | G70: 0 | H70: 0 | I70: 0 | J70: 0
A71: 1126200 | B71: -¶ÛáõÕ³ïÝï»ë³Ï³Ý ³åñ³ÝùÝ»ñ | C71: 426200 | J71: 0
A72: 1126300 | B72: -ì»ñ³å³ïñ³ëïÙ³Ý ¨ áõëáõóÙ³Ý ÝÛáõÃ»ñ | C72: 426300 | J72: 0
A73: 1126400 | B73: -îñ³Ýëåáñï³ÛÇÝ ÝÛáõÃ»ñ | C73: 426400 | D73: 0 | F73: 0 | G73: 0 | H73: 0 | I73: 0 | J73: 0
A74: 1126500 | B74: -Þñç³Ï³ ÙÇç³í³ÛñÇ å³ßïå³ÝáõÃÛ³Ý ¨ ·Çï³Ï³Ý ÝÛáõÃ»ñ | C74: 426500 | J74: 0
A75: 1126600 | B75: -²éáÕç³å³Ñ³Ï³Ý ¨ É³µáñ³ïáñ ÝÛáõÃ»ñ | C75: 426600 | J75: =F75 -> 0
A76: 1126700 | B76: -Î»Ýó³Õ³ÛÇÝ ¨ Ñ³Ýñ³ÛÇÝ ëÝÝ¹Ç ÝÛáõÃ»ñ | C76: 426700 | D76: 0 | F76: 0 | G76: 0 | H76: 0 | I76: 0 | J76: =F76 -> 0
A77: 1126800 | B77: -Ð³ïáõÏ Ýå³ï³Ï³ÛÇÝ ³ÛÉ ÝÛáõÃ»ñ | C77: 426900 | D77: 0 | F77: 0 | G77: 0 | H77: 0 | I77: 0 | J77: =F77 -> 0
A78: 1130000 | B78: 3 îáÏáë³í×³ñÝ»ñ | C78: x | D78: 0 | F78: 0 | G78: 0 | H78: 0 | I78: 0 | J78: 0
A79: 1130100 | B79: -Ü»ñùÇÝ ³ñÅ»ÃÕÃ»ñÇ ïáÏáë³í×³ñÝ»ñ | C79: 441100 | J79: 0
A80: 1130200 | B80: -Ü»ñùÇÝ í³ñÏ»ñÇ ïáÏáë³í×³ñÝ»ñ | C80: 441200 | J80: 0
A81: 1130300 | B81: -²ñï³ùÇÝ ³ñÅ»ÃÕÃ»ñÇ ·Íáí ïáÏáë³í×³ñÝ»ñ | C81: 442100 | J81: 0
A82: 1130400 | B82: -²ñï³ùÇÝ í³ñÏ»ñÇ ·Íáí ïáÏáë³í×³ñÝ»ñ | C82: 442200 | J82: 0
A83: 1131000 | B83: öáË³éáõÃÛáõÝÝ»ñÇ Ñ»ï Ï³åí³Í í×³ñÝ»ñ | C83: x | J83: 0
A84: 1131100 | B84: -öáË³Ý³ÏÙ³Ý Ïáõñë»ñÇ µ³ó³ë³Ï³Ý ï³ñµ»ñáõÃÛáõÝ | C84: 443100 | J84: 0
A85: 1131200 | B85: -îáõÛÅ»ñ | C85: 443200 | J85: 0
A86: 1131300 | B86: -öáË³éáõÃÛáõÝÝ»ñÇ ·Íáí ïáõñù»ñ | C86: 443300 | J86: 0
A87: 1140000 | B87: 4. êáõµëÇ¹Ç³Ý»ñ | C87: x | D87: 0 | F87: 0 | G87: 0 | H87: 0 | I87: 0 | J87: 0
A88: 1141000 | B88: -êáõµëÇ¹Ç³Ý»ñ áã-ýÇÝ³Ýë³Ï³Ý å»ï³Ï³Ý Ï³½Ù³Ï»ñåáõÃÛáõÝÝ»ñÇÝ | C88: 451100 | J88: 0
A89: 1142000 | B89: -êáõµëÇ¹Ç³Ý»ñ ýÇÝ³Ýë³Ï³Ý å»ï³Ï³Ý Ï³½Ù³Ï»ñåáõÃÛáõÝÝ»ñÇÝ | C89: 451200 | J89: 0
A90: 1143000 | B90: -êáõµëÇ¹Ç³Ý»ñ áã å»ï³Ï³Ý áã ýÇÝ³Ýë³Ï³Ý Ï³½Ù³Ï»ñåáõÃÛáõÝÝ»ñÇÝ | C90: 452100 | J90: 0
A91: 1144000 | B91: -êáõµëÇ¹Ç³Ý»ñ áã å»ï³Ï³Ý ýÇÝ³Ýë³Ï³Ý Ï³½Ù³Ï»ñåáõÃÛáõÝÝ»ñÇÝ | C91: 452200 | J91: 0
A92: 1150000 | B92: 5.¸ñ³Ù³ßÝáñÑÝ»ñ | C92: x | D92: 0 | F92: 0 | G92: 0 | H92: 0 | I92: 0 | J92: 0
A93: 1151000 | B93: ¸ñ³Ù³ßÝáñÑÝ»ñ ûï³ñ»ñÏñÛ³ Ï³é³í³ñáõÃÛáõÝÝ»ñÇÝ | C93: x | D93: 0 | F93: 0 | G93: 0 | H93: 0 | I93: 0 | J93: 0
A94: 1151100 | B94: ÀÝÃ³óÇÏ ¹ñ³Ù³ßÝáñÑÝ»ñ ûï³ñ»ñÏñÛ³ Ï³é³í³ñáõÃÛáõÝÝ»ñÇÝ | C94: 461100 | J94: 0
A95: 1151200 | B95: Î³åÇï³É ¹ñ³Ù³ßÝáñÑÝ»ñ ûï³ñ»ñÏñÛ³ Ï³é³í³ñáõÃÛáõÝÝ»ñÇÝ | C95: 461200 | J95: 0
A96: 1152000 | B96: ¸ñ³Ù³ßÝáñÑÝ»ñ ÙÇç³½·³ÛÇÝ Ï³½Ù³Ï»ñåáõÃÛáõÝÝ»ñÇÝ | C96: x | D96: 0 | F96: 0 | G96: 0 | H96: 0 | I96: 0 | J96: 0
A97: 1152100 | B97: ÀÝÃ³óÇÏ ¹ñ³Ù³ßÝáñÑÝ»ñ ÙÇç³½·³ÛÇÝ Ï³½Ù³Ï»ñåáõÃÛáõÝÝ»ñÇÝ | C97: 462100 | J97: 0
A98: 1152200 | B98: Î³åÇï³É ¹ñ³Ù³ßÝáñÑ»ñ ÙÇç³½·³ÛÇÝ Ï³½Ù³Ï»ñåáõÃÛáõÝÝ»ñÇÝ | C98: 462200 | J98: 0
A99: 1153000 | B99: ÀÝÃ³óÇÏ ¹ñ³Ù³ßÝáñÑÝ»ñ å»ï³Ï³Ý Ñ³ïí³ÍÇ ³ÛÉ Ù³Ï³ñ¹³ÏÝ»ñÇÝ | C99: x | D99: 0 | F99: 0 | G99: 0 | H99: 0 | I99: 0 | J99: 0
A100: 1153100 | B100: ÀÝÃ³óÇÏ ¹ñ³Ù³ßÝáñÑÝ»ñ å»ï³Ï³Ý Ï³é³í³ñÙ³Ý Ñ³ïí³ÍÇÝ | C100: 463100 | J100: 0
A101: 1153200 | B101: ÀÝÃ³óÇÏ ëáõµí»ÝóÇ³Ý»ñ Ñ³Ù³ÛÝùÝ»ñÇÝ | C101: 463200 | J101: 0
A102: 1153300 | B102: ä»ï³Ï³Ý µÛáõç»Çó Ñ³Ù³ÛÝùÝ»ñÇ µÛáõç»Ý»ñÇÝ ýÇÝ³Ýë³Ï³Ý Ñ³Ù³Ñ³ñÃ»óÙ³Ý ëÏ½µáõÝùáí ïñíáÕ ¹áï³óÇ³Ý»ñ | C102: 463300 | J102: 0
A103: 1153400 | B103: úñ»ÝùÝ»ñÇ ÏÇñ³ñÏÙ³Ý ³ñ¹ÛáõÝùáõÙ Ñ³Ù³ÛÝùÝ»ñÇ µÛáõç»Ý»ñÇ ÏáñáõëïÝ»ñÇ ÷áËÑ³ïáõóáõÙ | C103: 463400 | J103: 0
A104: 1153500 | B104: ²ÛÉ ÁÝÃ³óÇÏ ¹ñ³Ù³ßÝáñÑÝ»ñ Ñ³Ù³ÛÝùÝ»ñÇÝ | C104: 463500 | J104: 0
A105: 1153700 | B105: ÀÝÃ³óÇÏ ¹ñ³Ù³ßÝáñÑÝ»ñ å»ï³Ï³Ý ¨ Ñ³Ù³ÛÝùÝ»ñÇ áã ³é¨ïñ³ÛÇÝ Ï³½Ù³Ï»ñåáõÃÛáõÝÝ»ñÇÝ | C105: 463700 | J105: 0
A106: 1153800 | B106: ÀÝÃ³óÇÏ ¹ñ³Ù³ßÝáñÑÝ»ñ å»ï³Ï³Ý ¨ Ñ³Ù³ÛÝùÝ»ñÇ ³é¨ïñ³ÛÇÝ Ï³½Ù³Ï»ñåáõÃÛáõÝÝ»ñÇÝ | C106: 463800 | J106: 0
A107: 1153900 | B107: ²ÛÉ ÁÝÃ³óÇÏ ¹ñ³Ù³ßÝáñÑÝ»ñ | C107: 463900 | J107: 0
A108: 1154000 | B108: Î³åÇï³É ¹ñ³Ù³ßÝáñÑÝ»ñ å»ï³Ï³Ý Ñ³ïí³ÍÇ ³ÛÉ Ù³Ï³ñ¹³ÏÝ»ñÇÝ | C108: x | D108: 0 | F108: 0 | G108: 0 | H108: 0 | I108: 0 | J108: 0
A109: 1154100 | B109: Î³åÇï³É ¹ñ³Ù³ßÝáñÑÝ»ñ å»ï³Ï³Ý Ï³é³í³ñÙ³Ý Ñ³ïí³ÍÇÝ | C109: 465100 | J109: 0
A110: 1154200 | B110: Î³åÇï³É ëáõµí»ÝóÇ³Ý»ñ Ñ³Ù³ÛÝùÝ»ñÇÝ | C110: 465200 | J110: 0
A111: 1154300 | B111: ²ÛÉ Ï³åÇï³É ¹ñ³Ù³ßÝáñÑÝ»ñ Ñ³Ù³ÛÝùÝ»ñÇÝ | C111: 465300 | J111: 0
A112: 1154500 | B112: Î³åÇï³É ¹ñ³Ù³ßÝáñÑÝ»ñ å»ï³Ï³Ý ¨ Ñ³Ù³ÛÝùÝ»ñÇ áã ³é¨ïñ³ÛÇÝ Ï³½Ù³Ï»ñåáõÃÛáõÝÝ»ñÇÝ | C112: 465500 | J112: 0
A113: 1154600 | B113: Î³åÇï³É ¹ñ³Ù³ßÝáñÑÝ»ñ å»ï³Ï³Ý ¨ Ñ³Ù³ÛÝù³ÛÇÝ ³é¨ïñ³ÛÇÝ Ï³½Ù³Ï»ñåáõÃÛáõÝÝ»ñÇÝ | C113: 465600 | J113: 0
A114: 1154700 | B114: ²ÛÉ Ï³åÇï³É ¹ñ³Ù³ßÝáñÑÝ»ñ | C114: 465700 | J114: 0
A115: 1160000 | B115: 6. êàòÆ²È²Î²Ü Üä²êîÜºð ºì ÎºÜê²ÂàÞ²ÎÜºð | C115: x | D115: 0 | F115: 0 | G115: 0 | H115: 0 | I115: 0 | J115: 0
A116: 1161000 | B116: 6.1 êàòÆ²È²Î²Ü ²ä²ÐàìàôÂÚ²Ü Üä²êîÜºð | C116: x | D116: 0 | F116: 0 | G116: 0 | H116: 0 | I116: 0 | J116: 0
A117: 1161100 | B117: -îÝ³ÛÇÝ ïÝï»ëáõÃÛáõÝÝ»ñÇÝ ¹ñ³Ùáí í×³ñíáÕ ëáóÇ³É³Ï³Ý ³å³ÑáíáõÃÛ³Ý í×³ñÝ»ñ | C117: 471100 | J117: 0
A118: 1161200 | B118: -êáóÇ³É³Ï³Ý ³å³ÑáíáõÃÛ³Ý µÝ»Õ»Ý Ýå³ëïÝ»ñ Í³é³ÛáõÃÛáõÝÝ»ñ Ù³ïáõóáÕÝ»ñÇÝ | C118: 471200 | J118: 0
A119: 1162000 | B119: 6.2 êàòÆ²È²Î²Ü ú¶ÜàôÂÚ²Ü ¸ð²Ø²Î²Ü ²ðî²Ð²ÚîàôÂÚ²Ø´ Üä²êîÜºð (´ÚàôæºÆò) | C119: x | D119: 0 | F119: 0 | G119: 0 | H119: 0 | I119: 0 | J119: 0
A120: 1162100 | B120: -ÐÇí³Ý¹áõÃÛ³Ý ¨ Ñ³ßÙ³Ý¹³ÙáõÃÛ³Ý Ýå³ëïÝ»ñ µÛáõç»Çó | C120: 472100 | J120: 0
A121: 1162200 | B121: -Ø³ÛñáõÃÛ³Ý Ýå³ëïÝ»ñ µÛáõç»Çó | C121: 472200 | J121: 0
A122: 1162300 | B122: -ºñ»Ë³Ý»ñÇ Ï³Ù ÁÝï³Ý»Ï³Ý Ýå³ëïÝ»ñ µÛáõç»Çó | C122: 472300 | J122: 0
A123: 1162400 | B123: -¶áñÍ³½ñÏáõÃÛ³Ý Ýå³ëïÝ»ñ µÛáõç»Çó | C123: 472400 | J123: 0
A124: 1162500 | B124: -Î»Ýë³Ãáß³ÏÇ ³ÝóÝ»Éáõ Ñ»ï Ï³åí³Í ¨ ï³ñÇù³ÛÇÝ Ýå³ëïÝ»ñ µÛáõç»Çó | C124: 472500 | J124: 0
A125: 1162600 | B125: -ÐáõÕ³ñÏ³íáñáõÃÛ³Ý Ýå³ëïÝ»ñ µÛáõç»Çó | C125: 472600 | J125: 0
A126: 1162700 | B126: -ÎñÃ³Ï³Ý, Ùß³ÏáõÃ³ÛÇÝ ¨ ëåáñï³ÛÇÝ Ýå³ëïÝ»ñ µÛáõç»Çó | C126: 472700 | J126: 0
A127: 1162800 | B127: -´Ý³Ï³ñ³Ý³ÛÇÝ Ýå³ëïÝ»ñ µÛáõç»Çó | C127: 472800 | J127: 0
A128: 1162900 | B128: -²ÛÉ Ýå³ëïÝ»ñ µÛáõç»Çó | C128: 472900 | J128: 0
A129: 1163000 | B129: 6.3 ÎºÜê²ÂàÞ²ÎÜºð | C129: x | D129: 0 | F129: 0 | G129: 0 | H129: 0 | I129: 0 | J129: 0
A130: 1163100 | B130: -Ï»Ýë³Ãáß³ÏÝ»ñ | C130: 474100 | J130: 0
A131: 1170000 | B131: 7. ²ÚÈ Ì²Êêºð | C131: x | D131: =D135 -> 0 | F131: =F135 -> 0 | G131: =G135 -> 0 | H131: =H135 -> 0 | I131: =I135 -> 0 | J131: =J135 -> 0
A132: 1171000 | B132: 7.1 ÜìÆð²îìàôÂÚàôÜÜºð àâ-Î²è²ì²ðâ²Î²Ü (Ð²ê²ð²Î²Î²Ü) Î²¼Ø²ÎºðäàôÂÚàôÜÜºðÆÜ | C132: x | D132: 0 | F132: 0 | G132: 0 | H132: 0 | I132: 0 | J132: 0
A133: 1171100 | B133: -îÝ³ÛÇÝ ïÝï»ëáõÃÛáõÝÝ»ñÇÝ Í³é³ÛáõÃÛáõÝÝ»ñ Ù³ïáõóáÕ` ß³ÑáõÛÃ ãÑ»ï³åÝ¹áÕ Ï³½Ù³Ï»ñåáõÃÛáõÝÝ»ñÇÝ ÝíÇñ³ïíáõÃÛáõÝÝ»ñ | C133: 481100 | J133: 0
A134: 1171200 | B134: -ÜíÇñ³ïíáõÃÛáõÝÝ»ñ ³ÛÉ ß³ÑáõÛÃ ãÑ»ï³åÝ¹áÕ Ï³½Ù³Ï»ñåáõÃÛáõÝÝ»ñÇÝ | C134: 481900 | J134: 0
A135: 1172000 | B135: 7.2 Ð²ðÎºð, ä²ðî²¸Æð ìÖ²ðÜºð ºì îàôÚÄºð, àðàÜø Î²è²ì²ðØ²Ü î²ð´ºð Ø²Î²ð¸²ÎÜºðÆ ÎàÔØÆò ÎÆð²èìàôØ ºÜ ØÆØÚ²Üò ÜÎ²îØ²Ø´ | C135: x | D135: =D137+D138 -> 0 | F135: =F137+F138 -> 0 | G135: =G137+G138 -> 0 | H135: =H137+H138 -> 0 | I135: =I137+I138 -> 0 | J135: =F135 -> 0
A136: 1172100 | B136: -²ßË³ï³í³ñÓÇ ýáÝ¹ | C136: 482100 | J136: 0
A137: 1172200 | B137: -²ÛÉ Ñ³ñÏ»ñ | C137: 482200 | D137: 0 | F137: 0 | G137: 0 | H137: 0 | I137: 0 | J137: =F137 -> 0
A138: 1172300 | B138: -ä³ñï³¹Çñ í×³ñÝ»ñ | C138: 482300 | D138: 0 | F138: 0 | G138: 0 | H138: 0 | I138: 0 | J138: =F138 -> 0
A139: 1172400 | B139: -ä»ï³Ï³Ý Ñ³ïí³ÍÇ ï³ñµ»ñ Ù³Ï³ñ¹³ÏÝ»ñÇ ÏáÕÙÇó ÙÇÙÛ³Ýó ÝÏ³ïÙ³Ùµ ÏÇñ³éíáÕ ïáõÛÅ»ñ | C139: 482400 | J139: 0
A140: 1173000 | B140: 7.3 ¸²î²ð²ÜÜºðÆ ÎàÔØÆò ÜÞ²Ü²Îì²Ì îàôÚÄºð ºì îàô¶²ÜøÜºð | C140: x | D140: 0 | F140: 0 | G140: 0 | H140: 0 | I140: 0 | J140: 0
A141: 1173100 | B141: -¸³ï³ñ³ÝÝ»ñÇ ÏáÕÙÇó Ýß³Ý³Ïí³Í ïáõÛÅ»ñ ¨ ïáõ·³ÝùÝ»ñ | C141: 483100 | J141: 0
A142: 1174000 | B142: 7.4 ´Ü²Î²Ü ²ÔºîÜºðÆò Î²Ø ²ÚÈ ´Ü²Î²Ü ä²îÖ²èÜºðàì ²è²æ²ò²Ì ìÜ²êÜºðÆ Î²Ø ìÜ²êì²ÌøÜºðÆ ìºð²Î²Ü¶ÜàôØ | C142: x | D142: 0 | F142: 0 | G142: 0 | H142: 0 | I142: 0 | J142: 0
A143: 1174100 | B143: -´Ý³Ï³Ý ³Õ»ïÝ»ñÇó ³é³ç³ó³Í íÝ³ëí³ÍùÝ»ñÇ Ï³Ù íÝ³ëÝ»ñÇ í»ñ³Ï³Ý·ÝáõÙ | C143: 484100 | J143: 0
A144: 1174200 | B144: -²ÛÉ µÝ³Ï³Ý å³ï×³éÝ»ñáí ëï³ó³Í íÝ³ëí³ÍùÝ»ñÇ í»ñ³Ï³Ý·ÝáõÙ | C144: 484200 | J144: 0
A145: 1175000 | B145: 7.5 Î²è²ì²ðØ²Ü Ø²ðØÆÜÜºðÆ ¶àðÌàôÜºàôÂÚ²Ü Ðºîºì²Üøàì ²è²æ²ò²Ì ìÜ²êÜºðÆ Î²Ø ìÜ²êì²ÌøÜºðÆ ìºð²Î²Ü¶ÜàôØ | C145: x | D145: 0 | F145: 0 | G145: 0 | H145: 0 | I145: 0 | J145: 0
A146: 1175100 | B146: -Î³é³í³ñÙ³Ý Ù³ñÙÇÝÝ»ñÇ ·áñÍáõÝ»áõÃÛ³Ý Ñ»ï¨³Ýùáí ³é³ç³ó³Í íÝ³ëí³ÍùÝ»ñÇ Ï³Ù íÝ³ëÝ»ñÇ í»ñ³Ï³Ý·ÝáõÙ | C146: 485100 | J146: 0
A147: 1176000 | B147: 7.6 ²ÚÈ Ì²Êêºð | C147: x | D147: 0 | F147: 0 | G147: 0 | H147: 0 | I147: 0 | J147: 0
A148: 1176100 | B148: -²ÛÉ Í³Ëë»ñ | C148: 486100 | J148: 0
A149: 1177000 | B149: 7.7 ä²Ðàôêî²ÚÆÜ ØÆæàòÜºð | C149: x | D149: 0 | F149: 0 | G149: 0 | H149: 0 | I149: 0 | J149: 0
A150: 1177100 | B150: -ä³Ñáõëï³ÛÇÝ ÙÇçáóÝ»ñ | C150: 489100 | J150: 0
A151: 1200000 | B151: Բ, àâ-üÆÜ²Üê²Î²Ü ²ÎîÆìÜºðÆ ¶Ìàì Ì²Êêºð | C151: x | G151: =G152 -> 0 | H151: =H152 -> 0 | I151: =I152 -> 0 | J151: =F152 -> 0
A152: 1210000 | B152: 1.ÐÆØÜ²Î²Ü ØÆæàòÜºð | C152: x | D152: =SUM(D153:D162) -> 0 | F152: =SUM(F153:F162) -> 0 | G152: =SUM(G153:G162) -> 0 | H152: =SUM(H153:H162) -> 0 | I152: =SUM(I153:I162) -> 0 | J152: =F152 -> 0
A153: 1211000 | B153: -Þ»Ýù»ñÇ ¨ ßÇÝáõÃÛáõÝÝ»ñÇ Ó»éù µ»ñáõÙ | C153: 511100 | J153: =F153 -> 0
A154: 1212000 | B154: -Þ»Ýù»ñÇ ¨ ßÇÝáõÃÛáõÝÝ»ñÇ Ï³éáõóáõÙ | C154: 511200 | J154: =F154 -> 0
A155: 1213000 | B155: -Þ»Ýù»ñÇ ¨ ßÇÝáõÃÛáõÝÝ»ñÇ Ï³åÇï³É í»ñ³Ýáñá·áõÙ | C155: 511300 | D155: 0 | F155: 0 | G155: 0 | H155: 0 | I155: 0 | J155: =F155 -> 0
A156: 1214000 | B156: -îñ³Ýëåáñï³ÛÇÝ ë³ñù³íáñáõÙÝ»ñ | C156: 512100 | J156: 0
A157: 1215000 | B157: -ì³ñã³Ï³Ý ë³ñù³íáñáõÙÝ»ñ | C157: 512200 | D157: 0 | F157: 0 | I157: 0 | J157: =F157 -> 0
A158: 1216000 | B158: -²ÛÉ Ù»ù»Ý³Ý»ñ ¨ ë³ñù³íáñáõÙÝ»ñ | C158: 512900 | J158: 0
A159: 1217000 | B159: -²×»óíáÕ ³ÏïÇíÝ»ñ | C159: 513100 | J159: 0
A160: 1218100 | B160: -àã-ÝÛáõÃ³Ï³Ý ÑÇÙÝ³Ï³Ý ÙÇçáóÝ»ñ | C160: 513200 | J160: 0
A161: 1218200 | B161: -¶»á¹»½Ç³Ï³Ý ù³ñï»½³·ñ³Ï³Ý Í³Ëë»ñ | C161: 513300 | J161: 0
A162: 1218300 | B162: -Ü³Ë³·Í³Ñ»ï³½áï³Ï³Ý Í³Ëë»ñ | C162: 513400 | J162: 0
A163: 1220000 | B163: 2.ä²Þ²ðÜºð | C163: x | D163: 0 | F163: 0 | G163: 0 | H163: 0 | I163: 0 | J163: 0
A164: 1221000 | B164: -è³½Ù³í³ñ³Ï³Ý å³ß³ñÝ»ñ | C164: 521100 | J164: 0
A165: 1222000 | B165: -ÜÛáõÃ»ñ ¨ å³ñ³·³Ý»ñ | C165: 522100 | J165: 0
A166: 1223000 | B166: -ì»ñ³í³×³éùÇ Ñ³Ù³ñ Ý³Ë³ï»ëí³Í ³åñ³ÝùÝ»ñ | C166: 523100 | J166: 0
A167: 1224000 | B167: -êå³éÙ³Ý Ýå³ï³Ïáí å³ÑíáÕ å³ß³ñÝ»ñ | C167: 524100 | J167: 0
A168: 1230000 | B168: 3.´²ðÒð²ðÄºø ²ÎîÆìÜºð | C168: x | D168: 0 | F168: 0 | G168: 0 | H168: 0 | I168: 0 | J168: 0
A169: 1231000 | B169: -´³ñÓñ³ñÅ»ù ³ÏïÇíÝ»ñ | C169: 531100 | J169: 0
A170: 1240000 | B170: 4.â²ðî²¸ðì²Ì ԱԿՏԻՎՆԵՐ | C170: x | D170: 0 | F170: 0 | G170: 0 | H170: 0 | I170: 0 | J170: 0
A171: 1241000 | B171: -ÐáÕ | C171: 541100 | J171: 0
A172: 1242000 | B172: -ÀÝ¹»ñù³ÛÇÝ ³ÏïÇíÝ»ñ | C172: 542100
A173: 1243000 | B173: -²ÛÉ µÝ³Ï³Ý Í³·áõÙ áõÝ»óáÕ ³ÏïÇíÝ»ñ | C173: 543100
A174: 1244000 | B174: -àã ÝÛáõÃ³Ï³Ý ã³ñï³¹ñí³Í ³ÏïÇíÝ»ñ | C174: 544100
A175: 1000000 | B175: ԸՆԴԱՄԵՆԸ ԾԱԽՍԵՐ` | C175: x | D175: =D32+D151 -> 0 | F175: =F32+F151 -> 0 | G175: =G32+G151 -> 0 | H175: =H32+H151 -> 0 | I175: =I32+I151 -> 0 | J175: =J32+J151 -> 0
A177: §22¦ § դեÏï»Ùµ»ñ ¦ 2017 Ã.
A179: ÐÆØÜ²ðÎÆ ÔºÎ²ì²ðª _______________ Է. Արշակյան _________________
A180: (ëïáñ³·ñáõÃÛáõÝ) (².Ð.².)
A181: Î.î.
A183: üÆÜ²Üê²Î²Ü Ì²è²ÚàôÂÚ²Ü äºîª ________________ Ն.Մուրադյան ___________________
A184: (¶ÈÊ²ìàð Ð²Þì²ä²Ð) (ëïáñ³·ñáõÃÛáõÝ) (².Ð.².)
A202: 5.5 áñ¨¿ ³Ùëí³ Ýáñ Ý³Ë³Ñ³ßíÇª 3-ñ¹ ëÛáõÝ³ÏáõÙ Ý»ñÏ³Û³óíáõÙ »Ý ïíÛ³É µÛáõç»ï³ÛÇÝ ï³ñí³ Ñ³Ù³å³ï³ëË³Ý ³Ùëí³ óáõó³ÝÇßÝ»ñÁ, ÇëÏ 4-Çó 7-ñ¹ ëÛáõÝ³ÏÝ»ñÁ ã»Ý Éñ³óíáõÙ:
A203: ** Ì²ÜàÂ²¶ðàôÂÚàôÜ II. N 1 ûñÇÝ³Ï»ÉÇ Ó¨Ç Ýßí³Í ïáÕÁ ÐÐ å»ï³Ï³Ý Ï³é³í³ñÙ³Ý ¨ ï»Õ³Ï³Ý ÇÝùÝ³Ï³é³í³ñÙ³Ý í»ñ³¹³ë Ù³ñÙÇÝÝ»ñÁ ã»Ý Éñ³óÝáõÙ:
A204: *** Ì²ÜàÂ²¶ðàôÂÚàôÜ III. N 1 ûñÇÝ³Ï»ÉÇ Ó¨Ç Ýßí³Í ïáÕÁ ÐÐ å»ï³Ï³Ý Ï³é³í³ñÙ³Ý ¨ ï»Õ³Ï³Ý ÇÝùÝ³Ï³é³í³ñÙ³Ý Ù³ñÙÇÝÝ»ñÁ Éñ³óÝáõÙ »Ý Çñ»Ýó Ñ³Ù³ñ µÛáõç»ï³ÛÇÝ Í³Ëë»ñÇ ·»ñ³ï»ëã³Ï³Ý ¹³ë³Ï³ñ·Ù³Ùµ ë³ÑÙ³Ý³Í Ïá¹Á:
A205: **** Ì²ÜàÂ²¶ðàôÂÚàôÜ IV. N 1 ûñÇÝ³Ï»ÉÇ Ó¨Ç Ýßí³Í ïáÕÁª ³ÝÏ³Ë Ýñ³ÝÇó, Ã» Ýáñ Ý³Ë³Ñ³ßÇíÁ áñ ¹»åùáõÙ ¿ Ñ³ëï³ïíáõÙ, Éñ³óíáõÙ ¿ N 1 ûñÇÝ³Ï»ÉÇ Ó¨Ç ³ÕÛáõë³ÏÇ §²¦ ëÛáõÝ³ÏáõÙ ³Ùñ³·ñí³Í N 1000000 (§ÀÝ¹³Ù»ÝÁ
A206: Í³Ëë»ñ¦) ïáÕÇ 3-ñ¹ ëÛáõÝ³ÏáõÙ µ»ñí³Í óáõó³ÝÇßÇ ·áõÙ³ñáí (Ãí»ñáí ¨ ï³é»ñáí):
A207: ***** Ì²ÜàÂ²¶ðàôÂÚàôÜ V. N 1 ûñÇÝ³Ï»ÉÇ Ó¨Ç Ýßí³Í ïáÕÁ Éñ³óíáõÙ ¿ Ññ³Ù³Ýáí Ñ³ëï³ïí³Í N 11 Ñ³í»Éí³ÍÇ` §´Ûáõç»ï³ÛÇÝ Í³Ëë»ñÇ ·áñÍ³é³Ï³Ý ¹³ë³Ï³ñ·áõÙ¦, ï³ññ»ñÇÝ Ñ³Ù³å³ï³ëË³Ý` µ³ÅÇÝ (2 ÝÇß), ËáõÙµ(1ÝÇß) ¨ ¹³ë (1ÝÇß):
A208: §__¦ §________________¦ 200_ Ã.
A210: ÐÆØÜ²ðÎÆ ÔºÎ²ì²ðª _______________ _________________
A211: (ëïáñ³·ñáõÃÛáõÝ) (².Ð.².)
A212: Î.î.
A214: üÆÜ²Üê²Î²Ü Ì²è²ÚàôÂÚ²Ü äºîª ________________ ___________________
A215: (¶ÈÊ²ìàð Ð²Þì²ä²Ð) (ëïáñ³·ñáõÃÛáõÝ) (².Ð.².)

Sheet subv gux (hidden)
F1: Ð³í»Éí³Í N 4
F3: úñÇÝ³Ï»ÉÇ Ó¨ N 3
F4: Ð³ëï³ïí»É ¿ ÐÐ ýÇÝ³ÝëÝ»ñÇ ¨ ¿ÏáÝáÙÇÏ³ÛÇ
B5: §Ð ² ê î ² î àô Ø ºØª¦ | G5: Ý³Ë³ñ³ñÇ 23 ÑáõÉÇëÇ 2007 Ãí³Ï³ÝÇ
F6: N 597-Ü Ññ³Ù³Ýáí
A7: Ý³Ë³Ñ³ßÇíÁ 0,0 տասներկու միլիոն երկու հարյուր ինսունչորս հազ. դրամ
A8: ( ÁÝ¹³Ù»ÝÁ ·áõÙ³ñÁ Ãí»ñáí ¨ ï³é»ñáí****)
A9: ___________________________________________________________________ Ñ³½³ñ ¹ñ³Ù ·áõÙ³ñáí:
A11: ______________________________________Է.Արշակյան___________________________________ | G11: Î.î.
A12: (ÐÐ å»ï³Ï³Ý Ï³é³í³ñÙ³Ý Ï³Ù ï»Õ³Ï³Ý ÇÝùÝ³Ï³é³í³ñÙ³Ý Ù³ñÙÝÇ Õ»Ï³í³ñÇ ëïáñ³·ñáõÃÛáõÝÁ ¨ ².Ð.².)
A13: §28 ¦ դեկտեմբերի 2022թ
A14: Ü ² Ê ² Ð ² Þ Æ ì*
A15: ÐÇÙÝ³ñÏÝ»ñÇ ÏáÕÙÇó µÛáõç»ï³ÛÇÝ Ñ³ïÏ³óáõÙÝ»ñÇ Ñ³ßíÇÝ Çñ³Ï³Ý³óíáÕ Í³Ëë»ñÇ (»Éù»ñÇ) ³é³ÝÓÇÝ ï»ë³ÏÝ»ñÇ
A16: ¥Áëï ïÝï»ë³·Çï³Ï³Ý ¹³ë³Ï³ñ·Ù³Ý Ñá¹í³ÍÝ»ñÇ¤
A17: §01¦ §ÐáõÝí³ñÇ ¦ 2023 Ã. -- §30¦ §¹»Ïï»Ùµ»ñÇ ¦ 2023 Ã.
A19: 1. ÐÇÙÝ³ñÏÇ ³Ýí³ÝáõÙÁ î³ßÇñÇ ù³Õ³ù³å»ï³ñ³Ý | F19: 8.***** ´Ûáõç»ï³ÛÇÝ Í³Ëë»ñÇ ·áñÍ³é³Ï³Ý ¹³ë³Ï³ñ·Ù³Ý
A20: 2. öáëï³ÛÇÝ Ñ³ëó»Ý ù. î³ßÇñ | F20: Í³ÍÏ³·Çñ | G20: 04 | H20: 2 | I20: 1
A21: 3. ÐÇÙÝ³ñÏÇ ï»Õ³µ³ßËÙ³Ý Ù³ñ½Ç ¨ Ñ³Ù³ÛÝùÇ Ïá¹Á
A22: Áëï µÛáõç»ï³ÛÇÝ Í³Ëë»ñÇ ï³ñ³Íù³ÛÇÝ ¹³ë³Ï³ñ·Ù³Ý | F22: 9. Ìñ³·ñÇ ³Ýí³ÝáõÙÁ _ճանապարային տրանսպորտ սուբվեն
A23: 4. ** ä»ï³Ï³Ý Ï³é³í³ñÙ³Ý (ï»Õ³Ï³Ý ÇÝùÝ³Ï³é³í³ñÙ³Ý) Ù³ñÙÝÇ ³Ýí³ÝáõÙÁ | F23: 10. Ìñ³·ñÇ Ïá¹Á 51
A24: _______________________________________________________________________________________ | F24: 11. *** ä»ï³Ï³Ý Ï³é³í³ñÙ³Ý (ï»Õ³Ï³Ý .ÇÝù ÇÝùÝ³Ï³é³í³ñÙ³Ý)Ù³ñÙÇÝÝ»ñÇ ·»ñ³ï»ëã³Ï³Ý Ïá¹Á
A25: 5. ÐÇÙÝ³ñÏÁ ëå³ë³ñÏáÕ ï»Õ³Ï³Ý ·³ÝÓ³å»ï³Ï³Ý µ³ÅÝÇ (î¶´) ³Ýí³ÝáõÙÁ _Տաշիրի
A26: 6. ÐÇÙÝ³ñÏÇª ï»Õ³Ï³Ý ·³ÝÓ³å»ï³Ï³Ý µ³ÅÝáõÙ (î¶´) Ñ³ßí³éÙ³Ý Ñ³Ù³ñÁ
A27: 7. Ì³Ëë»ñÇ ýÇÝ³Ýë³íáñÙ³Ý ³ÕµÛáõñÇ Ïá¹Á` | G27: 12. â³÷Ç ÙÇ³íáñÁª Ñ³½³ñ ¹ñ³Ù
A28: (ÐÐ å»ï³Ï³Ý µÛáõç»ª 1, Ñ³Ù³ÛÝùÇ µÛáõç»ª 2) | H28: 900272000531
A30: îáÕÇ NN | B30: ´Ûáõç»ï³ÛÇÝ Í³Ëë»ñÇ ïÝï»ë³·Çï³Ï³Ý ¹³ë³Ï³ñ·Ù³Ý ï³ññ»ñ | D30: ÜáõÛÝ Å³Ù³Ý³Ï³Ñ³ïí³ÍÇ Ñ³Ù³ñ Ý³ËÏÇÝáõÙ Ñ³ëï³ïí³Íª ·áñÍáÕ | F30: êáõÛÝ Ý³Ë³Ñ³ßíáí Ñ³ëï³ïíáÕ óáõó³ÝÇßÝ»ñÁ | G30: ³Û¹ ÃíáõÙª Áëï »é³ÙëÛ³ÏÝ»ñÇ (»é³ÙëÛ³ÏÇ ³ÙÇëÝ»ñÇ)³×áÕ³Ï³Ý
B31: ³Ýí³ÝáõÙÝ»ñÁ | C31: NN | D31: Ý³Ë³Ñ³ßíÇ óáõó³ÝÇßÝ»ñÁ | E31: Ý³Ë³Ñ³ßíáõÙ Ï³ï³ñí³Í ÷á÷áËáõÃÛáõÝ-Ý»ñÁ (³í»É³óáõÙÁª /+/, å³Ï³ë»óáõÙÁª/-/ | G31: I | H31: II | I31: III | J31: IV
A32: ² | B32: ´ | C32: ¶ | D32: 1 | E32: 2 | F32: 3 | G32: 4 | H32: 5 | I32: 6 | J32: 7
A33: 1100000 | B33: ². ÀÜÂ²òÆÎ Ì²Êêºðª ÀÜ¸²ØºÜÀ, ³Û¹ ÃíáõÙ` | C33: x | D33: =D68 -> 0 | E33: 0 | F33: 0 | G33: 0 | H33: 0 | I33: 0 | J33: 0
A34: 1110000 | B34: 1.äºî²Î²Ü, îºÔ²Î²Ü ÆÜøÜ²Î²è²ì²ðØ²Ü Ø²ðØÆÜÜºðÆ, ¸ð²Üò ºÜÂ²Î² ´Úàôæºî²ÚÆÜ ÐÆØÜ²ðÎÜºðÆ ²ÞÊ²îàÔÜºðÆ ²ÞÊ²î²ì²ðÒÀª ÀÜ¸²ØºÜÀ, ³Û¹ ÃíáõÙª | C34: x | D34: 0 | F34: 0 | G34: 0 | H34: 0 | I34: 0 | J34: 0
A35: 1110000 | B35: 1,1 ²ßË³ï³ÝùÇ í³ñÓ³ïñáõÃÛáõÝ | C35: x | D35: 0 | F35: 0 | G35: 0 | H35: 0 | I35: 0 | J35: 0
A36: 1111000 | B36: -²ßË³ïáÕÝ»ñÇ ³ßË³ï³í³ñÓ»ñ ¨ Ñ³í»É³í×³ñÝ»ñ | C36: 411100
A37: 1112000 | B37: - ä³ñ·¨³ïñáõÙÝ»ñ, ¹ñ³Ù³Ï³Ý Ëñ³ËáõëáõÙÝ»ñ ¨ Ñ³ïáõÏ í×³ñÝ»ñ | C37: 411200
A38: 1113000 | B38: -ø³Õ³ù³óÇ³Ï³Ý, ¹³ï³Ï³Ý ¨ å»ï³Ï³Ý Í³é³ÛáÕÝ»ñÇ å³ñ·¨³ïñáõÙ | C38: 411300
A39: 1114000 | B39: -ÐÐ ýÇÝ³ÝëÝ»ñÇ ¨ ¿ÏáÝáÙÇÏ³ÛÇ Ý³Ë³ñ³ñáõÃÛ³Ý, Ñ³ñÏ³ÛÇÝ ¨ Ù³ùë³ÛÇÝ Ù³ñÙÇÝÝ»ñÇ ³ßË³ïáÕÝ»ñÇ å³ñ·¨³ïñáõÙ | C39: 411400
A40: 1115000 | B40: -²ÛÉ í³ñÓ³ïñáõÃÛáõÝÝ»ñ | C40: 411500
A41: 1116000 | B41: -´Ý»Õ»Ý ³ßË³ï³í³ñÓ»ñ ¨ Ñ³í»É³í×³ñÝ»ñ | C41: 412100
A42: 1117000 | B42: -ì×³ñÝ»ñ êáóÇ³É³Ï³Ý ³å³Ñáí³·ñáõÃÛ³Ý å»ï³Ï³Ý ÑÇÙÝ³¹ñ³ÙÇÝ | C42: 413100
A43: 1120000 | B43: 2 Ì³é³ÛáõÃÛáõÝÝ»ñÇ ¨ ³åñ³ÝùÝ»ñÇ Ó»éù µ»ñáõÙ | C43: x | D43: 0 | F43: 0 | G43: 0 | H43: 0 | I43: 0 | J43: 0
A44: 1121000 | B44: 2.1 Þ³ñáõÝ³Ï³Ï³Ý Í³Ëë»ñ | D44: 0 | F44: 0 | G44: 0 | H44: 0 | I44: 0 | J44: 0
A45: 1121100 | B45: -·áñÍ³éÝ³Ï³Ý ¨ µ³ÝÏ³ÛÇÝ Í³é³ÛáõÃÛáõÝÝ»ñÇ Í³Ëë»ñ | C45: 421100 | D45: 0
A46: 1121200 | B46: -¿Ý»ñ·»ïÇÏ Í³é³ÛáõÃÛáõÝÝ»ñ | C46: 421200 | D46: 0
A47: 1121300 | B47: -ÎáÙáõÝ³É Í³é³ÛáõÃÛáõÝÝ»ñ | C47: 421300 | D47: 0
A48: 1121400 | B48: -Î³åÇ Í³é³ÛáõÃÛáõÝÝ»ñ | C48: 421400 | D48: 0
A49: 1121500 | B49: -²å³Ñáí³·ñ³Ï³Ý Í³Ëë»ñ | C49: 421500 | D49: 0
A50: 1121600 | B50: -¶áõÛùÇ ¨ ë³ñù³íáñáõÙÝ»ñÇ í³ñÓ³Ï³ÉáõÃÛáõÝ | C50: 421600 | D50: 0
A51: 1121700 | B51: -²ñï³·»ñ³ï»ëã³Ï³Ý Í³Ëë»ñ | C51: 421700 | D51: 0
A52: 1122000 | B52: 2.2 ¶áñÍáõÕáõÙÝ»ñÇ ¨ ßñç³·³ÛáõÃÛ³Ý Í³Ëë»ñ | C52: x | D52: 0 | F52: 0 | G52: 0 | H52: 0 | I52: 0 | J52: 0
A53: 1122100 | B53: -Ü»ñùÇÝ ·áñÍáõÕáõÙÝ»ñ | C53: 422100
A54: 1122200 | B54: -²ñï³ë³ÑÙ³ÝÛ³Ý ·áñÍáõÕáõÙÝ»ñÇ ·Íáí Í³Ëë»ñ | C54: 422200
A55: 1122300 | B55: -²ÛÉ ïñ³Ýëåáñï³ÛÇÝ Í³Ëë»ñ | C55: 422900
A56: 1123000 | B56: 2.3 ä³ÛÙ³Ý³·ñ³ÛÇÝ Í³é³ÛáõÃÛáõÝÝ»ñÇ Ó»éù µ»ñáõÙ | C56: x | D56: 0 | F56: 0 | G56: 0 | H56: 0 | I56: 0 | J56: 0
A57: 1123100 | B57: -ì³ñã³Ï³Ý Í³é³ÛáõÃÛáõÝÝ»ñ | C57: 423100 | D57: 0
A58: 1123200 | B58: -Ð³Ù³Ï³ñ·ã³ÛÇÝ Í³é³ÛáõÃÛáõÝÝ»ñ | C58: 423200 | D58: 0
A59: 1123300 | B59: -²ßË³ï³Ï³½ÙÇ Ù³ëÝ³·Çï³Ï³Ý ½³ñ·³óÙ³Ý Í³é³ÛáõÃÛáõÝÝ»ñ | C59: 423300 | D59: 0
A60: 1123400 | B60: -î»Õ³Ï³ïí³Ï³Ý Í³é³ÛáõÃÛáõÝÝ»ñ | C60: 423400 | D60: 0
A61: 1123500 | B61: -Î³é³í³ñã³Ï³Ý Í³é³ÛáõÃÛáõÝÝ»ñ | C61: 423500 | D61: 0
A62: 1123600 | B62: - Î»Ýó³Õ³ÛÇÝ ¨ Ñ³Ýñ³ÛÇÝ ëÝÝ¹Ç Í³é³ÛáõÃÛáõÝÝ»ñ | C62: 423600 | D62: 0
A63: 1123700 | B63: -Ü»ñÏ³Û³óáõóã³Ï³Ý Í³Ëë»ñ | C63: 423700 | D63: 0
A64: 1123800 | B64: -ÀÝ¹Ñ³Ýáõñ µÝáõÛÃÇ ³ÛÉ Í³é³ÛáõÃÛáõÝÝ»ñ | C64: 423900 | D64: 0
A65: 1124000 | B65: 2.4 ²ÛÉ Ù³ëÝ³·Çï³Ï³Ý Í³é³ÛáõÃÛáõÝÝ»ñÇ Ó»éù µ»ñáõÙ | C65: x | D65: 0 | F65: 0 | G65: 0 | H65: 0 | I65: 0 | J65: 0
A66: 1124100 | B66: -Ø³ëÝ³·Çï³Ï³Ý Í³é³ÛáõÃÛáõÝÝ»ñ | C66: 424100 | D66: 0
A67: 1125000 | B67: 2.5 ÀÝÃ³óÇÏ Ýáñá·áõÙ ¨ å³Ñå³ÝáõÙ (Í³é³ÛáõÃÛáõÝÝ»ñ ¨ ÝÛáõÃ»ñ) | C67: x | D67: 0 | F67: 0 | G67: 0 | H67: 0 | I67: 0 | J67: 0
A68: 1125100 | B68: -Þ»Ýù»ñÇ ¨ Ï³éáõÛóÝ»ñÇ ÁÝÃ³óÇÏ Ýáñá·áõÙ ¨ å³Ñå³ÝáõÙ | C68: 425100 | D68: 0 | E68: 0 | F68: =D68+E68 -> 0 | G68: 0 | H68: 0 | I68: 0 | J68: =F68 -> 0
A69: 1125200 | B69: -Ø»ù»Ý³Ý»ñÇ ¨ ë³ñù³íáñáõÙÝ»ñÇ ÁÝÃ³óÇÏ Ýáñá·áõÙ ¨ å³Ñå³ÝáõÙ | C69: 425200 | D69: 0
A70: 1126000 | B70: 2.6 ÜÛáõÃ»ñ | C70: x | D70: 0 | F70: 0 | G70: 0 | H70: 0 | I70: 0 | J70: 0
A71: 1126100 | B71: -¶ñ³ë»ÝÛ³Ï³ÛÇÝ ÝÛáõÃ»ñ ¨ Ñ³·áõëï | C71: 426100 | D71: 0
A72: 1126200 | B72: -¶ÛáõÕ³ïÝï»ë³Ï³Ý ³åñ³ÝùÝ»ñ | C72: 426200 | D72: 0
A73: 1126300 | B73: -ì»ñ³å³ïñ³ëïÙ³Ý ¨ áõëáõóÙ³Ý ÝÛáõÃ»ñ | C73: 426300 | D73: 0
A74: 1126400 | B74: -îñ³Ýëåáñï³ÛÇÝ ÝÛáõÃ»ñ | C74: 426400 | D74: 0
A75: 1126500 | B75: -Þñç³Ï³ ÙÇç³í³ÛñÇ å³ßïå³ÝáõÃÛ³Ý ¨ ·Çï³Ï³Ý ÝÛáõÃ»ñ | C75: 426500 | D75: 0
A76: 1126600 | B76: -²éáÕç³å³Ñ³Ï³Ý ¨ É³µáñ³ïáñ ÝÛáõÃ»ñ | C76: 426600 | D76: 0
A77: 1126700 | B77: -Î»Ýó³Õ³ÛÇÝ ¨ Ñ³Ýñ³ÛÇÝ ëÝÝ¹Ç ÝÛáõÃ»ñ | C77: 426700 | D77: 0
A78: 1126800 | B78: -Ð³ïáõÏ Ýå³ï³Ï³ÛÇÝ ³ÛÉ ÝÛáõÃ»ñ | C78: 426900 | D78: 0
A79: 1130000 | B79: 3 îáÏáë³í×³ñÝ»ñ | C79: x | D79: 0 | F79: 0 | G79: 0 | H79: 0 | I79: 0 | J79: 0
A80: 1130100 | B80: -Ü»ñùÇÝ ³ñÅ»ÃÕÃ»ñÇ ïáÏáë³í×³ñÝ»ñ | C80: 441100
A81: 1130200 | B81: -Ü»ñùÇÝ í³ñÏ»ñÇ ïáÏáë³í×³ñÝ»ñ | C81: 441200
A82: 1130300 | B82: -²ñï³ùÇÝ ³ñÅ»ÃÕÃ»ñÇ ·Íáí ïáÏáë³í×³ñÝ»ñ | C82: 442100
A83: 1130400 | B83: -²ñï³ùÇÝ í³ñÏ»ñÇ ·Íáí ïáÏáë³í×³ñÝ»ñ | C83: 442200
A84: 1131000 | B84: öáË³éáõÃÛáõÝÝ»ñÇ Ñ»ï Ï³åí³Í í×³ñÝ»ñ | C84: x
A85: 1131100 | B85: -öáË³Ý³ÏÙ³Ý Ïáõñë»ñÇ µ³ó³ë³Ï³Ý ï³ñµ»ñáõÃÛáõÝ | C85: 443100
A86: 1131200 | B86: -îáõÛÅ»ñ | C86: 443200
A87: 1131300 | B87: -öáË³éáõÃÛáõÝÝ»ñÇ ·Íáí ïáõñù»ñ | C87: 443300
A88: 1140000 | B88: 4. êáõµëÇ¹Ç³Ý»ñ | C88: x | D88: 0 | F88: 0 | G88: 0 | H88: 0 | I88: 0 | J88: 0
A89: 1141000 | B89: -êáõµëÇ¹Ç³Ý»ñ áã-ýÇÝ³Ýë³Ï³Ý å»ï³Ï³Ý Ï³½Ù³Ï»ñåáõÃÛáõÝÝ»ñÇÝ | C89: 451100
A90: 1142000 | B90: -êáõµëÇ¹Ç³Ý»ñ ýÇÝ³Ýë³Ï³Ý å»ï³Ï³Ý Ï³½Ù³Ï»ñåáõÃÛáõÝÝ»ñÇÝ | C90: 451200
A91: 1143000 | B91: -êáõµëÇ¹Ç³Ý»ñ áã å»ï³Ï³Ý áã ýÇÝ³Ýë³Ï³Ý Ï³½Ù³Ï»ñåáõÃÛáõÝÝ»ñÇÝ | C91: 452100
A92: 1144000 | B92: -êáõµëÇ¹Ç³Ý»ñ áã å»ï³Ï³Ý ýÇÝ³Ýë³Ï³Ý Ï³½Ù³Ï»ñåáõÃÛáõÝÝ»ñÇÝ | C92: 452200
A93: 1150000 | B93: 5.¸ñ³Ù³ßÝáñÑÝ»ñ | C93: x | D93: 0 | F93: 0 | G93: 0 | H93: 0 | I93: 0 | J93: 0
A94: 1151000 | B94: -ÀÝÃ³óÇÏ ¹ñ³Ù³ßÝáñÑÝ»ñ ûï³ñ»ñÏñÛ³ Ï³é³í³ñáõÃÛáõÝÝ»ñÇÝ | C94: 461100
A95: 1152000 | B95: -Î³åÇï³É ¹ñ³Ù³ßÝáñÑÝ»ñ ûï³ñ»ñÏñÛ³ Ï³é³í³ñáõÃÛáõÝÝ»ñÇÝ | C95: 461200
A96: 1153000 | B96: -ÀÝÃ³óÇÏ ¹ñ³Ù³ßÝáñÑÝ»ñ ÙÇç³½·³ÛÇÝ Ï³½Ù³Ï»ñåáõÃÛáõÝÝ»ñÇÝ | C96: 462100
A97: 1154000 | B97: -Î³åÇï³É ¹ñ³Ù³ßÝáñÑÝ»ñ ÙÇç³½·³ÛÇÝ Ï³½Ù³Ï»ñåáõÃÛáõÝÝ»ñÇÝ | C97: 462200
A98: 1155000 | B98: -ÀÝÃ³óÇÏ ¹ñ³Ù³ßÝáñÑÝ»ñ å»ï³Ï³Ý Ñ³ïí³ÍÇ ³ÛÉ Ù³Ï³ñ¹³ÏÝ»ñÇÝ | C98: 463100
A99: 1156000 | B99: -Î³åÇï³É ¹ñ³Ù³ßÝáñÑÝ»ñ å»ï³Ï³Ý Ñ³ïí³ÍÇ ³ÛÉ Ù³Ï³ñ¹³ÏÝ»ñÇÝ | C99: 463200
A100: 1160000 | B100: 6. êàòÆ²È²Î²Ü Üä²êîÜºð | C100: x | D100: 0 | F100: 0 | G100: 0 | H100: 0 | I100: 0 | J100: 0
A101: 1161000 | B101: 6.1 êàòÆ²È²Î²Ü ²ä²ÐàìàôÂÚ²Ü Üä²êîÜºð (ä²ðî²¸Æð êàòÆ²È²Î²Ü ²ä²Ðàì²¶ðàôÂÚ²Ü Î²¼Ø²ÎºðäàôÂÚàôÜÜºð) | C101: x | D101: 0 | F101: 0 | G101: 0 | H101: 0 | I101: 0 | J101: 0
A102: 1161100 | B102: -îÝ³ÛÇÝ ïÝï»ëáõÃÛáõÝÝ»ñÇÝ ¹ñ³Ùáí í×³ñíáÕ ëáóÇ³É³Ï³Ý ³å³Ñáí³·ñáõÃÛ³Ý í×³ñÝ»ñ | C102: 471100
A103: 1161200 | B103: -êáóÇ³É³Ï³Ý ³å³ÑáíáõÃÛ³Ý µÝ»Õ»Ý Ýå³ëïÝ»ñ Í³é³ÛáõÃÛáõÝÝ»ñ Ù³ïáõóáÕÝ»ñÇÝ | C103: 471200
A104: 1162000 | B104: 6.2 êàòÆ²È²Î²Ü ú¶ÜàôÂÚ²Ü ¸ð²Ø²Î²Ü ²ðî²Ð²ÚîàôÂÚ²Ø´ Üä²êîÜºð (´ÚàôæºÆò) | C104: x | D104: 0 | F104: 0 | G104: 0 | H104: 0 | I104: 0 | J104: 0
A105: 1162100 | B105: -ÐÇí³Ý¹áõÃÛ³Ý ¨ Ñ³ßÙ³Ý¹³ÙáõÃÛ³Ý Ýå³ëïÝ»ñ µÛáõç»Çó | C105: 472100
A106: 1162200 | B106: -Ø³ÛñáõÃÛ³Ý Ýå³ëïÝ»ñ µÛáõç»Çó | C106: 472200
A107: 1162300 | B107: -ºñ»Ë³Ý»ñÇ Ï³Ù ÁÝï³Ý»Ï³Ý Ýå³ëïÝ»ñ µÛáõç»Çó | C107: 472300
A108: 1162400 | B108: -¶áñÍ³½ñÏáõÃÛ³Ý Ýå³ëïÝ»ñ µÛáõç»Çó | C108: 472400
A109: 1162500 | B109: -Î»Ýë³Ãáß³ÏÇ ³ÝóÝ»Éáõ Ñ»ï Ï³åí³Í ¨ ï³ñÇù³ÛÇÝ Ýå³ëïÝ»ñ µÛáõç»Çó | C109: 472500
A110: 1162600 | B110: -ÐáõÕ³ñÏ³íáñáõÃÛ³Ý Ýå³ëïÝ»ñ µÛáõç»Çó | C110: 472600
A111: 1162700 | B111: -ÎñÃ³Ï³Ý, Ùß³ÏáõÃ³ÛÇÝ ¨ ëåáñï³ÛÇÝ Ýå³ëïÝ»ñ µÛáõç»Çó | C111: 472700
A112: 1162800 | B112: -´Ý³Ï³ñ³Ý³ÛÇÝ Ýå³ëïÝ»ñ µÛáõç»Çó | C112: 472800
A113: 1162900 | B113: -²ÛÉ Ýå³ëïÝ»ñ µÛáõç»Çó | C113: 472900
A114: 1170000 | B114: 7. ²ÚÈ Ì²Êêºð | C114: x | D114: 0 | F114: 0 | G114: 0 | H114: 0 | I114: 0 | J114: 0
A115: 1171000 | B115: 7.1 ÜìÆð²îìàôÂÚàôÜÜºð àâ-Î²è²ì²ðâ²Î²Ü (Ð²ê²ð²Î²Î²Ü) Î²¼Ø²ÎºðäàôÂÚàôÜÜºðÆÜ | C115: x | D115: 0 | F115: 0 | G115: 0 | H115: 0 | I115: 0 | J115: 0
A116: 1171100 | B116: -îÝ³ÛÇÝ ïÝï»ëáõÃÛáõÝÝ»ñÇÝ Í³é³ÛáõÃÛáõÝÝ»ñ Ù³ïáõóáÕ` ß³ÑáõÛÃ ãÑ»ï³åÝ¹áÕ Ï³½Ù³Ï»ñåáõÃÛáõÝÝ»ñÇÝ ÝíÇñ³ïíáõÃÛáõÝÝ»ñ | C116: 481100 | D116: 0
A117: 1171200 | B117: -ÜíÇñ³ïíáõÃÛáõÝÝ»ñ ³ÛÉ ß³ÑáõÛÃ ãÑ»ï³åÝ¹áÕ Ï³½Ù³Ï»ñåáõÃÛáõÝÝ»ñÇÝ | C117: 481900 | D117: 0
A118: 1172000 | B118: 7.2 Ð²ðÎºð, ä²ðî²¸Æð ìÖ²ðÜºð ºì îàôÚÄºð, àðàÜø Î²è²ì²ðØ²Ü î²ð´ºð Ø²Î²ð¸²ÎÜºðÆ ÎàÔØÆò ÎÆð²èìàôØ ºÜ ØÆØÚ²Üò ÜÎ²îØ²Ø´ | C118: x | D118: 0 | F118: 0 | G118: 0 | H118: 0 | I118: 0 | J118: 0
A119: 1172100 | B119: -²ßË³ï³í³ñÓÇ ýáÝ¹ | C119: 482100 | D119: 0
A120: 1172200 | B120: -²ÛÉ Ñ³ñÏ»ñ | C120: 482200 | D120: 0
A121: 1172300 | B121: -ä³ñï³¹Çñ í×³ñÝ»ñ | C121: 482300 | D121: 0
A122: 1172400 | B122: -ä»ï³Ï³Ý Ñ³ïí³ÍÇ ï³ñµ»ñ Ù³Ï³ñ¹³ÏÝ»ñÇ ÏáÕÙÇó ÙÇÙÛ³Ýó ÝÏ³ïÙ³Ùµ ÏÇñ³éíáÕ ïáõÛÅ»ñ | C122: 482400 | D122: 0
A123: 1173000 | B123: 7.3 ¸²î²ð²ÜÜºðÆ ÎàÔØÆò ÜÞ²Ü²Îì²Ì îàôÚÄºð ºì îàô¶²ÜøÜºð | C123: x | D123: 0 | F123: 0 | G123: 0 | H123: 0 | I123: 0 | J123: 0
A124: 1173100 | B124: -¸³ï³ñ³ÝÝ»ñÇ ÏáÕÙÇó Ýß³Ý³Ïí³Í ïáõÛÅ»ñ ¨ ïáõ·³ÝùÝ»ñ | C124: 483100 | D124: 0
A125: 1174000 | B125: 7.4 ´Ü²Î²Ü ²ÔºîÜºðÆò Î²Ø ²ÚÈ ´Ü²Î²Ü ä²îÖ²èÜºðàì ²è²æ²ò²Ì ìÜ²êÜºðÆ Î²Ø ìÜ²êì²ÌøÜºðÆ ìºð²Î²Ü¶ÜàôØ | C125: x | D125: 0 | F125: 0 | G125: 0 | H125: 0 | I125: 0 | J125: 0
A126: 1174100 | B126: -´Ý³Ï³Ý ³Õ»ïÝ»ñÇó ³é³ç³ó³Í íÝ³ëí³ÍùÝ»ñÇ Ï³Ù íÝ³ëÝ»ñÇ í»ñ³Ï³Ý·ÝáõÙ | C126: 484100 | D126: 0
A127: 1174200 | B127: -²ÛÉ µÝ³Ï³Ý å³ï×³éÝ»ñáí ëï³ó³Í íÝ³ëí³ÍùÝ»ñÇ í»ñ³Ï³Ý·ÝáõÙ | C127: 484200 | D127: 0
A128: 1175000 | B128: 7.5 Î²è²ì²ðØ²Ü Ø²ðØÆÜÜºðÆ ¶àðÌàôÜºàôÂÚ²Ü Ðºîºì²Üøàì ²è²æ²ò²Ì ìÜ²êÜºðÆ Î²Ø ìÜ²êì²ÌøÜºðÆ ìºð²Î²Ü¶ÜàôØ | C128: x | D128: 0 | F128: 0 | G128: 0 | H128: 0 | I128: 0 | J128: 0
A129: 1175100 | B129: -Î³é³í³ñÙ³Ý Ù³ñÙÇÝÝ»ñÇ ·áñÍáõÝ»áõÃÛ³Ý Ñ»ï¨³Ýùáí ³é³ç³ó³Í íÝ³ëí³ÍùÝ»ñÇ Ï³Ù íÝ³ëÝ»ñÇ í»ñ³Ï³Ý·ÝáõÙ | C129: 485100 | D129: 0
A130: 1176000 | B130: 7.6 ²ÚÈ Ì²Êêºð | C130: x | D130: 0 | F130: 0 | G130: 0 | H130: 0 | I130: 0 | J130: 0
A131: 1176100 | B131: -²ÛÉ Í³Ëë»ñ | C131: 486100 | D131: 0
A132: 1177000 | B132: 7.7 ä²Ðàôêî²ÚÆÜ ØÆæàòÜºð | C132: x | D132: 0 | F132: 0 | G132: 0 | H132: 0 | I132: 0 | J132: 0
A133: 1177100 | B133: -ä³Ñáõëï³ÛÇÝ ÙÇçáóÝ»ñ | C133: 489100 | D133: 0
A134: ---- | B134: -------
A135: 1200000 | B135: Բ, àâ-üÆÜ²Üê²Î²Ü ²ÎîÆìÜºðÆ ¶Ìàì Ì²Êêºð | C135: x | D135: =D138 -> 0 | E135: =E141 -> 0 | F135: =F138 -> 0 | G135: =G138 -> 0 | H135: =H138 -> 0 | I135: =I138 -> 0 | J135: =J138 -> 0
B136: ³Û¹ ÃíáõÙ`
A137: ---- | B137: -------
A138: 1210000 | B138: 1.ÐÆØÜ²Î²Ü ØÆæàòÜºð | C138: x | D138: =D140+D141+D142 -> 0 | F138: =F140+F141+F142 -> 0 | G138: =G140+G141+G142 -> 0 | H138: =H140+H141+H142 -> 0 | I138: =I140+I141+I142 -> 0 | J138: =F138 -> 0
A139: 1211000 | B139: -Þ»Ýù»ñÇ ¨ ßÇÝáõÃÛáõÝÝ»ñÇ Ó»éù µ»ñáõÙ | C139: 511100 | D139: 0
A140: 1212000 | B140: -Þ»Ýù»ñÇ ¨ ßÇÝáõÃÛáõÝÝ»ñÇ Ï³éáõóáõÙ | C140: 511200 | D140: 0 | E140: 0 | F140: =D140+E140 -> 0 | G140: 0 | H140: 0 | I140: 0 | J140: =F140 -> 0
A141: 1213000 | B141: -Þ»Ýù»ñÇ ¨ ßÇÝáõÃÛáõÝÝ»ñÇ Ï³åÇï³É í»ñ³Ýáñá·áõÙ | C141: 511300 | D141: 0 | E141: 0 | F141: =D141+E141 -> 0 | G141: 0 | H141: 0 | I141: 0 | J141: =F141 -> 0
A142: 1214000 | B142: -îñ³Ýëåáñï³ÛÇÝ ë³ñù³íáñáõÙÝ»ñ | C142: 512100 | D142: 0 | E142: 0 | F142: =D142+E142 -> 0 | G142: 0 | H142: 0 | I142: 0 | J142: =F142 -> 0
A143: 1215000 | B143: -ì³ñã³Ï³Ý ë³ñù³íáñáõÙÝ»ñ | C143: 512200 | D143: 0
A144: 1216000 | B144: -²ÛÉ Ù»ù»Ý³Ý»ñ ¨ ë³ñù³íáñáõÙÝ»ñ | C144: 512900 | D144: 0
A145: 1217000 | B145: -²×»óíáÕ ³ÏïÇíÝ»ñ | C145: 513100 | D145: 0
A146: 1218000 | B146: -àã-ÝÛáõÃ³Ï³Ý ÑÇÙÝ³Ï³Ý ÙÇçáóÝ»ñ | C146: 513200 | D146: 0
A147: 1220000 | B147: 2.ä²Þ²ðÜºð | C147: x | D147: 0 | F147: 0 | H147: 0 | I147: 0 | J147: 0
A148: 1221000 | B148: -è³½Ù³í³ñ³Ï³Ý å³ß³ñÝ»ñ | C148: 521100 | D148: 0
A149: 1222000 | B149: -ÜÛáõÃ»ñ ¨ å³ñ³·³Ý»ñ | C149: 522100 | D149: 0
A150: 1223000 | B150: -ì»ñ³í³×³éùÇ Ñ³Ù³ñ Ý³Ë³ï»ëí³Í ³åñ³ÝùÝ»ñ | C150: 523100 | D150: 0
A151: 1224000 | B151: -êå³éÙ³Ý Ýå³ï³Ïáí å³ÑíáÕ å³ß³ñÝ»ñ | C151: 524100 | D151: 0
A152: 1230000 | B152: 3.´²ðÒð²ðÄºø ²ÎîÆìÜºð | C152: x | D152: 0 | F152: 0 | G152: 0 | H152: 0 | I152: 0 | J152: 0
A153: 1231000 | B153: -´³ñÓñ³ñÅ»ù ³ÏïÇíÝ»ñ | C153: 531100 | D153: 0
A154: 1240000 | B154: 4.àâ ²ðî²¸ð²Î²Ü ԱԿՏԻՎՆԵՐ | C154: x | D154: 0 | F154: 0 | G154: 0 | H154: 0 | I154: 0 | J154: 0
A155: 1241000 | B155: -ÐáÕ | C155: 541100 | D155: 0
A156: 1242000 | B156: -ÀÝ¹»ñù³ÛÇÝ ³ÏïÇíÝ»ñ | C156: 542100 | D156: 0
A157: 1243000 | B157: -²ÛÉ µÝ³Ï³Ý Í³·áõÙ áõÝ»óáÕ ³ÏïÇíÝ»ñ | C157: 543100 | D157: 0
A158: 1244000 | B158: -àã ÝÛáõÃ³Ï³Ý áã ³ñï³¹ñ³Ï³Ý ³ÏïÇíÝ»ñ | C158: 544100 | D158: 0
A159: 1000000 | B159: ԸՆԴԱՄԵՆԸ ºÈøºð` (ïáÕ 1100000+ïáÕ1200000) | C159: x | D159: =D33+D135 -> 0 | E159: 0 | F159: 0 | G159: 0 | H159: 0 | I159: 0 | J159: =F159 -> 0
A162: § ¦ § դեկտ»Ùµ»ñ ¦ 2022 Ã.
A164: ÐÆØÜ²ðÎÆ ÔºÎ²ì²ðª _______________ _________________ | G164: Է.Արշակյան
E165: (ëïáñ³·ñáõÃÛáõÝ) | G165: (².Ð.².)
A167: Î.î üÆÜ²Üê²Î²Ü Ì²è²ÚàôÂÚ²Ü äºîª _______________ _________________ | G167: Ն. Մուրադյան
B168: (¶ÈÊ²ìàð Ð²Þì²ä²Ð) | E168: (ëïáñ³·ñáõÃÛáõÝ) | G168: (².Ð.².)

Sheet gux (hidden)
F1: Ð³í»Éí³Í N 4
F3: úñÇÝ³Ï»ÉÇ Ó¨ N 3
F4: Ð³ëï³ïí»É ¿ ÐÐ ýÇÝ³ÝëÝ»ñÇ ¨ ¿ÏáÝáÙÇÏ³ÛÇ
B5: §Ð ² ê î ² î àô Ø ºØª¦ | G5: Ý³Ë³ñ³ñÇ 23 ÑáõÉÇëÇ 2007 Ãí³Ï³ÝÇ
F6: N 597-Ü Ññ³Ù³Ýáí
A7: Ý³Ë³Ñ³ßÇíÁ 33900,0 եռեսուներեք միլիոն ինն հարյուր դրամ
A8: ( ÁÝ¹³Ù»ÝÁ ·áõÙ³ñÁ Ãí»ñáí ¨ ï³é»ñáí****)
A9: ___________________________________________________________________ Ñ³½³ñ ¹ñ³Ù ·áõÙ³ñáí:
A11: ______________________________________Է.Արշակյան___________________________________ | G11: Î.î.
A12: (ÐÐ å»ï³Ï³Ý Ï³é³í³ñÙ³Ý Ï³Ù ï»Õ³Ï³Ý ÇÝùÝ³Ï³é³í³ñÙ³Ý Ù³ñÙÝÇ Õ»Ï³í³ñÇ ëïáñ³·ñáõÃÛáõÝÁ ¨ ².Ð.².)
A13: §28 ¦ դեկտեմբերի 2022թ
A14: Ü ² Ê ² Ð ² Þ Æ ì*
A15: ÐÇÙÝ³ñÏÝ»ñÇ ÏáÕÙÇó µÛáõç»ï³ÛÇÝ Ñ³ïÏ³óáõÙÝ»ñÇ Ñ³ßíÇÝ Çñ³Ï³Ý³óíáÕ Í³Ëë»ñÇ (»Éù»ñÇ) ³é³ÝÓÇÝ ï»ë³ÏÝ»ñÇ
A16: ¥Áëï ïÝï»ë³·Çï³Ï³Ý ¹³ë³Ï³ñ·Ù³Ý Ñá¹í³ÍÝ»ñÇ¤
A17: §01¦ §ÐáõÝí³ñÇ ¦ 2023 Ã. -- §30¦ §¹»Ïï»Ùµ»ñÇ ¦ 2023 Ã.
A19: 1. ÐÇÙÝ³ñÏÇ ³Ýí³ÝáõÙÁ î³ßÇñÇ ù³Õ³ù³å»ï³ñ³Ý | F19: 8.***** ´Ûáõç»ï³ÛÇÝ Í³Ëë»ñÇ ·áñÍ³é³Ï³Ý ¹³ë³Ï³ñ·Ù³Ý
A20: 2. öáëï³ÛÇÝ Ñ³ëó»Ý ù. î³ßÇñ | F20: Í³ÍÏ³·Çñ | G20: 04 | H20: 2 | I20: 1
A21: 3. ÐÇÙÝ³ñÏÇ ï»Õ³µ³ßËÙ³Ý Ù³ñ½Ç ¨ Ñ³Ù³ÛÝùÇ Ïá¹Á
A22: Áëï µÛáõç»ï³ÛÇÝ Í³Ëë»ñÇ ï³ñ³Íù³ÛÇÝ ¹³ë³Ï³ñ·Ù³Ý | F22: 9. Ìñ³·ñÇ ³Ýí³ÝáõÙÁ _ճանապարային տրանսպորտ սուբվեն
A23: 4. ** ä»ï³Ï³Ý Ï³é³í³ñÙ³Ý (ï»Õ³Ï³Ý ÇÝùÝ³Ï³é³í³ñÙ³Ý) Ù³ñÙÝÇ ³Ýí³ÝáõÙÁ | F23: 10. Ìñ³·ñÇ Ïá¹Á 51
A24: _______________________________________________________________________________________ | F24: 11. *** ä»ï³Ï³Ý Ï³é³í³ñÙ³Ý (ï»Õ³Ï³Ý .ÇÝù ÇÝùÝ³Ï³é³í³ñÙ³Ý)Ù³ñÙÇÝÝ»ñÇ ·»ñ³ï»ëã³Ï³Ý Ïá¹Á
A25: 5. ÐÇÙÝ³ñÏÁ ëå³ë³ñÏáÕ ï»Õ³Ï³Ý ·³ÝÓ³å»ï³Ï³Ý µ³ÅÝÇ (î¶´) ³Ýí³ÝáõÙÁ _Տաշիրի
A26: 6. ÐÇÙÝ³ñÏÇª ï»Õ³Ï³Ý ·³ÝÓ³å»ï³Ï³Ý µ³ÅÝáõÙ (î¶´) Ñ³ßí³éÙ³Ý Ñ³Ù³ñÁ
A27: 7. Ì³Ëë»ñÇ ýÇÝ³Ýë³íáñÙ³Ý ³ÕµÛáõñÇ Ïá¹Á` | G27: 12. â³÷Ç ÙÇ³íáñÁª Ñ³½³ñ ¹ñ³Ù
A28: (ÐÐ å»ï³Ï³Ý µÛáõç»ª 1, Ñ³Ù³ÛÝùÇ µÛáõç»ª 2) | H28: 900272501033
A30: îáÕÇ NN | B30: ´Ûáõç»ï³ÛÇÝ Í³Ëë»ñÇ ïÝï»ë³·Çï³Ï³Ý ¹³ë³Ï³ñ·Ù³Ý ï³ññ»ñ | D30: ÜáõÛÝ Å³Ù³Ý³Ï³Ñ³ïí³ÍÇ Ñ³Ù³ñ Ý³ËÏÇÝáõÙ Ñ³ëï³ïí³Íª ·áñÍáÕ | F30: êáõÛÝ Ý³Ë³Ñ³ßíáí Ñ³ëï³ïíáÕ óáõó³ÝÇßÝ»ñÁ | G30: ³Û¹ ÃíáõÙª Áëï »é³ÙëÛ³ÏÝ»ñÇ (»é³ÙëÛ³ÏÇ ³ÙÇëÝ»ñÇ)³×áÕ³Ï³Ý
B31: ³Ýí³ÝáõÙÝ»ñÁ | C31: NN | D31: Ý³Ë³Ñ³ßíÇ óáõó³ÝÇßÝ»ñÁ | E31: Ý³Ë³Ñ³ßíáõÙ Ï³ï³ñí³Í ÷á÷áËáõÃÛáõÝ-Ý»ñÁ (³í»É³óáõÙÁª /+/, å³Ï³ë»óáõÙÁª/-/ | G31: I | H31: II | I31: III | J31: IV
A32: ² | B32: ´ | C32: ¶ | D32: 1 | E32: 2 | F32: 3 | G32: 4 | H32: 5 | I32: 6 | J32: 7
A33: 1100000 | B33: ². ÀÜÂ²òÆÎ Ì²Êêºðª ÀÜ¸²ØºÜÀ, ³Û¹ ÃíáõÙ` | C33: x | D33: =D68 -> 0 | E33: 0 | F33: 0 | G33: 0 | H33: 0 | I33: 0 | J33: 0
A34: 1110000 | B34: 1.äºî²Î²Ü, îºÔ²Î²Ü ÆÜøÜ²Î²è²ì²ðØ²Ü Ø²ðØÆÜÜºðÆ, ¸ð²Üò ºÜÂ²Î² ´Úàôæºî²ÚÆÜ ÐÆØÜ²ðÎÜºðÆ ²ÞÊ²îàÔÜºðÆ ²ÞÊ²î²ì²ðÒÀª ÀÜ¸²ØºÜÀ, ³Û¹ ÃíáõÙª | C34: x | D34: 0 | F34: 0 | G34: 0 | H34: 0 | I34: 0 | J34: 0
A35: 1110000 | B35: 1,1 ²ßË³ï³ÝùÇ í³ñÓ³ïñáõÃÛáõÝ | C35: x | D35: 0 | F35: 0 | G35: 0 | H35: 0 | I35: 0 | J35: 0
A36: 1111000 | B36: -²ßË³ïáÕÝ»ñÇ ³ßË³ï³í³ñÓ»ñ ¨ Ñ³í»É³í×³ñÝ»ñ | C36: 411100
A37: 1112000 | B37: - ä³ñ·¨³ïñáõÙÝ»ñ, ¹ñ³Ù³Ï³Ý Ëñ³ËáõëáõÙÝ»ñ ¨ Ñ³ïáõÏ í×³ñÝ»ñ | C37: 411200
A38: 1113000 | B38: -ø³Õ³ù³óÇ³Ï³Ý, ¹³ï³Ï³Ý ¨ å»ï³Ï³Ý Í³é³ÛáÕÝ»ñÇ å³ñ·¨³ïñáõÙ | C38: 411300
A39: 1114000 | B39: -ÐÐ ýÇÝ³ÝëÝ»ñÇ ¨ ¿ÏáÝáÙÇÏ³ÛÇ Ý³Ë³ñ³ñáõÃÛ³Ý, Ñ³ñÏ³ÛÇÝ ¨ Ù³ùë³ÛÇÝ Ù³ñÙÇÝÝ»ñÇ ³ßË³ïáÕÝ»ñÇ å³ñ·¨³ïñáõÙ | C39: 411400
A40: 1115000 | B40: -²ÛÉ í³ñÓ³ïñáõÃÛáõÝÝ»ñ | C40: 411500
A41: 1116000 | B41: -´Ý»Õ»Ý ³ßË³ï³í³ñÓ»ñ ¨ Ñ³í»É³í×³ñÝ»ñ | C41: 412100
A42: 1117000 | B42: -ì×³ñÝ»ñ êáóÇ³É³Ï³Ý ³å³Ñáí³·ñáõÃÛ³Ý å»ï³Ï³Ý ÑÇÙÝ³¹ñ³ÙÇÝ | C42: 413100
A43: 1120000 | B43: 2 Ì³é³ÛáõÃÛáõÝÝ»ñÇ ¨ ³åñ³ÝùÝ»ñÇ Ó»éù µ»ñáõÙ | C43: x | D43: 0 | F43: 0 | G43: 0 | H43: 0 | I43: 0 | J43: 0
A44: 1121000 | B44: 2.1 Þ³ñáõÝ³Ï³Ï³Ý Í³Ëë»ñ | D44: 0 | F44: 0 | G44: 0 | H44: 0 | I44: 0 | J44: 0
A45: 1121100 | B45: -·áñÍ³éÝ³Ï³Ý ¨ µ³ÝÏ³ÛÇÝ Í³é³ÛáõÃÛáõÝÝ»ñÇ Í³Ëë»ñ | C45: 421100 | D45: 0
A46: 1121200 | B46: -¿Ý»ñ·»ïÇÏ Í³é³ÛáõÃÛáõÝÝ»ñ | C46: 421200 | D46: 0
A47: 1121300 | B47: -ÎáÙáõÝ³É Í³é³ÛáõÃÛáõÝÝ»ñ | C47: 421300 | D47: 0
A48: 1121400 | B48: -Î³åÇ Í³é³ÛáõÃÛáõÝÝ»ñ | C48: 421400 | D48: 0
A49: 1121500 | B49: -²å³Ñáí³·ñ³Ï³Ý Í³Ëë»ñ | C49: 421500 | D49: 0
A50: 1121600 | B50: -¶áõÛùÇ ¨ ë³ñù³íáñáõÙÝ»ñÇ í³ñÓ³Ï³ÉáõÃÛáõÝ | C50: 421600 | D50: 0
A51: 1121700 | B51: -²ñï³·»ñ³ï»ëã³Ï³Ý Í³Ëë»ñ | C51: 421700 | D51: 0
A52: 1122000 | B52: 2.2 ¶áñÍáõÕáõÙÝ»ñÇ ¨ ßñç³·³ÛáõÃÛ³Ý Í³Ëë»ñ | C52: x | D52: 0 | F52: 0 | G52: 0 | H52: 0 | I52: 0 | J52: 0
A53: 1122100 | B53: -Ü»ñùÇÝ ·áñÍáõÕáõÙÝ»ñ | C53: 422100
A54: 1122200 | B54: -²ñï³ë³ÑÙ³ÝÛ³Ý ·áñÍáõÕáõÙÝ»ñÇ ·Íáí Í³Ëë»ñ | C54: 422200
A55: 1122300 | B55: -²ÛÉ ïñ³Ýëåáñï³ÛÇÝ Í³Ëë»ñ | C55: 422900
A56: 1123000 | B56: 2.3 ä³ÛÙ³Ý³·ñ³ÛÇÝ Í³é³ÛáõÃÛáõÝÝ»ñÇ Ó»éù µ»ñáõÙ | C56: x | D56: 0 | F56: 0 | G56: 0 | H56: 0 | I56: 0 | J56: 0
A57: 1123100 | B57: -ì³ñã³Ï³Ý Í³é³ÛáõÃÛáõÝÝ»ñ | C57: 423100 | D57: 0
A58: 1123200 | B58: -Ð³Ù³Ï³ñ·ã³ÛÇÝ Í³é³ÛáõÃÛáõÝÝ»ñ | C58: 423200 | D58: 0
A59: 1123300 | B59: -²ßË³ï³Ï³½ÙÇ Ù³ëÝ³·Çï³Ï³Ý ½³ñ·³óÙ³Ý Í³é³ÛáõÃÛáõÝÝ»ñ | C59: 423300 | D59: 0
A60: 1123400 | B60: -î»Õ³Ï³ïí³Ï³Ý Í³é³ÛáõÃÛáõÝÝ»ñ | C60: 423400 | D60: 0
A61: 1123500 | B61: -Î³é³í³ñã³Ï³Ý Í³é³ÛáõÃÛáõÝÝ»ñ | C61: 423500 | D61: 0
A62: 1123600 | B62: - Î»Ýó³Õ³ÛÇÝ ¨ Ñ³Ýñ³ÛÇÝ ëÝÝ¹Ç Í³é³ÛáõÃÛáõÝÝ»ñ | C62: 423600 | D62: 0
A63: 1123700 | B63: -Ü»ñÏ³Û³óáõóã³Ï³Ý Í³Ëë»ñ | C63: 423700 | D63: 0
A64: 1123800 | B64: -ÀÝ¹Ñ³Ýáõñ µÝáõÛÃÇ ³ÛÉ Í³é³ÛáõÃÛáõÝÝ»ñ | C64: 423900 | D64: 0
A65: 1124000 | B65: 2.4 ²ÛÉ Ù³ëÝ³·Çï³Ï³Ý Í³é³ÛáõÃÛáõÝÝ»ñÇ Ó»éù µ»ñáõÙ | C65: x | D65: 0 | F65: 0 | G65: 0 | H65: 0 | I65: 0 | J65: 0
A66: 1124100 | B66: -Ø³ëÝ³·Çï³Ï³Ý Í³é³ÛáõÃÛáõÝÝ»ñ | C66: 424100 | D66: 0
A67: 1125000 | B67: 2.5 ÀÝÃ³óÇÏ Ýáñá·áõÙ ¨ å³Ñå³ÝáõÙ (Í³é³ÛáõÃÛáõÝÝ»ñ ¨ ÝÛáõÃ»ñ) | C67: x | D67: 0 | F67: 0 | G67: 0 | H67: 0 | I67: 0 | J67: 0
A68: 1125100 | B68: -Þ»Ýù»ñÇ ¨ Ï³éáõÛóÝ»ñÇ ÁÝÃ³óÇÏ Ýáñá·áõÙ ¨ å³Ñå³ÝáõÙ | C68: 425100 | D68: 0 | E68: 0 | F68: =D68+E68 -> 0 | G68: 0 | H68: 0 | I68: 0 | J68: =F68 -> 0
A69: 1125200 | B69: -Ø»ù»Ý³Ý»ñÇ ¨ ë³ñù³íáñáõÙÝ»ñÇ ÁÝÃ³óÇÏ Ýáñá·áõÙ ¨ å³Ñå³ÝáõÙ | C69: 425200 | D69: 0
A70: 1126000 | B70: 2.6 ÜÛáõÃ»ñ | C70: x | D70: 0 | F70: 0 | G70: 0 | H70: 0 | I70: 0 | J70: 0
A71: 1126100 | B71: -¶ñ³ë»ÝÛ³Ï³ÛÇÝ ÝÛáõÃ»ñ ¨ Ñ³·áõëï | C71: 426100 | D71: 0
A72: 1126200 | B72: -¶ÛáõÕ³ïÝï»ë³Ï³Ý ³åñ³ÝùÝ»ñ | C72: 426200 | D72: 0
A73: 1126300 | B73: -ì»ñ³å³ïñ³ëïÙ³Ý ¨ áõëáõóÙ³Ý ÝÛáõÃ»ñ | C73: 426300 | D73: 0
A74: 1126400 | B74: -îñ³Ýëåáñï³ÛÇÝ ÝÛáõÃ»ñ | C74: 426400 | D74: 0
A75: 1126500 | B75: -Þñç³Ï³ ÙÇç³í³ÛñÇ å³ßïå³ÝáõÃÛ³Ý ¨ ·Çï³Ï³Ý ÝÛáõÃ»ñ | C75: 426500 | D75: 0
A76: 1126600 | B76: -²éáÕç³å³Ñ³Ï³Ý ¨ É³µáñ³ïáñ ÝÛáõÃ»ñ | C76: 426600 | D76: 0
A77: 1126700 | B77: -Î»Ýó³Õ³ÛÇÝ ¨ Ñ³Ýñ³ÛÇÝ ëÝÝ¹Ç ÝÛáõÃ»ñ | C77: 426700 | D77: 0
A78: 1126800 | B78: -Ð³ïáõÏ Ýå³ï³Ï³ÛÇÝ ³ÛÉ ÝÛáõÃ»ñ | C78: 426900 | D78: 0
A79: 1130000 | B79: 3 îáÏáë³í×³ñÝ»ñ | C79: x | D79: 0 | F79: 0 | G79: 0 | H79: 0 | I79: 0 | J79: 0
A80: 1130100 | B80: -Ü»ñùÇÝ ³ñÅ»ÃÕÃ»ñÇ ïáÏáë³í×³ñÝ»ñ | C80: 441100
A81: 1130200 | B81: -Ü»ñùÇÝ í³ñÏ»ñÇ ïáÏáë³í×³ñÝ»ñ | C81: 441200
A82: 1130300 | B82: -²ñï³ùÇÝ ³ñÅ»ÃÕÃ»ñÇ ·Íáí ïáÏáë³í×³ñÝ»ñ | C82: 442100
A83: 1130400 | B83: -²ñï³ùÇÝ í³ñÏ»ñÇ ·Íáí ïáÏáë³í×³ñÝ»ñ | C83: 442200
A84: 1131000 | B84: öáË³éáõÃÛáõÝÝ»ñÇ Ñ»ï Ï³åí³Í í×³ñÝ»ñ | C84: x
A85: 1131100 | B85: -öáË³Ý³ÏÙ³Ý Ïáõñë»ñÇ µ³ó³ë³Ï³Ý ï³ñµ»ñáõÃÛáõÝ | C85: 443100
A86: 1131200 | B86: -îáõÛÅ»ñ | C86: 443200
A87: 1131300 | B87: -öáË³éáõÃÛáõÝÝ»ñÇ ·Íáí ïáõñù»ñ | C87: 443300
A88: 1140000 | B88: 4. êáõµëÇ¹Ç³Ý»ñ | C88: x | D88: 0 | F88: 0 | G88: 0 | H88: 0 | I88: 0 | J88: 0
A89: 1141000 | B89: -êáõµëÇ¹Ç³Ý»ñ áã-ýÇÝ³Ýë³Ï³Ý å»ï³Ï³Ý Ï³½Ù³Ï»ñåáõÃÛáõÝÝ»ñÇÝ | C89: 451100
A90: 1142000 | B90: -êáõµëÇ¹Ç³Ý»ñ ýÇÝ³Ýë³Ï³Ý å»ï³Ï³Ý Ï³½Ù³Ï»ñåáõÃÛáõÝÝ»ñÇÝ | C90: 451200
A91: 1143000 | B91: -êáõµëÇ¹Ç³Ý»ñ áã å»ï³Ï³Ý áã ýÇÝ³Ýë³Ï³Ý Ï³½Ù³Ï»ñåáõÃÛáõÝÝ»ñÇÝ | C91: 452100
A92: 1144000 | B92: -êáõµëÇ¹Ç³Ý»ñ áã å»ï³Ï³Ý ýÇÝ³Ýë³Ï³Ý Ï³½Ù³Ï»ñåáõÃÛáõÝÝ»ñÇÝ | C92: 452200
A93: 1150000 | B93: 5.¸ñ³Ù³ßÝáñÑÝ»ñ | C93: x | D93: 0 | F93: 0 | G93: 0 | H93: 0 | I93: 0 | J93: 0
A94: 1151000 | B94: -ÀÝÃ³óÇÏ ¹ñ³Ù³ßÝáñÑÝ»ñ ûï³ñ»ñÏñÛ³ Ï³é³í³ñáõÃÛáõÝÝ»ñÇÝ | C94: 461100
A95: 1152000 | B95: -Î³åÇï³É ¹ñ³Ù³ßÝáñÑÝ»ñ ûï³ñ»ñÏñÛ³ Ï³é³í³ñáõÃÛáõÝÝ»ñÇÝ | C95: 461200
A96: 1153000 | B96: -ÀÝÃ³óÇÏ ¹ñ³Ù³ßÝáñÑÝ»ñ ÙÇç³½·³ÛÇÝ Ï³½Ù³Ï»ñåáõÃÛáõÝÝ»ñÇÝ | C96: 462100
A97: 1154000 | B97: -Î³åÇï³É ¹ñ³Ù³ßÝáñÑÝ»ñ ÙÇç³½·³ÛÇÝ Ï³½Ù³Ï»ñåáõÃÛáõÝÝ»ñÇÝ | C97: 462200
A98: 1155000 | B98: -ÀÝÃ³óÇÏ ¹ñ³Ù³ßÝáñÑÝ»ñ å»ï³Ï³Ý Ñ³ïí³ÍÇ ³ÛÉ Ù³Ï³ñ¹³ÏÝ»ñÇÝ | C98: 463100
A99: 1156000 | B99: -Î³åÇï³É ¹ñ³Ù³ßÝáñÑÝ»ñ å»ï³Ï³Ý Ñ³ïí³ÍÇ ³ÛÉ Ù³Ï³ñ¹³ÏÝ»ñÇÝ | C99: 463200
A100: 1160000 | B100: 6. êàòÆ²È²Î²Ü Üä²êîÜºð | C100: x | D100: 0 | F100: 0 | G100: 0 | H100: 0 | I100: 0 | J100: 0
A101: 1161000 | B101: 6.1 êàòÆ²È²Î²Ü ²ä²ÐàìàôÂÚ²Ü Üä²êîÜºð (ä²ðî²¸Æð êàòÆ²È²Î²Ü ²ä²Ðàì²¶ðàôÂÚ²Ü Î²¼Ø²ÎºðäàôÂÚàôÜÜºð) | C101: x | D101: 0 | F101: 0 | G101: 0 | H101: 0 | I101: 0 | J101: 0
A102: 1161100 | B102: -îÝ³ÛÇÝ ïÝï»ëáõÃÛáõÝÝ»ñÇÝ ¹ñ³Ùáí í×³ñíáÕ ëáóÇ³É³Ï³Ý ³å³Ñáí³·ñáõÃÛ³Ý í×³ñÝ»ñ | C102: 471100
A103: 1161200 | B103: -êáóÇ³É³Ï³Ý ³å³ÑáíáõÃÛ³Ý µÝ»Õ»Ý Ýå³ëïÝ»ñ Í³é³ÛáõÃÛáõÝÝ»ñ Ù³ïáõóáÕÝ»ñÇÝ | C103: 471200
A104: 1162000 | B104: 6.2 êàòÆ²È²Î²Ü ú¶ÜàôÂÚ²Ü ¸ð²Ø²Î²Ü ²ðî²Ð²ÚîàôÂÚ²Ø´ Üä²êîÜºð (´ÚàôæºÆò) | C104: x | D104: 0 | F104: 0 | G104: 0 | H104: 0 | I104: 0 | J104: 0
A105: 1162100 | B105: -ÐÇí³Ý¹áõÃÛ³Ý ¨ Ñ³ßÙ³Ý¹³ÙáõÃÛ³Ý Ýå³ëïÝ»ñ µÛáõç»Çó | C105: 472100
A106: 1162200 | B106: -Ø³ÛñáõÃÛ³Ý Ýå³ëïÝ»ñ µÛáõç»Çó | C106: 472200
A107: 1162300 | B107: -ºñ»Ë³Ý»ñÇ Ï³Ù ÁÝï³Ý»Ï³Ý Ýå³ëïÝ»ñ µÛáõç»Çó | C107: 472300
A108: 1162400 | B108: -¶áñÍ³½ñÏáõÃÛ³Ý Ýå³ëïÝ»ñ µÛáõç»Çó | C108: 472400
A109: 1162500 | B109: -Î»Ýë³Ãáß³ÏÇ ³ÝóÝ»Éáõ Ñ»ï Ï³åí³Í ¨ ï³ñÇù³ÛÇÝ Ýå³ëïÝ»ñ µÛáõç»Çó | C109: 472500
A110: 1162600 | B110: -ÐáõÕ³ñÏ³íáñáõÃÛ³Ý Ýå³ëïÝ»ñ µÛáõç»Çó | C110: 472600
A111: 1162700 | B111: -ÎñÃ³Ï³Ý, Ùß³ÏáõÃ³ÛÇÝ ¨ ëåáñï³ÛÇÝ Ýå³ëïÝ»ñ µÛáõç»Çó | C111: 472700
A112: 1162800 | B112: -´Ý³Ï³ñ³Ý³ÛÇÝ Ýå³ëïÝ»ñ µÛáõç»Çó | C112: 472800
A113: 1162900 | B113: -²ÛÉ Ýå³ëïÝ»ñ µÛáõç»Çó | C113: 472900
A114: 1170000 | B114: 7. ²ÚÈ Ì²Êêºð | C114: x | D114: 0 | F114: 0 | G114: 0 | H114: 0 | I114: 0 | J114: 0
A115: 1171000 | B115: 7.1 ÜìÆð²îìàôÂÚàôÜÜºð àâ-Î²è²ì²ðâ²Î²Ü (Ð²ê²ð²Î²Î²Ü) Î²¼Ø²ÎºðäàôÂÚàôÜÜºðÆÜ | C115: x | D115: 0 | F115: 0 | G115: 0 | H115: 0 | I115: 0 | J115: 0
A116: 1171100 | B116: -îÝ³ÛÇÝ ïÝï»ëáõÃÛáõÝÝ»ñÇÝ Í³é³ÛáõÃÛáõÝÝ»ñ Ù³ïáõóáÕ` ß³ÑáõÛÃ ãÑ»ï³åÝ¹áÕ Ï³½Ù³Ï»ñåáõÃÛáõÝÝ»ñÇÝ ÝíÇñ³ïíáõÃÛáõÝÝ»ñ | C116: 481100 | D116: 0
A117: 1171200 | B117: -ÜíÇñ³ïíáõÃÛáõÝÝ»ñ ³ÛÉ ß³ÑáõÛÃ ãÑ»ï³åÝ¹áÕ Ï³½Ù³Ï»ñåáõÃÛáõÝÝ»ñÇÝ | C117: 481900 | D117: 0
A118: 1172000 | B118: 7.2 Ð²ðÎºð, ä²ðî²¸Æð ìÖ²ðÜºð ºì îàôÚÄºð, àðàÜø Î²è²ì²ðØ²Ü î²ð´ºð Ø²Î²ð¸²ÎÜºðÆ ÎàÔØÆò ÎÆð²èìàôØ ºÜ ØÆØÚ²Üò ÜÎ²îØ²Ø´ | C118: x | D118: 0 | F118: 0 | G118: 0 | H118: 0 | I118: 0 | J118: 0
A119: 1172100 | B119: -²ßË³ï³í³ñÓÇ ýáÝ¹ | C119: 482100 | D119: 0
A120: 1172200 | B120: -²ÛÉ Ñ³ñÏ»ñ | C120: 482200 | D120: 0
A121: 1172300 | B121: -ä³ñï³¹Çñ í×³ñÝ»ñ | C121: 482300 | D121: 0
A122: 1172400 | B122: -ä»ï³Ï³Ý Ñ³ïí³ÍÇ ï³ñµ»ñ Ù³Ï³ñ¹³ÏÝ»ñÇ ÏáÕÙÇó ÙÇÙÛ³Ýó ÝÏ³ïÙ³Ùµ ÏÇñ³éíáÕ ïáõÛÅ»ñ | C122: 482400 | D122: 0
A123: 1173000 | B123: 7.3 ¸²î²ð²ÜÜºðÆ ÎàÔØÆò ÜÞ²Ü²Îì²Ì îàôÚÄºð ºì îàô¶²ÜøÜºð | C123: x | D123: 0 | F123: 0 | G123: 0 | H123: 0 | I123: 0 | J123: 0
A124: 1173100 | B124: -¸³ï³ñ³ÝÝ»ñÇ ÏáÕÙÇó Ýß³Ý³Ïí³Í ïáõÛÅ»ñ ¨ ïáõ·³ÝùÝ»ñ | C124: 483100 | D124: 0
A125: 1174000 | B125: 7.4 ´Ü²Î²Ü ²ÔºîÜºðÆò Î²Ø ²ÚÈ ´Ü²Î²Ü ä²îÖ²èÜºðàì ²è²æ²ò²Ì ìÜ²êÜºðÆ Î²Ø ìÜ²êì²ÌøÜºðÆ ìºð²Î²Ü¶ÜàôØ | C125: x | D125: 0 | F125: 0 | G125: 0 | H125: 0 | I125: 0 | J125: 0
A126: 1174100 | B126: -´Ý³Ï³Ý ³Õ»ïÝ»ñÇó ³é³ç³ó³Í íÝ³ëí³ÍùÝ»ñÇ Ï³Ù íÝ³ëÝ»ñÇ í»ñ³Ï³Ý·ÝáõÙ | C126: 484100 | D126: 0
A127: 1174200 | B127: -²ÛÉ µÝ³Ï³Ý å³ï×³éÝ»ñáí ëï³ó³Í íÝ³ëí³ÍùÝ»ñÇ í»ñ³Ï³Ý·ÝáõÙ | C127: 484200 | D127: 0
A128: 1175000 | B128: 7.5 Î²è²ì²ðØ²Ü Ø²ðØÆÜÜºðÆ ¶àðÌàôÜºàôÂÚ²Ü Ðºîºì²Üøàì ²è²æ²ò²Ì ìÜ²êÜºðÆ Î²Ø ìÜ²êì²ÌøÜºðÆ ìºð²Î²Ü¶ÜàôØ | C128: x | D128: 0 | F128: 0 | G128: 0 | H128: 0 | I128: 0 | J128: 0
A129: 1175100 | B129: -Î³é³í³ñÙ³Ý Ù³ñÙÇÝÝ»ñÇ ·áñÍáõÝ»áõÃÛ³Ý Ñ»ï¨³Ýùáí ³é³ç³ó³Í íÝ³ëí³ÍùÝ»ñÇ Ï³Ù íÝ³ëÝ»ñÇ í»ñ³Ï³Ý·ÝáõÙ | C129: 485100 | D129: 0
A130: 1176000 | B130: 7.6 ²ÚÈ Ì²Êêºð | C130: x | D130: 0 | F130: 0 | G130: 0 | H130: 0 | I130: 0 | J130: 0
A131: 1176100 | B131: -²ÛÉ Í³Ëë»ñ | C131: 486100 | D131: 0
A132: 1177000 | B132: 7.7 ä²Ðàôêî²ÚÆÜ ØÆæàòÜºð | C132: x | D132: 0 | F132: 0 | G132: 0 | H132: 0 | I132: 0 | J132: 0
A133: 1177100 | B133: -ä³Ñáõëï³ÛÇÝ ÙÇçáóÝ»ñ | C133: 489100 | D133: 0
A134: ---- | B134: -------
A135: 1200000 | B135: Բ, àâ-üÆÜ²Üê²Î²Ü ²ÎîÆìÜºðÆ ¶Ìàì Ì²Êêºð | C135: x | D135: =D138 -> 0 | E135: =E141 -> 0 | F135: =F138 -> 0 | G135: =G138 -> 0 | H135: =H138 -> 0 | I135: =I138 -> 0 | J135: =J138 -> 0
B136: ³Û¹ ÃíáõÙ`
A137: ---- | B137: -------
A138: 1210000 | B138: 1.ÐÆØÜ²Î²Ü ØÆæàòÜºð | C138: x | D138: =D140+D141+D142 -> 0 | F138: =F140+F141+F142 -> 0 | G138: =G140+G141+G142 -> 0 | H138: =H140+H141+H142 -> 0 | I138: =I140+I141+I142 -> 0 | J138: =F138 -> 0
A139: 1211000 | B139: -Þ»Ýù»ñÇ ¨ ßÇÝáõÃÛáõÝÝ»ñÇ Ó»éù µ»ñáõÙ | C139: 511100 | D139: 0
A140: 1212000 | B140: -Þ»Ýù»ñÇ ¨ ßÇÝáõÃÛáõÝÝ»ñÇ Ï³éáõóáõÙ | C140: 511200 | D140: 0 | E140: 0 | F140: =D140+E140 -> 0 | G140: 0 | H140: 0 | I140: 0 | J140: =F140 -> 0
A141: 1213000 | B141: -Þ»Ýù»ñÇ ¨ ßÇÝáõÃÛáõÝÝ»ñÇ Ï³åÇï³É í»ñ³Ýáñá·áõÙ | C141: 511300 | D141: 0 | E141: 0 | F141: =D141+E141 -> 0 | G141: 0 | H141: 0 | I141: 0 | J141: =F141 -> 0
A142: 1214000 | B142: -îñ³Ýëåáñï³ÛÇÝ ë³ñù³íáñáõÙÝ»ñ | C142: 512100 | D142: 0 | E142: 0 | F142: =D142+E142 -> 0 | G142: 0 | H142: 0 | I142: 0 | J142: =F142 -> 0
A143: 1215000 | B143: -ì³ñã³Ï³Ý ë³ñù³íáñáõÙÝ»ñ | C143: 512200 | D143: 0
A144: 1216000 | B144: -²ÛÉ Ù»ù»Ý³Ý»ñ ¨ ë³ñù³íáñáõÙÝ»ñ | C144: 512900 | D144: 0
A145: 1217000 | B145: -²×»óíáÕ ³ÏïÇíÝ»ñ | C145: 513100 | D145: 0
A146: 1218000 | B146: -àã-ÝÛáõÃ³Ï³Ý ÑÇÙÝ³Ï³Ý ÙÇçáóÝ»ñ | C146: 513200 | D146: 0
A147: 1220000 | B147: 2.ä²Þ²ðÜºð | C147: x | D147: 0 | F147: 0 | H147: 0 | I147: 0 | J147: 0
A148: 1221000 | B148: -è³½Ù³í³ñ³Ï³Ý å³ß³ñÝ»ñ | C148: 521100 | D148: 0
A149: 1222000 | B149: -ÜÛáõÃ»ñ ¨ å³ñ³·³Ý»ñ | C149: 522100 | D149: 0
A150: 1223000 | B150: -ì»ñ³í³×³éùÇ Ñ³Ù³ñ Ý³Ë³ï»ëí³Í ³åñ³ÝùÝ»ñ | C150: 523100 | D150: 0
A151: 1224000 | B151: -êå³éÙ³Ý Ýå³ï³Ïáí å³ÑíáÕ å³ß³ñÝ»ñ | C151: 524100 | D151: 0
A152: 1230000 | B152: 3.´²ðÒð²ðÄºø ²ÎîÆìÜºð | C152: x | D152: 0 | F152: 0 | G152: 0 | H152: 0 | I152: 0 | J152: 0
A153: 1231000 | B153: -´³ñÓñ³ñÅ»ù ³ÏïÇíÝ»ñ | C153: 531100 | D153: 0
A154: 1240000 | B154: 4.àâ ²ðî²¸ð²Î²Ü ԱԿՏԻՎՆԵՐ | C154: x | D154: 0 | F154: 0 | G154: 0 | H154: 0 | I154: 0 | J154: 0
A155: 1241000 | B155: -ÐáÕ | C155: 541100 | D155: 0
A156: 1242000 | B156: -ÀÝ¹»ñù³ÛÇÝ ³ÏïÇíÝ»ñ | C156: 542100 | D156: 0
A157: 1243000 | B157: -²ÛÉ µÝ³Ï³Ý Í³·áõÙ áõÝ»óáÕ ³ÏïÇíÝ»ñ | C157: 543100 | D157: 0
A158: 1244000 | B158: -àã ÝÛáõÃ³Ï³Ý áã ³ñï³¹ñ³Ï³Ý ³ÏïÇíÝ»ñ | C158: 544100 | D158: 0
A159: 1000000 | B159: ԸՆԴԱՄԵՆԸ ºÈøºð` (ïáÕ 1100000+ïáÕ1200000) | C159: x | D159: =D33+D135 -> 0 | E159: 0 | F159: 0 | G159: 0 | H159: 0 | I159: 0 | J159: =F159 -> 0
A162: § ¦ § դեկտ»Ùµ»ñ ¦ 2022 Ã.
A164: ÐÆØÜ²ðÎÆ ÔºÎ²ì²ðª _______________ _________________ | G164: Է.Արշակյան
E165: (ëïáñ³·ñáõÃÛáõÝ) | G165: (².Ð.².)
A167: Î.î üÆÜ²Üê²Î²Ü Ì²è²ÚàôÂÚ²Ü äºîª _______________ _________________ | G167: Ն. Մուրադյան
B168: (¶ÈÊ²ìàð Ð²Þì²ä²Ð) | E168: (ëïáñ³·ñáõÃÛáõÝ) | G168: (².Ð.².)

Sheet subv chanap (hidden)
F1: Ð³í»Éí³Í N 4
F3: úñÇÝ³Ï»ÉÇ Ó¨ N 3
F4: Ð³ëï³ïí»É ¿ ÐÐ ýÇÝ³ÝëÝ»ñÇ ¨ ¿ÏáÝáÙÇÏ³ÛÇ
B5: §Ð ² ê î ² î àô Ø ºØª¦ | G5: Ý³Ë³ñ³ñÇ 23 ÑáõÉÇëÇ 2007 Ãí³Ï³ÝÇ
F6: N 597-Ü Ññ³Ù³Ýáí
A7: Ý³Ë³Ñ³ßÇíÁ 176486,0 հարյուր յոթանասունվեց միլիոն չորս հարյուր ութսունվեց հազար դրամ.
A8: ( ÁÝ¹³Ù»ÝÁ ·áõÙ³ñÁ Ãí»ñáí ¨ ï³é»ñáí****)
A9: ___________________________________________________________________ Ñ³½³ñ ¹ñ³Ù ·áõÙ³ñáí:
A11: ______________________________________Է.Արշակյան___________________________________ | G11: Î.î.
A12: (ÐÐ å»ï³Ï³Ý Ï³é³í³ñÙ³Ý Ï³Ù ï»Õ³Ï³Ý ÇÝùÝ³Ï³é³í³ñÙ³Ý Ù³ñÙÝÇ Õ»Ï³í³ñÇ ëïáñ³·ñáõÃÛáõÝÁ ¨ ².Ð.².)
A13: §28 ¦ դեկտեմբերի 2022թ
A14: Ü ² Ê ² Ð ² Þ Æ ì*
A15: ÐÇÙÝ³ñÏÝ»ñÇ ÏáÕÙÇó µÛáõç»ï³ÛÇÝ Ñ³ïÏ³óáõÙÝ»ñÇ Ñ³ßíÇÝ Çñ³Ï³Ý³óíáÕ Í³Ëë»ñÇ (»Éù»ñÇ) ³é³ÝÓÇÝ ï»ë³ÏÝ»ñÇ
A16: ¥Áëï ïÝï»ë³·Çï³Ï³Ý ¹³ë³Ï³ñ·Ù³Ý Ñá¹í³ÍÝ»ñÇ¤
A17: §01¦ §ÐáõÝí³ñÇ ¦ 2023 Ã. -- §30¦ §¹»Ïï»Ùµ»ñÇ ¦ 2023 Ã.
A19: 1. ÐÇÙÝ³ñÏÇ ³Ýí³ÝáõÙÁ î³ßÇñÇ ù³Õ³ù³å»ï³ñ³Ý | F19: 8.***** ´Ûáõç»ï³ÛÇÝ Í³Ëë»ñÇ ·áñÍ³é³Ï³Ý ¹³ë³Ï³ñ·Ù³Ý
A20: 2. öáëï³ÛÇÝ Ñ³ëó»Ý ù. î³ßÇñ | F20: Í³ÍÏ³·Çñ | G20: 04 | H20: 5 | I20: 1
A21: 3. ÐÇÙÝ³ñÏÇ ï»Õ³µ³ßËÙ³Ý Ù³ñ½Ç ¨ Ñ³Ù³ÛÝùÇ Ïá¹Á
A22: Áëï µÛáõç»ï³ÛÇÝ Í³Ëë»ñÇ ï³ñ³Íù³ÛÇÝ ¹³ë³Ï³ñ·Ù³Ý | F22: 9. Ìñ³·ñÇ ³Ýí³ÝáõÙÁ _ճանապարային տրանսպորտ սուբվեն
A23: 4. ** ä»ï³Ï³Ý Ï³é³í³ñÙ³Ý (ï»Õ³Ï³Ý ÇÝùÝ³Ï³é³í³ñÙ³Ý) Ù³ñÙÝÇ ³Ýí³ÝáõÙÁ | F23: 10. Ìñ³·ñÇ Ïá¹Á 51
A24: _______________________________________________________________________________________ | F24: 11. *** ä»ï³Ï³Ý Ï³é³í³ñÙ³Ý (ï»Õ³Ï³Ý .ÇÝù ÇÝùÝ³Ï³é³í³ñÙ³Ý)Ù³ñÙÇÝÝ»ñÇ ·»ñ³ï»ëã³Ï³Ý Ïá¹Á
A25: 5. ÐÇÙÝ³ñÏÁ ëå³ë³ñÏáÕ ï»Õ³Ï³Ý ·³ÝÓ³å»ï³Ï³Ý µ³ÅÝÇ (î¶´) ³Ýí³ÝáõÙÁ _Տաշիրի
A26: 6. ÐÇÙÝ³ñÏÇª ï»Õ³Ï³Ý ·³ÝÓ³å»ï³Ï³Ý µ³ÅÝáõÙ (î¶´) Ñ³ßí³éÙ³Ý Ñ³Ù³ñÁ
A27: 7. Ì³Ëë»ñÇ ýÇÝ³Ýë³íáñÙ³Ý ³ÕµÛáõñÇ Ïá¹Á` | G27: 12. â³÷Ç ÙÇ³íáñÁª Ñ³½³ñ ¹ñ³Ù
A28: (ÐÐ å»ï³Ï³Ý µÛáõç»ª 1, Ñ³Ù³ÛÝùÇ µÛáõç»ª 2) | H28: 900272000507
A30: îáÕÇ NN | B30: ´Ûáõç»ï³ÛÇÝ Í³Ëë»ñÇ ïÝï»ë³·Çï³Ï³Ý ¹³ë³Ï³ñ·Ù³Ý ï³ññ»ñ | D30: ÜáõÛÝ Å³Ù³Ý³Ï³Ñ³ïí³ÍÇ Ñ³Ù³ñ Ý³ËÏÇÝáõÙ Ñ³ëï³ïí³Íª ·áñÍáÕ | F30: êáõÛÝ Ý³Ë³Ñ³ßíáí Ñ³ëï³ïíáÕ óáõó³ÝÇßÝ»ñÁ | G30: ³Û¹ ÃíáõÙª Áëï »é³ÙëÛ³ÏÝ»ñÇ (»é³ÙëÛ³ÏÇ ³ÙÇëÝ»ñÇ)³×áÕ³Ï³Ý
B31: ³Ýí³ÝáõÙÝ»ñÁ | C31: NN | D31: Ý³Ë³Ñ³ßíÇ óáõó³ÝÇßÝ»ñÁ | E31: Ý³Ë³Ñ³ßíáõÙ Ï³ï³ñí³Í ÷á÷áËáõÃÛáõÝ-Ý»ñÁ (³í»É³óáõÙÁª /+/, å³Ï³ë»óáõÙÁª/-/ | G31: I | H31: II | I31: III | J31: IV
A32: ² | B32: ´ | C32: ¶ | D32: 1 | E32: 2 | F32: 3 | G32: 4 | H32: 5 | I32: 6 | J32: 7
A33: 1100000 | B33: ². ÀÜÂ²òÆÎ Ì²Êêºðª ÀÜ¸²ØºÜÀ, ³Û¹ ÃíáõÙ` | C33: x | D33: =D68 -> 0 | E33: 0 | F33: 0 | G33: 0 | H33: 0 | I33: 0 | J33: 0
A34: 1110000 | B34: 1.äºî²Î²Ü, îºÔ²Î²Ü ÆÜøÜ²Î²è²ì²ðØ²Ü Ø²ðØÆÜÜºðÆ, ¸ð²Üò ºÜÂ²Î² ´Úàôæºî²ÚÆÜ ÐÆØÜ²ðÎÜºðÆ ²ÞÊ²îàÔÜºðÆ ²ÞÊ²î²ì²ðÒÀª ÀÜ¸²ØºÜÀ, ³Û¹ ÃíáõÙª | C34: x | D34: 0 | F34: 0 | G34: 0 | H34: 0 | I34: 0 | J34: 0
A35: 1110000 | B35: 1,1 ²ßË³ï³ÝùÇ í³ñÓ³ïñáõÃÛáõÝ | C35: x | D35: 0 | F35: 0 | G35: 0 | H35: 0 | I35: 0 | J35: 0
A36: 1111000 | B36: -²ßË³ïáÕÝ»ñÇ ³ßË³ï³í³ñÓ»ñ ¨ Ñ³í»É³í×³ñÝ»ñ | C36: 411100
A37: 1112000 | B37: - ä³ñ·¨³ïñáõÙÝ»ñ, ¹ñ³Ù³Ï³Ý Ëñ³ËáõëáõÙÝ»ñ ¨ Ñ³ïáõÏ í×³ñÝ»ñ | C37: 411200
A38: 1113000 | B38: -ø³Õ³ù³óÇ³Ï³Ý, ¹³ï³Ï³Ý ¨ å»ï³Ï³Ý Í³é³ÛáÕÝ»ñÇ å³ñ·¨³ïñáõÙ | C38: 411300
A39: 1114000 | B39: -ÐÐ ýÇÝ³ÝëÝ»ñÇ ¨ ¿ÏáÝáÙÇÏ³ÛÇ Ý³Ë³ñ³ñáõÃÛ³Ý, Ñ³ñÏ³ÛÇÝ ¨ Ù³ùë³ÛÇÝ Ù³ñÙÇÝÝ»ñÇ ³ßË³ïáÕÝ»ñÇ å³ñ·¨³ïñáõÙ | C39: 411400
A40: 1115000 | B40: -²ÛÉ í³ñÓ³ïñáõÃÛáõÝÝ»ñ | C40: 411500
A41: 1116000 | B41: -´Ý»Õ»Ý ³ßË³ï³í³ñÓ»ñ ¨ Ñ³í»É³í×³ñÝ»ñ | C41: 412100
A42: 1117000 | B42: -ì×³ñÝ»ñ êáóÇ³É³Ï³Ý ³å³Ñáí³·ñáõÃÛ³Ý å»ï³Ï³Ý ÑÇÙÝ³¹ñ³ÙÇÝ | C42: 413100
A43: 1120000 | B43: 2 Ì³é³ÛáõÃÛáõÝÝ»ñÇ ¨ ³åñ³ÝùÝ»ñÇ Ó»éù µ»ñáõÙ | C43: x | D43: 1500 | F43: 1500 | G43: 0 | H43: 0 | I43: 1500 | J43: 1500
A44: 1121000 | B44: 2.1 Þ³ñáõÝ³Ï³Ï³Ý Í³Ëë»ñ | D44: 0 | F44: 0 | G44: 0 | H44: 0 | I44: 0 | J44: 0
A45: 1121100 | B45: -·áñÍ³éÝ³Ï³Ý ¨ µ³ÝÏ³ÛÇÝ Í³é³ÛáõÃÛáõÝÝ»ñÇ Í³Ëë»ñ | C45: 421100 | D45: 0
A46: 1121200 | B46: -¿Ý»ñ·»ïÇÏ Í³é³ÛáõÃÛáõÝÝ»ñ | C46: 421200 | D46: 0
A47: 1121300 | B47: -ÎáÙáõÝ³É Í³é³ÛáõÃÛáõÝÝ»ñ | C47: 421300 | D47: 0
A48: 1121400 | B48: -Î³åÇ Í³é³ÛáõÃÛáõÝÝ»ñ | C48: 421400 | D48: 0
A49: 1121500 | B49: -²å³Ñáí³·ñ³Ï³Ý Í³Ëë»ñ | C49: 421500 | D49: 0
A50: 1121600 | B50: -¶áõÛùÇ ¨ ë³ñù³íáñáõÙÝ»ñÇ í³ñÓ³Ï³ÉáõÃÛáõÝ | C50: 421600 | D50: 0
A51: 1121700 | B51: -²ñï³·»ñ³ï»ëã³Ï³Ý Í³Ëë»ñ | C51: 421700 | D51: 0
A52: 1122000 | B52: 2.2 ¶áñÍáõÕáõÙÝ»ñÇ ¨ ßñç³·³ÛáõÃÛ³Ý Í³Ëë»ñ | C52: x | D52: 0 | F52: 0 | G52: 0 | H52: 0 | I52: 0 | J52: 0
A53: 1122100 | B53: -Ü»ñùÇÝ ·áñÍáõÕáõÙÝ»ñ | C53: 422100
A54: 1122200 | B54: -²ñï³ë³ÑÙ³ÝÛ³Ý ·áñÍáõÕáõÙÝ»ñÇ ·Íáí Í³Ëë»ñ | C54: 422200
A55: 1122300 | B55: -²ÛÉ ïñ³Ýëåáñï³ÛÇÝ Í³Ëë»ñ | C55: 422900
A56: 1123000 | B56: 2.3 ä³ÛÙ³Ý³·ñ³ÛÇÝ Í³é³ÛáõÃÛáõÝÝ»ñÇ Ó»éù µ»ñáõÙ | C56: x | D56: 0 | F56: 0 | G56: 0 | H56: 0 | I56: 0 | J56: 0
A57: 1123100 | B57: -ì³ñã³Ï³Ý Í³é³ÛáõÃÛáõÝÝ»ñ | C57: 423100 | D57: 0
A58: 1123200 | B58: -Ð³Ù³Ï³ñ·ã³ÛÇÝ Í³é³ÛáõÃÛáõÝÝ»ñ | C58: 423200 | D58: 0
A59: 1123300 | B59: -²ßË³ï³Ï³½ÙÇ Ù³ëÝ³·Çï³Ï³Ý ½³ñ·³óÙ³Ý Í³é³ÛáõÃÛáõÝÝ»ñ | C59: 423300 | D59: 0
A60: 1123400 | B60: -î»Õ³Ï³ïí³Ï³Ý Í³é³ÛáõÃÛáõÝÝ»ñ | C60: 423400 | D60: 0
A61: 1123500 | B61: -Î³é³í³ñã³Ï³Ý Í³é³ÛáõÃÛáõÝÝ»ñ | C61: 423500 | D61: 0
A62: 1123600 | B62: - Î»Ýó³Õ³ÛÇÝ ¨ Ñ³Ýñ³ÛÇÝ ëÝÝ¹Ç Í³é³ÛáõÃÛáõÝÝ»ñ | C62: 423600 | D62: 0
A63: 1123700 | B63: -Ü»ñÏ³Û³óáõóã³Ï³Ý Í³Ëë»ñ | C63: 423700 | D63: 0
A64: 1123800 | B64: -ÀÝ¹Ñ³Ýáõñ µÝáõÛÃÇ ³ÛÉ Í³é³ÛáõÃÛáõÝÝ»ñ | C64: 423900 | D64: 0
A65: 1124000 | B65: 2.4 ²ÛÉ Ù³ëÝ³·Çï³Ï³Ý Í³é³ÛáõÃÛáõÝÝ»ñÇ Ó»éù µ»ñáõÙ | C65: x | D65: 0 | F65: 0 | G65: 0 | H65: 0 | I65: 0 | J65: 0
A66: 1124100 | B66: -Ø³ëÝ³·Çï³Ï³Ý Í³é³ÛáõÃÛáõÝÝ»ñ | C66: 424100 | D66: 0
A67: 1125000 | B67: 2.5 ÀÝÃ³óÇÏ Ýáñá·áõÙ ¨ å³Ñå³ÝáõÙ (Í³é³ÛáõÃÛáõÝÝ»ñ ¨ ÝÛáõÃ»ñ) | C67: x | D67: 0 | F67: 0 | G67: 0 | H67: 0 | I67: 0 | J67: 0
A68: 1125100 | B68: -Þ»Ýù»ñÇ ¨ Ï³éáõÛóÝ»ñÇ ÁÝÃ³óÇÏ Ýáñá·áõÙ ¨ å³Ñå³ÝáõÙ | C68: 425100 | D68: 0 | E68: 0 | F68: =D68+E68 -> 0 | G68: 0 | H68: 0 | I68: 0 | J68: =F68 -> 0
A69: 1125200 | B69: -Ø»ù»Ý³Ý»ñÇ ¨ ë³ñù³íáñáõÙÝ»ñÇ ÁÝÃ³óÇÏ Ýáñá·áõÙ ¨ å³Ñå³ÝáõÙ | C69: 425200 | D69: 0
A70: 1126000 | B70: 2.6 ÜÛáõÃ»ñ | C70: x | D70: 0 | F70: 0 | G70: 0 | H70: 0 | I70: 0 | J70: 0
A71: 1126100 | B71: -¶ñ³ë»ÝÛ³Ï³ÛÇÝ ÝÛáõÃ»ñ ¨ Ñ³·áõëï | C71: 426100 | D71: 0
A72: 1126200 | B72: -¶ÛáõÕ³ïÝï»ë³Ï³Ý ³åñ³ÝùÝ»ñ | C72: 426200 | D72: 0
A73: 1126300 | B73: -ì»ñ³å³ïñ³ëïÙ³Ý ¨ áõëáõóÙ³Ý ÝÛáõÃ»ñ | C73: 426300 | D73: 0
